Workbook

Sheet Forms
E4: 1 | I4: 8
E5: =INDEX(G5:G57,E4) -> 2022-01-01 | F5: 1 | G5: 2022-01-01 | I5: =INDEX(G5:G57,I4) -> 2022-02-19 | L5: From | M5: =E5 -> 2022-01-01 | N5: to | O5: =I5 -> 2022-02-19
F6: 2 | G6: =G5+7 -> 2022-01-08 | S6: =INDEX(S8:S29,U8) -> FR
F7: 3 | G7: =G6+7 -> 2022-01-15
F8: 4 | G8: 2022-01-22 | K8: Capacity Factor | L8: =L5 -> From | M8: =M5 -> 2022-01-01 | N8: =N5 -> to | O8: =O5 -> 2022-02-19 | S8: SYS | U8: 21
F9: 5 | G9: 2022-01-29 | S9: SE1
F10: 6 | G10: 2022-02-05 | K10: Wind Predicted and Actual | L10: =L5 -> From | M10: =M5 -> 2022-01-01 | N10: =N5 -> to | O10: =O5 -> 2022-02-19 | S10: SE2
F11: 7 | G11: 2022-02-12 | S11: SE3
F12: 8 | G12: 2022-02-19 | K12: Prediced and Actual Consumption | L12: From | M12: =M5 -> 2022-01-01 | N12: =N5 -> to | O12: =O5 -> 2022-02-19 | S12: SE4
F13: 9 | G13: 2022-02-26 | S13: FI
F14: 10 | G14: 2022-03-05 | K14: Price Comare | L14: =S6 -> FR | M14: =M5 -> 2022-01-01 | N14: =N5 -> to | O14: =O5 -> 2022-02-19 | S14: DK1
F15: 11 | G15: 2022-03-12 | S15: DK2
F16: 12 | G16: 2022-03-19 | S16: Oslo
F17: 13 | G17: 2022-03-26 | S17: Kr.sand
F18: 14 | G18: 2022-04-02 | S18: Bergen
F19: 15 | G19: 2022-04-09 | S19: Molde
F20: 16 | G20: 2022-04-16 | S20: Tr.heim
F21: 17 | G21: 2022-04-23 | S21: Tromsø
F22: 18 | G22: 2022-04-30 | S22: EE
F23: 19 | G23: 2022-05-07 | S23: LV
F24: 20 | G24: 2022-05-14 | S24: LT
F25: 21 | G25: 2022-05-21 | S25: AT
F26: 22 | G26: 2022-05-28 | S26: BE
F27: 23 | G27: 2022-06-04 | S27: DE-LU
F28: 24 | G28: 2022-06-11 | S28: FR
F29: 25 | G29: 2022-06-18 | S29: NL
F30: 26 | G30: 2022-06-25
F31: 27 | G31: 2022-07-02
F32: 28 | G32: 2022-07-09
F33: 29 | G33: 2022-07-16
F34: 30 | G34: 2022-07-23
F35: 31 | G35: 2022-07-30
F36: 32 | G36: 2022-08-06
F37: 33 | G37: 2022-08-13
F38: 34 | G38: 2022-08-20
F39: 35 | G39: 2022-08-27
F40: 36 | G40: 2022-09-03
F41: 37 | G41: 2022-09-10
F42: 38 | G42: 2022-09-17
F43: 39 | G43: 2022-09-24
F44: 40 | G44: 2022-10-01
F45: 41 | G45: 2022-10-08
F46: 42 | G46: 2022-10-15
F47: 43 | G47: 2022-10-22
F48: 44 | G48: 2022-10-29
F49: 45 | G49: 2022-11-05
F50: 46 | G50: 2022-11-12
F51: 47 | G51: 2022-11-19
F52: 48 | G52: 2022-11-26
F53: 49 | G53: 2022-12-03
F54: 50 | G54: 2022-12-10
F55: 51 | G55: 2022-12-17
F56: 52 | G56: 2022-12-24
G57: 2022-12-31

Sheet wind-power-dk_2022_hourly
J2: =Forms!E5 -> 2022-01-01
J3: =Forms!I5 -> 2022-02-19 | AD3: Max | AE3: Max
AD4: =MAX(C8:C8768) -> 4606 | AE4: =MAX(D8:D8768) -> 1556
A5: Wind power DK in MWh - Actual | AD5: =AVERAGE(AD8:AD8768) -> 0.3453575117 | AE5: =AVERAGE(AE8:AE8768) -> 0.3696189939
A6: Data was last updated 01-01-2023 | F6: Predicted | G6: Predicted | K6: Actual | L6: Predicted | N6: Actual | O6: Predicted | Q6: DK 1 | R6: DK 2 | S6: Cons | T6: DK 1 | U6: DK 2 | X6: Cons | Y6: Pred | AA6: DK1 | AB6: DK2 | AD6: DK1 | AE6: DK2 | AF6: Natural | AG6: DK1 | AH6: DK2 | AI6: DK1 | AJ6: DK2 | AK6: ='elspot-prices_2022_hourly_eur ('!C3 -> FR | AL6: =AK6 -> FR | AN6: =AG6 -> DK1 | AO6: =AK6 -> FR | AP6: Wind | AR6: =AN6 -> DK1 | AS6: FR | AV6: =AI6 -> DK1 | AW6: =AJ6 -> DK2 | AX6: =AL6 -> FR
B7: Hours | C7: DK1 | D7: DK2 | E7: Total | F7: DK1 | G7: DK2 | L7: Total | O7: Total | Q7: Act Cons | R7: Act Cons | S7: Total | T7: Pred Cons | U7: Pred Cons | V7: Total | X7: Total | Y7: Total | AA7: Wind % | AB7: Wind % | AD7: Cap Fac | AE7: Cap Fac | AF7: Gas | AG7: Price | AH7: Price | AI7: HR | AJ7: HR | AK7: Price | AL7: =AJ7 -> HR | AN7: =AH7 -> Price | AO7: =AK7 -> Price | AR7: Price | AS7: Price | AT7: Nat Gas | AV7: =AI7 -> HR | AW7: =AJ7 -> HR | AX7: =AL7 -> HR
A8: 2022-01-01 | B8: 00 - 01 | C8: 2003 | D8: 1125 | E8: =C8+D8 -> 3128 | F8: 1697 | G8: 869 | H8: =A8 -> 2022-01-01 | I8: 1 | J8: =AND(H8>=$J$2,H8<$J$3) -> TRUE | K8: =E8 -> 3128 | L8: =SUM(F8:G8) -> 2566 | M8: =IF(J8,I8,NA()) -> 1900-01-01 | N8: =IF(J8,K8,NA()) -> 3128 | O8: =IF(J8,L8,NA()) -> 2566 | P8: 1 | Q8: ='consumption-dk-areas_2022_hourl'!D4 -> 2029 | R8: ='consumption-dk-areas_2022_hourl'!E4 -> 1387 | S8: =Q8+R8 -> 3416 | T8: ='consumption-prognosis_2022_hour'!F4 -> 2027 | U8: ='consumption-prognosis_2022_hour'!G4 -> 1383 | V8: =T8+U8 -> 3410 | W8: =M8 -> 1900-01-01 | X8: =S8 -> 3416 | Y8: =V8 -> 3410 | Z8: =M8 -> 1 | AA8: =C8/Q8 -> 0.9871858058 | AB8: =D8/R8 -> 0.8111031002 | AC8: =Z8 -> 1 | AD8: =C8/AD$4 -> 0.434867564 | AE8: =D8/AE$4 -> 0.7230077121 | AF8: =LOOKUP(A8,'Gas Prices'!B:B,'Gas Prices'!C:C) -> 22.38796945 | AG8: ='elspot-prices_2022_hourly_eur ('!J4 -> 50.05 | AH8: ='elspot-prices_2022_hourly_eur ('!K4 -> 46.6 | AI8: =AG8/AF8 -> 2.235575679 | AJ8: =AH8/AF8 -> 2.081475058 | AK8: ='elspot-prices_2022_hourly_eur ('!C4 -> 89.06 | AL8: =AK8/AF8 -> 3.97802937 | AM8: =AC8 -> 1 | AN8: =IF(J8,AG8,NA()) -> 50.05 | AO8: =IF(J8,AK8,NA()) -> 89.06 | AP8: =IF(J8,L8,NA()) -> 2566 | AQ8: =AM8 -> 1 | AR8: 50.05 | AS8: 89.06 | AT8: =IF(J8,AF8,NA()) -> 22.38796945 | AU8: =AQ8 -> 1 | AV8: =IF(J8,AI8,NA()) -> 2.235575679 | AW8: =IF(J8,AJ8,NA()) -> 2.081475058 | AX8: =IF(J8,AL8,NA()) -> 3.97802937
A9: =A8+1/24 -> 2022-01-01T01:00:00 | B9: 01 - 02 | C9: 1988 | D9: 1195 | E9: =C9+D9 -> 3183 | F9: 1726 | G9: 885 | H9: =H8+1/24 -> 2022-01-01T01:00:00 | I9: 2 | J9: =AND(H9>=$J$2,H9<$J$3) -> TRUE | K9: =E9 -> 3183 | L9: =SUM(F9:G9) -> 2611 | M9: =IF(J9,I9,NA()) -> 1900-01-02 | N9: =IF(J9,K9,NA()) -> 3183 | O9: =IF(J9,L9,NA()) -> 2611 | P9: 1 | Q9: ='consumption-dk-areas_2022_hourl'!D5 -> 1974 | R9: ='consumption-dk-areas_2022_hourl'!E5 -> 1340 | S9: =Q9+R9 -> 3314 | T9: ='consumption-prognosis_2022_hour'!F5 -> 1962 | U9: ='consumption-prognosis_2022_hour'!G5 -> 1340 | V9: =T9+U9 -> 3302 | W9: =M9 -> 1900-01-02 | X9: =S9 -> 3314 | Y9: =V9 -> 3302 | Z9: =M9 -> 2 | AA9: =C9/Q9 -> 1.007092199 | AB9: =D9/R9 -> 0.8917910448 | AC9: =Z9 -> 2 | AD9: =C9/AD$4 -> 0.4316109422 | AE9: =D9/AE$4 -> 0.7679948586 | AF9: =LOOKUP(A9,'Gas Prices'!B:B,'Gas Prices'!C:C) -> 22.38796945 | AG9: ='elspot-prices_2022_hourly_eur ('!J5 -> 41.33 | AH9: ='elspot-prices_2022_hourly_eur ('!K5 -> 41.33 | AI9: =AG9/AF9 -> 1.846080776 | AJ9: =AH9/AF9 -> 1.846080776 | AK9: ='elspot-prices_2022_hourly_eur ('!C5 -> 78.48 | AL9: =AK9/AF9 -> 3.505454132 | AM9: =AC9 -> 2 | AN9: =IF(J9,AG9,NA()) -> 41.33 | AO9: =IF(J9,AK9,NA()) -> 78.48 | AP9: =IF(J9,L9,NA()) -> 2611 | AQ9: =AM9 -> 2 | AR9: =AN9 -> 41.33 | AS9: =AO9 -> 78.48 | AT9: =IF(J9,AF9,NA()) -> 22.38796945 | AU9: =AQ9 -> 2 | AV9: =IF(J9,AI9,NA()) -> 1.846080776 | AW9: =IF(J9,AJ9,NA()) -> 1.846080776 | AX9: =IF(J9,AL9,NA()) -> 3.505454132
A10: =A9+1/24 -> 2022-01-01T02:00:00 | B10: 02 - 03 | C10: 1884 | D10: 1209 | E10: 3093 | F10: 1639 | G10: 888 | H10: =H9+1/24 -> 2022-01-01T02:00:00 | I10: 3 | J10: TRUE | K10: 3093 | L10: 2527 | M10: 1900-01-03 | N10: 3093 | O10: 2527 | P10: 1 | Q10: ='consumption-dk-areas_2022_hourl'!D6 -> 1934 | R10: ='consumption-dk-areas_2022_hourl'!E6 -> 1284 | S10: 3218 | T10: ='consumption-prognosis_2022_hour'!F6 -> 1889 | U10: ='consumption-prognosis_2022_hour'!G6 -> 1280 | V10: 3169 | W10: 1900-01-03 | X10: 3218 | Y10: 3169 | Z10: 3 | AA10: 0.9741468459 | AB10: 0.941588785 | AC10: 3 | AD10: 0.4090316978 | AE10: 0.7769922879 | AF10: =LOOKUP(A10,'Gas Prices'!B:B,'Gas Prices'!C:C) -> 22.38796945 | AG10: ='elspot-prices_2022_hourly_eur ('!J6 -> 43.22 | AH10: ='elspot-prices_2022_hourly_eur ('!K6 -> 42.18 | AI10: 1.930501116 | AJ10: 1.884047595 | AK10: ='elspot-prices_2022_hourly_eur ('!C6 -> 85.16 | AL10: 3.803828668 | AM10: 3 | AN10: 43.22 | AO10: 85.16 | AP10: 2527 | AQ10: 3 | AR10: 43.22 | AS10: 85.16 | AT10: 22.38796945 | AU10: 3 | AV10: 1.930501116 | AW10: 1.884047595 | AX10: 3.803828668
A11: 2022-01-01T03:00:00 | B11: 03 - 04 | C11: 1710 | D11: 1079 | E11: 2789 | F11: 1340 | G11: 823 | H11: 2022-01-01T03:00:00 | I11: 4 | J11: TRUE | K11: 2789 | L11: 2163 | M11: 1900-01-04 | N11: 2789 | O11: 2163 | P11: 1 | Q11: ='consumption-dk-areas_2022_hourl'!D7 -> 1882 | R11: ='consumption-dk-areas_2022_hourl'!E7 -> 1244 | S11: 3126 | T11: ='consumption-prognosis_2022_hour'!F7 -> 1857 | U11: ='consumption-prognosis_2022_hour'!G7 -> 1238 | V11: 3095 | W11: 1900-01-04 | X11: 3126 | Y11: 3095 | Z11: 4 | AA11: 0.908607864 | AB11: 0.8673633441 | AC11: 4 | AD11: 0.3712548849 | AE11: 0.6934447301 | AF11: =LOOKUP(A11,'Gas Prices'!B:B,'Gas Prices'!C:C) -> 22.38796945 | AG11: ='elspot-prices_2022_hourly_eur ('!J7 -> 45.46 | AH11: ='elspot-prices_2022_hourly_eur ('!K7 -> 44.37 | AI11: 2.030554853 | AJ11: 1.98186799 | AK11: ='elspot-prices_2022_hourly_eur ('!C7 -> 50 | AL11: 2.233342337 | AM11: 4 | AN11: 45.46 | AO11: 50 | AP11: 2163 | AQ11: 4 | AR11: 45.46 | AS11: 50 | AT11: 22.38796945 | AU11: 4 | AV11: 2.030554853 | AW11: 1.98186799 | AX11: 2.233342337
A12: 2022-01-01T04:00:00 | B12: 04 - 05 | C12: 1571 | D12: 913 | E12: 2484 | F12: 1146 | G12: 804 | H12: 2022-01-01T04:00:00 | I12: 5 | J12: TRUE | K12: 2484 | L12: 1950 | M12: 1900-01-05 | N12: 2484 | O12: 1950 | P12: 1 | Q12: ='consumption-dk-areas_2022_hourl'!D8 -> 1850 | R12: ='consumption-dk-areas_2022_hourl'!E8 -> 1230 | S12: 3080 | T12: ='consumption-prognosis_2022_hour'!F8 -> 1824 | U12: ='consumption-prognosis_2022_hour'!G8 -> 1212 | V12: 3036 | W12: 1900-01-05 | X12: 3080 | Y12: 3036 | Z12: 5 | AA12: 0.8491891892 | AB12: 0.7422764228 | AC12: 5 | AD12: 0.3410768563 | AE12: 0.5867609254 | AF12: =LOOKUP(A12,'Gas Prices'!B:B,'Gas Prices'!C:C) -> 22.38796945 | AG12: ='elspot-prices_2022_hourly_eur ('!J8 -> 37.67 | AH12: ='elspot-prices_2022_hourly_eur ('!K8 -> 37.67 | AI12: 1.682600117 | AJ12: 1.682600117 | AK12: ='elspot-prices_2022_hourly_eur ('!C8 -> 37.67 | AL12: 1.682600117 | AM12: 5 | AN12: 37.67 | AO12: 37.67 | AP12: 1950 | AQ12: 5 | AR12: 37.67 | AS12: 37.67 | AT12: 22.38796945 | AU12: 5 | AV12: 1.682600117 | AW12: 1.682600117 | AX12: 1.682600117
A13: 2022-01-01T05:00:00 | B13: 05 - 06 | C13: 1490 | D13: 892 | E13: 2382 | F13: 857 | G13: 770 | H13: 2022-01-01T05:00:00 | I13: 6 | J13: TRUE | K13: 2382 | L13: 1627 | M13: 1900-01-06 | N13: 2382 | O13: 1627 | P13: 1 | Q13: ='consumption-dk-areas_2022_hourl'!D9 -> 1844 | R13: ='consumption-dk-areas_2022_hourl'!E9 -> 1200 | S13: 3044 | T13: ='consumption-prognosis_2022_hour'!F9 -> 1831 | U13: ='consumption-prognosis_2022_hour'!G9 -> 1205 | V13: 3036 | W13: 1900-01-06 | X13: 3044 | Y13: 3036 | Z13: 6 | AA13: 0.8080260304 | AB13: 0.7433333333 | AC13: 6 | AD13: 0.3234910986 | AE13: 0.5732647815 | AF13: =LOOKUP(A13,'Gas Prices'!B:B,'Gas Prices'!C:C) -> 22.38796945 | AG13: ='elspot-prices_2022_hourly_eur ('!J9 -> 39.7 | AH13: ='elspot-prices_2022_hourly_eur ('!K9 -> 39.7 | AI13: 1.773273815 | AJ13: 1.773273815 | AK13: ='elspot-prices_2022_hourly_eur ('!C9 -> 39.7 | AL13: 1.773273815 | AM13: 6 | AN13: 39.7 | AO13: 39.7 | AP13: 1627 | AQ13: 6 | AR13: 39.7 | AS13: 39.7 | AT13: 22.38796945 | AU13: 6 | AV13: 1.773273815 | AW13: 1.773273815 | AX13: 1.773273815
A14: 2022-01-01T06:00:00 | B14: 06 - 07 | C14: 1305 | D14: 913 | E14: 2218 | F14: 632 | G14: 763 | H14: 2022-01-01T06:00:00 | I14: 7 | J14: TRUE | K14: 2218 | L14: 1395 | M14: 1900-01-07 | N14: 2218 | O14: 1395 | P14: 1 | Q14: ='consumption-dk-areas_2022_hourl'!D10 -> 1891 | R14: ='consumption-dk-areas_2022_hourl'!E10 -> 1239 | S14: 3130 | T14: ='consumption-prognosis_2022_hour'!F10 -> 1887 | U14: ='consumption-prognosis_2022_hour'!G10 -> 1239 | V14: 3126 | W14: 1900-01-07 | X14: 3130 | Y14: 3126 | Z14: 7 | AA14: 0.6901110524 | AB14: 0.7368845843 | AC14: 7 | AD14: 0.2833260964 | AE14: 0.5867609254 | AF14: =LOOKUP(A14,'Gas Prices'!B:B,'Gas Prices'!C:C) -> 22.38796945 | AG14: ='elspot-prices_2022_hourly_eur ('!J10 -> 40.59 | AH14: ='elspot-prices_2022_hourly_eur ('!K10 -> 40.59 | AI14: 1.813027309 | AJ14: 1.813027309 | AK14: ='elspot-prices_2022_hourly_eur ('!C10 -> 40.59 | AL14: 1.813027309 | AM14: 7 | AN14: 40.59 | AO14: 40.59 | AP14: 1395 | AQ14: 7 | AR14: 40.59 | AS14: 40.59 | AT14: 22.38796945 | AU14: 7 | AV14: 1.813027309 | AW14: 1.813027309 | AX14: 1.813027309
A15: 2022-01-01T07:00:00 | B15: 07 - 08 | C15: 1113 | D15: 911 | E15: 2024 | F15: 487 | G15: 733 | H15: 2022-01-01T07:00:00 | I15: 8 | J15: TRUE | K15: 2024 | L15: 1220 | M15: 1900-01-08 | N15: 2024 | O15: 1220 | P15: 1 | Q15: ='consumption-dk-areas_2022_hourl'!D11 -> 1965 | R15: ='consumption-dk-areas_2022_hourl'!E11 -> 1273 | S15: 3238 | T15: ='consumption-prognosis_2022_hour'!F11 -> 1966 | U15: ='consumption-prognosis_2022_hour'!G11 -> 1277 | V15: 3243 | W15: 1900-01-08 | X15: 3238 | Y15: 3243 | Z15: 8 | AA15: 0.5664122137 | AB15: 0.7156323645 | AC15: 8 | AD15: 0.2416413374 | AE15: 0.5854755784 | AF15: =LOOKUP(A15,'Gas Prices'!B:B,'Gas Prices'!C:C) -> 22.38796945 | AG15: ='elspot-prices_2022_hourly_eur ('!J11 -> 43.26 | AH15: ='elspot-prices_2022_hourly_eur ('!K11 -> 43.26 | AI15: 1.93228779 | AJ15: 1.93228779 | AK15: ='elspot-prices_2022_hourly_eur ('!C11 -> 43.26 | AL15: 1.93228779 | AM15: 8 | AN15: 43.26 | AO15: 43.26 | AP15: 1220 | AQ15: 8 | AR15: 43.26 | AS15: 43.26 | AT15: 22.38796945 | AU15: 8 | AV15: 1.93228779 | AW15: 1.93228779 | AX15: 1.93228779
A16: 2022-01-01T08:00:00 | B16: 08 - 09 | C16: 723 | D16: 850 | E16: 1573 | F16: 374 | G16: 637 | H16: 2022-01-01T08:00:00 | I16: 9 | J16: TRUE | K16: 1573 | L16: 1011 | M16: 1900-01-09 | N16: 1573 | O16: 1011 | P16: 1 | Q16: ='consumption-dk-areas_2022_hourl'!D12 -> 2074 | R16: ='consumption-dk-areas_2022_hourl'!E12 -> 1303 | S16: 3377 | T16: ='consumption-prognosis_2022_hour'!F12 -> 2045 | U16: ='consumption-prognosis_2022_hour'!G12 -> 1316 | V16: 3361 | W16: 1900-01-09 | X16: 3377 | Y16: 3361 | Z16: 9 | AA16: 0.3486017358 | AB16: 0.6523407521 | AC16: 9 | AD16: 0.1569691706 | AE16: 0.5462724936 | AF16: =LOOKUP(A16,'Gas Prices'!B:B,'Gas Prices'!C:C) -> 22.38796945 | AG16: ='elspot-prices_2022_hourly_eur ('!J12 -> 49.66 | AH16: ='elspot-prices_2022_hourly_eur ('!K12 -> 49.66 | AI16: 2.218155609 | AJ16: 2.218155609 | AK16: ='elspot-prices_2022_hourly_eur ('!C12 -> 49.66 | AL16: 2.218155609 | AM16: 9 | AN16: 49.66 | AO16: 49.66 | AP16: 1011 | AQ16: 9 | AR16: 49.66 | AS16: 49.66 | AT16: 22.38796945 | AU16: 9 | AV16: 2.218155609 | AW16: 2.218155609 | AX16: 2.218155609
A17: 2022-01-01T09:00:00 | B17: 09 - 10 | C17: 331 | D17: 750 | E17: 1081 | F17: 272 | G17: 514 | H17: 2022-01-01T09:00:00 | I17: 10 | J17: TRUE | K17: 1081 | L17: 786 | M17: 1900-01-10 | N17: 1081 | O17: 786 | P17: 1 | Q17: ='consumption-dk-areas_2022_hourl'!D13 -> 2169 | R17: ='consumption-dk-areas_2022_hourl'!E13 -> 1368 | S17: 3537 | T17: ='consumption-prognosis_2022_hour'!F13 -> 2161 | U17: ='consumption-prognosis_2022_hour'!G13 -> 1373 | V17: 3534 | W17: 1900-01-10 | X17: 3537 | Y17: 3534 | Z17: 10 | AA17: 0.152604887 | AB17: 0.548245614 | AC17: 10 | AD17: 0.07186278767 | AE17: 0.4820051414 | AF17: =LOOKUP(A17,'Gas Prices'!B:B,'Gas Prices'!C:C) -> 22.38796945 | AG17: ='elspot-prices_2022_hourly_eur ('!J13 -> 70.05 | AH17: ='elspot-prices_2022_hourly_eur ('!K13 -> 70.05 | AI17: 3.128912614 | AJ17: 3.128912614 | AK17: ='elspot-prices_2022_hourly_eur ('!C13 -> 70.05 | AL17: 3.128912614 | AM17: 10 | AN17: 70.05 | AO17: 70.05 | AP17: 786 | AQ17: 10 | AR17: 70.05 | AS17: 70.05 | AT17: 22.38796945 | AU17: 10 | AV17: 3.128912614 | AW17: 3.128912614 | AX17: 3.128912614
A18: 2022-01-01T10:00:00 | B18: 10 - 11 | C18: 303 | D18: 634 | E18: 937 | F18: 222 | G18: 412 | H18: 2022-01-01T10:00:00 | I18: 11 | J18: TRUE | K18: 937 | L18: 634 | M18: 1900-01-11 | N18: 937 | O18: 634 | P18: 1 | Q18: ='consumption-dk-areas_2022_hourl'!D14 -> 2260 | R18: ='consumption-dk-areas_2022_hourl'!E14 -> 1454 | S18: 3714 | T18: ='consumption-prognosis_2022_hour'!F14 -> 2273 | U18: ='consumption-prognosis_2022_hour'!G14 -> 1463 | V18: 3736 | W18: 1900-01-11 | X18: 3714 | Y18: 3736 | Z18: 11 | AA18: 0.1340707965 | AB18: 0.4360385144 | AC18: 11 | AD18: 0.06578376031 | AE18: 0.4074550129 | AF18: =LOOKUP(A18,'Gas Prices'!B:B,'Gas Prices'!C:C) -> 22.38796945 | AG18: ='elspot-prices_2022_hourly_eur ('!J14 -> 76.79 | AH18: ='elspot-prices_2022_hourly_eur ('!K14 -> 76.79 | AI18: 3.429967161 | AJ18: 3.429967161 | AK18: ='elspot-prices_2022_hourly_eur ('!C14 -> 76.79 | AL18: 3.429967161 | AM18: 11 | AN18: 76.79 | AO18: 76.79 | AP18: 634 | AQ18: 11 | AR18: 76.79 | AS18: 76.79 | AT18: 22.38796945 | AU18: 11 | AV18: 3.429967161 | AW18: 3.429967161 | AX18: 3.429967161
A19: 2022-01-01T11:00:00 | B19: 11 - 12 | C19: 338 | D19: 528 | E19: 866 | F19: 242 | G19: 336 | H19: 2022-01-01T11:00:00 | I19: 12 | J19: TRUE | K19: 866 | L19: 578 | M19: 1900-01-12 | N19: 866 | O19: 578 | P19: 1 | Q19: ='consumption-dk-areas_2022_hourl'!D15 -> 2319 | R19: ='consumption-dk-areas_2022_hourl'!E15 -> 1499 | S19: 3818 | T19: ='consumption-prognosis_2022_hour'!F15 -> 2356 | U19: ='consumption-prognosis_2022_hour'!G15 -> 1539 | V19: 3895 | W19: 1900-01-12 | X19: 3818 | Y19: 3895 | Z19: 12 | AA19: 0.1457524795 | AB19: 0.3522348232 | AC19: 12 | AD19: 0.07338254451 | AE19: 0.3393316195 | AF19: =LOOKUP(A19,'Gas Prices'!B:B,'Gas Prices'!C:C) -> 22.38796945 | AG19: ='elspot-prices_2022_hourly_eur ('!J15 -> 84.1 | AH19: ='elspot-prices_2022_hourly_eur ('!K15 -> 84.1 | AI19: 3.756481811 | AJ19: 3.756481811 | AK19: ='elspot-prices_2022_hourly_eur ('!C15 -> 84.1 | AL19: 3.756481811 | AM19: 12 | AN19: 84.1 | AO19: 84.1 | AP19: 578 | AQ19: 12 | AR19: 84.1 | AS19: 84.1 | AT19: 22.38796945 | AU19: 12 | AV19: 3.756481811 | AW19: 3.756481811 | AX19: 3.756481811
A20: 2022-01-01T12:00:00 | B20: 12 - 13 | C20: 600 | D20: 439 | E20: 1039 | F20: 353 | G20: 233 | H20: 2022-01-01T12:00:00 | I20: 13 | J20: TRUE | K20: 1039 | L20: 586 | M20: 1900-01-13 | N20: 1039 | O20: 586 | P20: 1 | Q20: ='consumption-dk-areas_2022_hourl'!D16 -> 2352 | R20: ='consumption-dk-areas_2022_hourl'!E16 -> 1541 | S20: 3893 | T20: ='consumption-prognosis_2022_hour'!F16 -> 2343 | U20: ='consumption-prognosis_2022_hour'!G16 -> 1537 | V20: 3880 | W20: 1900-01-13 | X20: 3893 | Y20: 3880 | Z20: 13 | AA20: 0.2551020408 | AB20: 0.2848799481 | AC20: 13 | AD20: 0.1302648719 | AE20: 0.2821336761 | AF20: =LOOKUP(A20,'Gas Prices'!B:B,'Gas Prices'!C:C) -> 22.38796945 | AG20: ='elspot-prices_2022_hourly_eur ('!J16 -> 94.74 | AH20: ='elspot-prices_2022_hourly_eur ('!K16 -> 94.74 | AI20: 4.23173706 | AJ20: 4.23173706 | AK20: ='elspot-prices_2022_hourly_eur ('!C16 -> 94.74 | AL20: 4.23173706 | AM20: 13 | AN20: 94.74 | AO20: 94.74 | AP20: 586 | AQ20: 13 | AR20: 94.74 | AS20: 94.74 | AT20: 22.38796945 | AU20: 13 | AV20: 4.23173706 | AW20: 4.23173706 | AX20: 4.23173706
A21: 2022-01-01T13:00:00 | B21: 13 - 14 | C21: 806 | D21: 409 | E21: 1215 | F21: 580 | G21: 150 | H21: 2022-01-01T13:00:00 | I21: 14 | J21: TRUE | K21: 1215 | L21: 730 | M21: 1900-01-14 | N21: 1215 | O21: 730 | P21: 1 | Q21: ='consumption-dk-areas_2022_hourl'!D17 -> 2375 | R21: ='consumption-dk-areas_2022_hourl'!E17 -> 1568 | S21: 3943 | T21: ='consumption-prognosis_2022_hour'!F17 -> 2344 | U21: ='consumption-prognosis_2022_hour'!G17 -> 1554 | V21: 3898 | W21: 1900-01-14 | X21: 3943 | Y21: 3898 | Z21: 14 | AA21: 0.3393684211 | AB21: 0.2608418367 | AC21: 14 | AD21: 0.1749891446 | AE21: 0.2628534704 | AF21: =LOOKUP(A21,'Gas Prices'!B:B,'Gas Prices'!C:C) -> 22.38796945 | AG21: ='elspot-prices_2022_hourly_eur ('!J17 -> 96.8 | AH21: ='elspot-prices_2022_hourly_eur ('!K17 -> 96.8 | AI21: 4.323750764 | AJ21: 4.323750764 | AK21: ='elspot-prices_2022_hourly_eur ('!C17 -> 96.8 | AL21: 4.323750764 | AM21: 14 | AN21: 96.8 | AO21: 96.8 | AP21: 730 | AQ21: 14 | AR21: 96.8 | AS21: 96.8 | AT21: 22.38796945 | AU21: 14 | AV21: 4.323750764 | AW21: 4.323750764 | AX21: 4.323750764
A22: 2022-01-01T14:00:00 | B22: 14 - 15 | C22: 1050 | D22: 289 | E22: 1339 | F22: 857 | G22: 92 | H22: 2022-01-01T14:00:00 | I22: 15 | J22: TRUE | K22: 1339 | L22: 949 | M22: 1900-01-15 | N22: 1339 | O22: 949 | P22: 1 | Q22: ='consumption-dk-areas_2022_hourl'!D18 -> 2350 | R22: ='consumption-dk-areas_2022_hourl'!E18 -> 1565 | S22: 3915 | T22: ='consumption-prognosis_2022_hour'!F18 -> 2366 | U22: ='consumption-prognosis_2022_hour'!G18 -> 1565 | V22: 3931 | W22: 1900-01-15 | X22: 3915 | Y22: 3931 | Z22: 15 | AA22: 0.4468085106 | AB22: 0.1846645367 | AC22: 15 | AD22: 0.2279635258 | AE22: 0.1857326478 | AF22: =LOOKUP(A22,'Gas Prices'!B:B,'Gas Prices'!C:C) -> 22.38796945 | AG22: ='elspot-prices_2022_hourly_eur ('!J18 -> 97.17 | AH22: ='elspot-prices_2022_hourly_eur ('!K18 -> 97.17 | AI22: 4.340277497 | AJ22: 4.340277497 | AK22: ='elspot-prices_2022_hourly_eur ('!C18 -> 97.17 | AL22: 4.340277497 | AM22: 15 | AN22: 97.17 | AO22: 97.17 | AP22: 949 | AQ22: 15 | AR22: 97.17 | AS22: 97.17 | AT22: 22.38796945 | AU22: 15 | AV22: 4.340277497 | AW22: 4.340277497 | AX22: 4.340277497
A23: 2022-01-01T15:00:00 | B23: 15 - 16 | C23: 1504 | D23: 188 | E23: 1692 | F23: 1179 | G23: 73 | H23: 2022-01-01T15:00:00 | I23: 16 | J23: TRUE | K23: 1692 | L23: 1252 | M23: 1900-01-16 | N23: 1692 | O23: 1252 | P23: 1 | Q23: ='consumption-dk-areas_2022_hourl'!D19 -> 2378 | R23: ='consumption-dk-areas_2022_hourl'!E19 -> 1610 | S23: 3988 | T23: ='consumption-prognosis_2022_hour'!F19 -> 2359 | U23: ='consumption-prognosis_2022_hour'!G19 -> 1606 | V23: 3965 | W23: 1900-01-16 | X23: 3988 | Y23: 3965 | Z23: 16 | AA23: 0.6324642557 | AB23: 0.1167701863 | AC23: 16 | AD23: 0.3265306122 | AE23: 0.1208226221 | AF23: =LOOKUP(A23,'Gas Prices'!B:B,'Gas Prices'!C:C) -> 22.38796945 | AG23: ='elspot-prices_2022_hourly_eur ('!J19 -> 101.27 | AH23: ='elspot-prices_2022_hourly_eur ('!K19 -> 101.27 | AI23: 4.523411569 | AJ23: 4.523411569 | AK23: ='elspot-prices_2022_hourly_eur ('!C19 -> 98.52 | AL23: 4.400577741 | AM23: 16 | AN23: 101.27 | AO23: 98.52 | AP23: 1252 | AQ23: 16 | AR23: 101.27 | AS23: 98.52 | AT23: 22.38796945 | AU23: 16 | AV23: 4.523411569 | AW23: 4.523411569 | AX23: 4.400577741
A24: 2022-01-01T16:00:00 | B24: 16 - 17 | C24: 2076 | D24: 271 | E24: 2347 | F24: 1531 | G24: 88 | H24: 2022-01-01T16:00:00 | I24: 17 | J24: TRUE | K24: 2347 | L24: 1619 | M24: 1900-01-17 | N24: 2347 | O24: 1619 | P24: 1 | Q24: ='consumption-dk-areas_2022_hourl'!D20 -> 2505 | R24: ='consumption-dk-areas_2022_hourl'!E20 -> 1708 | S24: 4213 | T24: ='consumption-prognosis_2022_hour'!F20 -> 2524 | U24: ='consumption-prognosis_2022_hour'!G20 -> 1717 | V24: 4241 | W24: 1900-01-17 | X24: 4213 | Y24: 4241 | Z24: 17 | AA24: 0.828742515 | AB24: 0.1586651054 | AC24: 17 | AD24: 0.4507164568 | AE24: 0.1741645244 | AF24: =LOOKUP(A24,'Gas Prices'!B:B,'Gas Prices'!C:C) -> 22.38796945 | AG24: ='elspot-prices_2022_hourly_eur ('!J20 -> 126.6 | AH24: ='elspot-prices_2022_hourly_eur ('!K20 -> 126.6 | AI24: 5.654822797 | AJ24: 5.654822797 | AK24: ='elspot-prices_2022_hourly_eur ('!C20 -> 114.5 | AL24: 5.114353951 | AM24: 17 | AN24: 126.6 | AO24: 114.5 | AP24: 1619 | AQ24: 17 | AR24: 126.6 | AS24: 114.5 | AT24: 22.38796945 | AU24: 17 | AV24: 5.654822797 | AW24: 5.654822797 | AX24: 5.114353951
A25: 2022-01-01T17:00:00 | B25: 17 - 18 | C25: 2533 | D25: 361 | E25: 2894 | F25: 2046 | G25: 180 | H25: 2022-01-01T17:00:00 | I25: 18 | J25: TRUE | K25: 2894 | L25: 2226 | M25: 1900-01-18 | N25: 2894 | O25: 2226 | P25: 1 | Q25: ='consumption-dk-areas_2022_hourl'!D21 -> 2668 | R25: ='consumption-dk-areas_2022_hourl'!E21 -> 1805 | S25: 4473 | T25: ='consumption-prognosis_2022_hour'!F21 -> 2675 | U25: ='consumption-prognosis_2022_hour'!G21 -> 1805 | V25: 4480 | W25: 1900-01-18 | X25: 4473 | Y25: 4480 | Z25: 18 | AA25: 0.9494002999 | AB25: 0.2 | AC25: 18 | AD25: 0.5499348676 | AE25: 0.2320051414 | AF25: =LOOKUP(A25,'Gas Prices'!B:B,'Gas Prices'!C:C) -> 22.38796945 | AG25: ='elspot-prices_2022_hourly_eur ('!J21 -> 149.97 | AH25: ='elspot-prices_2022_hourly_eur ('!K21 -> 149.97 | AI25: 6.698687005 | AJ25: 6.698687005 | AK25: ='elspot-prices_2022_hourly_eur ('!C21 -> 149.97 | AL25: 6.698687005 | AM25: 18 | AN25: 149.97 | AO25: 149.97 | AP25: 2226 | AQ25: 18 | AR25: 149.97 | AS25: 149.97 | AT25: 22.38796945 | AU25: 18 | AV25: 6.698687005 | AW25: 6.698687005 | AX25: 6.698687005
A26: 2022-01-01T18:00:00 | B26: 18 - 19 | C26: 2926 | D26: 562 | E26: 3488 | F26: 2539 | G26: 341 | H26: 2022-01-01T18:00:00 | I26: 19 | J26: TRUE | K26: 3488 | L26: 2880 | M26: 1900-01-19 | N26: 3488 | O26: 2880 | P26: 1 | Q26: ='consumption-dk-areas_2022_hourl'!D22 -> 2619 | R26: ='consumption-dk-areas_2022_hourl'!E22 -> 1788 | S26: 4407 | T26: ='consumption-prognosis_2022_hour'!F22 -> 2605 | U26: ='consumption-prognosis_2022_hour'!G22 -> 1768 | V26: 4373 | W26: 1900-01-19 | X26: 4407 | Y26: 4373 | Z26: 19 | AA26: 1.117220313 | AB26: 0.3143176734 | AC26: 19 | AD26: 0.6352583587 | AE26: 0.3611825193 | AF26: =LOOKUP(A26,'Gas Prices'!B:B,'Gas Prices'!C:C) -> 22.38796945 | AG26: ='elspot-prices_2022_hourly_eur ('!J22 -> 146.33 | AH26: ='elspot-prices_2022_hourly_eur ('!K22 -> 146.33 | AI26: 6.536099683 | AJ26: 6.536099683 | AK26: ='elspot-prices_2022_hourly_eur ('!C22 -> 146.33 | AL26: 6.536099683 | AM26: 19 | AN26: 146.33 | AO26: 146.33 | AP26: 2880 | AQ26: 19 | AR26: 146.33 | AS26: 146.33 | AT26: 22.38796945 | AU26: 19 | AV26: 6.536099683 | AW26: 6.536099683 | AX26: 6.536099683
A27: 2022-01-01T19:00:00 | B27: 19 - 20 | C27: 3028 | D27: 924 | E27: 3952 | F27: 2872 | G27: 525 | H27: 2022-01-01T19:00:00 | I27: 20 | J27: TRUE | K27: 3952 | L27: 3397 | M27: 1900-01-20 | N27: 3952 | O27: 3397 | P27: 1 | Q27: ='consumption-dk-areas_2022_hourl'!D23 -> 2436 | R27: ='consumption-dk-areas_2022_hourl'!E23 -> 1696 | S27: 4132 | T27: ='consumption-prognosis_2022_hour'!F23 -> 2459 | U27: ='consumption-prognosis_2022_hour'!G23 -> 1692 | V27: 4151 | W27: 1900-01-20 | X27: 4132 | Y27: 4151 | Z27: 20 | AA27: 1.243021346 | AB27: 0.5448113208 | AC27: 20 | AD27: 0.6574033869 | AE27: 0.5938303342 | AF27: =LOOKUP(A27,'Gas Prices'!B:B,'Gas Prices'!C:C) -> 22.38796945 | AG27: ='elspot-prices_2022_hourly_eur ('!J23 -> 140.28 | AH27: ='elspot-prices_2022_hourly_eur ('!K23 -> 140.28 | AI27: 6.26586526 | AJ27: 6.26586526 | AK27: ='elspot-prices_2022_hourly_eur ('!C23 -> 140.28 | AL27: 6.26586526 | AM27: 20 | AN27: 140.28 | AO27: 140.28 | AP27: 3397 | AQ27: 20 | AR27: 140.28 | AS27: 140.28 | AT27: 22.38796945 | AU27: 20 | AV27: 6.26586526 | AW27: 6.26586526 | AX27: 6.26586526
A28: 2022-01-01T20:00:00 | B28: 20 - 21 | C28: 3147 | D28: 1212 | E28: 4359 | F28: 3056 | G28: 734 | H28: 2022-01-01T20:00:00 | I28: 21 | J28: TRUE | K28: 4359 | L28: 3790 | M28: 1900-01-21 | N28: 4359 | O28: 3790 | P28: 1 | Q28: ='consumption-dk-areas_2022_hourl'!D24 -> 2359 | R28: ='consumption-dk-areas_2022_hourl'!E24 -> 1611 | S28: 3970 | T28: ='consumption-prognosis_2022_hour'!F24 -> 2323 | U28: ='consumption-prognosis_2022_hour'!G24 -> 1597 | V28: 3920 | W28: 1900-01-21 | X28: 3970 | Y28: 3920 | Z28: 21 | AA28: 1.334039847 | AB28: 0.7523277467 | AC28: 21 | AD28: 0.6832392531 | AE28: 0.7789203085 | AF28: =LOOKUP(A28,'Gas Prices'!B:B,'Gas Prices'!C:C) -> 22.38796945 | AG28: ='elspot-prices_2022_hourly_eur ('!J24 -> 121.88 | AH28: ='elspot-prices_2022_hourly_eur ('!K24 -> 121.88 | AI28: 5.44399528 | AJ28: 5.44399528 | AK28: ='elspot-prices_2022_hourly_eur ('!C24 -> 121.88 | AL28: 5.44399528 | AM28: 21 | AN28: 121.88 | AO28: 121.88 | AP28: 3790 | AQ28: 21 | AR28: 121.88 | AS28: 121.88 | AT28: 22.38796945 | AU28: 21 | AV28: 5.44399528 | AW28: 5.44399528 | AX28: 5.44399528
A29: 2022-01-01T21:00:00 | B29: 21 - 22 | C29: 3215 | D29: 1336 | E29: 4551 | F29: 3022 | G29: 875 | H29: 2022-01-01T21:00:00 | I29: 22 | J29: TRUE | K29: 4551 | L29: 3897 | M29: 1900-01-22 | N29: 4551 | O29: 3897 | P29: 1 | Q29: ='consumption-dk-areas_2022_hourl'!D25 -> 2286 | R29: ='consumption-dk-areas_2022_hourl'!E25 -> 1536 | S29: 3822 | T29: ='consumption-prognosis_2022_hour'!F25 -> 2262 | U29: ='consumption-prognosis_2022_hour'!G25 -> 1519 | V29: 3781 | W29: 1900-01-22 | X29: 3822 | Y29: 3781 | Z29: 22 | AA29: 1.406386702 | AB29: 0.8697916667 | AC29: 22 | AD29: 0.6980026053 | AE29: 0.8586118252 | AF29: =LOOKUP(A29,'Gas Prices'!B:B,'Gas Prices'!C:C) -> 22.38796945 | AG29: ='elspot-prices_2022_hourly_eur ('!J25 -> 102.61 | AH29: ='elspot-prices_2022_hourly_eur ('!K25 -> 102.61 | AI29: 4.583265144 | AJ29: 4.583265144 | AK29: ='elspot-prices_2022_hourly_eur ('!C25 -> 102.61 | AL29: 4.583265144 | AM29: 22 | AN29: 102.61 | AO29: 102.61 | AP29: 3897 | AQ29: 22 | AR29: 102.61 | AS29: 102.61 | AT29: 22.38796945 | AU29: 22 | AV29: 4.583265144 | AW29: 4.583265144 | AX29: 4.583265144
A30: 2022-01-01T22:00:00 | B30: 22 - 23 | C30: 3098 | D30: 1321 | E30: 4419 | F30: 2953 | G30: 1010 | H30: 2022-01-01T22:00:00 | I30: 23 | J30: TRUE | K30: 4419 | L30: 3963 | M30: 1900-01-23 | N30: 4419 | O30: 3963 | P30: 1 | Q30: ='consumption-dk-areas_2022_hourl'!D26 -> 2171 | R30: ='consumption-dk-areas_2022_hourl'!E26 -> 1448 | S30: 3619 | T30: ='consumption-prognosis_2022_hour'!F26 -> 2226 | U30: ='consumption-prognosis_2022_hour'!G26 -> 1455 | V30: 3681 | W30: 1900-01-23 | X30: 3619 | Y30: 3681 | Z30: 23 | AA30: 1.42699217 | AB30: 0.9122928177 | AC30: 23 | AD30: 0.6726009553 | AE30: 0.8489717224 | AF30: =LOOKUP(A30,'Gas Prices'!B:B,'Gas Prices'!C:C) -> 22.38796945 | AG30: ='elspot-prices_2022_hourly_eur ('!J26 -> 95.12 | AH30: ='elspot-prices_2022_hourly_eur ('!K26 -> 95.12 | AI30: 4.248710462 | AJ30: 4.248710462 | AK30: ='elspot-prices_2022_hourly_eur ('!C26 -> 97.46 | AL30: 4.353230883 | AM30: 23 | AN30: 95.12 | AO30: 97.46 | AP30: 3963 | AQ30: 23 | AR30: 95.12 | AS30: 97.46 | AT30: 22.38796945 | AU30: 23 | AV30: 4.248710462 | AW30: 4.248710462 | AX30: 4.353230883
A31: 2022-01-01T23:00:00 | B31: 23 - 00 | C31: 3042 | D31: 1289 | E31: 4331 | F31: 2865 | G31: 1116 | H31: 2022-01-01T23:00:00 | I31: 24 | J31: TRUE | K31: 4331 | L31: 3981 | M31: 1900-01-24 | N31: 4331 | O31: 3981 | P31: 1 | Q31: ='consumption-dk-areas_2022_hourl'!D27 -> 2093 | R31: ='consumption-dk-areas_2022_hourl'!E27 -> 1369 | S31: 3462 | T31: ='consumption-prognosis_2022_hour'!F27 -> 2144 | U31: ='consumption-prognosis_2022_hour'!G27 -> 1378 | V31: 3522 | W31: 1900-01-24 | X31: 3462 | Y31: 3522 | Z31: 24 | AA31: 1.453416149 | AB31: 0.9415631848 | AC31: 24 | AD31: 0.6604429006 | AE31: 0.8284061697 | AF31: =LOOKUP(A31,'Gas Prices'!B:B,'Gas Prices'!C:C) -> 22.38796945 | AG31: ='elspot-prices_2022_hourly_eur ('!J27 -> 83.11 | AH31: ='elspot-prices_2022_hourly_eur ('!K27 -> 83.11 | AI31: 3.712261632 | AJ31: 3.712261632 | AK31: ='elspot-prices_2022_hourly_eur ('!C27 -> 85.16 | AL31: 3.803828668 | AM31: 24 | AN31: 83.11 | AO31: 85.16 | AP31: 3981 | AQ31: 24 | AR31: 83.11 | AS31: 85.16 | AT31: 22.38796945 | AU31: 24 | AV31: 3.712261632 | AW31: 3.712261632 | AX31: 3.803828668
A32: 2022-01-02 | B32: 00 - 01 | C32: 2526 | D32: 1186 | E32: 3712 | F32: 2505 | G32: 1158 | H32: 2022-01-02 | I32: 25 | J32: TRUE | K32: 3712 | L32: 3663 | M32: 1900-01-25 | N32: 3712 | O32: 3663 | P32: 1 | Q32: ='consumption-dk-areas_2022_hourl'!D28 -> 2048 | R32: ='consumption-dk-areas_2022_hourl'!E28 -> 1302 | S32: 3350 | T32: ='consumption-prognosis_2022_hour'!F28 -> 2050 | U32: ='consumption-prognosis_2022_hour'!G28 -> 1301 | V32: 3351 | W32: 1900-01-25 | X32: 3350 | Y32: 3351 | Z32: 25 | AA32: 1.233398438 | AB32: 0.910906298 | AC32: 25 | AD32: 0.5484151107 | AE32: 0.7622107969 | AF32: =LOOKUP(A32,'Gas Prices'!B:B,'Gas Prices'!C:C) -> 22.38796945 | AG32: ='elspot-prices_2022_hourly_eur ('!J28 -> 57.08 | AH32: ='elspot-prices_2022_hourly_eur ('!K28 -> 34.73 | AI32: 2.549583612 | AJ32: 1.551279587 | AK32: ='elspot-prices_2022_hourly_eur ('!C28 -> 57.08 | AL32: 2.549583612 | AM32: 25 | AN32: 57.08 | AO32: 57.08 | AP32: 3663 | AQ32: 25 | AR32: 57.08 | AS32: 57.08 | AT32: 22.38796945 | AU32: 25 | AV32: 2.549583612 | AW32: 1.551279587 | AX32: 2.549583612
A33: 2022-01-02T01:00:00 | B33: 01 - 02 | C33: 2363 | D33: 1235 | E33: 3598 | F33: 2302 | G33: 1150 | H33: 2022-01-02T01:00:00 | I33: 26 | J33: TRUE | K33: 3598 | L33: 3452 | M33: 1900-01-26 | N33: 3598 | O33: 3452 | P33: 1 | Q33: ='consumption-dk-areas_2022_hourl'!D29 -> 1933 | R33: ='consumption-dk-areas_2022_hourl'!E29 -> 1240 | S33: 3173 | T33: ='consumption-prognosis_2022_hour'!F29 -> 1992 | U33: ='consumption-prognosis_2022_hour'!G29 -> 1242 | V33: 3234 | W33: 1900-01-26 | X33: 3173 | Y33: 3234 | Z33: 26 | AA33: 1.222452147 | AB33: 0.9959677419 | AC33: 26 | AD33: 0.5130264872 | AE33: 0.7937017995 | AF33: =LOOKUP(A33,'Gas Prices'!B:B,'Gas Prices'!C:C) -> 22.38796945 | AG33: ='elspot-prices_2022_hourly_eur ('!J29 -> 52.59 | AH33: ='elspot-prices_2022_hourly_eur ('!K29 -> 34.39 | AI33: 2.34902947 | AJ33: 1.536092859 | AK33: ='elspot-prices_2022_hourly_eur ('!C29 -> 52.59 | AL33: 2.34902947 | AM33: 26 | AN33: 52.59 | AO33: 52.59 | AP33: 3452 | AQ33: 26 | AR33: 52.59 | AS33: 52.59 | AT33: 22.38796945 | AU33: 26 | AV33: 2.34902947 | AW33: 1.536092859 | AX33: 2.34902947
A34: 2022-01-02T02:00:00 | B34: 02 - 03 | C34: 2292 | D34: 1312 | E34: 3604 | F34: 2167 | G34: 1119 | H34: 2022-01-02T02:00:00 | I34: 27 | J34: TRUE | K34: 3604 | L34: 3286 | M34: 1900-01-27 | N34: 3604 | O34: 3286 | P34: 1 | Q34: ='consumption-dk-areas_2022_hourl'!D30 -> 1899 | R34: ='consumption-dk-areas_2022_hourl'!E30 -> 1229 | S34: 3128 | T34: ='consumption-prognosis_2022_hour'!F30 -> 1983 | U34: ='consumption-prognosis_2022_hour'!G30 -> 1215 | V34: 3198 | W34: 1900-01-27 | X34: 3128 | Y34: 3198 | Z34: 27 | AA34: 1.206951027 | AB34: 1.067534581 | AC34: 27 | AD34: 0.4976118107 | AE34: 0.8431876607 | AF34: =LOOKUP(A34,'Gas Prices'!B:B,'Gas Prices'!C:C) -> 22.38796945 | AG34: ='elspot-prices_2022_hourly_eur ('!J30 -> 48.97 | AH34: ='elspot-prices_2022_hourly_eur ('!K30 -> 34.36 | AI34: 2.187335485 | AJ34: 1.534752854 | AK34: ='elspot-prices_2022_hourly_eur ('!C30 -> 48.97 | AL34: 2.187335485 | AM34: 27 | AN34: 48.97 | AO34: 48.97 | AP34: 3286 | AQ34: 27 | AR34: 48.97 | AS34: 48.97 | AT34: 22.38796945 | AU34: 27 | AV34: 2.187335485 | AW34: 1.534752854 | AX34: 2.187335485
A35: 2022-01-02T03:00:00 | B35: 03 - 04 | C35: 2120 | D35: 1227 | E35: 3347 | F35: 1959 | G35: 1042 | H35: 2022-01-02T03:00:00 | I35: 28 | J35: TRUE | K35: 3347 | L35: 3001 | M35: 1900-01-28 | N35: 3347 | O35: 3001 | P35: 1 | Q35: ='consumption-dk-areas_2022_hourl'!D31 -> 1907 | R35: ='consumption-dk-areas_2022_hourl'!E31 -> 1186 | S35: 3093 | T35: ='consumption-prognosis_2022_hour'!F31 -> 1948 | U35: ='consumption-prognosis_2022_hour'!G31 -> 1224 | V35: 3172 | W35: 1900-01-28 | X35: 3093 | Y35: 3172 | Z35: 28 | AA35: 1.11169376 | AB35: 1.034569983 | AC35: 28 | AD35: 0.4602692141 | AE35: 0.7885604113 | AF35: =LOOKUP(A35,'Gas Prices'!B:B,'Gas Prices'!C:C) -> 22.38796945 | AG35: ='elspot-prices_2022_hourly_eur ('!J31 -> 34.94 | AH35: ='elspot-prices_2022_hourly_eur ('!K31 -> 34.1 | AI35: 1.560659625 | AJ35: 1.523139474 | AK35: ='elspot-prices_2022_hourly_eur ('!C31 -> 34.94 | AL35: 1.560659625 | AM35: 28 | AN35: 34.94 | AO35: 34.94 | AP35: 3001 | AQ35: 28 | AR35: 34.94 | AS35: 34.94 | AT35: 22.38796945 | AU35: 28 | AV35: 1.560659625 | AW35: 1.523139474 | AX35: 1.560659625
A36: 2022-01-02T04:00:00 | B36: 04 - 05 | C36: 2114 | D36: 1281 | E36: 3395 | F36: 1971 | G36: 1010 | H36: 2022-01-02T04:00:00 | I36: 29 | J36: TRUE | K36: 3395 | L36: 2981 | M36: 1900-01-29 | N36: 3395 | O36: 2981 | P36: 1 | Q36: ='consumption-dk-areas_2022_hourl'!D32 -> 1876 | R36: ='consumption-dk-areas_2022_hourl'!E32 -> 1186 | S36: 3062 | T36: ='consumption-prognosis_2022_hour'!F32 -> 1927 | U36: ='consumption-prognosis_2022_hour'!G32 -> 1210 | V36: 3137 | W36: 1900-01-29 | X36: 3062 | Y36: 3137 | Z36: 29 | AA36: 1.126865672 | AB36: 1.08010118 | AC36: 29 | AD36: 0.4589665653 | AE36: 0.8232647815 | AF36: =LOOKUP(A36,'Gas Prices'!B:B,'Gas Prices'!C:C) -> 22.38796945 | AG36: ='elspot-prices_2022_hourly_eur ('!J32 -> 29.56 | AH36: ='elspot-prices_2022_hourly_eur ('!K32 -> 29.56 | AI36: 1.32035199 | AJ36: 1.32035199 | AK36: ='elspot-prices_2022_hourly_eur ('!C32 -> 29.56 | AL36: 1.32035199 | AM36: 29 | AN36: 29.56 | AO36: 29.56 | AP36: 2981 | AQ36: 29 | AR36: 29.56 | AS36: 29.56 | AT36: 22.38796945 | AU36: 29 | AV36: 1.32035199 | AW36: 1.32035199 | AX36: 1.32035199
A37: 2022-01-02T05:00:00 | B37: 05 - 06 | C37: 2233 | D37: 1236 | E37: 3469 | F37: 1946 | G37: 955 | H37: 2022-01-02T05:00:00 | I37: 30 | J37: TRUE | K37: 3469 | L37: 2901 | M37: 1900-01-30 | N37: 3469 | O37: 2901 | P37: 1 | Q37: ='consumption-dk-areas_2022_hourl'!D33 -> 1943 | R37: ='consumption-dk-areas_2022_hourl'!E33 -> 1206 | S37: 3149 | T37: ='consumption-prognosis_2022_hour'!F33 -> 1943 | U37: ='consumption-prognosis_2022_hour'!G33 -> 1216 | V37: 3159 | W37: 1900-01-30 | X37: 3149 | Y37: 3159 | Z37: 30 | AA37: 1.149253731 | AB37: 1.024875622 | AC37: 30 | AD37: 0.4848024316 | AE37: 0.794344473 | AF37: =LOOKUP(A37,'Gas Prices'!B:B,'Gas Prices'!C:C) -> 22.38796945 | AG37: ='elspot-prices_2022_hourly_eur ('!J33 -> 33.97 | AH37: ='elspot-prices_2022_hourly_eur ('!K33 -> 33.97 | AI37: 1.517332784 | AJ37: 1.517332784 | AK37: ='elspot-prices_2022_hourly_eur ('!C33 -> 33.97 | AL37: 1.517332784 | AM37: 30 | AN37: 33.97 | AO37: 33.97 | AP37: 2901 | AQ37: 30 | AR37: 33.97 | AS37: 33.97 | AT37: 22.38796945 | AU37: 30 | AV37: 1.517332784 | AW37: 1.517332784 | AX37: 1.517332784
A38: 2022-01-02T06:00:00 | B38: 06 - 07 | C38: 2142 | D38: 1162 | E38: 3304 | F38: 1930 | G38: 955 | H38: 2022-01-02T06:00:00 | I38: 31 | J38: TRUE | K38: 3304 | L38: 2885 | M38: 1900-01-31 | N38: 3304 | O38: 2885 | P38: 1 | Q38: ='consumption-dk-areas_2022_hourl'!D34 -> 1989 | R38: ='consumption-dk-areas_2022_hourl'!E34 -> 1271 | S38: 3260 | T38: ='consumption-prognosis_2022_hour'!F34 -> 2023 | U38: ='consumption-prognosis_2022_hour'!G34 -> 1264 | V38: 3287 | W38: 1900-01-31 | X38: 3260 | Y38: 3287 | Z38: 31 | AA38: 1.076923077 | AB38: 0.9142407553 | AC38: 31 | AD38: 0.4650455927 | AE38: 0.7467866324 | AF38: =LOOKUP(A38,'Gas Prices'!B:B,'Gas Prices'!C:C) -> 22.38796945 | AG38: ='elspot-prices_2022_hourly_eur ('!J34 -> 34.52 | AH38: ='elspot-prices_2022_hourly_eur ('!K34 -> 34.52 | AI38: 1.541899549 | AJ38: 1.541899549 | AK38: ='elspot-prices_2022_hourly_eur ('!C34 -> 34.52 | AL38: 1.541899549 | AM38: 31 | AN38: 34.52 | AO38: 34.52 | AP38: 2885 | AQ38: 31 | AR38: 34.52 | AS38: 34.52 | AT38: 22.38796945 | AU38: 31 | AV38: 1.541899549 | AW38: 1.541899549 | AX38: 1.541899549
A39: 2022-01-02T07:00:00 | B39: 07 - 08 | C39: 2075 | D39: 1164 | E39: 3239 | F39: 1949 | G39: 952 | H39: 2022-01-02T07:00:00 | I39: 32 | J39: TRUE | K39: 3239 | L39: 2901 | M39: 1900-02-01 | N39: 3239 | O39: 2901 | P39: 1 | Q39: ='consumption-dk-areas_2022_hourl'!D35 -> 2117 | R39: ='consumption-dk-areas_2022_hourl'!E35 -> 1338 | S39: 3455 | T39: ='consumption-prognosis_2022_hour'!F35 -> 2212 | U39: ='consumption-prognosis_2022_hour'!G35 -> 1344 | V39: 3556 | W39: 1900-02-01 | X39: 3455 | Y39: 3556 | Z39: 32 | AA39: 0.9801606046 | AB39: 0.869955157 | AC39: 32 | AD39: 0.4504993487 | AE39: 0.7480719794 | AF39: =LOOKUP(A39,'Gas Prices'!B:B,'Gas Prices'!C:C) -> 22.38796945 | AG39: ='elspot-prices_2022_hourly_eur ('!J35 -> 41.8 | AH39: ='elspot-prices_2022_hourly_eur ('!K35 -> 41.8 | AI39: 1.867074194 | AJ39: 1.867074194 | AK39: ='elspot-prices_2022_hourly_eur ('!C35 -> 41.8 | AL39: 1.867074194 | AM39: 32 | AN39: 41.8 | AO39: 41.8 | AP39: 2901 | AQ39: 32 | AR39: 41.8 | AS39: 41.8 | AT39: 22.38796945 | AU39: 32 | AV39: 1.867074194 | AW39: 1.867074194 | AX39: 1.867074194
A40: 2022-01-02T08:00:00 | B40: 08 - 09 | C40: 1857 | D40: 1233 | E40: 3090 | F40: 1756 | G40: 929 | H40: 2022-01-02T08:00:00 | I40: 33 | J40: TRUE | K40: 3090 | L40: 2685 | M40: 1900-02-02 | N40: 3090 | O40: 2685 | P40: 1 | Q40: ='consumption-dk-areas_2022_hourl'!D36 -> 2286 | R40: ='consumption-dk-areas_2022_hourl'!E36 -> 1436 | S40: 3722 | T40: ='consumption-prognosis_2022_hour'!F36 -> 2331 | U40: ='consumption-prognosis_2022_hour'!G36 -> 1438 | V40: 3769 | W40: 1900-02-02 | X40: 3722 | Y40: 3769 | Z40: 33 | AA40: 0.812335958 | AB40: 0.8586350975 | AC40: 33 | AD40: 0.4031697785 | AE40: 0.7924164524 | AF40: =LOOKUP(A40,'Gas Prices'!B:B,'Gas Prices'!C:C) -> 22.38796945 | AG40: ='elspot-prices_2022_hourly_eur ('!J36 -> 48.95 | AH40: ='elspot-prices_2022_hourly_eur ('!K36 -> 48.95 | AI40: 2.186442148 | AJ40: 2.186442148 | AK40: ='elspot-prices_2022_hourly_eur ('!C36 -> 48.95 | AL40: 2.186442148 | AM40: 33 | AN40: 48.95 | AO40: 48.95 | AP40: 2685 | AQ40: 33 | AR40: 48.95 | AS40: 48.95 | AT40: 22.38796945 | AU40: 33 | AV40: 2.186442148 | AW40: 2.186442148 | AX40: 2.186442148
A41: 2022-01-02T09:00:00 | B41: 09 - 10 | C41: 1674 | D41: 1245 | E41: 2919 | F41: 1575 | G41: 899 | H41: 2022-01-02T09:00:00 | I41: 34 | J41: TRUE | K41: 2919 | L41: 2474 | M41: 1900-02-03 | N41: 2919 | O41: 2474 | P41: 1 | Q41: ='consumption-dk-areas_2022_hourl'!D37 -> 2373 | R41: ='consumption-dk-areas_2022_hourl'!E37 -> 1532 | S41: 3905 | T41: ='consumption-prognosis_2022_hour'!F37 -> 2428 | U41: ='consumption-prognosis_2022_hour'!G37 -> 1534 | V41: 3962 | W41: 1900-02-03 | X41: 3905 | Y41: 3962 | Z41: 34 | AA41: 0.7054361568 | AB41: 0.8126631854 | AC41: 34 | AD41: 0.3634389926 | AE41: 0.8001285347 | AF41: =LOOKUP(A41,'Gas Prices'!B:B,'Gas Prices'!C:C) -> 22.38796945 | AG41: ='elspot-prices_2022_hourly_eur ('!J37 -> 60.01 | AH41: ='elspot-prices_2022_hourly_eur ('!K37 -> 60.01 | AI41: 2.680457473 | AJ41: 2.680457473 | AK41: ='elspot-prices_2022_hourly_eur ('!C37 -> 60.01 | AL41: 2.680457473 | AM41: 34 | AN41: 60.01 | AO41: 60.01 | AP41: 2474 | AQ41: 34 | AR41: 60.01 | AS41: 60.01 | AT41: 22.38796945 | AU41: 34 | AV41: 2.680457473 | AW41: 2.680457473 | AX41: 2.680457473
A42: 2022-01-02T10:00:00 | B42: 10 - 11 | C42: 1414 | D42: 1260 | E42: 2674 | F42: 1410 | G42: 842 | H42: 2022-01-02T10:00:00 | I42: 35 | J42: TRUE | K42: 2674 | L42: 2252 | M42: 1900-02-04 | N42: 2674 | O42: 2252 | P42: 1 | Q42: ='consumption-dk-areas_2022_hourl'!D38 -> 2462 | R42: ='consumption-dk-areas_2022_hourl'!E38 -> 1635 | S42: 4097 | T42: ='consumption-prognosis_2022_hour'!F38 -> 2468 | U42: ='consumption-prognosis_2022_hour'!G38 -> 1617 | V42: 4085 | W42: 1900-02-04 | X42: 4097 | Y42: 4085 | Z42: 35 | AA42: 0.5743298132 | AB42: 0.7706422018 | AC42: 35 | AD42: 0.3069908815 | AE42: 0.8097686375 | AF42: =LOOKUP(A42,'Gas Prices'!B:B,'Gas Prices'!C:C) -> 22.38796945 | AG42: ='elspot-prices_2022_hourly_eur ('!J38 -> 70.09 | AH42: ='elspot-prices_2022_hourly_eur ('!K38 -> 70.09 | AI42: 3.130699288 | AJ42: 3.130699288 | AK42: ='elspot-prices_2022_hourly_eur ('!C38 -> 70.09 | AL42: 3.130699288 | AM42: 35 | AN42: 70.09 | AO42: 70.09 | AP42: 2252 | AQ42: 35 | AR42: 70.09 | AS42: 70.09 | AT42: 22.38796945 | AU42: 35 | AV42: 3.130699288 | AW42: 3.130699288 | AX42: 3.130699288
A43: 2022-01-02T11:00:00 | B43: 11 - 12 | C43: 1066 | D43: 1177 | E43: 2243 | F43: 1298 | G43: 762 | H43: 2022-01-02T11:00:00 | I43: 36 | J43: TRUE | K43: 2243 | L43: 2060 | M43: 1900-02-05 | N43: 2243 | O43: 2060 | P43: 1 | Q43: ='consumption-dk-areas_2022_hourl'!D39 -> 2496 | R43: ='consumption-dk-areas_2022_hourl'!E39 -> 1672 | S43: 4168 | T43: ='consumption-prognosis_2022_hour'!F39 -> 2506 | U43: ='consumption-prognosis_2022_hour'!G39 -> 1675 | V43: 4181 | W43: 1900-02-05 | X43: 4168 | Y43: 4181 | Z43: 36 | AA43: 0.4270833333 | AB43: 0.7039473684 | AC43: 36 | AD43: 0.2314372558 | AE43: 0.7564267352 | AF43: =LOOKUP(A43,'Gas Prices'!B:B,'Gas Prices'!C:C) -> 22.38796945 | AG43: ='elspot-prices_2022_hourly_eur ('!J39 -> 66.26 | AH43: ='elspot-prices_2022_hourly_eur ('!K39 -> 66.26 | AI43: 2.959625265 | AJ43: 2.959625265 | AK43: ='elspot-prices_2022_hourly_eur ('!C39 -> 66.26 | AL43: 2.959625265 | AM43: 36 | AN43: 66.26 | AO43: 66.26 | AP43: 2060 | AQ43: 36 | AR43: 66.26 | AS43: 66.26 | AT43: 22.38796945 | AU43: 36 | AV43: 2.959625265 | AW43: 2.959625265 | AX43: 2.959625265
A44: 2022-01-02T12:00:00 | B44: 12 - 13 | C44: 818 | D44: 1071 | E44: 1889 | F44: 1145 | G44: 714 | H44: 2022-01-02T12:00:00 | I44: 37 | J44: TRUE | K44: 1889 | L44: 1859 | M44: 1900-02-06 | N44: 1889 | O44: 1859 | P44: 1 | Q44: ='consumption-dk-areas_2022_hourl'!D40 -> 2500 | R44: ='consumption-dk-areas_2022_hourl'!E40 -> 1698 | S44: 4198 | T44: ='consumption-prognosis_2022_hour'!F40 -> 2509 | U44: ='consumption-prognosis_2022_hour'!G40 -> 1687 | V44: 4196 | W44: 1900-02-06 | X44: 4198 | Y44: 4196 | Z44: 37 | AA44: 0.3272 | AB44: 0.6307420495 | AC44: 37 | AD44: 0.177594442 | AE44: 0.6883033419 | AF44: =LOOKUP(A44,'Gas Prices'!B:B,'Gas Prices'!C:C) -> 22.38796945 | AG44: ='elspot-prices_2022_hourly_eur ('!J40 -> 64.54 | AH44: ='elspot-prices_2022_hourly_eur ('!K40 -> 64.54 | AI44: 2.882798288 | AJ44: 2.882798288 | AK44: ='elspot-prices_2022_hourly_eur ('!C40 -> 64.54 | AL44: 2.882798288 | AM44: 37 | AN44: 64.54 | AO44: 64.54 | AP44: 1859 | AQ44: 37 | AR44: 64.54 | AS44: 64.54 | AT44: 22.38796945 | AU44: 37 | AV44: 2.882798288 | AW44: 2.882798288 | AX44: 2.882798288
A45: 2022-01-02T13:00:00 | B45: 13 - 14 | C45: 715 | D45: 761 | E45: 1476 | F45: 1094 | G45: 760 | H45: 2022-01-02T13:00:00 | I45: 38 | J45: TRUE | K45: 1476 | L45: 1854 | M45: 1900-02-07 | N45: 1476 | O45: 1854 | P45: 1 | Q45: ='consumption-dk-areas_2022_hourl'!D41 -> 2510 | R45: ='consumption-dk-areas_2022_hourl'!E41 -> 1701 | S45: 4211 | T45: ='consumption-prognosis_2022_hour'!F41 -> 2489 | U45: ='consumption-prognosis_2022_hour'!G41 -> 1697 | V45: 4186 | W45: 1900-02-07 | X45: 4211 | Y45: 4186 | Z45: 38 | AA45: 0.2848605578 | AB45: 0.4473838918 | AC45: 38 | AD45: 0.1552323057 | AE45: 0.4890745501 | AF45: =LOOKUP(A45,'Gas Prices'!B:B,'Gas Prices'!C:C) -> 22.38796945 | AG45: ='elspot-prices_2022_hourly_eur ('!J41 -> 46.96 | AH45: ='elspot-prices_2022_hourly_eur ('!K41 -> 46.96 | AI45: 2.097555123 | AJ45: 2.097555123 | AK45: ='elspot-prices_2022_hourly_eur ('!C41 -> 46.96 | AL45: 2.097555123 | AM45: 38 | AN45: 46.96 | AO45: 46.96 | AP45: 1854 | AQ45: 38 | AR45: 46.96 | AS45: 46.96 | AT45: 22.38796945 | AU45: 38 | AV45: 2.097555123 | AW45: 2.097555123 | AX45: 2.097555123
A46: 2022-01-02T14:00:00 | B46: 14 - 15 | C46: 847 | D46: 598 | E46: 1445 | F46: 930 | G46: 812 | H46: 2022-01-02T14:00:00 | I46: 39 | J46: TRUE | K46: 1445 | L46: 1742 | M46: 1900-02-08 | N46: 1445 | O46: 1742 | P46: 1 | Q46: ='consumption-dk-areas_2022_hourl'!D42 -> 2490 | R46: ='consumption-dk-areas_2022_hourl'!E42 -> 1701 | S46: 4191 | T46: ='consumption-prognosis_2022_hour'!F42 -> 2486 | U46: ='consumption-prognosis_2022_hour'!G42 -> 1696 | V46: 4182 | W46: 1900-02-08 | X46: 4191 | Y46: 4182 | Z46: 39 | AA46: 0.3401606426 | AB46: 0.3515579071 | AC46: 39 | AD46: 0.1838905775 | AE46: 0.3843187661 | AF46: =LOOKUP(A46,'Gas Prices'!B:B,'Gas Prices'!C:C) -> 22.38796945 | AG46: ='elspot-prices_2022_hourly_eur ('!J42 -> 49.06 | AH46: ='elspot-prices_2022_hourly_eur ('!K42 -> 49.06 | AI46: 2.191355501 | AJ46: 2.191355501 | AK46: ='elspot-prices_2022_hourly_eur ('!C42 -> 40.01 | AL46: 1.787120538 | AM46: 39 | AN46: 49.06 | AO46: 40.01 | AP46: 1742 | AQ46: 39 | AR46: 49.06 | AS46: 40.01 | AT46: 22.38796945 | AU46: 39 | AV46: 2.191355501 | AW46: 2.191355501 | AX46: 1.787120538
A47: 2022-01-02T15:00:00 | B47: 15 - 16 | C47: 1037 | D47: 712 | E47: 1749 | F47: 1030 | G47: 850 | H47: 2022-01-02T15:00:00 | I47: 40 | J47: TRUE | K47: 1749 | L47: 1880 | M47: 1900-02-09 | N47: 1749 | O47: 1880 | P47: 1 | Q47: ='consumption-dk-areas_2022_hourl'!D43 -> 2572 | R47: ='consumption-dk-areas_2022_hourl'!E43 -> 1728 | S47: 4300 | T47: ='consumption-prognosis_2022_hour'!F43 -> 2546 | U47: ='consumption-prognosis_2022_hour'!G43 -> 1737 | V47: 4283 | W47: 1900-02-09 | X47: 4300 | Y47: 4283 | Z47: 40 | AA47: 0.4031881804 | AB47: 0.412037037 | AC47: 40 | AD47: 0.2251411203 | AE47: 0.4575835476 | AF47: =LOOKUP(A47,'Gas Prices'!B:B,'Gas Prices'!C:C) -> 22.38796945 | AG47: ='elspot-prices_2022_hourly_eur ('!J43 -> 74.99 | AH47: ='elspot-prices_2022_hourly_eur ('!K43 -> 74.99 | AI47: 3.349566837 | AJ47: 3.349566837 | AK47: ='elspot-prices_2022_hourly_eur ('!C43 -> 39.3 | AL47: 1.755407077 | AM47: 40 | AN47: 74.99 | AO47: 39.3 | AP47: 1880 | AQ47: 40 | AR47: 74.99 | AS47: 39.3 | AT47: 22.38796945 | AU47: 40 | AV47: 3.349566837 | AW47: 3.349566837 | AX47: 1.755407077
A48: 2022-01-02T16:00:00 | B48: 16 - 17 | C48: 1286 | D48: 931 | E48: 2217 | F48: 1181 | G48: 901 | H48: 2022-01-02T16:00:00 | I48: 41 | J48: TRUE | K48: 2217 | L48: 2082 | M48: 1900-02-10 | N48: 2217 | O48: 2082 | P48: 1 | Q48: ='consumption-dk-areas_2022_hourl'!D44 -> 2694 | R48: ='consumption-dk-areas_2022_hourl'!E44 -> 1827 | S48: 4521 | T48: ='consumption-prognosis_2022_hour'!F44 -> 2734 | U48: ='consumption-prognosis_2022_hour'!G44 -> 1836 | V48: 4570 | W48: 1900-02-10 | X48: 4521 | Y48: 4570 | Z48: 41 | AA48: 0.4773570898 | AB48: 0.5095785441 | AC48: 41 | AD48: 0.2792010421 | AE48: 0.5983290488 | AF48: =LOOKUP(A48,'Gas Prices'!B:B,'Gas Prices'!C:C) -> 22.38796945 | AG48: ='elspot-prices_2022_hourly_eur ('!J44 -> 88.15 | AH48: ='elspot-prices_2022_hourly_eur ('!K44 -> 88.15 | AI48: 3.93738254 | AJ48: 3.93738254 | AK48: ='elspot-prices_2022_hourly_eur ('!C44 -> 40.79 | AL48: 1.821960678 | AM48: 41 | AN48: 88.15 | AO48: 40.79 | AP48: 2082 | AQ48: 41 | AR48: 88.15 | AS48: 40.79 | AT48: 22.38796945 | AU48: 41 | AV48: 3.93738254 | AW48: 3.93738254 | AX48: 1.821960678
A49: 2022-01-02T17:00:00 | B49: 17 - 18 | C49: 1568 | D49: 1147 | E49: 2715 | F49: 1483 | G49: 980 | H49: 2022-01-02T17:00:00 | I49: 42 | J49: TRUE | K49: 2715 | L49: 2463 | M49: 1900-02-11 | N49: 2715 | O49: 2463 | P49: 1 | Q49: ='consumption-dk-areas_2022_hourl'!D45 -> 2895 | R49: ='consumption-dk-areas_2022_hourl'!E45 -> 1978 | S49: 4873 | T49: ='consumption-prognosis_2022_hour'!F45 -> 2906 | U49: ='consumption-prognosis_2022_hour'!G45 -> 1971 | V49: 4877 | W49: 1900-02-11 | X49: 4873 | Y49: 4877 | Z49: 42 | AA49: 0.5416234888 | AB49: 0.5798786653 | AC49: 42 | AD49: 0.3404255319 | AE49: 0.7371465296 | AF49: =LOOKUP(A49,'Gas Prices'!B:B,'Gas Prices'!C:C) -> 22.38796945 | AG49: ='elspot-prices_2022_hourly_eur ('!J45 -> 95.4 | AH49: ='elspot-prices_2022_hourly_eur ('!K45 -> 95.4 | AI49: 4.261217179 | AJ49: 4.261217179 | AK49: ='elspot-prices_2022_hourly_eur ('!C45 -> 47.91 | AL49: 2.139988627 | AM49: 42 | AN49: 95.4 | AO49: 47.91 | AP49: 2463 | AQ49: 42 | AR49: 95.4 | AS49: 47.91 | AT49: 22.38796945 | AU49: 42 | AV49: 4.261217179 | AW49: 4.261217179 | AX49: 2.139988627
A50: 2022-01-02T18:00:00 | B50: 18 - 19 | C50: 2050 | D50: 1315 | E50: 3365 | F50: 1823 | G50: 1102 | H50: 2022-01-02T18:00:00 | I50: 43 | J50: TRUE | K50: 3365 | L50: 2925 | M50: 1900-02-12 | N50: 3365 | O50: 2925 | P50: 1 | Q50: ='consumption-dk-areas_2022_hourl'!D46 -> 2782 | R50: ='consumption-dk-areas_2022_hourl'!E46 -> 1954 | S50: 4736 | T50: ='consumption-prognosis_2022_hour'!F46 -> 2805 | U50: ='consumption-prognosis_2022_hour'!G46 -> 1951 | V50: 4756 | W50: 1900-02-12 | X50: 4736 | Y50: 4756 | Z50: 43 | AA50: 0.7368799425 | AB50: 0.6729785056 | AC50: 43 | AD50: 0.4450716457 | AE50: 0.8451156812 | AF50: =LOOKUP(A50,'Gas Prices'!B:B,'Gas Prices'!C:C) -> 22.38796945 | AG50: ='elspot-prices_2022_hourly_eur ('!J46 -> 87.84 | AH50: ='elspot-prices_2022_hourly_eur ('!K46 -> 86.71 | AI50: 3.923535817 | AJ50: 3.873062281 | AK50: ='elspot-prices_2022_hourly_eur ('!C46 -> 65.09 | AL50: 2.907365054 | AM50: 43 | AN50: 87.84 | AO50: 65.09 | AP50: 2925 | AQ50: 43 | AR50: 87.84 | AS50: 65.09 | AT50: 22.38796945 | AU50: 43 | AV50: 3.923535817 | AW50: 3.873062281 | AX50: 2.907365054
A51: 2022-01-02T19:00:00 | B51: 19 - 20 | C51: 2573 | D51: 1413 | E51: 3986 | F51: 2209 | G51: 1246 | H51: 2022-01-02T19:00:00 | I51: 44 | J51: TRUE | K51: 3986 | L51: 3455 | M51: 1900-02-13 | N51: 3986 | O51: 3455 | P51: 1 | Q51: ='consumption-dk-areas_2022_hourl'!D47 -> 2616 | R51: ='consumption-dk-areas_2022_hourl'!E47 -> 1817 | S51: 4433 | T51: ='consumption-prognosis_2022_hour'!F47 -> 2617 | U51: ='consumption-prognosis_2022_hour'!G47 -> 1825 | V51: 4442 | W51: 1900-02-13 | X51: 4433 | Y51: 4442 | Z51: 44 | AA51: 0.9835626911 | AB51: 0.7776554761 | AC51: 44 | AD51: 0.5586191924 | AE51: 0.9080976864 | AF51: =LOOKUP(A51,'Gas Prices'!B:B,'Gas Prices'!C:C) -> 22.38796945 | AG51: ='elspot-prices_2022_hourly_eur ('!J47 -> 71.27 | AH51: ='elspot-prices_2022_hourly_eur ('!K47 -> 71.27 | AI51: 3.183406167 | AJ51: 3.183406167 | AK51: ='elspot-prices_2022_hourly_eur ('!C47 -> 67.85 | AL51: 3.030645551 | AM51: 44 | AN51: 71.27 | AO51: 67.85 | AP51: 3455 | AQ51: 44 | AR51: 71.27 | AS51: 67.85 | AT51: 22.38796945 | AU51: 44 | AV51: 3.183406167 | AW51: 3.183406167 | AX51: 3.030645551
A52: 2022-01-02T20:00:00 | B52: 20 - 21 | C52: 2862 | D52: 1452 | E52: 4314 | F52: 2407 | G52: 1344 | H52: 2022-01-02T20:00:00 | I52: 45 | J52: TRUE | K52: 4314 | L52: 3751 | M52: 1900-02-14 | N52: 4314 | O52: 3751 | P52: 1 | Q52: ='consumption-dk-areas_2022_hourl'!D48 -> 2471 | R52: ='consumption-dk-areas_2022_hourl'!E48 -> 1712 | S52: 4183 | T52: ='consumption-prognosis_2022_hour'!F48 -> 2455 | U52: ='consumption-prognosis_2022_hour'!G48 -> 1706 | V52: 4161 | W52: 1900-02-14 | X52: 4183 | Y52: 4161 | Z52: 45 | AA52: 1.158235532 | AB52: 0.8481308411 | AC52: 45 | AD52: 0.621363439 | AE52: 0.9331619537 | AF52: =LOOKUP(A52,'Gas Prices'!B:B,'Gas Prices'!C:C) -> 22.38796945 | AG52: ='elspot-prices_2022_hourly_eur ('!J48 -> 54.12 | AH52: ='elspot-prices_2022_hourly_eur ('!K48 -> 54.12 | AI52: 2.417369745 | AJ52: 2.417369745 | AK52: ='elspot-prices_2022_hourly_eur ('!C48 -> 62.22 | AL52: 2.779171204 | AM52: 45 | AN52: 54.12 | AO52: 62.22 | AP52: 3751 | AQ52: 45 | AR52: 54.12 | AS52: 62.22 | AT52: 22.38796945 | AU52: 45 | AV52: 2.417369745 | AW52: 2.417369745 | AX52: 2.779171204
A53: 2022-01-02T21:00:00 | B53: 21 - 22 | C53: 2800 | D53: 1432 | E53: 4232 | F53: 2391 | G53: 1351 | H53: 2022-01-02T21:00:00 | I53: 46 | J53: TRUE | K53: 4232 | L53: 3742 | M53: 1900-02-15 | N53: 4232 | O53: 3742 | P53: 1 | Q53: ='consumption-dk-areas_2022_hourl'!D49 -> 2371 | R53: ='consumption-dk-areas_2022_hourl'!E49 -> 1603 | S53: 3974 | T53: ='consumption-prognosis_2022_hour'!F49 -> 2347 | U53: ='consumption-prognosis_2022_hour'!G49 -> 1591 | V53: 3938 | W53: 1900-02-15 | X53: 3974 | Y53: 3938 | Z53: 46 | AA53: 1.180936314 | AB53: 0.8933250156 | AC53: 46 | AD53: 0.6079027356 | AE53: 0.9203084833 | AF53: =LOOKUP(A53,'Gas Prices'!B:B,'Gas Prices'!C:C) -> 22.38796945 | AG53: ='elspot-prices_2022_hourly_eur ('!J49 -> 46.16 | AH53: ='elspot-prices_2022_hourly_eur ('!K49 -> 46.16 | AI53: 2.061821645 | AJ53: 2.061821645 | AK53: ='elspot-prices_2022_hourly_eur ('!C49 -> 46.16 | AL53: 2.061821645 | AM53: 46 | AN53: 46.16 | AO53: 46.16 | AP53: 3742 | AQ53: 46 | AR53: 46.16 | AS53: 46.16 | AT53: 22.38796945 | AU53: 46 | AV53: 2.061821645 | AW53: 2.061821645 | AX53: 2.061821645
A54: 2022-01-02T22:00:00 | B54: 22 - 23 | C54: 2458 | D54: 1394 | E54: 3852 | F54: 2248 | G54: 1305 | H54: 2022-01-02T22:00:00 | I54: 47 | J54: TRUE | K54: 3852 | L54: 3553 | M54: 1900-02-16 | N54: 3852 | O54: 3553 | P54: 1 | Q54: ='consumption-dk-areas_2022_hourl'!D50 -> 2266 | R54: ='consumption-dk-areas_2022_hourl'!E50 -> 1503 | S54: 3769 | T54: ='consumption-prognosis_2022_hour'!F50 -> 2304 | U54: ='consumption-prognosis_2022_hour'!G50 -> 1479 | V54: 3783 | W54: 1900-02-16 | X54: 3769 | Y54: 3783 | Z54: 47 | AA54: 1.084730803 | AB54: 0.9274783766 | AC54: 47 | AD54: 0.5336517586 | AE54: 0.8958868895 | AF54: =LOOKUP(A54,'Gas Prices'!B:B,'Gas Prices'!C:C) -> 22.38796945 | AG54: ='elspot-prices_2022_hourly_eur ('!J50 -> 46.29 | AH54: ='elspot-prices_2022_hourly_eur ('!K50 -> 46.29 | AI54: 2.067628335 | AJ54: 2.067628335 | AK54: ='elspot-prices_2022_hourly_eur ('!C50 -> 46.29 | AL54: 2.067628335 | AM54: 47 | AN54: 46.29 | AO54: 46.29 | AP54: 3553 | AQ54: 47 | AR54: 46.29 | AS54: 46.29 | AT54: 22.38796945 | AU54: 47 | AV54: 2.067628335 | AW54: 2.067628335 | AX54: 2.067628335
A55: 2022-01-02T23:00:00 | B55: 23 - 00 | C55: 2174 | D55: 1306 | E55: 3480 | F55: 2076 | G55: 1245 | H55: 2022-01-02T23:00:00 | I55: 48 | J55: TRUE | K55: 3480 | L55: 3321 | M55: 1900-02-17 | N55: 3480 | O55: 3321 | P55: 1 | Q55: ='consumption-dk-areas_2022_hourl'!D51 -> 2141 | R55: ='consumption-dk-areas_2022_hourl'!E51 -> 1418 | S55: 3559 | T55: ='consumption-prognosis_2022_hour'!F51 -> 2227 | U55: ='consumption-prognosis_2022_hour'!G51 -> 1380 | V55: 3607 | W55: 1900-02-17 | X55: 3559 | Y55: 3607 | Z55: 48 | AA55: 1.015413358 | AB55: 0.9210155148 | AC55: 48 | AD55: 0.4719930525 | AE55: 0.8393316195 | AF55: =LOOKUP(A55,'Gas Prices'!B:B,'Gas Prices'!C:C) -> 22.38796945 | AG55: ='elspot-prices_2022_hourly_eur ('!J51 -> 32.93 | AH55: ='elspot-prices_2022_hourly_eur ('!K51 -> 32.93 | AI55: 1.470879263 | AJ55: 1.470879263 | AK55: ='elspot-prices_2022_hourly_eur ('!C51 -> 32.93 | AL55: 1.470879263 | AM55: 48 | AN55: 32.93 | AO55: 32.93 | AP55: 3321 | AQ55: 48 | AR55: 32.93 | AS55: 32.93 | AT55: 22.38796945 | AU55: 48 | AV55: 1.470879263 | AW55: 1.470879263 | AX55: 1.470879263
A56: 2022-01-03 | B56: 00 - 01 | C56: 2131 | D56: 1019 | E56: 3150 | F56: 1928 | G56: 1054 | H56: 2022-01-03 | I56: 49 | J56: TRUE | K56: 3150 | L56: 2982 | M56: 1900-02-18 | N56: 3150 | O56: 2982 | P56: 1 | Q56: ='consumption-dk-areas_2022_hourl'!D52 -> 2049 | R56: ='consumption-dk-areas_2022_hourl'!E52 -> 1345 | S56: 3394 | T56: ='consumption-prognosis_2022_hour'!F52 -> 2042 | U56: ='consumption-prognosis_2022_hour'!G52 -> 1331 | V56: 3373 | W56: 1900-02-18 | X56: 3394 | Y56: 3373 | Z56: 49 | AA56: 1.040019522 | AB56: 0.7576208178 | AC56: 49 | AD56: 0.4626574034 | AE56: 0.6548843188 | AF56: =LOOKUP(A56,'Gas Prices'!B:B,'Gas Prices'!C:C) -> 22.38796945 | AG56: ='elspot-prices_2022_hourly_eur ('!J52 -> 13.2 | AH56: ='elspot-prices_2022_hourly_eur ('!K52 -> 13.2 | AI56: 0.5896023769 | AJ56: 0.5896023769 | AK56: ='elspot-prices_2022_hourly_eur ('!C52 -> 2.71 | AL56: 0.1210471547 | AM56: 49 | AN56: 13.2 | AO56: 2.71 | AP56: 2982 | AQ56: 49 | AR56: 13.2 | AS56: 2.71 | AT56: 22.38796945 | AU56: 49 | AV56: 0.5896023769 | AW56: 0.5896023769 | AX56: 0.1210471547
A57: 2022-01-03T01:00:00 | B57: 01 - 02 | C57: 2182 | D57: 808 | E57: 2990 | F57: 1855 | G57: 886 | H57: 2022-01-03T01:00:00 | I57: 50 | J57: TRUE | K57: 2990 | L57: 2741 | M57: 1900-02-19 | N57: 2990 | O57: 2741 | P57: 1 | Q57: ='consumption-dk-areas_2022_hourl'!D53 -> 2070 | R57: ='consumption-dk-areas_2022_hourl'!E53 -> 1275 | S57: 3345 | T57: ='consumption-prognosis_2022_hour'!F53 -> 2000 | U57: ='consumption-prognosis_2022_hour'!G53 -> 1270 | V57: 3270 | W57: 1900-02-19 | X57: 3345 | Y57: 3270 | Z57: 50 | AA57: 1.05410628 | AB57: 0.6337254902 | AC57: 50 | AD57: 0.4737299175 | AE57: 0.5192802057 | AF57: =LOOKUP(A57,'Gas Prices'!B:B,'Gas Prices'!C:C) -> 25.59961808 | AG57: ='elspot-prices_2022_hourly_eur ('!J53 -> 19.92 | AH57: ='elspot-prices_2022_hourly_eur ('!K53 -> 19.92 | AI57: 0.7781366089 | AJ57: 0.7781366089 | AK57: ='elspot-prices_2022_hourly_eur ('!C53 -> 1.71 | AL57: 0.06679787155 | AM57: 50 | AN57: 19.92 | AO57: 1.71 | AP57: 2741 | AQ57: 50 | AR57: 19.92 | AS57: 1.71 | AT57: 25.59961808 | AU57: 50 | AV57: 0.7781366089 | AW57: 0.7781366089 | AX57: 0.06679787155
A58: 2022-01-03T02:00:00 | B58: 02 - 03 | C58: 2221 | D58: 643 | E58: 2864 | F58: 2005 | G58: 876 | H58: 2022-01-03T02:00:00 | I58: 51 | J58: TRUE | K58: 2864 | L58: 2881 | M58: 1900-02-20 | N58: 2864 | O58: 2881 | P58: 1 | Q58: ='consumption-dk-areas_2022_hourl'!D54 -> 2075 | R58: ='consumption-dk-areas_2022_hourl'!E54 -> 1233 | S58: 3308 | T58: ='consumption-prognosis_2022_hour'!F54 -> 1972 | U58: ='consumption-prognosis_2022_hour'!G54 -> 1239 | V58: 3211 | W58: 1900-02-20 | X58: 3308 | Y58: 3211 | Z58: 51 | AA58: 1.070361446 | AB58: 0.5214922952 | AC58: 51 | AD58: 0.4821971342 | AE58: 0.4132390746 | AF58: =LOOKUP(A58,'Gas Prices'!B:B,'Gas Prices'!C:C) -> 25.59961808 | AG58: ='elspot-prices_2022_hourly_eur ('!J54 -> 19.87 | AH58: ='elspot-prices_2022_hourly_eur ('!K54 -> 19.87 | AI58: 0.7761834548 | AJ58: 0.7761834548 | AK58: ='elspot-prices_2022_hourly_eur ('!C54 -> 1.24 | AL58: 0.04843822264 | AM58: 51 | AN58: 19.87 | AO58: 1.24 | AP58: 2881 | AQ58: 51 | AR58: 19.87 | AS58: 1.24 | AT58: 25.59961808 | AU58: 51 | AV58: 0.7761834548 | AW58: 0.7761834548 | AX58: 0.04843822264
A59: 2022-01-03T03:00:00 | B59: 03 - 04 | C59: 2391 | D59: 524 | E59: 2915 | F59: 2126 | G59: 878 | H59: 2022-01-03T03:00:00 | I59: 52 | J59: TRUE | K59: 2915 | L59: 3004 | M59: 1900-02-21 | N59: 2915 | O59: 3004 | P59: 1 | Q59: ='consumption-dk-areas_2022_hourl'!D55 -> 2065 | R59: ='consumption-dk-areas_2022_hourl'!E55 -> 1221 | S59: 3286 | T59: ='consumption-prognosis_2022_hour'!F55 -> 1980 | U59: ='consumption-prognosis_2022_hour'!G55 -> 1223 | V59: 3203 | W59: 1900-02-21 | X59: 3286 | Y59: 3203 | Z59: 52 | AA59: 1.157869249 | AB59: 0.4291564292 | AC59: 52 | AD59: 0.5191055145 | AE59: 0.3367609254 | AF59: =LOOKUP(A59,'Gas Prices'!B:B,'Gas Prices'!C:C) -> 25.59961808 | AG59: ='elspot-prices_2022_hourly_eur ('!J55 -> 13.24 | AH59: ='elspot-prices_2022_hourly_eur ('!K55 -> 13.24 | AI59: 0.517195216 | AJ59: 0.517195216 | AK59: ='elspot-prices_2022_hourly_eur ('!C55 -> 0.06 | AL59: 0.002343784967 | AM59: 52 | AN59: 13.24 | AO59: 0.06 | AP59: 3004 | AQ59: 52 | AR59: 13.24 | AS59: 0.06 | AT59: 25.59961808 | AU59: 52 | AV59: 0.517195216 | AW59: 0.517195216 | AX59: 0.002343784967
A60: 2022-01-03T04:00:00 | B60: 04 - 05 | C60: 2531 | D60: 808 | E60: 3339 | F60: 2385 | G60: 912 | H60: 2022-01-03T04:00:00 | I60: 53 | J60: TRUE | K60: 3339 | L60: 3297 | M60: 1900-02-22 | N60: 3339 | O60: 3297 | P60: 1 | Q60: ='consumption-dk-areas_2022_hourl'!D56 -> 2105 | R60: ='consumption-dk-areas_2022_hourl'!E56 -> 1256 | S60: 3361 | T60: ='consumption-prognosis_2022_hour'!F56 -> 2123 | U60: ='consumption-prognosis_2022_hour'!G56 -> 1239 | V60: 3362 | W60: 1900-02-22 | X60: 3361 | Y60: 3362 | Z60: 53 | AA60: 1.202375297 | AB60: 0.6433121019 | AC60: 53 | AD60: 0.5495006513 | AE60: 0.5192802057 | AF60: =LOOKUP(A60,'Gas Prices'!B:B,'Gas Prices'!C:C) -> 25.59961808 | AG60: ='elspot-prices_2022_hourly_eur ('!J56 -> 0.1 | AH60: ='elspot-prices_2022_hourly_eur ('!K56 -> 13.29 | AI60: 0.003906308278 | AJ60: 0.5191483701 | AK60: ='elspot-prices_2022_hourly_eur ('!C56 -> 0.09 | AL60: 0.00351567745 | AM60: 53 | AN60: 0.1 | AO60: 0.09 | AP60: 3297 | AQ60: 53 | AR60: 0.1 | AS60: 0.09 | AT60: 25.59961808 | AU60: 53 | AV60: 0.003906308278 | AW60: 0.5191483701 | AX60: 0.00351567745
A61: 2022-01-03T05:00:00 | B61: 05 - 06 | C61: 2685 | D61: 1140 | E61: 3825 | F61: 2599 | G61: 1046 | H61: 2022-01-03T05:00:00 | I61: 54 | J61: TRUE | K61: 3825 | L61: 3645 | M61: 1900-02-23 | N61: 3825 | O61: 3645 | P61: 1 | Q61: ='consumption-dk-areas_2022_hourl'!D57 -> 2218 | R61: ='consumption-dk-areas_2022_hourl'!E57 -> 1366 | S61: 3584 | T61: ='consumption-prognosis_2022_hour'!F57 -> 2250 | U61: ='consumption-prognosis_2022_hour'!G57 -> 1337 | V61: 3587 | W61: 1900-02-23 | X61: 3584 | Y61: 3587 | Z61: 54 | AA61: 1.210550045 | AB61: 0.8345534407 | AC61: 54 | AD61: 0.5829353018 | AE61: 0.7326478149 | AF61: =LOOKUP(A61,'Gas Prices'!B:B,'Gas Prices'!C:C) -> 25.59961808 | AG61: ='elspot-prices_2022_hourly_eur ('!J57 -> 0.32 | AH61: ='elspot-prices_2022_hourly_eur ('!K57 -> 9.24 | AI61: 0.01250018649 | AJ61: 0.3609428848 | AK61: ='elspot-prices_2022_hourly_eur ('!C57 -> 1.44 | AL61: 0.0562508392 | AM61: 54 | AN61: 0.32 | AO61: 1.44 | AP61: 3645 | AQ61: 54 | AR61: 0.32 | AS61: 1.44 | AT61: 25.59961808 | AU61: 54 | AV61: 0.01250018649 | AW61: 0.3609428848 | AX61: 0.0562508392
A62: 2022-01-03T06:00:00 | B62: 06 - 07 | C62: 3011 | D62: 1255 | E62: 4266 | F62: 2923 | G62: 1211 | H62: 2022-01-03T06:00:00 | I62: 55 | J62: TRUE | K62: 4266 | L62: 4134 | M62: 1900-02-24 | N62: 4266 | O62: 4134 | P62: 1 | Q62: ='consumption-dk-areas_2022_hourl'!D58 -> 2645 | R62: ='consumption-dk-areas_2022_hourl'!E58 -> 1556 | S62: 4201 | T62: ='consumption-prognosis_2022_hour'!F58 -> 2594 | U62: ='consumption-prognosis_2022_hour'!G58 -> 1531 | V62: 4125 | W62: 1900-02-24 | X62: 4201 | Y62: 4125 | Z62: 55 | AA62: 1.138374291 | AB62: 0.8065552699 | AC62: 55 | AD62: 0.6537125488 | AE62: 0.8065552699 | AF62: =LOOKUP(A62,'Gas Prices'!B:B,'Gas Prices'!C:C) -> 25.59961808 | AG62: ='elspot-prices_2022_hourly_eur ('!J58 -> 37.55 | AH62: ='elspot-prices_2022_hourly_eur ('!K58 -> 37.55 | AI62: 1.466818758 | AJ62: 1.466818758 | AK62: ='elspot-prices_2022_hourly_eur ('!C58 -> 41.11 | AL62: 1.605883333 | AM62: 55 | AN62: 37.55 | AO62: 41.11 | AP62: 4134 | AQ62: 55 | AR62: 37.55 | AS62: 41.11 | AT62: 25.59961808 | AU62: 55 | AV62: 1.466818758 | AW62: 1.466818758 | AX62: 1.605883333
A63: 2022-01-03T07:00:00 | B63: 07 - 08 | C63: 3084 | D63: 1227 | E63: 4311 | F63: 3281 | G63: 1294 | H63: 2022-01-03T07:00:00 | I63: 56 | J63: TRUE | K63: 4311 | L63: 4575 | M63: 1900-02-25 | N63: 4311 | O63: 4575 | P63: 1 | Q63: ='consumption-dk-areas_2022_hourl'!D59 -> 3028 | R63: ='consumption-dk-areas_2022_hourl'!E59 -> 1744 | S63: 4772 | T63: ='consumption-prognosis_2022_hour'!F59 -> 3009 | U63: ='consumption-prognosis_2022_hour'!G59 -> 1762 | V63: 4771 | W63: 1900-02-25 | X63: 4772 | Y63: 4771 | Z63: 56 | AA63: 1.018494055 | AB63: 0.7035550459 | AC63: 56 | AD63: 0.6695614416 | AE63: 0.7885604113 | AF63: =LOOKUP(A63,'Gas Prices'!B:B,'Gas Prices'!C:C) -> 25.59961808 | AG63: ='elspot-prices_2022_hourly_eur ('!J59 -> 88.76 | AH63: ='elspot-prices_2022_hourly_eur ('!K59 -> 88.76 | AI63: 3.467239227 | AJ63: 3.467239227 | AK63: ='elspot-prices_2022_hourly_eur ('!C59 -> 90.54 | AL63: 3.536771515 | AM63: 56 | AN63: 88.76 | AO63: 90.54 | AP63: 4575 | AQ63: 56 | AR63: 88.76 | AS63: 90.54 | AT63: 25.59961808 | AU63: 56 | AV63: 3.467239227 | AW63: 3.467239227 | AX63: 3.536771515
A64: 2022-01-03T08:00:00 | B64: 08 - 09 | C64: 3157 | D64: 1215 | E64: 4372 | F64: 3490 | G64: 1316 | H64: 2022-01-03T08:00:00 | I64: 57 | J64: TRUE | K64: 4372 | L64: 4806 | M64: 1900-02-26 | N64: 4372 | O64: 4806 | P64: 1 | Q64: ='consumption-dk-areas_2022_hourl'!D60 -> 3202 | R64: ='consumption-dk-areas_2022_hourl'!E60 -> 1877 | S64: 5079 | T64: ='consumption-prognosis_2022_hour'!F60 -> 3191 | U64: ='consumption-prognosis_2022_hour'!G60 -> 1897 | V64: 5088 | W64: 1900-02-26 | X64: 5079 | Y64: 5088 | Z64: 57 | AA64: 0.9859462836 | AB64: 0.6473095365 | AC64: 57 | AD64: 0.6854103343 | AE64: 0.780848329 | AF64: =LOOKUP(A64,'Gas Prices'!B:B,'Gas Prices'!C:C) -> 25.59961808 | AG64: ='elspot-prices_2022_hourly_eur ('!J60 -> 122.93 | AH64: ='elspot-prices_2022_hourly_eur ('!K60 -> 122.93 | AI64: 4.802024766 | AJ64: 4.802024766 | AK64: ='elspot-prices_2022_hourly_eur ('!C60 -> 161.79 | AL64: 6.320016162 | AM64: 57 | AN64: 122.93 | AO64: 161.79 | AP64: 4806 | AQ64: 57 | AR64: 122.93 | AS64: 161.79 | AT64: 25.59961808 | AU64: 57 | AV64: 4.802024766 | AW64: 4.802024766 | AX64: 6.320016162
A65: 2022-01-03T09:00:00 | B65: 09 - 10 | C65: 3616 | D65: 1316 | E65: 4932 | F65: 3497 | G65: 1322 | H65: 2022-01-03T09:00:00 | I65: 58 | J65: TRUE | K65: 4932 | L65: 4819 | M65: 1900-02-27 | N65: 4932 | O65: 4819 | P65: 1 | Q65: ='consumption-dk-areas_2022_hourl'!D61 -> 3138 | R65: ='consumption-dk-areas_2022_hourl'!E61 -> 1934 | S65: 5072 | T65: ='consumption-prognosis_2022_hour'!F61 -> 3153 | U65: ='consumption-prognosis_2022_hour'!G61 -> 1926 | V65: 5079 | W65: 1900-02-27 | X65: 5072 | Y65: 5079 | Z65: 58 | AA65: 1.152326322 | AB65: 0.6804550155 | AC65: 58 | AD65: 0.7850629614 | AE65: 0.8457583548 | AF65: =LOOKUP(A65,'Gas Prices'!B:B,'Gas Prices'!C:C) -> 25.59961808 | AG65: ='elspot-prices_2022_hourly_eur ('!J61 -> 110.17 | AH65: ='elspot-prices_2022_hourly_eur ('!K61 -> 110.17 | AI65: 4.303579829 | AJ65: 4.303579829 | AK65: ='elspot-prices_2022_hourly_eur ('!C61 -> 180.36 | AL65: 7.045417609 | AM65: 58 | AN65: 110.17 | AO65: 180.36 | AP65: 4819 | AQ65: 58 | AR65: 110.17 | AS65: 180.36 | AT65: 25.59961808 | AU65: 58 | AV65: 4.303579829 | AW65: 4.303579829 | AX65: 7.045417609
A66: 2022-01-03T10:00:00 | B66: 10 - 11 | C66: 3751 | D66: 1392 | E66: 5143 | F66: 3462 | G66: 1340 | H66: 2022-01-03T10:00:00 | I66: 59 | J66: TRUE | K66: 5143 | L66: 4802 | M66: 1900-02-28 | N66: 5143 | O66: 4802 | P66: 1 | Q66: ='consumption-dk-areas_2022_hourl'!D62 -> 3202 | R66: ='consumption-dk-areas_2022_hourl'!E62 -> 1988 | S66: 5190 | T66: ='consumption-prognosis_2022_hour'!F62 -> 3185 | U66: ='consumption-prognosis_2022_hour'!G62 -> 1932 | V66: 5117 | W66: 1900-02-28 | X66: 5190 | Y66: 5117 | Z66: 59 | AA66: 1.17145534 | AB66: 0.7002012072 | AC66: 59 | AD66: 0.8143725575 | AE66: 0.8946015424 | AF66: =LOOKUP(A66,'Gas Prices'!B:B,'Gas Prices'!C:C) -> 25.59961808 | AG66: ='elspot-prices_2022_hourly_eur ('!J62 -> 93.38 | AH66: ='elspot-prices_2022_hourly_eur ('!K62 -> 93.38 | AI66: 3.64771067 | AJ66: 3.64771067 | AK66: ='elspot-prices_2022_hourly_eur ('!C62 -> 125.03 | AL66: 4.884057239 | AM66: 59 | AN66: 93.38 | AO66: 125.03 | AP66: 4802 | AQ66: 59 | AR66: 93.38 | AS66: 125.03 | AT66: 25.59961808 | AU66: 59 | AV66: 3.64771067 | AW66: 3.64771067 | AX66: 4.884057239
A67: 2022-01-03T11:00:00 | B67: 11 - 12 | C67: 3937 | D67: 1429 | E67: 5366 | F67: 3616 | G67: 1379 | H67: 2022-01-03T11:00:00 | I67: 60 | J67: TRUE | K67: 5366 | L67: 4995 | M67: 60 | N67: 5366 | O67: 4995 | P67: 1 | Q67: ='consumption-dk-areas_2022_hourl'!D63 -> 3246 | R67: ='consumption-dk-areas_2022_hourl'!E63 -> 2000 | S67: 5246 | T67: ='consumption-prognosis_2022_hour'!F63 -> 3245 | U67: ='consumption-prognosis_2022_hour'!G63 -> 1986 | V67: 5231 | W67: 60 | X67: 5246 | Y67: 5231 | Z67: 60 | AA67: 1.212877388 | AB67: 0.7145 | AC67: 60 | AD67: 0.8547546678 | AE67: 0.9183804627 | AF67: =LOOKUP(A67,'Gas Prices'!B:B,'Gas Prices'!C:C) -> 25.59961808 | AG67: ='elspot-prices_2022_hourly_eur ('!J63 -> 90.73 | AH67: ='elspot-prices_2022_hourly_eur ('!K63 -> 90.73 | AI67: 3.5441935 | AJ67: 3.5441935 | AK67: ='elspot-prices_2022_hourly_eur ('!C63 -> 100.74 | AL67: 3.935214959 | AM67: 60 | AN67: 90.73 | AO67: 100.74 | AP67: 4995 | AQ67: 60 | AR67: 90.73 | AS67: 100.74 | AT67: 25.59961808 | AU67: 60 | AV67: 3.5441935 | AW67: 3.5441935 | AX67: 3.935214959
A68: 2022-01-03T12:00:00 | B68: 12 - 13 | C68: 4039 | D68: 1409 | E68: 5448 | F68: 3758 | G68: 1392 | H68: 2022-01-03T12:00:00 | I68: 61 | J68: TRUE | K68: 5448 | L68: 5150 | M68: 1900-03-01 | N68: 5448 | O68: 5150 | P68: 1 | Q68: ='consumption-dk-areas_2022_hourl'!D64 -> 3176 | R68: ='consumption-dk-areas_2022_hourl'!E64 -> 1958 | S68: 5134 | T68: ='consumption-prognosis_2022_hour'!F64 -> 3189 | U68: ='consumption-prognosis_2022_hour'!G64 -> 1983 | V68: 5172 | W68: 1900-03-01 | X68: 5134 | Y68: 5172 | Z68: 61 | AA68: 1.271725441 | AB68: 0.7196118488 | AC68: 61 | AD68: 0.876899696 | AE68: 0.9055269923 | AF68: =LOOKUP(A68,'Gas Prices'!B:B,'Gas Prices'!C:C) -> 25.59961808 | AG68: ='elspot-prices_2022_hourly_eur ('!J64 -> 82.37 | AH68: ='elspot-prices_2022_hourly_eur ('!K64 -> 82.37 | AI68: 3.217626128 | AJ68: 3.217626128 | AK68: ='elspot-prices_2022_hourly_eur ('!C64 -> 96.39 | AL68: 3.765290549 | AM68: 61 | AN68: 82.37 | AO68: 96.39 | AP68: 5150 | AQ68: 61 | AR68: 82.37 | AS68: 96.39 | AT68: 25.59961808 | AU68: 61 | AV68: 3.217626128 | AW68: 3.217626128 | AX68: 3.765290549
A69: 2022-01-03T13:00:00 | B69: 13 - 14 | C69: 4086 | D69: 1420 | E69: 5506 | F69: 3638 | G69: 1363 | H69: 2022-01-03T13:00:00 | I69: 62 | J69: TRUE | K69: 5506 | L69: 5001 | M69: 1900-03-02 | N69: 5506 | O69: 5001 | P69: 1 | Q69: ='consumption-dk-areas_2022_hourl'!D65 -> 3130 | R69: ='consumption-dk-areas_2022_hourl'!E65 -> 1948 | S69: 5078 | T69: ='consumption-prognosis_2022_hour'!F65 -> 3183 | U69: ='consumption-prognosis_2022_hour'!G65 -> 1962 | V69: 5145 | W69: 1900-03-02 | X69: 5078 | Y69: 5145 | Z69: 62 | AA69: 1.30543131 | AB69: 0.7289527721 | AC69: 62 | AD69: 0.8871037777 | AE69: 0.912596401 | AF69: =LOOKUP(A69,'Gas Prices'!B:B,'Gas Prices'!C:C) -> 25.59961808 | AG69: ='elspot-prices_2022_hourly_eur ('!J65 -> 80.9 | AH69: ='elspot-prices_2022_hourly_eur ('!K65 -> 80.9 | AI69: 3.160203397 | AJ69: 3.160203397 | AK69: ='elspot-prices_2022_hourly_eur ('!C65 -> 95.22 | AL69: 3.719586742 | AM69: 62 | AN69: 80.9 | AO69: 95.22 | AP69: 5001 | AQ69: 62 | AR69: 80.9 | AS69: 95.22 | AT69: 25.59961808 | AU69: 62 | AV69: 3.160203397 | AW69: 3.160203397 | AX69: 3.719586742
A70: 2022-01-03T14:00:00 | B70: 14 - 15 | C70: 4111 | D70: 1383 | E70: 5494 | F70: 3596 | G70: 1350 | H70: 2022-01-03T14:00:00 | I70: 63 | J70: TRUE | K70: 5494 | L70: 4946 | M70: 1900-03-03 | N70: 5494 | O70: 4946 | P70: 1 | Q70: ='consumption-dk-areas_2022_hourl'!D66 -> 3118 | R70: ='consumption-dk-areas_2022_hourl'!E66 -> 1925 | S70: 5043 | T70: ='consumption-prognosis_2022_hour'!F66 -> 3134 | U70: ='consumption-prognosis_2022_hour'!G66 -> 1916 | V70: 5050 | W70: 1900-03-03 | X70: 5043 | Y70: 5050 | Z70: 63 | AA70: 1.31847338 | AB70: 0.7184415584 | AC70: 63 | AD70: 0.8925314807 | AE70: 0.8888174807 | AF70: =LOOKUP(A70,'Gas Prices'!B:B,'Gas Prices'!C:C) -> 25.59961808 | AG70: ='elspot-prices_2022_hourly_eur ('!J66 -> 80.99 | AH70: ='elspot-prices_2022_hourly_eur ('!K66 -> 80.99 | AI70: 3.163719074 | AJ70: 3.163719074 | AK70: ='elspot-prices_2022_hourly_eur ('!C66 -> 102.67 | AL70: 4.010606709 | AM70: 63 | AN70: 80.99 | AO70: 102.67 | AP70: 4946 | AQ70: 63 | AR70: 80.99 | AS70: 102.67 | AT70: 25.59961808 | AU70: 63 | AV70: 3.163719074 | AW70: 3.163719074 | AX70: 4.010606709
A71: 2022-01-03T15:00:00 | B71: 15 - 16 | C71: 4126 | D71: 1425 | E71: 5551 | F71: 3760 | G71: 1372 | H71: 2022-01-03T15:00:00 | I71: 64 | J71: TRUE | K71: 5551 | L71: 5132 | M71: 1900-03-04 | N71: 5551 | O71: 5132 | P71: 1 | Q71: ='consumption-dk-areas_2022_hourl'!D67 -> 3101 | R71: ='consumption-dk-areas_2022_hourl'!E67 -> 1919 | S71: 5020 | T71: ='consumption-prognosis_2022_hour'!F67 -> 3068 | U71: ='consumption-prognosis_2022_hour'!G67 -> 1925 | V71: 4993 | W71: 1900-03-04 | X71: 5020 | Y71: 4993 | Z71: 64 | AA71: 1.330538536 | AB71: 0.7425742574 | AC71: 64 | AD71: 0.8957881025 | AE71: 0.9158097686 | AF71: =LOOKUP(A71,'Gas Prices'!B:B,'Gas Prices'!C:C) -> 25.59961808 | AG71: ='elspot-prices_2022_hourly_eur ('!J67 -> 98.05 | AH71: ='elspot-prices_2022_hourly_eur ('!K67 -> 98.05 | AI71: 3.830135266 | AJ71: 3.830135266 | AK71: ='elspot-prices_2022_hourly_eur ('!C67 -> 112.87 | AL71: 4.409050153 | AM71: 64 | AN71: 98.05 | AO71: 112.87 | AP71: 5132 | AQ71: 64 | AR71: 98.05 | AS71: 112.87 | AT71: 25.59961808 | AU71: 64 | AV71: 3.830135266 | AW71: 3.830135266 | AX71: 4.409050153
A72: 2022-01-03T16:00:00 | B72: 16 - 17 | C72: 4135 | D72: 1398 | E72: 5533 | F72: 3650 | G72: 1382 | H72: 2022-01-03T16:00:00 | I72: 65 | J72: TRUE | K72: 5533 | L72: 5032 | M72: 1900-03-05 | N72: 5533 | O72: 5032 | P72: 1 | Q72: ='consumption-dk-areas_2022_hourl'!D68 -> 3184 | R72: ='consumption-dk-areas_2022_hourl'!E68 -> 2016 | S72: 5200 | T72: ='consumption-prognosis_2022_hour'!F68 -> 3191 | U72: ='consumption-prognosis_2022_hour'!G68 -> 2033 | V72: 5224 | W72: 1900-03-05 | X72: 5200 | Y72: 5224 | Z72: 65 | AA72: 1.298680905 | AB72: 0.693452381 | AC72: 65 | AD72: 0.8977420756 | AE72: 0.8984575835 | AF72: =LOOKUP(A72,'Gas Prices'!B:B,'Gas Prices'!C:C) -> 25.59961808 | AG72: ='elspot-prices_2022_hourly_eur ('!J68 -> 120.55 | AH72: ='elspot-prices_2022_hourly_eur ('!K68 -> 120.55 | AI72: 4.709054629 | AJ72: 4.709054629 | AK72: ='elspot-prices_2022_hourly_eur ('!C68 -> 126.8 | AL72: 4.953198896 | AM72: 65 | AN72: 120.55 | AO72: 126.8 | AP72: 5032 | AQ72: 65 | AR72: 120.55 | AS72: 126.8 | AT72: 25.59961808 | AU72: 65 | AV72: 4.709054629 | AW72: 4.709054629 | AX72: 4.953198896
A73: 2022-01-03T17:00:00 | B73: 17 - 18 | C73: 4195 | D73: 1447 | E73: =C73+D73 -> 5642 | F73: 3299 | G73: 1398 | H73: 2022-01-03T17:00:00 | I73: 66 | J73: =AND(H73>=$J$2,H73<$J$3) -> TRUE | K73: =E73 -> 5642 | L73: =SUM(F73:G73) -> 4697 | M73: =IF(J73,I73,NA()) -> 1900-03-06 | N73: =IF(J73,K73,NA()) -> 5642 | O73: =IF(J73,L73,NA()) -> 4697 | P73: 1 | Q73: ='consumption-dk-areas_2022_hourl'!D69 -> 3366 | R73: ='consumption-dk-areas_2022_hourl'!E69 -> 2168 | S73: =Q73+R73 -> 5534 | T73: ='consumption-prognosis_2022_hour'!F69 -> 3384 | U73: ='consumption-prognosis_2022_hour'!G69 -> 2166 | V73: =T73+U73 -> 5550 | W73: =M73 -> 1900-03-06 | X73: =S73 -> 5534 | Y73: =V73 -> 5550 | Z73: =M73 -> 66 | AA73: =C73/Q73 -> 1.246286393 | AB73: =D73/R73 -> 0.6674354244 | AC73: =Z73 -> 66 | AD73: =C73/AD$4 -> 0.9107685627 | AE73: =D73/AE$4 -> 0.9299485861 | AF73: =LOOKUP(A73,'Gas Prices'!B:B,'Gas Prices'!C:C) -> 25.59961808 | AG73: ='elspot-prices_2022_hourly_eur ('!J69 -> 139.57 | AH73: ='elspot-prices_2022_hourly_eur ('!K69 -> 139.57 | AI73: =AG73/AF73 -> 5.452034463 | AJ73: =AH73/AF73 -> 5.452034463 | AK73: ='elspot-prices_2022_hourly_eur ('!C69 -> 148.49 | AL73: =AK73/AF73 -> 5.800477161 | AM73: =AC73 -> 66 | AN73: =IF(J73,AG73,NA()) -> 139.57 | AO73: =IF(J73,AK73,NA()) -> 148.49 | AP73: =IF(J73,L73,NA()) -> 4697 | AQ73: =AM73 -> 66 | AR73: =AN73 -> 139.57 | AS73: =AO73 -> 148.49 | AT73: =IF(J73,AF73,NA()) -> 25.59961808 | AU73: =AQ73 -> 66 | AV73: =IF(J73,AI73,NA()) -> 5.452034463 | AW73: =IF(J73,AJ73,NA()) -> 5.452034463 | AX73: =IF(J73,AL73,NA()) -> 5.800477161
A74: =A73+1/24 -> 2022-01-03T18:00:00 | B74: 18 - 19 | C74: 4014 | D74: 1430 | E74: 5444 | F74: 2708 | G74: 1425 | H74: =H73+1/24 -> 2022-01-03T18:00:00 | I74: 67 | J74: TRUE | K74: 5444 | L74: 4133 | M74: 1900-03-07 | N74: 5444 | O74: 4133 | P74: 1 | Q74: ='consumption-dk-areas_2022_hourl'!D70 -> 3215 | R74: ='consumption-dk-areas_2022_hourl'!E70 -> 2112 | S74: 5327 | T74: ='consumption-prognosis_2022_hour'!F70 -> 3193 | U74: ='consumption-prognosis_2022_hour'!G70 -> 2092 | V74: 5285 | W74: 1900-03-07 | X74: 5327 | Y74: 5285 | Z74: 67 | AA74: 1.248522551 | AB74: 0.6770833333 | AC74: 67 | AD74: 0.8714719931 | AE74: 0.9190231362 | AF74: =LOOKUP(A74,'Gas Prices'!B:B,'Gas Prices'!C:C) -> 25.59961808 | AG74: ='elspot-prices_2022_hourly_eur ('!J70 -> 134.69 | AH74: ='elspot-prices_2022_hourly_eur ('!K70 -> 134.69 | AI74: 5.261406619 | AJ74: 5.261406619 | AK74: ='elspot-prices_2022_hourly_eur ('!C70 -> 175.06 | AL74: 6.838383271 | AM74: 67 | AN74: 134.69 | AO74: 175.06 | AP74: 4133 | AQ74: 67 | AR74: 134.69 | AS74: 175.06 | AT74: 25.59961808 | AU74: 67 | AV74: 5.261406619 | AW74: 5.261406619 | AX74: 6.838383271
A75: 2022-01-03T19:00:00 | B75: 19 - 20 | C75: 3484 | D75: 1373 | E75: 4857 | F75: 2252 | G75: 1419 | H75: 2022-01-03T19:00:00 | I75: 68 | J75: TRUE | K75: 4857 | L75: 3671 | M75: 1900-03-08 | N75: 4857 | O75: 3671 | P75: 1 | Q75: ='consumption-dk-areas_2022_hourl'!D71 -> 3021 | R75: ='consumption-dk-areas_2022_hourl'!E71 -> 1951 | S75: 4972 | T75: ='consumption-prognosis_2022_hour'!F71 -> 3063 | U75: ='consumption-prognosis_2022_hour'!G71 -> 1965 | V75: 5028 | W75: 1900-03-08 | X75: 4972 | Y75: 5028 | Z75: 68 | AA75: 1.15326051 | AB75: 0.7037416709 | AC75: 68 | AD75: 0.7564046895 | AE75: 0.8823907455 | AF75: =LOOKUP(A75,'Gas Prices'!B:B,'Gas Prices'!C:C) -> 25.59961808 | AG75: ='elspot-prices_2022_hourly_eur ('!J71 -> 114.82 | AH75: ='elspot-prices_2022_hourly_eur ('!K71 -> 114.82 | AI75: 4.485223164 | AJ75: 4.485223164 | AK75: ='elspot-prices_2022_hourly_eur ('!C71 -> 180 | AL75: 7.0313549 | AM75: 68 | AN75: 114.82 | AO75: 180 | AP75: 3671 | AQ75: 68 | AR75: 114.82 | AS75: 180 | AT75: 25.59961808 | AU75: 68 | AV75: 4.485223164 | AW75: 4.485223164 | AX75: 7.0313549
A76: 2022-01-03T20:00:00 | B76: 20 - 21 | C76: 2954 | D76: 1385 | E76: 4339 | F76: 1902 | G76: 1399 | H76: 2022-01-03T20:00:00 | I76: 69 | J76: TRUE | K76: 4339 | L76: 3301 | M76: 1900-03-09 | N76: 4339 | O76: 3301 | P76: 1 | Q76: ='consumption-dk-areas_2022_hourl'!D72 -> 2780 | R76: ='consumption-dk-areas_2022_hourl'!E72 -> 1806 | S76: 4586 | T76: ='consumption-prognosis_2022_hour'!F72 -> 2877 | U76: ='consumption-prognosis_2022_hour'!G72 -> 1832 | V76: 4709 | W76: 1900-03-09 | X76: 4586 | Y76: 4709 | Z76: 69 | AA76: 1.062589928 | AB76: 0.7668881506 | AC76: 69 | AD76: 0.641337386 | AE76: 0.8901028278 | AF76: =LOOKUP(A76,'Gas Prices'!B:B,'Gas Prices'!C:C) -> 25.59961808 | AG76: ='elspot-prices_2022_hourly_eur ('!J72 -> 117.71 | AH76: ='elspot-prices_2022_hourly_eur ('!K72 -> 92.91 | AI76: 4.598115474 | AJ76: 3.629351021 | AK76: ='elspot-prices_2022_hourly_eur ('!C72 -> 146.43 | AL76: 5.720007211 | AM76: 69 | AN76: 117.71 | AO76: 146.43 | AP76: 3301 | AQ76: 69 | AR76: 117.71 | AS76: 146.43 | AT76: 25.59961808 | AU76: 69 | AV76: 4.598115474 | AW76: 3.629351021 | AX76: 5.720007211
A77: 2022-01-03T21:00:00 | B77: 21 - 22 | C77: 2235 | D77: 1398 | E77: 3633 | F77: 1642 | G77: 1350 | H77: 2022-01-03T21:00:00 | I77: 70 | J77: TRUE | K77: 3633 | L77: 2992 | M77: 1900-03-10 | N77: 3633 | O77: 2992 | P77: 1 | Q77: ='consumption-dk-areas_2022_hourl'!D73 -> 2641 | R77: ='consumption-dk-areas_2022_hourl'!E73 -> 1676 | S77: 4317 | T77: ='consumption-prognosis_2022_hour'!F73 -> 2735 | U77: ='consumption-prognosis_2022_hour'!G73 -> 1714 | V77: 4449 | W77: 1900-03-10 | X77: 4317 | Y77: 4449 | Z77: 70 | AA77: 0.8462703521 | AB77: 0.8341288783 | AC77: 70 | AD77: 0.4852366479 | AE77: 0.8984575835 | AF77: =LOOKUP(A77,'Gas Prices'!B:B,'Gas Prices'!C:C) -> 25.59961808 | AG77: ='elspot-prices_2022_hourly_eur ('!J73 -> 95.95 | AH77: ='elspot-prices_2022_hourly_eur ('!K73 -> 72.39 | AI77: 3.748102792 | AJ77: 2.827776562 | AK77: ='elspot-prices_2022_hourly_eur ('!C73 -> 105.71 | AL77: 4.12935848 | AM77: 70 | AN77: 95.95 | AO77: 105.71 | AP77: 2992 | AQ77: 70 | AR77: 95.95 | AS77: 105.71 | AT77: 25.59961808 | AU77: 70 | AV77: 3.748102792 | AW77: 2.827776562 | AX77: 4.12935848
A78: 2022-01-03T22:00:00 | B78: 22 - 23 | C78: 1826 | D78: 1412 | E78: 3238 | F78: 1509 | G78: 1268 | H78: 2022-01-03T22:00:00 | I78: 71 | J78: TRUE | K78: 3238 | L78: 2777 | M78: 1900-03-11 | N78: 3238 | O78: 2777 | P78: 1 | Q78: ='consumption-dk-areas_2022_hourl'!D74 -> 2488 | R78: ='consumption-dk-areas_2022_hourl'!E74 -> 1552 | S78: 4040 | T78: ='consumption-prognosis_2022_hour'!F74 -> 2618 | U78: ='consumption-prognosis_2022_hour'!G74 -> 1606 | V78: 4224 | W78: 1900-03-11 | X78: 4040 | Y78: 4224 | Z78: 71 | AA78: 0.7339228296 | AB78: 0.9097938144 | AC78: 71 | AD78: 0.3964394268 | AE78: 0.9074550129 | AF78: =LOOKUP(A78,'Gas Prices'!B:B,'Gas Prices'!C:C) -> 25.59961808 | AG78: ='elspot-prices_2022_hourly_eur ('!J74 -> 105.68 | AH78: ='elspot-prices_2022_hourly_eur ('!K74 -> 39.45 | AI78: 4.128186588 | AJ78: 1.541038616 | AK78: ='elspot-prices_2022_hourly_eur ('!C74 -> 114.11 | AL78: 4.457488376 | AM78: 71 | AN78: 105.68 | AO78: 114.11 | AP78: 2777 | AQ78: 71 | AR78: 105.68 | AS78: 114.11 | AT78: 25.59961808 | AU78: 71 | AV78: 4.128186588 | AW78: 1.541038616 | AX78: 4.457488376
A79: 2022-01-03T23:00:00 | B79: 23 - 00 | C79: 1576 | D79: 1427 | E79: 3003 | F79: 1435 | G79: 1151 | H79: 2022-01-03T23:00:00 | I79: 72 | J79: TRUE | K79: 3003 | L79: 2586 | M79: 1900-03-12 | N79: 3003 | O79: 2586 | P79: 1 | Q79: ='consumption-dk-areas_2022_hourl'!D75 -> 2321 | R79: ='consumption-dk-areas_2022_hourl'!E75 -> 1438 | S79: 3759 | T79: ='consumption-prognosis_2022_hour'!F75 -> 2462 | U79: ='consumption-prognosis_2022_hour'!G75 -> 1506 | V79: 3968 | W79: 1900-03-12 | X79: 3759 | Y79: 3968 | Z79: 72 | AA79: 0.6790176648 | AB79: 0.9923504868 | AC79: 72 | AD79: 0.3421623969 | AE79: 0.9170951157 | AF79: =LOOKUP(A79,'Gas Prices'!B:B,'Gas Prices'!C:C) -> 25.59961808 | AG79: ='elspot-prices_2022_hourly_eur ('!J75 -> 95.26 | AH79: ='elspot-prices_2022_hourly_eur ('!K75 -> 34.4 | AI79: 3.721149265 | AJ79: 1.343770047 | AK79: ='elspot-prices_2022_hourly_eur ('!C75 -> 100.36 | AL79: 3.920370987 | AM79: 72 | AN79: 95.26 | AO79: 100.36 | AP79: 2586 | AQ79: 72 | AR79: 95.26 | AS79: 100.36 | AT79: 25.59961808 | AU79: 72 | AV79: 3.721149265 | AW79: 1.343770047 | AX79: 3.920370987
A80: 2022-01-04 | B80: 00 - 01 | C80: 1329 | D80: 1351 | E80: 2680 | F80: 1138 | G80: 1291 | H80: 2022-01-04 | I80: 73 | J80: TRUE | K80: 2680 | L80: 2429 | M80: 1900-03-13 | N80: 2680 | O80: 2429 | P80: 1 | Q80: ='consumption-dk-areas_2022_hourl'!D76 -> 2223 | R80: ='consumption-dk-areas_2022_hourl'!E76 -> 1354 | S80: 3577 | T80: ='consumption-prognosis_2022_hour'!F76 -> 2182 | U80: ='consumption-prognosis_2022_hour'!G76 -> 1360 | V80: 3542 | W80: 1900-03-13 | X80: 3577 | Y80: 3542 | Z80: 73 | AA80: 0.5978407557 | AB80: 0.9977843427 | AC80: 73 | AD80: 0.2885366913 | AE80: 0.868251928 | AF80: =LOOKUP(A80,'Gas Prices'!B:B,'Gas Prices'!C:C) -> 25.59961808 | AG80: ='elspot-prices_2022_hourly_eur ('!J76 -> 103.7 | AH80: ='elspot-prices_2022_hourly_eur ('!K76 -> 39.99 | AI80: 4.050841684 | AJ80: 1.56213268 | AK80: ='elspot-prices_2022_hourly_eur ('!C76 -> 125.47 | AL80: 4.901244996 | AM80: 73 | AN80: 103.7 | AO80: 125.47 | AP80: 2429 | AQ80: 73 | AR80: 103.7 | AS80: 125.47 | AT80: 25.59961808 | AU80: 73 | AV80: 4.050841684 | AW80: 1.56213268 | AX80: 4.901244996
A81: 2022-01-04T01:00:00 | B81: 01 - 02 | C81: 1058 | D81: 1277 | E81: 2335 | F81: 1119 | G81: 1228 | H81: 2022-01-04T01:00:00 | I81: 74 | J81: TRUE | K81: 2335 | L81: 2347 | M81: 1900-03-14 | N81: 2335 | O81: 2347 | P81: 1 | Q81: ='consumption-dk-areas_2022_hourl'!D77 -> 2191 | R81: ='consumption-dk-areas_2022_hourl'!E77 -> 1298 | S81: 3489 | T81: ='consumption-prognosis_2022_hour'!F77 -> 2159 | U81: ='consumption-prognosis_2022_hour'!G77 -> 1290 | V81: 3449 | W81: 1900-03-14 | X81: 3489 | Y81: 3449 | Z81: 74 | AA81: 0.4828845276 | AB81: 0.9838212635 | AC81: 74 | AD81: 0.2297003908 | AE81: 0.8206940874 | AF81: =LOOKUP(A81,'Gas Prices'!B:B,'Gas Prices'!C:C) -> 28.24347549 | AG81: ='elspot-prices_2022_hourly_eur ('!J77 -> 108.27 | AH81: ='elspot-prices_2022_hourly_eur ('!K77 -> 37.14 | AI81: 3.83345173 | AJ81: 1.314993971 | AK81: ='elspot-prices_2022_hourly_eur ('!C77 -> 115.55 | AL81: 4.091210376 | AM81: 74 | AN81: 108.27 | AO81: 115.55 | AP81: 2347 | AQ81: 74 | AR81: 108.27 | AS81: 115.55 | AT81: 28.24347549 | AU81: 74 | AV81: 3.83345173 | AW81: 1.314993971 | AX81: 4.091210376
A82: 2022-01-04T02:00:00 | B82: 02 - 03 | C82: 899 | D82: 1177 | E82: 2076 | F82: 1178 | G82: 1133 | H82: 2022-01-04T02:00:00 | I82: 75 | J82: TRUE | K82: 2076 | L82: 2311 | M82: 1900-03-15 | N82: 2076 | O82: 2311 | P82: 1 | Q82: ='consumption-dk-areas_2022_hourl'!D78 -> 2154 | R82: ='consumption-dk-areas_2022_hourl'!E78 -> 1274 | S82: 3428 | T82: ='consumption-prognosis_2022_hour'!F78 -> 2157 | U82: ='consumption-prognosis_2022_hour'!G78 -> 1268 | V82: 3425 | W82: 1900-03-15 | X82: 3428 | Y82: 3425 | Z82: 75 | AA82: 0.4173630455 | AB82: 0.9238618524 | AC82: 75 | AD82: 0.1951801997 | AE82: 0.7564267352 | AF82: =LOOKUP(A82,'Gas Prices'!B:B,'Gas Prices'!C:C) -> 28.24347549 | AG82: ='elspot-prices_2022_hourly_eur ('!J78 -> 105.92 | AH82: ='elspot-prices_2022_hourly_eur ('!K78 -> 36.66 | AI82: 3.750246673 | AJ82: 1.297998896 | AK82: ='elspot-prices_2022_hourly_eur ('!C78 -> 113.29 | AL82: 4.011191896 | AM82: 75 | AN82: 105.92 | AO82: 113.29 | AP82: 2311 | AQ82: 75 | AR82: 105.92 | AS82: 113.29 | AT82: 28.24347549 | AU82: 75 | AV82: 3.750246673 | AW82: 1.297998896 | AX82: 4.011191896
A83: 2022-01-04T03:00:00 | B83: 03 - 04 | C83: 969 | D83: 1072 | E83: 2041 | F83: 1294 | G83: 1001 | H83: 2022-01-04T03:00:00 | I83: 76 | J83: TRUE | K83: 2041 | L83: 2295 | M83: 1900-03-16 | N83: 2041 | O83: 2295 | P83: 1 | Q83: ='consumption-dk-areas_2022_hourl'!D79 -> 2170 | R83: ='consumption-dk-areas_2022_hourl'!E79 -> 1285 | S83: 3455 | T83: ='consumption-prognosis_2022_hour'!F79 -> 2174 | U83: ='consumption-prognosis_2022_hour'!G79 -> 1289 | V83: 3463 | W83: 1900-03-16 | X83: 3455 | Y83: 3463 | Z83: 76 | AA83: 0.4465437788 | AB83: 0.8342412451 | AC83: 76 | AD83: 0.2103777681 | AE83: 0.6889460154 | AF83: =LOOKUP(A83,'Gas Prices'!B:B,'Gas Prices'!C:C) -> 28.24347549 | AG83: ='elspot-prices_2022_hourly_eur ('!J79 -> 103.41 | AH83: ='elspot-prices_2022_hourly_eur ('!K79 -> 38.64 | AI83: 3.66137659 | AJ83: 1.368103582 | AK83: ='elspot-prices_2022_hourly_eur ('!C79 -> 105.81 | AL83: 3.746351968 | AM83: 76 | AN83: 103.41 | AO83: 105.81 | AP83: 2295 | AQ83: 76 | AR83: 103.41 | AS83: 105.81 | AT83: 28.24347549 | AU83: 76 | AV83: 3.66137659 | AW83: 1.368103582 | AX83: 3.746351968
A84: 2022-01-04T04:00:00 | B84: 04 - 05 | C84: 1054 | D84: 864 | E84: 1918 | F84: 1426 | G84: 872 | H84: 2022-01-04T04:00:00 | I84: 77 | J84: TRUE | K84: 1918 | L84: 2298 | M84: 1900-03-17 | N84: 1918 | O84: 2298 | P84: 1 | Q84: ='consumption-dk-areas_2022_hourl'!D80 -> 2220 | R84: ='consumption-dk-areas_2022_hourl'!E80 -> 1308 | S84: 3528 | T84: ='consumption-prognosis_2022_hour'!F80 -> 2238 | U84: ='consumption-prognosis_2022_hour'!G80 -> 1312 | V84: 3550 | W84: 1900-03-17 | X84: 3528 | Y84: 3550 | Z84: 77 | AA84: 0.4747747748 | AB84: 0.6605504587 | AC84: 77 | AD84: 0.2288319583 | AE84: 0.5552699229 | AF84: =LOOKUP(A84,'Gas Prices'!B:B,'Gas Prices'!C:C) -> 28.24347549 | AG84: ='elspot-prices_2022_hourly_eur ('!J80 -> 102.71 | AH84: ='elspot-prices_2022_hourly_eur ('!K80 -> 41.02 | AI84: 3.636592105 | AJ84: 1.452370832 | AK84: ='elspot-prices_2022_hourly_eur ('!C80 -> 105 | AL84: 3.717672778 | AM84: 77 | AN84: 102.71 | AO84: 105 | AP84: 2298 | AQ84: 77 | AR84: 102.71 | AS84: 105 | AT84: 28.24347549 | AU84: 77 | AV84: 3.636592105 | AW84: 1.452370832 | AX84: 3.717672778
A85: 2022-01-04T05:00:00 | B85: 05 - 06 | C85: 1066 | D85: 521 | E85: 1587 | F85: 1607 | G85: 675 | H85: 2022-01-04T05:00:00 | I85: 78 | J85: TRUE | K85: 1587 | L85: 2282 | M85: 1900-03-18 | N85: 1587 | O85: 2282 | P85: 1 | Q85: ='consumption-dk-areas_2022_hourl'!D81 -> 2318 | R85: ='consumption-dk-areas_2022_hourl'!E81 -> 1398 | S85: 3716 | T85: ='consumption-prognosis_2022_hour'!F81 -> 2363 | U85: ='consumption-prognosis_2022_hour'!G81 -> 1399 | V85: 3762 | W85: 1900-03-18 | X85: 3716 | Y85: 3762 | Z85: 78 | AA85: 0.4598792062 | AB85: 0.3726752504 | AC85: 78 | AD85: 0.2314372558 | AE85: 0.3348329049 | AF85: =LOOKUP(A85,'Gas Prices'!B:B,'Gas Prices'!C:C) -> 28.24347549 | AG85: ='elspot-prices_2022_hourly_eur ('!J81 -> 114.23 | AH85: ='elspot-prices_2022_hourly_eur ('!K81 -> 93.97 | AI85: 4.044473918 | AJ85: 3.327140104 | AK85: ='elspot-prices_2022_hourly_eur ('!C81 -> 115.11 | AL85: 4.075631557 | AM85: 78 | AN85: 114.23 | AO85: 115.11 | AP85: 2282 | AQ85: 78 | AR85: 114.23 | AS85: 115.11 | AT85: 28.24347549 | AU85: 78 | AV85: 4.044473918 | AW85: 3.327140104 | AX85: 4.075631557
A86: 2022-01-04T06:00:00 | B86: 06 - 07 | C86: 1216 | D86: 366 | E86: 1582 | F86: 1833 | G86: 486 | H86: 2022-01-04T06:00:00 | I86: 79 | J86: TRUE | K86: 1582 | L86: 2319 | M86: 1900-03-19 | N86: 1582 | O86: 2319 | P86: 1 | Q86: ='consumption-dk-areas_2022_hourl'!D82 -> 2659 | R86: ='consumption-dk-areas_2022_hourl'!E82 -> 1597 | S86: 4256 | T86: ='consumption-prognosis_2022_hour'!F82 -> 2643 | U86: ='consumption-prognosis_2022_hour'!G82 -> 1578 | V86: 4221 | W86: 1900-03-19 | X86: 4256 | Y86: 4221 | Z86: 79 | AA86: 0.45731478 | AB86: 0.229179712 | AC86: 79 | AD86: 0.2640034737 | AE86: 0.235218509 | AF86: =LOOKUP(A86,'Gas Prices'!B:B,'Gas Prices'!C:C) -> 28.24347549 | AG86: ='elspot-prices_2022_hourly_eur ('!J82 -> 130.17 | AH86: ='elspot-prices_2022_hourly_eur ('!K82 -> 130.17 | AI86: 4.608852053 | AJ86: 4.608852053 | AK86: ='elspot-prices_2022_hourly_eur ('!C82 -> 156.91 | AL86: 5.555619387 | AM86: 79 | AN86: 130.17 | AO86: 156.91 | AP86: 2319 | AQ86: 79 | AR86: 130.17 | AS86: 156.91 | AT86: 28.24347549 | AU86: 79 | AV86: 4.608852053 | AW86: 4.608852053 | AX86: 5.555619387
A87: 2022-01-04T07:00:00 | B87: 07 - 08 | C87: 1400 | D87: 440 | E87: 1840 | F87: 2110 | G87: 356 | H87: 2022-01-04T07:00:00 | I87: 80 | J87: TRUE | K87: 1840 | L87: 2466 | M87: 1900-03-20 | N87: 1840 | O87: 2466 | P87: 1 | Q87: ='consumption-dk-areas_2022_hourl'!D83 -> 3044 | R87: ='consumption-dk-areas_2022_hourl'!E83 -> 1834 | S87: 4878 | T87: ='consumption-prognosis_2022_hour'!F83 -> 3032 | U87: ='consumption-prognosis_2022_hour'!G83 -> 1794 | V87: 4826 | W87: 1900-03-20 | X87: 4878 | Y87: 4826 | Z87: 80 | AA87: 0.4599211564 | AB87: 0.239912759 | AC87: 80 | AD87: 0.3039513678 | AE87: 0.2827763496 | AF87: =LOOKUP(A87,'Gas Prices'!B:B,'Gas Prices'!C:C) -> 28.24347549 | AG87: ='elspot-prices_2022_hourly_eur ('!J83 -> 182.64 | AH87: ='elspot-prices_2022_hourly_eur ('!K83 -> 182.64 | AI87: 6.466626249 | AJ87: 6.466626249 | AK87: ='elspot-prices_2022_hourly_eur ('!C83 -> 182.64 | AL87: 6.466626249 | AM87: 80 | AN87: 182.64 | AO87: 182.64 | AP87: 2466 | AQ87: 80 | AR87: 182.64 | AS87: 182.64 | AT87: 28.24347549 | AU87: 80 | AV87: 6.466626249 | AW87: 6.466626249 | AX87: 6.466626249
A88: 2022-01-04T08:00:00 | B88: 08 - 09 | C88: 1390 | D88: 429 | E88: 1819 | F88: 2367 | G88: 201 | H88: 2022-01-04T08:00:00 | I88: 81 | J88: TRUE | K88: 1819 | L88: 2568 | M88: 1900-03-21 | N88: 1819 | O88: 2568 | P88: 1 | Q88: ='consumption-dk-areas_2022_hourl'!D84 -> 3226 | R88: ='consumption-dk-areas_2022_hourl'!E84 -> 1979 | S88: 5205 | T88: ='consumption-prognosis_2022_hour'!F84 -> 3240 | U88: ='consumption-prognosis_2022_hour'!G84 -> 1952 | V88: 5192 | W88: 1900-03-21 | X88: 5205 | Y88: 5192 | Z88: 81 | AA88: 0.4308741476 | AB88: 0.2167761496 | AC88: 81 | AD88: 0.3017802866 | AE88: 0.2757069409 | AF88: =LOOKUP(A88,'Gas Prices'!B:B,'Gas Prices'!C:C) -> 28.24347549 | AG88: ='elspot-prices_2022_hourly_eur ('!J84 -> 174.61 | AH88: ='elspot-prices_2022_hourly_eur ('!K84 -> 174.61 | AI88: 6.182312798 | AJ88: 6.182312798 | AK88: ='elspot-prices_2022_hourly_eur ('!C84 -> 178.91 | AL88: 6.33456035 | AM88: 81 | AN88: 174.61 | AO88: 178.91 | AP88: 2568 | AQ88: 81 | AR88: 174.61 | AS88: 178.91 | AT88: 28.24347549 | AU88: 81 | AV88: 6.182312798 | AW88: 6.182312798 | AX88: 6.33456035
A89: 2022-01-04T09:00:00 | B89: 09 - 10 | C89: 1489 | D89: 455 | E89: 1944 | F89: 2428 | G89: 135 | H89: 2022-01-04T09:00:00 | I89: 82 | J89: TRUE | K89: 1944 | L89: 2563 | M89: 1900-03-22 | N89: 1944 | O89: 2563 | P89: 1 | Q89: ='consumption-dk-areas_2022_hourl'!D85 -> 3227 | R89: ='consumption-dk-areas_2022_hourl'!E85 -> 2011 | S89: 5238 | T89: ='consumption-prognosis_2022_hour'!F85 -> 3256 | U89: ='consumption-prognosis_2022_hour'!G85 -> 2005 | V89: 5261 | W89: 1900-03-22 | X89: 5238 | Y89: 5261 | Z89: 82 | AA89: 0.4614192749 | AB89: 0.2262555942 | AC89: 82 | AD89: 0.3232739904 | AE89: 0.2924164524 | AF89: =LOOKUP(A89,'Gas Prices'!B:B,'Gas Prices'!C:C) -> 28.24347549 | AG89: ='elspot-prices_2022_hourly_eur ('!J85 -> 171.63 | AH89: ='elspot-prices_2022_hourly_eur ('!K85 -> 185.44 | AI89: 6.076801704 | AJ89: 6.56576419 | AK89: ='elspot-prices_2022_hourly_eur ('!C85 -> 190 | AL89: 6.727217408 | AM89: 82 | AN89: 171.63 | AO89: 190 | AP89: 2563 | AQ89: 82 | AR89: 171.63 | AS89: 190 | AT89: 28.24347549 | AU89: 82 | AV89: 6.076801704 | AW89: 6.56576419 | AX89: 6.727217408
A90: 2022-01-04T10:00:00 | B90: 10 - 11 | C90: 1704 | D90: 324 | E90: 2028 | F90: 2424 | G90: 147 | H90: 2022-01-04T10:00:00 | I90: 83 | J90: TRUE | K90: 2028 | L90: 2571 | M90: 1900-03-23 | N90: 2028 | O90: 2571 | P90: 1 | Q90: ='consumption-dk-areas_2022_hourl'!D86 -> 3288 | R90: ='consumption-dk-areas_2022_hourl'!E86 -> 2026 | S90: 5314 | T90: ='consumption-prognosis_2022_hour'!F86 -> 3259 | U90: ='consumption-prognosis_2022_hour'!G86 -> 2031 | V90: 5290 | W90: 1900-03-23 | X90: 5314 | Y90: 5290 | Z90: 83 | AA90: 0.5182481752 | AB90: 0.1599210267 | AC90: 83 | AD90: 0.3699522362 | AE90: 0.2082262211 | AF90: =LOOKUP(A90,'Gas Prices'!B:B,'Gas Prices'!C:C) -> 28.24347549 | AG90: ='elspot-prices_2022_hourly_eur ('!J86 -> 172.29 | AH90: ='elspot-prices_2022_hourly_eur ('!K86 -> 185.32 | AI90: 6.100169933 | AJ90: 6.561515421 | AK90: ='elspot-prices_2022_hourly_eur ('!C86 -> 189.88 | AL90: 6.722968639 | AM90: 83 | AN90: 172.29 | AO90: 189.88 | AP90: 2571 | AQ90: 83 | AR90: 172.29 | AS90: 189.88 | AT90: 28.24347549 | AU90: 83 | AV90: 6.100169933 | AW90: 6.561515421 | AX90: 6.722968639
A91: 2022-01-04T11:00:00 | B91: 11 - 12 | C91: 1874 | D91: 400 | E91: 2274 | F91: 2520 | G91: 240 | H91: 2022-01-04T11:00:00 | I91: 84 | J91: TRUE | K91: 2274 | L91: 2760 | M91: 1900-03-24 | N91: 2274 | O91: 2760 | P91: 1 | Q91: ='consumption-dk-areas_2022_hourl'!D87 -> 3285 | R91: ='consumption-dk-areas_2022_hourl'!E87 -> 2048 | S91: 5333 | T91: ='consumption-prognosis_2022_hour'!F87 -> 3228 | U91: ='consumption-prognosis_2022_hour'!G87 -> 2033 | V91: 5261 | W91: 1900-03-24 | X91: 5333 | Y91: 5261 | Z91: 84 | AA91: 0.5704718417 | AB91: 0.1953125 | AC91: 84 | AD91: 0.4068606166 | AE91: 0.2570694087 | AF91: =LOOKUP(A91,'Gas Prices'!B:B,'Gas Prices'!C:C) -> 28.24347549 | AG91: ='elspot-prices_2022_hourly_eur ('!J87 -> 164.62 | AH91: ='elspot-prices_2022_hourly_eur ('!K87 -> 178.04 | AI91: 5.828602788 | AJ91: 6.303756775 | AK91: ='elspot-prices_2022_hourly_eur ('!C87 -> 182.42 | AL91: 6.45883684 | AM91: 84 | AN91: 164.62 | AO91: 182.42 | AP91: 2760 | AQ91: 84 | AR91: 164.62 | AS91: 182.42 | AT91: 28.24347549 | AU91: 84 | AV91: 5.828602788 | AW91: 6.303756775 | AX91: 6.45883684
A92: 2022-01-04T12:00:00 | B92: 12 - 13 | C92: 1905 | D92: 630 | E92: 2535 | F92: 2598 | G92: 287 | H92: 2022-01-04T12:00:00 | I92: 85 | J92: TRUE | K92: 2535 | L92: 2885 | M92: 1900-03-25 | N92: 2535 | O92: 2885 | P92: 1 | Q92: ='consumption-dk-areas_2022_hourl'!D88 -> 3207 | R92: ='consumption-dk-areas_2022_hourl'!E88 -> 2054 | S92: 5261 | T92: ='consumption-prognosis_2022_hour'!F88 -> 3216 | U92: ='consumption-prognosis_2022_hour'!G88 -> 2042 | V92: 5258 | W92: 1900-03-25 | X92: 5261 | Y92: 5258 | Z92: 85 | AA92: 0.5940130964 | AB92: 0.3067185979 | AC92: 85 | AD92: 0.4135909683 | AE92: 0.4048843188 | AF92: =LOOKUP(A92,'Gas Prices'!B:B,'Gas Prices'!C:C) -> 28.24347549 | AG92: ='elspot-prices_2022_hourly_eur ('!J88 -> 159.98 | AH92: ='elspot-prices_2022_hourly_eur ('!K88 -> 178.08 | AI92: 5.664317058 | AJ92: 6.305173032 | AK92: ='elspot-prices_2022_hourly_eur ('!C88 -> 182.46 | AL92: 6.460253096 | AM92: 85 | AN92: 159.98 | AO92: 182.46 | AP92: 2885 | AQ92: 85 | AR92: 159.98 | AS92: 182.46 | AT92: 28.24347549 | AU92: 85 | AV92: 5.664317058 | AW92: 6.305173032 | AX92: 6.460253096
A93: 2022-01-04T13:00:00 | B93: 13 - 14 | C93: 2019 | D93: 418 | E93: 2437 | F93: 2533 | G93: 299 | H93: 2022-01-04T13:00:00 | I93: 86 | J93: TRUE | K93: 2437 | L93: 2832 | M93: 1900-03-26 | N93: 2437 | O93: 2832 | P93: 1 | Q93: ='consumption-dk-areas_2022_hourl'!D89 -> 3188 | R93: ='consumption-dk-areas_2022_hourl'!E89 -> 2039 | S93: 5227 | T93: ='consumption-prognosis_2022_hour'!F89 -> 3200 | U93: ='consumption-prognosis_2022_hour'!G89 -> 2030 | V93: 5230 | W93: 1900-03-26 | X93: 5227 | Y93: 5230 | Z93: 86 | AA93: 0.6333124216 | AB93: 0.2050024522 | AC93: 86 | AD93: 0.438341294 | AE93: 0.2686375321 | AF93: =LOOKUP(A93,'Gas Prices'!B:B,'Gas Prices'!C:C) -> 28.24347549 | AG93: ='elspot-prices_2022_hourly_eur ('!J89 -> 155.69 | AH93: ='elspot-prices_2022_hourly_eur ('!K89 -> 175.28 | AI93: 5.51242357 | AJ93: 6.206035091 | AK93: ='elspot-prices_2022_hourly_eur ('!C89 -> 179.59 | AL93: 6.358636707 | AM93: 86 | AN93: 155.69 | AO93: 179.59 | AP93: 2832 | AQ93: 86 | AR93: 155.69 | AS93: 179.59 | AT93: 28.24347549 | AU93: 86 | AV93: 5.51242357 | AW93: 6.206035091 | AX93: 6.358636707
A94: 2022-01-04T14:00:00 | B94: 14 - 15 | C94: 2297 | D94: 433 | E94: 2730 | F94: 2551 | G94: 303 | H94: 2022-01-04T14:00:00 | I94: 87 | J94: TRUE | K94: 2730 | L94: 2854 | M94: 1900-03-27 | N94: 2730 | O94: 2854 | P94: 1 | Q94: ='consumption-dk-areas_2022_hourl'!D90 -> 3146 | R94: ='consumption-dk-areas_2022_hourl'!E90 -> 2042 | S94: 5188 | T94: ='consumption-prognosis_2022_hour'!F90 -> 3158 | U94: ='consumption-prognosis_2022_hour'!G90 -> 2000 | V94: 5158 | W94: 1900-03-27 | X94: 5188 | Y94: 5158 | Z94: 87 | AA94: 0.7301335029 | AB94: 0.2120470127 | AC94: 87 | AD94: 0.4986973513 | AE94: 0.278277635 | AF94: =LOOKUP(A94,'Gas Prices'!B:B,'Gas Prices'!C:C) -> 28.24347549 | AG94: ='elspot-prices_2022_hourly_eur ('!J90 -> 155.16 | AH94: ='elspot-prices_2022_hourly_eur ('!K90 -> 174.7 | AI94: 5.493658174 | AJ94: 6.185499375 | AK94: ='elspot-prices_2022_hourly_eur ('!C90 -> 179 | AL94: 6.337746926 | AM94: 87 | AN94: 155.16 | AO94: 179 | AP94: 2854 | AQ94: 87 | AR94: 155.16 | AS94: 179 | AT94: 28.24347549 | AU94: 87 | AV94: 5.493658174 | AW94: 6.185499375 | AX94: 6.337746926
A95: 2022-01-04T15:00:00 | B95: 15 - 16 | C95: 2495 | D95: 479 | E95: 2974 | F95: 2559 | G95: 322 | H95: 2022-01-04T15:00:00 | I95: 88 | J95: TRUE | K95: 2974 | L95: 2881 | M95: 1900-03-28 | N95: 2974 | O95: 2881 | P95: 1 | Q95: ='consumption-dk-areas_2022_hourl'!D91 -> 3083 | R95: ='consumption-dk-areas_2022_hourl'!E91 -> 2009 | S95: 5092 | T95: ='consumption-prognosis_2022_hour'!F91 -> 3104 | U95: ='consumption-prognosis_2022_hour'!G91 -> 1987 | V95: 5091 | W95: 1900-03-28 | X95: 5092 | Y95: 5091 | Z95: 88 | AA95: 0.8092766786 | AB95: 0.2384270781 | AC95: 88 | AD95: 0.541684759 | AE95: 0.307840617 | AF95: =LOOKUP(A95,'Gas Prices'!B:B,'Gas Prices'!C:C) -> 28.24347549 | AG95: ='elspot-prices_2022_hourly_eur ('!J91 -> 158.45 | AH95: ='elspot-prices_2022_hourly_eur ('!K91 -> 180.93 | AI95: 5.610145254 | AJ95: 6.406081293 | AK95: ='elspot-prices_2022_hourly_eur ('!C91 -> 180.93 | AL95: 6.406081293 | AM95: 88 | AN95: 158.45 | AO95: 180.93 | AP95: 2881 | AQ95: 88 | AR95: 158.45 | AS95: 180.93 | AT95: 28.24347549 | AU95: 88 | AV95: 5.610145254 | AW95: 6.406081293 | AX95: 6.406081293
A96: 2022-01-04T16:00:00 | B96: 16 - 17 | C96: 2723 | D96: 301 | E96: 3024 | F96: 2651 | G96: 394 | H96: 2022-01-04T16:00:00 | I96: 89 | J96: TRUE | K96: 3024 | L96: 3045 | M96: 1900-03-29 | N96: 3024 | O96: 3045 | P96: 1 | Q96: ='consumption-dk-areas_2022_hourl'!D92 -> 3198 | R96: ='consumption-dk-areas_2022_hourl'!E92 -> 2101 | S96: 5299 | T96: ='consumption-prognosis_2022_hour'!F92 -> 3238 | U96: ='consumption-prognosis_2022_hour'!G92 -> 2093 | V96: 5331 | W96: 1900-03-29 | X96: 5299 | Y96: 5331 | Z96: 89 | AA96: 0.8514696685 | AB96: 0.1432651119 | AC96: 89 | AD96: 0.5911854103 | AE96: 0.1934447301 | AF96: =LOOKUP(A96,'Gas Prices'!B:B,'Gas Prices'!C:C) -> 28.24347549 | AG96: ='elspot-prices_2022_hourly_eur ('!J92 -> 161.35 | AH96: ='elspot-prices_2022_hourly_eur ('!K92 -> 166.69 | AI96: 5.712823836 | AJ96: 5.901894051 | AK96: ='elspot-prices_2022_hourly_eur ('!C92 -> 166.69 | AL96: 5.901894051 | AM96: 89 | AN96: 161.35 | AO96: 166.69 | AP96: 3045 | AQ96: 89 | AR96: 161.35 | AS96: 166.69 | AT96: 28.24347549 | AU96: 89 | AV96: 5.712823836 | AW96: 5.901894051 | AX96: 5.901894051
A97: 2022-01-04T17:00:00 | B97: 17 - 18 | C97: 2784 | D97: 430 | E97: 3214 | F97: 2771 | G97: 479 | H97: 2022-01-04T17:00:00 | I97: 90 | J97: TRUE | K97: 3214 | L97: 3250 | M97: 1900-03-30 | N97: 3214 | O97: 3250 | P97: 1 | Q97: ='consumption-dk-areas_2022_hourl'!D93 -> 3398 | R97: ='consumption-dk-areas_2022_hourl'!E93 -> 2243 | S97: 5641 | T97: ='consumption-prognosis_2022_hour'!F93 -> 3444 | U97: ='consumption-prognosis_2022_hour'!G93 -> 2224 | V97: 5668 | W97: 1900-03-30 | X97: 5641 | Y97: 5668 | Z97: 90 | AA97: 0.8193054738 | AB97: 0.1917075346 | AC97: 90 | AD97: 0.6044290056 | AE97: 0.2763496144 | AF97: =LOOKUP(A97,'Gas Prices'!B:B,'Gas Prices'!C:C) -> 28.24347549 | AG97: ='elspot-prices_2022_hourly_eur ('!J93 -> 167.76 | AH97: ='elspot-prices_2022_hourly_eur ('!K93 -> 185.32 | AI97: 5.939778907 | AJ97: 6.561515421 | AK97: ='elspot-prices_2022_hourly_eur ('!C93 -> 189.88 | AL97: 6.722968639 | AM97: 90 | AN97: 167.76 | AO97: 189.88 | AP97: 3250 | AQ97: 90 | AR97: 167.76 | AS97: 189.88 | AT97: 28.24347549 | AU97: 90 | AV97: 5.939778907 | AW97: 6.561515421 | AX97: 6.722968639
A98: 2022-01-04T18:00:00 | B98: 18 - 19 | C98: 2738 | D98: 766 | E98: 3504 | F98: 2844 | G98: 644 | H98: 2022-01-04T18:00:00 | I98: 91 | J98: TRUE | K98: 3504 | L98: 3488 | M98: 1900-03-31 | N98: 3504 | O98: 3488 | P98: 1 | Q98: ='consumption-dk-areas_2022_hourl'!D94 -> 3255 | R98: ='consumption-dk-areas_2022_hourl'!E94 -> 2175 | S98: 5430 | T98: ='consumption-prognosis_2022_hour'!F94 -> 3262 | U98: ='consumption-prognosis_2022_hour'!G94 -> 2179 | V98: 5441 | W98: 1900-03-31 | X98: 5430 | Y98: 5441 | Z98: 91 | AA98: 0.8411674347 | AB98: 0.352183908 | AC98: 91 | AD98: 0.5944420321 | AE98: 0.4922879177 | AF98: =LOOKUP(A98,'Gas Prices'!B:B,'Gas Prices'!C:C) -> 28.24347549 | AG98: ='elspot-prices_2022_hourly_eur ('!J94 -> 164.46 | AH98: ='elspot-prices_2022_hourly_eur ('!K94 -> 180.5 | AI98: 5.822937763 | AJ98: 6.390856538 | AK98: ='elspot-prices_2022_hourly_eur ('!C94 -> 184.94 | AL98: 6.548060986 | AM98: 91 | AN98: 164.46 | AO98: 184.94 | AP98: 3488 | AQ98: 91 | AR98: 164.46 | AS98: 184.94 | AT98: 28.24347549 | AU98: 91 | AV98: 5.822937763 | AW98: 6.390856538 | AX98: 6.548060986
A99: 2022-01-04T19:00:00 | B99: 19 - 20 | C99: 2927 | D99: 1173 | E99: 4100 | F99: 2845 | G99: 794 | H99: 2022-01-04T19:00:00 | I99: 92 | J99: TRUE | K99: 4100 | L99: 3639 | M99: 1900-04-01 | N99: 4100 | O99: 3639 | P99: 1 | Q99: ='consumption-dk-areas_2022_hourl'!D95 -> 3099 | R99: ='consumption-dk-areas_2022_hourl'!E95 -> 2048 | S99: 5147 | T99: ='consumption-prognosis_2022_hour'!F95 -> 3043 | U99: ='consumption-prognosis_2022_hour'!G95 -> 2025 | V99: 5068 | W99: 1900-04-01 | X99: 5147 | Y99: 5068 | Z99: 92 | AA99: 0.9444982252 | AB99: 0.5727539062 | AC99: 92 | AD99: 0.6354754668 | AE99: 0.7538560411 | AF99: =LOOKUP(A99,'Gas Prices'!B:B,'Gas Prices'!C:C) -> 28.24347549 | AG99: ='elspot-prices_2022_hourly_eur ('!J95 -> 153.88 | AH99: ='elspot-prices_2022_hourly_eur ('!K95 -> 153.88 | AI99: 5.448337972 | AJ99: 5.448337972 | AK99: ='elspot-prices_2022_hourly_eur ('!C95 -> 178.99 | AL99: 6.337392862 | AM99: 92 | AN99: 153.88 | AO99: 178.99 | AP99: 3639 | AQ99: 92 | AR99: 153.88 | AS99: 178.99 | AT99: 28.24347549 | AU99: 92 | AV99: 5.448337972 | AW99: 5.448337972 | AX99: 6.337392862
A100: 2022-01-04T20:00:00 | B100: 20 - 21 | C100: 3200 | D100: 1234 | E100: 4434 | F100: 2891 | G100: 950 | H100: 2022-01-04T20:00:00 | I100: 93 | J100: TRUE | K100: 4434 | L100: 3841 | M100: 1900-04-02 | N100: 4434 | O100: 3841 | P100: 1 | Q100: ='consumption-dk-areas_2022_hourl'!D96 -> 2931 | R100: ='consumption-dk-areas_2022_hourl'!E96 -> 1924 | S100: 4855 | T100: ='consumption-prognosis_2022_hour'!F96 -> 2936 | U100: ='consumption-prognosis_2022_hour'!G96 -> 1904 | V100: 4840 | W100: 1900-04-02 | X100: 4855 | Y100: 4840 | Z100: 93 | AA100: 1.09177755 | AB100: 0.6413721414 | AC100: 93 | AD100: 0.6947459835 | AE100: 0.793059126 | AF100: =LOOKUP(A100,'Gas Prices'!B:B,'Gas Prices'!C:C) -> 28.24347549 | AG100: ='elspot-prices_2022_hourly_eur ('!J96 -> 146.81 | AH100: ='elspot-prices_2022_hourly_eur ('!K96 -> 146.81 | AI100: 5.198014672 | AJ100: 5.198014672 | AK100: ='elspot-prices_2022_hourly_eur ('!C96 -> 156.12 | AL100: 5.527648325 | AM100: 93 | AN100: 146.81 | AO100: 156.12 | AP100: 3841 | AQ100: 93 | AR100: 146.81 | AS100: 156.12 | AT100: 28.24347549 | AU100: 93 | AV100: 5.198014672 | AW100: 5.198014672 | AX100: 5.527648325
A101: 2022-01-04T21:00:00 | B101: 21 - 22 | C101: 3419 | D101: 1256 | E101: 4675 | F101: 2832 | G101: 1063 | H101: 2022-01-04T21:00:00 | I101: 94 | J101: TRUE | K101: 4675 | L101: 3895 | M101: 1900-04-03 | N101: 4675 | O101: 3895 | P101: 1 | Q101: ='consumption-dk-areas_2022_hourl'!D97 -> 2806 | R101: ='consumption-dk-areas_2022_hourl'!E97 -> 1788 | S101: 4594 | T101: ='consumption-prognosis_2022_hour'!F97 -> 2793 | U101: ='consumption-prognosis_2022_hour'!G97 -> 1794 | V101: 4587 | W101: 1900-04-03 | X101: 4594 | Y101: 4587 | Z101: 94 | AA101: 1.218460442 | AB101: 0.7024608501 | AC101: 94 | AD101: 0.7422926617 | AE101: 0.8071979434 | AF101: =LOOKUP(A101,'Gas Prices'!B:B,'Gas Prices'!C:C) -> 28.24347549 | AG101: ='elspot-prices_2022_hourly_eur ('!J97 -> 128.75 | AH101: ='elspot-prices_2022_hourly_eur ('!K97 -> 128.75 | AI101: 4.558574954 | AJ101: 4.558574954 | AK101: ='elspot-prices_2022_hourly_eur ('!C97 -> 148.65 | AL101: 5.263162462 | AM101: 94 | AN101: 128.75 | AO101: 148.65 | AP101: 3895 | AQ101: 94 | AR101: 128.75 | AS101: 148.65 | AT101: 28.24347549 | AU101: 94 | AV101: 4.558574954 | AW101: 4.558574954 | AX101: 5.263162462
A102: 2022-01-04T22:00:00 | B102: 22 - 23 | C102: 3386 | D102: 1292 | E102: 4678 | F102: 2908 | G102: 1166 | H102: 2022-01-04T22:00:00 | I102: 95 | J102: TRUE | K102: 4678 | L102: 4074 | M102: 1900-04-04 | N102: 4678 | O102: 4074 | P102: 1 | Q102: ='consumption-dk-areas_2022_hourl'!D98 -> 2649 | R102: ='consumption-dk-areas_2022_hourl'!E98 -> 1673 | S102: 4322 | T102: ='consumption-prognosis_2022_hour'!F98 -> 2625 | U102: ='consumption-prognosis_2022_hour'!G98 -> 1667 | V102: 4292 | W102: 1900-04-04 | X102: 4322 | Y102: 4292 | Z102: 95 | AA102: 1.278218196 | AB102: 0.7722653915 | AC102: 95 | AD102: 0.7351280938 | AE102: 0.8303341902 | AF102: =LOOKUP(A102,'Gas Prices'!B:B,'Gas Prices'!C:C) -> 28.24347549 | AG102: ='elspot-prices_2022_hourly_eur ('!J98 -> 112.96 | AH102: ='elspot-prices_2022_hourly_eur ('!K98 -> 112.96 | AI102: 3.999507781 | AJ102: 3.999507781 | AK102: ='elspot-prices_2022_hourly_eur ('!C98 -> 137.92 | AL102: 4.88325171 | AM102: 95 | AN102: 112.96 | AO102: 137.92 | AP102: 4074 | AQ102: 95 | AR102: 112.96 | AS102: 137.92 | AT102: 28.24347549 | AU102: 95 | AV102: 3.999507781 | AW102: 3.999507781 | AX102: 4.88325171
A103: 2022-01-04T23:00:00 | B103: 23 - 00 | C103: 3263 | D103: 1343 | E103: 4606 | F103: 3074 | G103: 1256 | H103: 2022-01-04T23:00:00 | I103: 96 | J103: TRUE | K103: 4606 | L103: 4330 | M103: 1900-04-05 | N103: 4606 | O103: 4330 | P103: 1 | Q103: ='consumption-dk-areas_2022_hourl'!D99 -> 2489 | R103: ='consumption-dk-areas_2022_hourl'!E99 -> 1548 | S103: 4037 | T103: ='consumption-prognosis_2022_hour'!F99 -> 2450 | U103: ='consumption-prognosis_2022_hour'!G99 -> 1558 | V103: 4008 | W103: 1900-04-05 | X103: 4037 | Y103: 4008 | Z103: 96 | AA103: 1.31096826 | AB103: 0.8675710594 | AC103: 96 | AD103: 0.708423795 | AE103: 0.8631105398 | AF103: =LOOKUP(A103,'Gas Prices'!B:B,'Gas Prices'!C:C) -> 28.24347549 | AG103: ='elspot-prices_2022_hourly_eur ('!J99 -> 84.11 | AH103: ='elspot-prices_2022_hourly_eur ('!K99 -> 84.11 | AI103: 2.978032927 | AJ103: 2.978032927 | AK103: ='elspot-prices_2022_hourly_eur ('!C99 -> 105 | AL103: 3.717672778 | AM103: 96 | AN103: 84.11 | AO103: 105 | AP103: 4330 | AQ103: 96 | AR103: 84.11 | AS103: 105 | AT103: 28.24347549 | AU103: 96 | AV103: 2.978032927 | AW103: 2.978032927 | AX103: 3.717672778
A104: 2022-01-05 | B104: 00 - 01 | C104: 3359 | D104: 1338 | E104: 4697 | F104: 3257 | G104: 1274 | H104: 2022-01-05 | I104: 97 | J104: TRUE | K104: 4697 | L104: 4531 | M104: 1900-04-06 | N104: 4697 | O104: 4531 | P104: 1 | Q104: ='consumption-dk-areas_2022_hourl'!D100 -> 2409 | R104: ='consumption-dk-areas_2022_hourl'!E100 -> 1496 | S104: 3905 | T104: ='consumption-prognosis_2022_hour'!F100 -> 2356 | U104: ='consumption-prognosis_2022_hour'!G100 -> 1473 | V104: 3829 | W104: 1900-04-06 | X104: 3905 | Y104: 3829 | Z104: 97 | AA104: 1.394354504 | AB104: 0.8943850267 | AC104: 97 | AD104: 0.7292661746 | AE104: 0.8598971722 | AF104: =LOOKUP(A104,'Gas Prices'!B:B,'Gas Prices'!C:C) -> 28.24347549 | AG104: ='elspot-prices_2022_hourly_eur ('!J100 -> 93.87 | AH104: ='elspot-prices_2022_hourly_eur ('!K100 -> 93.87 | AI104: 3.323599464 | AJ104: 3.323599464 | AK104: ='elspot-prices_2022_hourly_eur ('!C100 -> 120.11 | AL104: 4.252663594 | AM104: 97 | AN104: 93.87 | AO104: 120.11 | AP104: 4531 | AQ104: 97 | AR104: 93.87 | AS104: 120.11 | AT104: 28.24347549 | AU104: 97 | AV104: 3.323599464 | AW104: 3.323599464 | AX104: 4.252663594
A105: 2022-01-05T01:00:00 | B105: 01 - 02 | C105: 3353 | D105: 1408 | E105: 4761 | F105: 3166 | G105: 1312 | H105: 2022-01-05T01:00:00 | I105: 98 | J105: TRUE | K105: 4761 | L105: 4478 | M105: 1900-04-07 | N105: 4761 | O105: 4478 | P105: 1 | Q105: ='consumption-dk-areas_2022_hourl'!D101 -> 2321 | R105: ='consumption-dk-areas_2022_hourl'!E101 -> 1459 | S105: 3780 | T105: ='consumption-prognosis_2022_hour'!F101 -> 2295 | U105: ='consumption-prognosis_2022_hour'!G101 -> 1436 | V105: 3731 | W105: 1900-04-07 | X105: 3780 | Y105: 3731 | Z105: 98 | AA105: 1.444635933 | AB105: 0.9650445511 | AC105: 98 | AD105: 0.7279635258 | AE105: 0.9048843188 | AF105: =LOOKUP(A105,'Gas Prices'!B:B,'Gas Prices'!C:C) -> 29.12858052 | AG105: ='elspot-prices_2022_hourly_eur ('!J101 -> 51.69 | AH105: ='elspot-prices_2022_hourly_eur ('!K101 -> 51.69 | AI105: 1.774545792 | AJ105: 1.774545792 | AK105: ='elspot-prices_2022_hourly_eur ('!C101 -> 105.1 | AL105: 3.608140119 | AM105: 98 | AN105: 51.69 | AO105: 105.1 | AP105: 4478 | AQ105: 98 | AR105: 51.69 | AS105: 105.1 | AT105: 29.12858052 | AU105: 98 | AV105: 1.774545792 | AW105: 1.774545792 | AX105: 3.608140119
A106: 2022-01-05T02:00:00 | B106: 02 - 03 | C106: 2929 | D106: 1359 | E106: 4288 | F106: 3101 | G106: 1369 | H106: 2022-01-05T02:00:00 | I106: 99 | J106: TRUE | K106: 4288 | L106: 4470 | M106: 1900-04-08 | N106: 4288 | O106: 4470 | P106: 1 | Q106: ='consumption-dk-areas_2022_hourl'!D102 -> 2427 | R106: ='consumption-dk-areas_2022_hourl'!E102 -> 1452 | S106: 3879 | T106: ='consumption-prognosis_2022_hour'!F102 -> 2294 | U106: ='consumption-prognosis_2022_hour'!G102 -> 1424 | V106: 3718 | W106: 1900-04-08 | X106: 3879 | Y106: 3718 | Z106: 99 | AA106: 1.20683972 | AB106: 0.9359504132 | AC106: 99 | AD106: 0.635909683 | AE106: 0.8733933162 | AF106: =LOOKUP(A106,'Gas Prices'!B:B,'Gas Prices'!C:C) -> 29.12858052 | AG106: ='elspot-prices_2022_hourly_eur ('!J102 -> 50.04 | AH106: ='elspot-prices_2022_hourly_eur ('!K102 -> 50.04 | AI106: 1.717900396 | AJ106: 1.717900396 | AK106: ='elspot-prices_2022_hourly_eur ('!C102 -> 84.5 | AL106: 2.900930924 | AM106: 99 | AN106: 50.04 | AO106: 84.5 | AP106: 4470 | AQ106: 99 | AR106: 50.04 | AS106: 84.5 | AT106: 29.12858052 | AU106: 99 | AV106: 1.717900396 | AW106: 1.717900396 | AX106: 2.900930924
A107: 2022-01-05T03:00:00 | B107: 03 - 04 | C107: 2693 | D107: 1391 | E107: 4084 | F107: 2886 | G107: 1402 | H107: 2022-01-05T03:00:00 | I107: 100 | J107: TRUE | K107: 4084 | L107: 4288 | M107: 1900-04-09 | N107: 4084 | O107: 4288 | P107: 1 | Q107: ='consumption-dk-areas_2022_hourl'!D103 -> 2415 | R107: ='consumption-dk-areas_2022_hourl'!E103 -> 1448 | S107: 3863 | T107: ='consumption-prognosis_2022_hour'!F103 -> 2406 | U107: ='consumption-prognosis_2022_hour'!G103 -> 1431 | V107: 3837 | W107: 1900-04-09 | X107: 3863 | Y107: 3837 | Z107: 100 | AA107: 1.115113872 | AB107: 0.9606353591 | AC107: 100 | AD107: 0.5846721667 | AE107: 0.8939588689 | AF107: =LOOKUP(A107,'Gas Prices'!B:B,'Gas Prices'!C:C) -> 29.12858052 | AG107: ='elspot-prices_2022_hourly_eur ('!J103 -> 49.53 | AH107: ='elspot-prices_2022_hourly_eur ('!K103 -> 49.53 | AI107: 1.700391818 | AJ107: 1.700391818 | AK107: ='elspot-prices_2022_hourly_eur ('!C103 -> 75.38 | AL107: 2.587836367 | AM107: 100 | AN107: 49.53 | AO107: 75.38 | AP107: 4288 | AQ107: 100 | AR107: 49.53 | AS107: 75.38 | AT107: 29.12858052 | AU107: 100 | AV107: 1.700391818 | AW107: 1.700391818 | AX107: 2.587836367
A108: 2022-01-05T04:00:00 | B108: 04 - 05 | C108: 2485 | D108: 1451 | E108: 3936 | F108: 2732 | G108: 1449 | H108: 2022-01-05T04:00:00 | I108: 101 | J108: TRUE | K108: 3936 | L108: 4181 | M108: 1900-04-10 | N108: 3936 | O108: 4181 | P108: 1 | Q108: ='consumption-dk-areas_2022_hourl'!D104 -> 2405 | R108: ='consumption-dk-areas_2022_hourl'!E104 -> 1466 | S108: 3871 | T108: ='consumption-prognosis_2022_hour'!F104 -> 2442 | U108: ='consumption-prognosis_2022_hour'!G104 -> 1464 | V108: 3906 | W108: 1900-04-10 | X108: 3871 | Y108: 3906 | Z108: 101 | AA108: 1.033264033 | AB108: 0.9897680764 | AC108: 101 | AD108: 0.5395136778 | AE108: 0.9325192802 | AF108: =LOOKUP(A108,'Gas Prices'!B:B,'Gas Prices'!C:C) -> 29.12858052 | AG108: ='elspot-prices_2022_hourly_eur ('!J104 -> 50.07 | AH108: ='elspot-prices_2022_hourly_eur ('!K104 -> 50.07 | AI108: 1.718930312 | AJ108: 1.718930312 | AK108: ='elspot-prices_2022_hourly_eur ('!C104 -> 79.11 | AL108: 2.715889294 | AM108: 101 | AN108: 50.07 | AO108: 79.11 | AP108: 4181 | AQ108: 101 | AR108: 50.07 | AS108: 79.11 | AT108: 29.12858052 | AU108: 101 | AV108: 1.718930312 | AW108: 1.718930312 | AX108: 2.715889294
A109: 2022-01-05T05:00:00 | B109: 05 - 06 | C109: 2383 | D109: 1487 | E109: 3870 | F109: 2635 | G109: 1450 | H109: 2022-01-05T05:00:00 | I109: 102 | J109: TRUE | K109: 3870 | L109: 4085 | M109: 1900-04-11 | N109: 3870 | O109: 4085 | P109: 1 | Q109: ='consumption-dk-areas_2022_hourl'!D105 -> 2447 | R109: ='consumption-dk-areas_2022_hourl'!E105 -> 1512 | S109: 3959 | T109: ='consumption-prognosis_2022_hour'!F105 -> 2498 | U109: ='consumption-prognosis_2022_hour'!G105 -> 1524 | V109: 4022 | W109: 1900-04-11 | X109: 3959 | Y109: 4022 | Z109: 102 | AA109: 0.9738455251 | AB109: 0.9834656085 | AC109: 102 | AD109: 0.5173686496 | AE109: 0.955655527 | AF109: =LOOKUP(A109,'Gas Prices'!B:B,'Gas Prices'!C:C) -> 29.12858052 | AG109: ='elspot-prices_2022_hourly_eur ('!J105 -> 93.39 | AH109: ='elspot-prices_2022_hourly_eur ('!K105 -> 93.39 | AI109: 3.206129455 | AJ109: 3.206129455 | AK109: ='elspot-prices_2022_hourly_eur ('!C105 -> 94.79 | AL109: 3.254192216 | AM109: 102 | AN109: 93.39 | AO109: 94.79 | AP109: 4085 | AQ109: 102 | AR109: 93.39 | AS109: 94.79 | AT109: 29.12858052 | AU109: 102 | AV109: 3.206129455 | AW109: 3.206129455 | AX109: 3.254192216
A110: 2022-01-05T06:00:00 | B110: 06 - 07 | C110: 2310 | D110: 1483 | E110: 3793 | F110: 2551 | G110: 1421 | H110: 2022-01-05T06:00:00 | I110: 103 | J110: TRUE | K110: 3793 | L110: 3972 | M110: 1900-04-12 | N110: 3793 | O110: 3972 | P110: 1 | Q110: ='consumption-dk-areas_2022_hourl'!D106 -> 2820 | R110: ='consumption-dk-areas_2022_hourl'!E106 -> 1692 | S110: 4512 | T110: ='consumption-prognosis_2022_hour'!F106 -> 2779 | U110: ='consumption-prognosis_2022_hour'!G106 -> 1713 | V110: 4492 | W110: 1900-04-12 | X110: 4512 | Y110: 4492 | Z110: 103 | AA110: 0.8191489362 | AB110: 0.8764775414 | AC110: 103 | AD110: 0.5015197568 | AE110: 0.9530848329 | AF110: =LOOKUP(A110,'Gas Prices'!B:B,'Gas Prices'!C:C) -> 29.12858052 | AG110: ='elspot-prices_2022_hourly_eur ('!J106 -> 99.16 | AH110: ='elspot-prices_2022_hourly_eur ('!K106 -> 99.16 | AI110: 3.404216691 | AJ110: 3.404216691 | AK110: ='elspot-prices_2022_hourly_eur ('!C106 -> 169.04 | AL110: 5.803235069 | AM110: 103 | AN110: 99.16 | AO110: 169.04 | AP110: 3972 | AQ110: 103 | AR110: 99.16 | AS110: 169.04 | AT110: 29.12858052 | AU110: 103 | AV110: 3.404216691 | AW110: 3.404216691 | AX110: 5.803235069
A111: 2022-01-05T07:00:00 | B111: 07 - 08 | C111: 2022 | D111: 1426 | E111: 3448 | F111: 2498 | G111: 1357 | H111: 2022-01-05T07:00:00 | I111: 104 | J111: TRUE | K111: 3448 | L111: 3855 | M111: 1900-04-13 | N111: 3448 | O111: 3855 | P111: 1 | Q111: ='consumption-dk-areas_2022_hourl'!D107 -> 3195 | R111: ='consumption-dk-areas_2022_hourl'!E107 -> 1950 | S111: 5145 | T111: ='consumption-prognosis_2022_hour'!F107 -> 3177 | U111: ='consumption-prognosis_2022_hour'!G107 -> 1932 | V111: 5109 | W111: 1900-04-13 | X111: 5145 | Y111: 5109 | Z111: 104 | AA111: 0.6328638498 | AB111: 0.7312820513 | AC111: 104 | AD111: 0.4389926183 | AE111: 0.9164524422 | AF111: =LOOKUP(A111,'Gas Prices'!B:B,'Gas Prices'!C:C) -> 29.12858052 | AG111: ='elspot-prices_2022_hourly_eur ('!J107 -> 101.15 | AH111: ='elspot-prices_2022_hourly_eur ('!K107 -> 101.15 | AI111: 3.472534473 | AJ111: 3.472534473 | AK111: ='elspot-prices_2022_hourly_eur ('!C107 -> 215.98 | AL111: 7.41471078 | AM111: 104 | AN111: 101.15 | AO111: 215.98 | AP111: 3855 | AQ111: 104 | AR111: 101.15 | AS111: 215.98 | AT111: 29.12858052 | AU111: 104 | AV111: 3.472534473 | AW111: 3.472534473 | AX111: 7.41471078
A112: 2022-01-05T08:00:00 | B112: 08 - 09 | C112: 1726 | D112: 1357 | E112: 3083 | F112: 2381 | G112: 1328 | H112: 2022-01-05T08:00:00 | I112: 105 | J112: TRUE | K112: 3083 | L112: 3709 | M112: 1900-04-14 | N112: 3083 | O112: 3709 | P112: 1 | Q112: ='consumption-dk-areas_2022_hourl'!D108 -> 3340 | R112: ='consumption-dk-areas_2022_hourl'!E108 -> 2049 | S112: 5389 | T112: ='consumption-prognosis_2022_hour'!F108 -> 3361 | U112: ='consumption-prognosis_2022_hour'!G108 -> 2041 | V112: 5402 | W112: 1900-04-14 | X112: 5389 | Y112: 5402 | Z112: 105 | AA112: 0.5167664671 | AB112: 0.6622742801 | AC112: 105 | AD112: 0.3747286149 | AE112: 0.8721079692 | AF112: =LOOKUP(A112,'Gas Prices'!B:B,'Gas Prices'!C:C) -> 29.12858052 | AG112: ='elspot-prices_2022_hourly_eur ('!J108 -> 129.56 | AH112: ='elspot-prices_2022_hourly_eur ('!K108 -> 129.56 | AI112: 4.447865213 | AJ112: 4.447865213 | AK112: ='elspot-prices_2022_hourly_eur ('!C108 -> 211.13 | AL112: 7.248207644 | AM112: 105 | AN112: 129.56 | AO112: 211.13 | AP112: 3709 | AQ112: 105 | AR112: 129.56 | AS112: 211.13 | AT112: 29.12858052 | AU112: 105 | AV112: 4.447865213 | AW112: 4.447865213 | AX112: 7.248207644
A113: 2022-01-05T09:00:00 | B113: 09 - 10 | C113: 1495 | D113: 1318 | E113: 2813 | F113: 2292 | G113: 1315 | H113: 2022-01-05T09:00:00 | I113: 106 | J113: TRUE | K113: 2813 | L113: 3607 | M113: 1900-04-15 | N113: 2813 | O113: 3607 | P113: 1 | Q113: ='consumption-dk-areas_2022_hourl'!D109 -> 3351 | R113: ='consumption-dk-areas_2022_hourl'!E109 -> 2078 | S113: 5429 | T113: ='consumption-prognosis_2022_hour'!F109 -> 3334 | U113: ='consumption-prognosis_2022_hour'!G109 -> 2065 | V113: 5399 | W113: 1900-04-15 | X113: 5429 | Y113: 5399 | Z113: 106 | AA113: 0.4461354819 | AB113: 0.6342637151 | AC113: 106 | AD113: 0.3245766392 | AE113: 0.8470437018 | AF113: =LOOKUP(A113,'Gas Prices'!B:B,'Gas Prices'!C:C) -> 29.12858052 | AG113: ='elspot-prices_2022_hourly_eur ('!J109 -> 121.09 | AH113: ='elspot-prices_2022_hourly_eur ('!K109 -> 121.09 | AI113: 4.157085509 | AJ113: 4.157085509 | AK113: ='elspot-prices_2022_hourly_eur ('!C109 -> 226.52 | AL113: 7.776554708 | AM113: 106 | AN113: 121.09 | AO113: 226.52 | AP113: 3607 | AQ113: 106 | AR113: 121.09 | AS113: 226.52 | AT113: 29.12858052 | AU113: 106 | AV113: 4.157085509 | AW113: 4.157085509 | AX113: 7.776554708
A114: 2022-01-05T10:00:00 | B114: 10 - 11 | C114: 1573 | D114: 1305 | E114: 2878 | F114: 2269 | G114: 1287 | H114: 2022-01-05T10:00:00 | I114: 107 | J114: TRUE | K114: 2878 | L114: 3556 | M114: 1900-04-16 | N114: 2878 | O114: 3556 | P114: 1 | Q114: ='consumption-dk-areas_2022_hourl'!D110 -> 3394 | R114: ='consumption-dk-areas_2022_hourl'!E110 -> 2075 | S114: 5469 | T114: ='consumption-prognosis_2022_hour'!F110 -> 3374 | U114: ='consumption-prognosis_2022_hour'!G110 -> 2088 | V114: 5462 | W114: 1900-04-16 | X114: 5469 | Y114: 5462 | Z114: 107 | AA114: 0.4634649381 | AB114: 0.6289156627 | AC114: 107 | AD114: 0.3415110725 | AE114: 0.838688946 | AF114: =LOOKUP(A114,'Gas Prices'!B:B,'Gas Prices'!C:C) -> 29.12858052 | AG114: ='elspot-prices_2022_hourly_eur ('!J110 -> 135.05 | AH114: ='elspot-prices_2022_hourly_eur ('!K110 -> 135.05 | AI114: 4.636339896 | AJ114: 4.636339896 | AK114: ='elspot-prices_2022_hourly_eur ('!C110 -> 224.45 | AL114: 7.705490483 | AM114: 107 | AN114: 135.05 | AO114: 224.45 | AP114: 3556 | AQ114: 107 | AR114: 135.05 | AS114: 224.45 | AT114: 29.12858052 | AU114: 107 | AV114: 4.636339896 | AW114: 4.636339896 | AX114: 7.705490483
A115: 2022-01-05T11:00:00 | B115: 11 - 12 | C115: 1731 | D115: 1305 | E115: 3036 | F115: 2417 | G115: 1272 | H115: 2022-01-05T11:00:00 | I115: 108 | J115: TRUE | K115: 3036 | L115: 3689 | M115: 1900-04-17 | N115: 3036 | O115: 3689 | P115: 1 | Q115: ='consumption-dk-areas_2022_hourl'!D111 -> 3411 | R115: ='consumption-dk-areas_2022_hourl'!E111 -> 2061 | S115: 5472 | T115: ='consumption-prognosis_2022_hour'!F111 -> 3376 | U115: ='consumption-prognosis_2022_hour'!G111 -> 2080 | V115: 5456 | W115: 1900-04-17 | X115: 5472 | Y115: 5456 | Z115: 108 | AA115: 0.5074758135 | AB115: 0.6331877729 | AC115: 108 | AD115: 0.3758141554 | AE115: 0.838688946 | AF115: =LOOKUP(A115,'Gas Prices'!B:B,'Gas Prices'!C:C) -> 29.12858052 | AG115: ='elspot-prices_2022_hourly_eur ('!J111 -> 129.99 | AH115: ='elspot-prices_2022_hourly_eur ('!K111 -> 129.99 | AI115: 4.462627346 | AJ115: 4.462627346 | AK115: ='elspot-prices_2022_hourly_eur ('!C111 -> 202.8 | AL115: 6.962234217 | AM115: 108 | AN115: 129.99 | AO115: 202.8 | AP115: 3689 | AQ115: 108 | AR115: 129.99 | AS115: 202.8 | AT115: 29.12858052 | AU115: 108 | AV115: 4.462627346 | AW115: 4.462627346 | AX115: 6.962234217
A116: 2022-01-05T12:00:00 | B116: 12 - 13 | C116: 1981 | D116: 1282 | E116: 3263 | F116: 2516 | G116: 1246 | H116: 2022-01-05T12:00:00 | I116: 109 | J116: TRUE | K116: 3263 | L116: 3762 | M116: 1900-04-18 | N116: 3263 | O116: 3762 | P116: 1 | Q116: ='consumption-dk-areas_2022_hourl'!D112 -> 3355 | R116: ='consumption-dk-areas_2022_hourl'!E112 -> 2078 | S116: 5433 | T116: ='consumption-prognosis_2022_hour'!F112 -> 3346 | U116: ='consumption-prognosis_2022_hour'!G112 -> 2049 | V116: 5395 | W116: 1900-04-18 | X116: 5433 | Y116: 5395 | Z116: 109 | AA116: 0.590461997 | AB116: 0.6169393648 | AC116: 109 | AD116: 0.4300911854 | AE116: 0.823907455 | AF116: =LOOKUP(A116,'Gas Prices'!B:B,'Gas Prices'!C:C) -> 29.12858052 | AG116: ='elspot-prices_2022_hourly_eur ('!J112 -> 131.97 | AH116: ='elspot-prices_2022_hourly_eur ('!K112 -> 131.97 | AI116: 4.530601823 | AJ116: 4.530601823 | AK116: ='elspot-prices_2022_hourly_eur ('!C112 -> 205 | AL116: 7.037761413 | AM116: 109 | AN116: 131.97 | AO116: 205 | AP116: 3762 | AQ116: 109 | AR116: 131.97 | AS116: 205 | AT116: 29.12858052 | AU116: 109 | AV116: 4.530601823 | AW116: 4.530601823 | AX116: 7.037761413
A117: 2022-01-05T13:00:00 | B117: 13 - 14 | C117: 2359 | D117: 1235 | E117: 3594 | F117: 2452 | G117: 1189 | H117: 2022-01-05T13:00:00 | I117: 110 | J117: TRUE | K117: 3594 | L117: 3641 | M117: 1900-04-19 | N117: 3594 | O117: 3641 | P117: 1 | Q117: ='consumption-dk-areas_2022_hourl'!D113 -> 3307 | R117: ='consumption-dk-areas_2022_hourl'!E113 -> 2107 | S117: 5414 | T117: ='consumption-prognosis_2022_hour'!F113 -> 3345 | U117: ='consumption-prognosis_2022_hour'!G113 -> 2070 | V117: 5415 | W117: 1900-04-19 | X117: 5414 | Y117: 5415 | Z117: 110 | AA117: 0.7133353493 | AB117: 0.5861414333 | AC117: 110 | AD117: 0.5121580547 | AE117: 0.7937017995 | AF117: =LOOKUP(A117,'Gas Prices'!B:B,'Gas Prices'!C:C) -> 29.12858052 | AG117: ='elspot-prices_2022_hourly_eur ('!J113 -> 130.67 | AH117: ='elspot-prices_2022_hourly_eur ('!K113 -> 130.67 | AI117: 4.485972116 | AJ117: 4.485972116 | AK117: ='elspot-prices_2022_hourly_eur ('!C113 -> 197.34 | AL117: 6.77478945 | AM117: 110 | AN117: 130.67 | AO117: 197.34 | AP117: 3641 | AQ117: 110 | AR117: 130.67 | AS117: 197.34 | AT117: 29.12858052 | AU117: 110 | AV117: 4.485972116 | AW117: 4.485972116 | AX117: 6.77478945
A118: 2022-01-05T14:00:00 | B118: 14 - 15 | C118: 2660 | D118: 1223 | E118: 3883 | F118: 2192 | G118: 1164 | H118: 2022-01-05T14:00:00 | I118: 111 | J118: TRUE | K118: 3883 | L118: 3356 | M118: 1900-04-20 | N118: 3883 | O118: 3356 | P118: 1 | Q118: ='consumption-dk-areas_2022_hourl'!D114 -> 3247 | R118: ='consumption-dk-areas_2022_hourl'!E114 -> 2115 | S118: 5362 | T118: ='consumption-prognosis_2022_hour'!F114 -> 3255 | U118: ='consumption-prognosis_2022_hour'!G114 -> 2065 | V118: 5320 | W118: 1900-04-20 | X118: 5362 | Y118: 5320 | Z118: 111 | AA118: 0.8192177395 | AB118: 0.578250591 | AC118: 111 | AD118: 0.5775075988 | AE118: 0.7859897172 | AF118: =LOOKUP(A118,'Gas Prices'!B:B,'Gas Prices'!C:C) -> 29.12858052 | AG118: ='elspot-prices_2022_hourly_eur ('!J114 -> 121.39 | AH118: ='elspot-prices_2022_hourly_eur ('!K114 -> 121.39 | AI118: 4.167384673 | AJ118: 4.167384673 | AK118: ='elspot-prices_2022_hourly_eur ('!C114 -> 195.6 | AL118: 6.715054304 | AM118: 111 | AN118: 121.39 | AO118: 195.6 | AP118: 3356 | AQ118: 111 | AR118: 121.39 | AS118: 195.6 | AT118: 29.12858052 | AU118: 111 | AV118: 4.167384673 | AW118: 4.167384673 | AX118: 6.715054304
A119: 2022-01-05T15:00:00 | B119: 15 - 16 | C119: 2554 | D119: 1125 | E119: 3679 | F119: 2079 | G119: 1209 | H119: 2022-01-05T15:00:00 | I119: 112 | J119: TRUE | K119: 3679 | L119: 3288 | M119: 1900-04-21 | N119: 3679 | O119: 3288 | P119: 1 | Q119: ='consumption-dk-areas_2022_hourl'!D115 -> 3190 | R119: ='consumption-dk-areas_2022_hourl'!E115 -> 2094 | S119: 5284 | T119: ='consumption-prognosis_2022_hour'!F115 -> 3211 | U119: ='consumption-prognosis_2022_hour'!G115 -> 2085 | V119: 5296 | W119: 1900-04-21 | X119: 5284 | Y119: 5296 | Z119: 112 | AA119: 0.8006269592 | AB119: 0.5372492837 | AC119: 112 | AD119: 0.5544941381 | AE119: 0.7230077121 | AF119: =LOOKUP(A119,'Gas Prices'!B:B,'Gas Prices'!C:C) -> 29.12858052 | AG119: ='elspot-prices_2022_hourly_eur ('!J115 -> 122.42 | AH119: ='elspot-prices_2022_hourly_eur ('!K115 -> 122.42 | AI119: 4.202745132 | AJ119: 4.202745132 | AK119: ='elspot-prices_2022_hourly_eur ('!C115 -> 200 | AL119: 6.866108695 | AM119: 112 | AN119: 122.42 | AO119: 200 | AP119: 3288 | AQ119: 112 | AR119: 122.42 | AS119: 200 | AT119: 29.12858052 | AU119: 112 | AV119: 4.202745132 | AW119: 4.202745132 | AX119: 6.866108695
A120: 2022-01-05T16:00:00 | B120: 16 - 17 | C120: 2350 | D120: 1064 | E120: 3414 | F120: 2170 | G120: 1210 | H120: 2022-01-05T16:00:00 | I120: 113 | J120: TRUE | K120: 3414 | L120: 3380 | M120: 1900-04-22 | N120: 3414 | O120: 3380 | P120: 1 | Q120: ='consumption-dk-areas_2022_hourl'!D116 -> 3290 | R120: ='consumption-dk-areas_2022_hourl'!E116 -> 2168 | S120: 5458 | T120: ='consumption-prognosis_2022_hour'!F116 -> 3264 | U120: ='consumption-prognosis_2022_hour'!G116 -> 2187 | V120: 5451 | W120: 1900-04-22 | X120: 5458 | Y120: 5451 | Z120: 113 | AA120: 0.7142857143 | AB120: 0.4907749077 | AC120: 113 | AD120: 0.5102040816 | AE120: 0.6838046272 | AF120: =LOOKUP(A120,'Gas Prices'!B:B,'Gas Prices'!C:C) -> 29.12858052 | AG120: ='elspot-prices_2022_hourly_eur ('!J116 -> 137.28 | AH120: ='elspot-prices_2022_hourly_eur ('!K116 -> 137.28 | AI120: 4.712897008 | AJ120: 4.712897008 | AK120: ='elspot-prices_2022_hourly_eur ('!C116 -> 206.07 | AL120: 7.074495094 | AM120: 113 | AN120: 137.28 | AO120: 206.07 | AP120: 3380 | AQ120: 113 | AR120: 137.28 | AS120: 206.07 | AT120: 29.12858052 | AU120: 113 | AV120: 4.712897008 | AW120: 4.712897008 | AX120: 7.074495094
A121: 2022-01-05T17:00:00 | B121: 17 - 18 | C121: 2262 | D121: 1180 | E121: 3442 | F121: 2251 | G121: 1223 | H121: 2022-01-05T17:00:00 | I121: 114 | J121: TRUE | K121: 3442 | L121: 3474 | M121: 1900-04-23 | N121: 3442 | O121: 3474 | P121: 1 | Q121: ='consumption-dk-areas_2022_hourl'!D117 -> 3519 | R121: ='consumption-dk-areas_2022_hourl'!E117 -> 2298 | S121: 5817 | T121: ='consumption-prognosis_2022_hour'!F117 -> 3543 | U121: ='consumption-prognosis_2022_hour'!G117 -> 2296 | V121: 5839 | W121: 1900-04-23 | X121: 5817 | Y121: 5839 | Z121: 114 | AA121: 0.6427962489 | AB121: 0.5134899913 | AC121: 114 | AD121: 0.4910985671 | AE121: 0.7583547558 | AF121: =LOOKUP(A121,'Gas Prices'!B:B,'Gas Prices'!C:C) -> 29.12858052 | AG121: ='elspot-prices_2022_hourly_eur ('!J117 -> 148.09 | AH121: ='elspot-prices_2022_hourly_eur ('!K117 -> 148.09 | AI121: 5.084010183 | AJ121: 5.084010183 | AK121: ='elspot-prices_2022_hourly_eur ('!C117 -> 242.1 | AL121: 8.311424576 | AM121: 114 | AN121: 148.09 | AO121: 242.1 | AP121: 3474 | AQ121: 114 | AR121: 148.09 | AS121: 242.1 | AT121: 29.12858052 | AU121: 114 | AV121: 5.084010183 | AW121: 5.084010183 | AX121: 8.311424576
A122: 2022-01-05T18:00:00 | B122: 18 - 19 | C122: 2196 | D122: 1242 | E122: 3438 | F122: 2194 | G122: 1255 | H122: 2022-01-05T18:00:00 | I122: 115 | J122: TRUE | K122: 3438 | L122: 3449 | M122: 1900-04-24 | N122: 3438 | O122: 3449 | P122: 1 | Q122: ='consumption-dk-areas_2022_hourl'!D118 -> 3368 | R122: ='consumption-dk-areas_2022_hourl'!E118 -> 2229 | S122: 5597 | T122: ='consumption-prognosis_2022_hour'!F118 -> 3360 | U122: ='consumption-prognosis_2022_hour'!G118 -> 2233 | V122: 5593 | W122: 1900-04-24 | X122: 5597 | Y122: 5593 | Z122: 115 | AA122: 0.6520190024 | AB122: 0.5572005384 | AC122: 115 | AD122: 0.4767694312 | AE122: 0.7982005141 | AF122: =LOOKUP(A122,'Gas Prices'!B:B,'Gas Prices'!C:C) -> 29.12858052 | AG122: ='elspot-prices_2022_hourly_eur ('!J118 -> 139.88 | AH122: ='elspot-prices_2022_hourly_eur ('!K118 -> 139.88 | AI122: 4.802156421 | AJ122: 4.802156421 | AK122: ='elspot-prices_2022_hourly_eur ('!C118 -> 265 | AL122: 9.097594021 | AM122: 115 | AN122: 139.88 | AO122: 265 | AP122: 3449 | AQ122: 115 | AR122: 139.88 | AS122: 265 | AT122: 29.12858052 | AU122: 115 | AV122: 4.802156421 | AW122: 4.802156421 | AX122: 9.097594021
A123: 2022-01-05T19:00:00 | B123: 19 - 20 | C123: 2206 | D123: 1381 | E123: 3587 | F123: 2044 | G123: 1258 | H123: 2022-01-05T19:00:00 | I123: 116 | J123: TRUE | K123: 3587 | L123: 3302 | M123: 1900-04-25 | N123: 3587 | O123: 3302 | P123: 1 | Q123: ='consumption-dk-areas_2022_hourl'!D119 -> 3188 | R123: ='consumption-dk-areas_2022_hourl'!E119 -> 2100 | S123: 5288 | T123: ='consumption-prognosis_2022_hour'!F119 -> 3224 | U123: ='consumption-prognosis_2022_hour'!G119 -> 2116 | V123: 5340 | W123: 1900-04-25 | X123: 5288 | Y123: 5340 | Z123: 116 | AA123: 0.6919698871 | AB123: 0.6576190476 | AC123: 116 | AD123: 0.4789405124 | AE123: 0.8875321337 | AF123: =LOOKUP(A123,'Gas Prices'!B:B,'Gas Prices'!C:C) -> 29.12858052 | AG123: ='elspot-prices_2022_hourly_eur ('!J119 -> 135.75 | AH123: ='elspot-prices_2022_hourly_eur ('!K119 -> 135.75 | AI123: 4.660371277 | AJ123: 4.660371277 | AK123: ='elspot-prices_2022_hourly_eur ('!C119 -> 265 | AL123: 9.097594021 | AM123: 116 | AN123: 135.75 | AO123: 265 | AP123: 3302 | AQ123: 116 | AR123: 135.75 | AS123: 265 | AT123: 29.12858052 | AU123: 116 | AV123: 4.660371277 | AW123: 4.660371277 | AX123: 9.097594021
A124: 2022-01-05T20:00:00 | B124: 20 - 21 | C124: 2180 | D124: 1406 | E124: 3586 | F124: 1928 | G124: 1270 | H124: 2022-01-05T20:00:00 | I124: 117 | J124: TRUE | K124: 3586 | L124: 3198 | M124: 1900-04-26 | N124: 3586 | O124: 3198 | P124: 1 | Q124: ='consumption-dk-areas_2022_hourl'!D120 -> 3069 | R124: ='consumption-dk-areas_2022_hourl'!E120 -> 1962 | S124: 5031 | T124: ='consumption-prognosis_2022_hour'!F120 -> 3132 | U124: ='consumption-prognosis_2022_hour'!G120 -> 2054 | V124: 5186 | W124: 1900-04-26 | X124: 5031 | Y124: 5186 | Z124: 117 | AA124: 0.7103290974 | AB124: 0.7166156983 | AC124: 117 | AD124: 0.4732957013 | AE124: 0.9035989717 | AF124: =LOOKUP(A124,'Gas Prices'!B:B,'Gas Prices'!C:C) -> 29.12858052 | AG124: ='elspot-prices_2022_hourly_eur ('!J120 -> 119.93 | AH124: ='elspot-prices_2022_hourly_eur ('!K120 -> 119.93 | AI124: 4.117262079 | AJ124: 4.117262079 | AK124: ='elspot-prices_2022_hourly_eur ('!C120 -> 241.93 | AL124: 8.305588383 | AM124: 117 | AN124: 119.93 | AO124: 241.93 | AP124: 3198 | AQ124: 117 | AR124: 119.93 | AS124: 241.93 | AT124: 29.12858052 | AU124: 117 | AV124: 4.117262079 | AW124: 4.117262079 | AX124: 8.305588383
A125: 2022-01-05T21:00:00 | B125: 21 - 22 | C125: 2020 | D125: 1375 | E125: 3395 | F125: 1826 | G125: 1310 | H125: 2022-01-05T21:00:00 | I125: 118 | J125: TRUE | K125: 3395 | L125: 3136 | M125: 1900-04-27 | N125: 3395 | O125: 3136 | P125: 1 | Q125: ='consumption-dk-areas_2022_hourl'!D121 -> 2966 | R125: ='consumption-dk-areas_2022_hourl'!E121 -> 1877 | S125: 4843 | T125: ='consumption-prognosis_2022_hour'!F121 -> 3055 | U125: ='consumption-prognosis_2022_hour'!G121 -> 1989 | V125: 5044 | W125: 1900-04-27 | X125: 4843 | Y125: 5044 | Z125: 118 | AA125: 0.6810519218 | AB125: 0.7325519446 | AC125: 118 | AD125: 0.4385584021 | AE125: 0.8836760925 | AF125: =LOOKUP(A125,'Gas Prices'!B:B,'Gas Prices'!C:C) -> 29.12858052 | AG125: ='elspot-prices_2022_hourly_eur ('!J121 -> 98.09 | AH125: ='elspot-prices_2022_hourly_eur ('!K121 -> 98.09 | AI125: 3.36748301 | AJ125: 3.36748301 | AK125: ='elspot-prices_2022_hourly_eur ('!C121 -> 218.95 | AL125: 7.516672494 | AM125: 118 | AN125: 98.09 | AO125: 218.95 | AP125: 3136 | AQ125: 118 | AR125: 98.09 | AS125: 218.95 | AT125: 29.12858052 | AU125: 118 | AV125: 3.36748301 | AW125: 3.36748301 | AX125: 7.516672494
A126: 2022-01-05T22:00:00 | B126: 22 - 23 | C126: 1643 | D126: 1432 | E126: 3075 | F126: 1823 | G126: 1295 | H126: 2022-01-05T22:00:00 | I126: 119 | J126: TRUE | K126: 3075 | L126: 3118 | M126: 1900-04-28 | N126: 3075 | O126: 3118 | P126: 1 | Q126: ='consumption-dk-areas_2022_hourl'!D122 -> 2810 | R126: ='consumption-dk-areas_2022_hourl'!E122 -> 1762 | S126: 4572 | T126: ='consumption-prognosis_2022_hour'!F122 -> 2931 | U126: ='consumption-prognosis_2022_hour'!G122 -> 1887 | V126: 4818 | W126: 1900-04-28 | X126: 4572 | Y126: 4818 | Z126: 119 | AA126: 0.5846975089 | AB126: 0.8127128263 | AC126: 119 | AD126: 0.3567086409 | AE126: 0.9203084833 | AF126: =LOOKUP(A126,'Gas Prices'!B:B,'Gas Prices'!C:C) -> 29.12858052 | AG126: ='elspot-prices_2022_hourly_eur ('!J122 -> 118.71 | AH126: ='elspot-prices_2022_hourly_eur ('!K122 -> 118.71 | AI126: 4.075378816 | AJ126: 4.075378816 | AK126: ='elspot-prices_2022_hourly_eur ('!C122 -> 207.46 | AL126: 7.12221455 | AM126: 119 | AN126: 118.71 | AO126: 207.46 | AP126: 3118 | AQ126: 119 | AR126: 118.71 | AS126: 207.46 | AT126: 29.12858052 | AU126: 119 | AV126: 4.075378816 | AW126: 4.075378816 | AX126: 7.12221455
A127: 2022-01-05T23:00:00 | B127: 23 - 00 | C127: 1590 | D127: 1436 | E127: 3026 | F127: 1842 | G127: 1257 | H127: 2022-01-05T23:00:00 | I127: 120 | J127: TRUE | K127: 3026 | L127: 3099 | M127: 1900-04-29 | N127: 3026 | O127: 3099 | P127: 1 | Q127: ='consumption-dk-areas_2022_hourl'!D123 -> 2676 | R127: ='consumption-dk-areas_2022_hourl'!E123 -> 1639 | S127: 4315 | T127: ='consumption-prognosis_2022_hour'!F123 -> 2774 | U127: ='consumption-prognosis_2022_hour'!G123 -> 1784 | V127: 4558 | W127: 1900-04-29 | X127: 4315 | Y127: 4558 | Z127: 120 | AA127: 0.5941704036 | AB127: 0.8761439902 | AC127: 120 | AD127: 0.3452019106 | AE127: 0.9228791774 | AF127: =LOOKUP(A127,'Gas Prices'!B:B,'Gas Prices'!C:C) -> 29.12858052 | AG127: ='elspot-prices_2022_hourly_eur ('!J123 -> 99.68 | AH127: ='elspot-prices_2022_hourly_eur ('!K123 -> 97.29 | AI127: 3.422068574 | AJ127: 3.340018575 | AK127: ='elspot-prices_2022_hourly_eur ('!C123 -> 200 | AL127: 6.866108695 | AM127: 120 | AN127: 99.68 | AO127: 200 | AP127: 3099 | AQ127: 120 | AR127: 99.68 | AS127: 200 | AT127: 29.12858052 | AU127: 120 | AV127: 3.422068574 | AW127: 3.340018575 | AX127: 6.866108695
A128: 2022-01-06 | B128: 00 - 01 | C128: 1896 | D128: 1298 | E128: 3194 | F128: 2075 | G128: 1144 | H128: 2022-01-06 | I128: 121 | J128: TRUE | K128: 3194 | L128: 3219 | M128: 1900-04-30 | N128: 3194 | O128: 3219 | P128: 1 | Q128: ='consumption-dk-areas_2022_hourl'!D124 -> 2524 | R128: ='consumption-dk-areas_2022_hourl'!E124 -> 1527 | S128: 4051 | T128: ='consumption-prognosis_2022_hour'!F124 -> 2604 | U128: ='consumption-prognosis_2022_hour'!G124 -> 1686 | V128: 4290 | W128: 1900-04-30 | X128: 4051 | Y128: 4290 | Z128: 121 | AA128: 0.7511885895 | AB128: 0.8500327439 | AC128: 121 | AD128: 0.4116369952 | AE128: 0.8341902314 | AF128: =LOOKUP(A128,'Gas Prices'!B:B,'Gas Prices'!C:C) -> 29.12858052 | AG128: ='elspot-prices_2022_hourly_eur ('!J124 -> 99.85 | AH128: ='elspot-prices_2022_hourly_eur ('!K124 -> 93.29 | AI128: 3.427904766 | AJ128: 3.202696401 | AK128: ='elspot-prices_2022_hourly_eur ('!C124 -> 207.15 | AL128: 7.111572081 | AM128: 121 | AN128: 99.85 | AO128: 207.15 | AP128: 3219 | AQ128: 121 | AR128: 99.85 | AS128: 207.15 | AT128: 29.12858052 | AU128: 121 | AV128: 3.427904766 | AW128: 3.202696401 | AX128: 7.111572081
A129: 2022-01-06T01:00:00 | B129: 01 - 02 | C129: 1916 | D129: 1057 | E129: 2973 | F129: 1886 | G129: 1100 | H129: 2022-01-06T01:00:00 | I129: 122 | J129: TRUE | K129: 2973 | L129: 2986 | M129: 1900-05-01 | N129: 2973 | O129: 2986 | P129: 1 | Q129: ='consumption-dk-areas_2022_hourl'!D125 -> 2495 | R129: ='consumption-dk-areas_2022_hourl'!E125 -> 1472 | S129: 3967 | T129: ='consumption-prognosis_2022_hour'!F125 -> 2531 | U129: ='consumption-prognosis_2022_hour'!G125 -> 1611 | V129: 4142 | W129: 1900-05-01 | X129: 3967 | Y129: 4142 | Z129: 122 | AA129: 0.7679358717 | AB129: 0.7180706522 | AC129: 122 | AD129: 0.4159791576 | AE129: 0.6793059126 | AF129: =LOOKUP(A129,'Gas Prices'!B:B,'Gas Prices'!C:C) -> 30.71355824 | AG129: ='elspot-prices_2022_hourly_eur ('!J125 -> 101.32 | AH129: ='elspot-prices_2022_hourly_eur ('!K125 -> 80.77 | AI129: 3.298868832 | AJ129: 2.629783217 | AK129: ='elspot-prices_2022_hourly_eur ('!C125 -> 204.22 | AL129: 6.649180742 | AM129: 122 | AN129: 101.32 | AO129: 204.22 | AP129: 2986 | AQ129: 122 | AR129: 101.32 | AS129: 204.22 | AT129: 30.71355824 | AU129: 122 | AV129: 3.298868832 | AW129: 2.629783217 | AX129: 6.649180742
A130: 2022-01-06T02:00:00 | B130: 02 - 03 | C130: 1664 | D130: 976 | E130: 2640 | F130: 1736 | G130: 1080 | H130: 2022-01-06T02:00:00 | I130: 123 | J130: TRUE | K130: 2640 | L130: 2816 | M130: 1900-05-02 | N130: 2640 | O130: 2816 | P130: 1 | Q130: ='consumption-dk-areas_2022_hourl'!D126 -> 2462 | R130: ='consumption-dk-areas_2022_hourl'!E126 -> 1433 | S130: 3895 | T130: ='consumption-prognosis_2022_hour'!F126 -> 2422 | U130: ='consumption-prognosis_2022_hour'!G126 -> 1576 | V130: 3998 | W130: 1900-05-02 | X130: 3895 | Y130: 3998 | Z130: 123 | AA130: 0.6758732738 | AB130: 0.6810886253 | AC130: 123 | AD130: 0.3612679114 | AE130: 0.6272493573 | AF130: =LOOKUP(A130,'Gas Prices'!B:B,'Gas Prices'!C:C) -> 30.71355824 | AG130: ='elspot-prices_2022_hourly_eur ('!J126 -> 110.01 | AH130: ='elspot-prices_2022_hourly_eur ('!K126 -> 78.08 | AI130: 3.581805766 | AJ130: 2.542199747 | AK130: ='elspot-prices_2022_hourly_eur ('!C126 -> 191.82 | AL130: 6.24545025 | AM130: 123 | AN130: 110.01 | AO130: 191.82 | AP130: 2816 | AQ130: 123 | AR130: 110.01 | AS130: 191.82 | AT130: 30.71355824 | AU130: 123 | AV130: 3.581805766 | AW130: 2.542199747 | AX130: 6.24545025
A131: 2022-01-06T03:00:00 | B131: 03 - 04 | C131: 1243 | D131: 999 | E131: 2242 | F131: 1495 | G131: 1046 | H131: 2022-01-06T03:00:00 | I131: 124 | J131: TRUE | K131: 2242 | L131: 2541 | M131: 1900-05-03 | N131: 2242 | O131: 2541 | P131: 1 | Q131: ='consumption-dk-areas_2022_hourl'!D127 -> 2429 | R131: ='consumption-dk-areas_2022_hourl'!E127 -> 1435 | S131: 3864 | T131: ='consumption-prognosis_2022_hour'!F127 -> 2400 | U131: ='consumption-prognosis_2022_hour'!G127 -> 1590 | V131: 3990 | W131: 1900-05-03 | X131: 3864 | Y131: 3990 | Z131: 124 | AA131: 0.5117332235 | AB131: 0.6961672474 | AC131: 124 | AD131: 0.269865393 | AE131: 0.6420308483 | AF131: =LOOKUP(A131,'Gas Prices'!B:B,'Gas Prices'!C:C) -> 30.71355824 | AG131: ='elspot-prices_2022_hourly_eur ('!J127 -> 111.55 | AH131: ='elspot-prices_2022_hourly_eur ('!K127 -> 81.97 | AI131: 3.631946488 | AJ131: 2.66885391 | AK131: ='elspot-prices_2022_hourly_eur ('!C127 -> 180.7 | AL131: 5.883395163 | AM131: 124 | AN131: 111.55 | AO131: 180.7 | AP131: 2541 | AQ131: 124 | AR131: 111.55 | AS131: 180.7 | AT131: 30.71355824 | AU131: 124 | AV131: 3.631946488 | AW131: 2.66885391 | AX131: 5.883395163
A132: 2022-01-06T04:00:00 | B132: 04 - 05 | C132: 925 | D132: 1032 | E132: 1957 | F132: 1231 | G132: 1065 | H132: 2022-01-06T04:00:00 | I132: 125 | J132: TRUE | K132: 1957 | L132: 2296 | M132: 1900-05-04 | N132: 1957 | O132: 2296 | P132: 1 | Q132: ='consumption-dk-areas_2022_hourl'!D128 -> 2481 | R132: ='consumption-dk-areas_2022_hourl'!E128 -> 1460 | S132: 3941 | T132: ='consumption-prognosis_2022_hour'!F128 -> 2454 | U132: ='consumption-prognosis_2022_hour'!G128 -> 1613 | V132: 4067 | W132: 1900-05-04 | X132: 3941 | Y132: 4067 | Z132: 125 | AA132: 0.3728335349 | AB132: 0.7068493151 | AC132: 125 | AD132: 0.2008250109 | AE132: 0.6632390746 | AF132: =LOOKUP(A132,'Gas Prices'!B:B,'Gas Prices'!C:C) -> 30.71355824 | AG132: ='elspot-prices_2022_hourly_eur ('!J128 -> 123.37 | AH132: ='elspot-prices_2022_hourly_eur ('!K128 -> 89.31 | AI132: 4.016792813 | AJ132: 2.907836314 | AK132: ='elspot-prices_2022_hourly_eur ('!C128 -> 170.1 | AL132: 5.538270709 | AM132: 125 | AN132: 123.37 | AO132: 170.1 | AP132: 2296 | AQ132: 125 | AR132: 123.37 | AS132: 170.1 | AT132: 30.71355824 | AU132: 125 | AV132: 4.016792813 | AW132: 2.907836314 | AX132: 5.538270709
A133: 2022-01-06T05:00:00 | B133: 05 - 06 | C133: 620 | D133: 977 | E133: 1597 | F133: 907 | G133: 1047 | H133: 2022-01-06T05:00:00 | I133: 126 | J133: TRUE | K133: 1597 | L133: 1954 | M133: 1900-05-05 | N133: 1597 | O133: 1954 | P133: 1 | Q133: ='consumption-dk-areas_2022_hourl'!D129 -> 2603 | R133: ='consumption-dk-areas_2022_hourl'!E129 -> 1561 | S133: 4164 | T133: ='consumption-prognosis_2022_hour'!F129 -> 2562 | U133: ='consumption-prognosis_2022_hour'!G129 -> 1639 | V133: 4201 | W133: 1900-05-05 | X133: 4164 | Y133: 4201 | Z133: 126 | AA133: 0.2381867076 | AB133: 0.6258808456 | AC133: 126 | AD133: 0.1346070343 | AE133: 0.6278920308 | AF133: =LOOKUP(A133,'Gas Prices'!B:B,'Gas Prices'!C:C) -> 30.71355824 | AG133: ='elspot-prices_2022_hourly_eur ('!J129 -> 149.94 | AH133: ='elspot-prices_2022_hourly_eur ('!K129 -> 89.75 | AI133: 4.88188307 | AJ133: 2.922162235 | AK133: ='elspot-prices_2022_hourly_eur ('!C129 -> 194.38 | AL133: 6.328801061 | AM133: 126 | AN133: 149.94 | AO133: 194.38 | AP133: 1954 | AQ133: 126 | AR133: 149.94 | AS133: 194.38 | AT133: 30.71355824 | AU133: 126 | AV133: 4.88188307 | AW133: 2.922162235 | AX133: 6.328801061
A134: 2022-01-06T06:00:00 | B134: 06 - 07 | C134: 338 | D134: 869 | E134: 1207 | F134: 625 | G134: 1016 | H134: 2022-01-06T06:00:00 | I134: 127 | J134: TRUE | K134: 1207 | L134: 1641 | M134: 1900-05-06 | N134: 1207 | O134: 1641 | P134: 1 | Q134: ='consumption-dk-areas_2022_hourl'!D130 -> 2969 | R134: ='consumption-dk-areas_2022_hourl'!E130 -> 1796 | S134: 4765 | T134: ='consumption-prognosis_2022_hour'!F130 -> 2795 | U134: ='consumption-prognosis_2022_hour'!G130 -> 1771 | V134: 4566 | W134: 1900-05-06 | X134: 4765 | Y134: 4566 | Z134: 127 | AA134: 0.1138430448 | AB134: 0.4838530067 | AC134: 127 | AD134: 0.07338254451 | AE134: 0.5584832905 | AF134: =LOOKUP(A134,'Gas Prices'!B:B,'Gas Prices'!C:C) -> 30.71355824 | AG134: ='elspot-prices_2022_hourly_eur ('!J130 -> 121.09 | AH134: ='elspot-prices_2022_hourly_eur ('!K130 -> 97.06 | AI134: 3.942558496 | AJ134: 3.160167872 | AK134: ='elspot-prices_2022_hourly_eur ('!C130 -> 204.22 | AL134: 6.649180742 | AM134: 127 | AN134: 121.09 | AO134: 204.22 | AP134: 1641 | AQ134: 127 | AR134: 121.09 | AS134: 204.22 | AT134: 30.71355824 | AU134: 127 | AV134: 3.942558496 | AW134: 3.160167872 | AX134: 6.649180742
A135: 2022-01-06T07:00:00 | B135: 07 - 08 | C135: 218 | D135: 833 | E135: 1051 | F135: 390 | G135: 930 | H135: 2022-01-06T07:00:00 | I135: 128 | J135: TRUE | K135: 1051 | L135: 1320 | M135: 1900-05-07 | N135: 1051 | O135: 1320 | P135: 1 | Q135: ='consumption-dk-areas_2022_hourl'!D131 -> 3312 | R135: ='consumption-dk-areas_2022_hourl'!E131 -> 2059 | S135: 5371 | T135: ='consumption-prognosis_2022_hour'!F131 -> 3158 | U135: ='consumption-prognosis_2022_hour'!G131 -> 1974 | V135: 5132 | W135: 1900-05-07 | X135: 5371 | Y135: 5132 | Z135: 128 | AA135: 0.06582125604 | AB135: 0.404565323 | AC135: 128 | AD135: 0.04732957013 | AE135: 0.5353470437 | AF135: =LOOKUP(A135,'Gas Prices'!B:B,'Gas Prices'!C:C) -> 30.71355824 | AG135: ='elspot-prices_2022_hourly_eur ('!J131 -> 193.79 | AH135: ='elspot-prices_2022_hourly_eur ('!K131 -> 193.79 | AI135: 6.309591304 | AJ135: 6.309591304 | AK135: ='elspot-prices_2022_hourly_eur ('!C131 -> 228.25 | AL135: 7.431571366 | AM135: 128 | AN135: 193.79 | AO135: 228.25 | AP135: 1320 | AQ135: 128 | AR135: 193.79 | AS135: 228.25 | AT135: 30.71355824 | AU135: 128 | AV135: 6.309591304 | AW135: 6.309591304 | AX135: 7.431571366
A136: 2022-01-06T08:00:00 | B136: 08 - 09 | C136: 260 | D136: 772 | E136: 1032 | F136: 302 | G136: 860 | H136: 2022-01-06T08:00:00 | I136: 129 | J136: TRUE | K136: 1032 | L136: 1162 | M136: 1900-05-08 | N136: 1032 | O136: 1162 | P136: 1 | Q136: ='consumption-dk-areas_2022_hourl'!D132 -> 3464 | R136: ='consumption-dk-areas_2022_hourl'!E132 -> 2169 | S136: 5633 | T136: ='consumption-prognosis_2022_hour'!F132 -> 3333 | U136: ='consumption-prognosis_2022_hour'!G132 -> 2076 | V136: 5409 | W136: 1900-05-08 | X136: 5633 | Y136: 5409 | Z136: 129 | AA136: 0.07505773672 | AB136: 0.3559243891 | AC136: 129 | AD136: 0.05644811116 | AE136: 0.4961439589 | AF136: =LOOKUP(A136,'Gas Prices'!B:B,'Gas Prices'!C:C) -> 30.71355824 | AG136: ='elspot-prices_2022_hourly_eur ('!J132 -> 228.92 | AH136: ='elspot-prices_2022_hourly_eur ('!K132 -> 228.92 | AI136: 7.453385837 | AJ136: 7.453385837 | AK136: ='elspot-prices_2022_hourly_eur ('!C132 -> 240.98 | AL136: 7.8460463 | AM136: 129 | AN136: 228.92 | AO136: 240.98 | AP136: 1162 | AQ136: 129 | AR136: 228.92 | AS136: 240.98 | AT136: 30.71355824 | AU136: 129 | AV136: 7.453385837 | AW136: 7.453385837 | AX136: 7.8460463
A137: 2022-01-06T09:00:00 | B137: 09 - 10 | C137: 318 | D137: 624 | E137: =C137+D137 -> 942 | F137: 247 | G137: 762 | H137: 2022-01-06T09:00:00 | I137: 130 | J137: =AND(H137>=$J$2,H137<$J$3) -> TRUE | K137: =E137 -> 942 | L137: =SUM(F137:G137) -> 1009 | M137: =IF(J137,I137,NA()) -> 1900-05-09 | N137: =IF(J137,K137,NA()) -> 942 | O137: =IF(J137,L137,NA()) -> 1009 | P137: 1 | Q137: ='consumption-dk-areas_2022_hourl'!D133 -> 3423 | R137: ='consumption-dk-areas_2022_hourl'!E133 -> 2186 | S137: =Q137+R137 -> 5609 | T137: ='consumption-prognosis_2022_hour'!F133 -> 3312 | U137: ='consumption-prognosis_2022_hour'!G133 -> 2107 | V137: =T137+U137 -> 5419 | W137: =M137 -> 1900-05-09 | X137: =S137 -> 5609 | Y137: =V137 -> 5419 | Z137: =M137 -> 130 | AA137: =C137/Q137 -> 0.09290096407 | AB137: =D137/R137 -> 0.285452882 | AC137: =Z137 -> 130 | AD137: =C137/AD$4 -> 0.06904038211 | AE137: =D137/AE$4 -> 0.4010282776 | AF137: =LOOKUP(A137,'Gas Prices'!B:B,'Gas Prices'!C:C) -> 30.71355824 | AG137: ='elspot-prices_2022_hourly_eur ('!J133 -> 212.9 | AH137: ='elspot-prices_2022_hourly_eur ('!K133 -> 212.9 | AI137: =AG137/AF137 -> 6.931792087 | AJ137: =AH137/AF137 -> 6.931792087 | AK137: ='elspot-prices_2022_hourly_eur ('!C133 -> 257.44 | AL137: =AK137/AF137 -> 8.38196597 | AM137: =AC137 -> 130 | AN137: =IF(J137,AG137,NA()) -> 212.9 | AO137: =IF(J137,AK137,NA()) -> 257.44 | AP137: =IF(J137,L137,NA()) -> 1009 | AQ137: =AM137 -> 130 | AR137: =AN137 -> 212.9 | AS137: =AO137 -> 257.44 | AT137: =IF(J137,AF137,NA()) -> 30.71355824 | AU137: =AQ137 -> 130 | AV137: =IF(J137,AI137,NA()) -> 6.931792087 | AW137: =IF(J137,AJ137,NA()) -> 6.931792087 | AX137: =IF(J137,AL137,NA()) -> 8.38196597
A138: =A137+1/24 -> 2022-01-06T10:00:00 | B138: 10 - 11 | C138: 488 | D138: 402 | E138: 890 | F138: 226 | G138: 650 | H138: =H137+1/24 -> 2022-01-06T10:00:00 | I138: 131 | J138: TRUE | K138: 890 | L138: 876 | M138: 1900-05-10 | N138: 890 | O138: 876 | P138: 1 | Q138: ='consumption-dk-areas_2022_hourl'!D134 -> 3418 | R138: ='consumption-dk-areas_2022_hourl'!E134 -> 2174 | S138: 5592 | T138: ='consumption-prognosis_2022_hour'!F134 -> 3437 | U138: ='consumption-prognosis_2022_hour'!G134 -> 2128 | V138: 5565 | W138: 1900-05-10 | X138: 5592 | Y138: 5565 | Z138: 131 | AA138: 0.1427735518 | AB138: 0.1849126035 | AC138: 131 | AD138: 0.1059487625 | AE138: 0.2583547558 | AF138: =LOOKUP(A138,'Gas Prices'!B:B,'Gas Prices'!C:C) -> 30.71355824 | AG138: ='elspot-prices_2022_hourly_eur ('!J134 -> 215.5 | AH138: ='elspot-prices_2022_hourly_eur ('!K134 -> 215.5 | AI138: 7.016445255 | AJ138: 7.016445255 | AK138: ='elspot-prices_2022_hourly_eur ('!C134 -> 245.24 | AL138: 7.984747259 | AM138: 131 | AN138: 215.5 | AO138: 245.24 | AP138: 876 | AQ138: 131 | AR138: 215.5 | AS138: 245.24 | AT138: 30.71355824 | AU138: 131 | AV138: 7.016445255 | AW138: 7.016445255 | AX138: 7.984747259
A139: 2022-01-06T11:00:00 | B139: 11 - 12 | C139: 375 | D139: 317 | E139: 692 | F139: 205 | G139: 507 | H139: 2022-01-06T11:00:00 | I139: 132 | J139: TRUE | K139: 692 | L139: 712 | M139: 1900-05-11 | N139: 692 | O139: 712 | P139: 1 | Q139: ='consumption-dk-areas_2022_hourl'!D135 -> 3321 | R139: ='consumption-dk-areas_2022_hourl'!E135 -> 2126 | S139: 5447 | T139: ='consumption-prognosis_2022_hour'!F135 -> 3409 | U139: ='consumption-prognosis_2022_hour'!G135 -> 2173 | V139: 5582 | W139: 1900-05-11 | X139: 5447 | Y139: 5582 | Z139: 132 | AA139: 0.1129177958 | AB139: 0.1491063029 | AC139: 132 | AD139: 0.08141554494 | AE139: 0.2037275064 | AF139: =LOOKUP(A139,'Gas Prices'!B:B,'Gas Prices'!C:C) -> 30.71355824 | AG139: ='elspot-prices_2022_hourly_eur ('!J135 -> 231.9 | AH139: ='elspot-prices_2022_hourly_eur ('!K135 -> 231.9 | AI139: 7.55041139 | AJ139: 7.55041139 | AK139: ='elspot-prices_2022_hourly_eur ('!C135 -> 231.9 | AL139: 7.55041139 | AM139: 132 | AN139: 231.9 | AO139: 231.9 | AP139: 712 | AQ139: 132 | AR139: 231.9 | AS139: 231.9 | AT139: 30.71355824 | AU139: 132 | AV139: 7.55041139 | AW139: 7.55041139 | AX139: 7.55041139
A140: 2022-01-06T12:00:00 | B140: 12 - 13 | C140: 285 | D140: 260 | E140: 545 | F140: 218 | G140: 369 | H140: 2022-01-06T12:00:00 | I140: 133 | J140: TRUE | K140: 545 | L140: 587 | M140: 1900-05-12 | N140: 545 | O140: 587 | P140: 1 | Q140: ='consumption-dk-areas_2022_hourl'!D136 -> 3234 | R140: ='consumption-dk-areas_2022_hourl'!E136 -> 2092 | S140: 5326 | T140: ='consumption-prognosis_2022_hour'!F136 -> 3277 | U140: ='consumption-prognosis_2022_hour'!G136 -> 2114 | V140: 5391 | W140: 1900-05-12 | X140: 5326 | Y140: 5391 | Z140: 133 | AA140: 0.08812615955 | AB140: 0.1242829828 | AC140: 133 | AD140: 0.06187581416 | AE140: 0.1670951157 | AF140: =LOOKUP(A140,'Gas Prices'!B:B,'Gas Prices'!C:C) -> 30.71355824 | AG140: ='elspot-prices_2022_hourly_eur ('!J136 -> 226 | AH140: ='elspot-prices_2022_hourly_eur ('!K136 -> 226 | AI140: 7.358313817 | AJ140: 7.358313817 | AK140: ='elspot-prices_2022_hourly_eur ('!C136 -> 226 | AL140: 7.358313817 | AM140: 133 | AN140: 226 | AO140: 226 | AP140: 587 | AQ140: 133 | AR140: 226 | AS140: 226 | AT140: 30.71355824 | AU140: 133 | AV140: 7.358313817 | AW140: 7.358313817 | AX140: 7.358313817
A141: 2022-01-06T13:00:00 | B141: 13 - 14 | C141: 261 | D141: 258 | E141: 519 | F141: 217 | G141: 293 | H141: 2022-01-06T13:00:00 | I141: 134 | J141: TRUE | K141: 519 | L141: 510 | M141: 1900-05-13 | N141: 519 | O141: 510 | P141: 1 | Q141: ='consumption-dk-areas_2022_hourl'!D137 -> 3213 | R141: ='consumption-dk-areas_2022_hourl'!E137 -> 2080 | S141: 5293 | T141: ='consumption-prognosis_2022_hour'!F137 -> 3249 | U141: ='consumption-prognosis_2022_hour'!G137 -> 2086 | V141: 5335 | W141: 1900-05-13 | X141: 5293 | Y141: 5335 | Z141: 134 | AA141: 0.081232493 | AB141: 0.1240384615 | AC141: 134 | AD141: 0.05666521928 | AE141: 0.1658097686 | AF141: =LOOKUP(A141,'Gas Prices'!B:B,'Gas Prices'!C:C) -> 30.71355824 | AG141: ='elspot-prices_2022_hourly_eur ('!J137 -> 209.2 | AH141: ='elspot-prices_2022_hourly_eur ('!K137 -> 209.2 | AI141: 6.811324118 | AJ141: 6.811324118 | AK141: ='elspot-prices_2022_hourly_eur ('!C137 -> 209.2 | AL141: 6.811324118 | AM141: 134 | AN141: 209.2 | AO141: 209.2 | AP141: 510 | AQ141: 134 | AR141: 209.2 | AS141: 209.2 | AT141: 30.71355824 | AU141: 134 | AV141: 6.811324118 | AW141: 6.811324118 | AX141: 6.811324118
A142: 2022-01-06T14:00:00 | B142: 14 - 15 | C142: 342 | D142: 216 | E142: 558 | F142: 213 | G142: 254 | H142: 2022-01-06T14:00:00 | I142: 135 | J142: TRUE | K142: 558 | L142: 467 | M142: 1900-05-14 | N142: 558 | O142: 467 | P142: 1 | Q142: ='consumption-dk-areas_2022_hourl'!D138 -> 3156 | R142: ='consumption-dk-areas_2022_hourl'!E138 -> 2049 | S142: 5205 | T142: ='consumption-prognosis_2022_hour'!F138 -> 3196 | U142: ='consumption-prognosis_2022_hour'!G138 -> 2057 | V142: 5253 | W142: 1900-05-14 | X142: 5205 | Y142: 5253 | Z142: 135 | AA142: 0.108365019 | AB142: 0.1054172767 | AC142: 135 | AD142: 0.07425097699 | AE142: 0.1388174807 | AF142: =LOOKUP(A142,'Gas Prices'!B:B,'Gas Prices'!C:C) -> 30.71355824 | AG142: ='elspot-prices_2022_hourly_eur ('!J138 -> 216.06 | AH142: ='elspot-prices_2022_hourly_eur ('!K138 -> 216.06 | AI142: 7.034678245 | AJ142: 7.034678245 | AK142: ='elspot-prices_2022_hourly_eur ('!C138 -> 216.06 | AL142: 7.034678245 | AM142: 135 | AN142: 216.06 | AO142: 216.06 | AP142: 467 | AQ142: 135 | AR142: 216.06 | AS142: 216.06 | AT142: 30.71355824 | AU142: 135 | AV142: 7.034678245 | AW142: 7.034678245 | AX142: 7.034678245
A143: 2022-01-06T15:00:00 | B143: 15 - 16 | C143: 426 | D143: 186 | E143: 612 | F143: 277 | G143: 241 | H143: 2022-01-06T15:00:00 | I143: 136 | J143: TRUE | K143: 612 | L143: 518 | M143: 1900-05-15 | N143: 612 | O143: 518 | P143: 1 | Q143: ='consumption-dk-areas_2022_hourl'!D139 -> 3113 | R143: ='consumption-dk-areas_2022_hourl'!E139 -> 2049 | S143: 5162 | T143: ='consumption-prognosis_2022_hour'!F139 -> 3140 | U143: ='consumption-prognosis_2022_hour'!G139 -> 2038 | V143: 5178 | W143: 1900-05-15 | X143: 5162 | Y143: 5178 | Z143: 136 | AA143: 0.1368454867 | AB143: 0.09077598829 | AC143: 136 | AD143: 0.09248805905 | AE143: 0.1195372751 | AF143: =LOOKUP(A143,'Gas Prices'!B:B,'Gas Prices'!C:C) -> 30.71355824 | AG143: ='elspot-prices_2022_hourly_eur ('!J139 -> 230.77 | AH143: ='elspot-prices_2022_hourly_eur ('!K139 -> 230.77 | AI143: 7.513619821 | AJ143: 7.513619821 | AK143: ='elspot-prices_2022_hourly_eur ('!C139 -> 230.77 | AL143: 7.513619821 | AM143: 136 | AN143: 230.77 | AO143: 230.77 | AP143: 518 | AQ143: 136 | AR143: 230.77 | AS143: 230.77 | AT143: 30.71355824 | AU143: 136 | AV143: 7.513619821 | AW143: 7.513619821 | AX143: 7.513619821
A144: 2022-01-06T16:00:00 | B144: 16 - 17 | C144: 635 | D144: 237 | E144: 872 | F144: 336 | G144: 251 | H144: 2022-01-06T16:00:00 | I144: 137 | J144: TRUE | K144: 872 | L144: 587 | M144: 1900-05-16 | N144: 872 | O144: 587 | P144: 1 | Q144: ='consumption-dk-areas_2022_hourl'!D140 -> 3237 | R144: ='consumption-dk-areas_2022_hourl'!E140 -> 2173 | S144: 5410 | T144: ='consumption-prognosis_2022_hour'!F140 -> 3172 | U144: ='consumption-prognosis_2022_hour'!G140 -> 2141 | V144: 5313 | W144: 1900-05-16 | X144: 5410 | Y144: 5313 | Z144: 137 | AA144: 0.1961692926 | AB144: 0.1090658076 | AC144: 137 | AD144: 0.1378636561 | AE144: 0.1523136247 | AF144: =LOOKUP(A144,'Gas Prices'!B:B,'Gas Prices'!C:C) -> 30.71355824 | AG144: ='elspot-prices_2022_hourly_eur ('!J140 -> 245.95 | AH144: ='elspot-prices_2022_hourly_eur ('!K140 -> 245.95 | AI144: 8.007864086 | AJ144: 8.007864086 | AK144: ='elspot-prices_2022_hourly_eur ('!C140 -> 245.95 | AL144: 8.007864086 | AM144: 137 | AN144: 245.95 | AO144: 245.95 | AP144: 587 | AQ144: 137 | AR144: 245.95 | AS144: 245.95 | AT144: 30.71355824 | AU144: 137 | AV144: 8.007864086 | AW144: 8.007864086 | AX144: 8.007864086
A145: 2022-01-06T17:00:00 | B145: 17 - 18 | C145: 834 | D145: 319 | E145: 1153 | F145: 461 | G145: 231 | H145: 2022-01-06T17:00:00 | I145: 138 | J145: TRUE | K145: 1153 | L145: 692 | M145: 1900-05-17 | N145: 1153 | O145: 692 | P145: 1 | Q145: ='consumption-dk-areas_2022_hourl'!D141 -> 3488 | R145: ='consumption-dk-areas_2022_hourl'!E141 -> 2329 | S145: 5817 | T145: ='consumption-prognosis_2022_hour'!F141 -> 3457 | U145: ='consumption-prognosis_2022_hour'!G141 -> 2296 | V145: 5753 | W145: 1900-05-17 | X145: 5817 | Y145: 5753 | Z145: 138 | AA145: 0.2391055046 | AB145: 0.1369686561 | AC145: 138 | AD145: 0.1810681719 | AE145: 0.2050128535 | AF145: =LOOKUP(A145,'Gas Prices'!B:B,'Gas Prices'!C:C) -> 30.71355824 | AG145: ='elspot-prices_2022_hourly_eur ('!J141 -> 274.11 | AH145: ='elspot-prices_2022_hourly_eur ('!K141 -> 274.11 | AI145: 8.924723011 | AJ145: 8.924723011 | AK145: ='elspot-prices_2022_hourly_eur ('!C141 -> 274.11 | AL145: 8.924723011 | AM145: 138 | AN145: 274.11 | AO145: 274.11 | AP145: 692 | AQ145: 138 | AR145: 274.11 | AS145: 274.11 | AT145: 30.71355824 | AU145: 138 | AV145: 8.924723011 | AW145: 8.924723011 | AX145: 8.924723011
A146: 2022-01-06T18:00:00 | B146: 18 - 19 | C146: 1049 | D146: 475 | E146: 1524 | F146: 640 | G146: 217 | H146: 2022-01-06T18:00:00 | I146: 139 | J146: TRUE | K146: 1524 | L146: 857 | M146: 1900-05-18 | N146: 1524 | O146: 857 | P146: 1 | Q146: ='consumption-dk-areas_2022_hourl'!D142 -> 3372 | R146: ='consumption-dk-areas_2022_hourl'!E142 -> 2283 | S146: 5655 | T146: ='consumption-prognosis_2022_hour'!F142 -> 3348 | U146: ='consumption-prognosis_2022_hour'!G142 -> 2281 | V146: 5629 | W146: 1900-05-18 | X146: 5655 | Y146: 5629 | Z146: 139 | AA146: 0.3110913405 | AB146: 0.2080595707 | AC146: 139 | AD146: 0.2277464177 | AE146: 0.3052699229 | AF146: =LOOKUP(A146,'Gas Prices'!B:B,'Gas Prices'!C:C) -> 30.71355824 | AG146: ='elspot-prices_2022_hourly_eur ('!J142 -> 273.44 | AH146: ='elspot-prices_2022_hourly_eur ('!K142 -> 273.44 | AI146: 8.902908541 | AJ146: 8.902908541 | AK146: ='elspot-prices_2022_hourly_eur ('!C142 -> 273.44 | AL146: 8.902908541 | AM146: 139 | AN146: 273.44 | AO146: 273.44 | AP146: 857 | AQ146: 139 | AR146: 273.44 | AS146: 273.44 | AT146: 30.71355824 | AU146: 139 | AV146: 8.902908541 | AW146: 8.902908541 | AX146: 8.902908541
A147: 2022-01-06T19:00:00 | B147: 19 - 20 | C147: 1326 | D147: 579 | E147: 1905 | F147: 847 | G147: 234 | H147: 2022-01-06T19:00:00 | I147: 140 | J147: TRUE | K147: 1905 | L147: 1081 | M147: 1900-05-19 | N147: 1905 | O147: 1081 | P147: 1 | Q147: ='consumption-dk-areas_2022_hourl'!D143 -> 3167 | R147: ='consumption-dk-areas_2022_hourl'!E143 -> 2142 | S147: 5309 | T147: ='consumption-prognosis_2022_hour'!F143 -> 3271 | U147: ='consumption-prognosis_2022_hour'!G143 -> 2194 | V147: 5465 | W147: 1900-05-19 | X147: 5309 | Y147: 5465 | Z147: 140 | AA147: 0.4186927692 | AB147: 0.2703081232 | AC147: 140 | AD147: 0.2878853669 | AE147: 0.3721079692 | AF147: =LOOKUP(A147,'Gas Prices'!B:B,'Gas Prices'!C:C) -> 30.71355824 | AG147: ='elspot-prices_2022_hourly_eur ('!J143 -> 219.77 | AH147: ='elspot-prices_2022_hourly_eur ('!K143 -> 240.02 | AI147: 7.155471804 | AJ147: 7.814789745 | AK147: ='elspot-prices_2022_hourly_eur ('!C143 -> 278.36 | AL147: 9.063098381 | AM147: 140 | AN147: 219.77 | AO147: 278.36 | AP147: 1081 | AQ147: 140 | AR147: 219.77 | AS147: 278.36 | AT147: 30.71355824 | AU147: 140 | AV147: 7.155471804 | AW147: 7.814789745 | AX147: 9.063098381
A148: 2022-01-06T20:00:00 | B148: 20 - 21 | C148: 1576 | D148: 610 | E148: 2186 | F148: 1052 | G148: 281 | H148: 2022-01-06T20:00:00 | I148: 141 | J148: TRUE | K148: 2186 | L148: 1333 | M148: 1900-05-20 | N148: 2186 | O148: 1333 | P148: 1 | Q148: ='consumption-dk-areas_2022_hourl'!D144 -> 3010 | R148: ='consumption-dk-areas_2022_hourl'!E144 -> 2000 | S148: 5010 | T148: ='consumption-prognosis_2022_hour'!F144 -> 3084 | U148: ='consumption-prognosis_2022_hour'!G144 -> 2068 | V148: 5152 | W148: 1900-05-20 | X148: 5010 | Y148: 5152 | Z148: 141 | AA148: 0.5235880399 | AB148: 0.305 | AC148: 141 | AD148: 0.3421623969 | AE148: 0.3920308483 | AF148: =LOOKUP(A148,'Gas Prices'!B:B,'Gas Prices'!C:C) -> 30.71355824 | AG148: ='elspot-prices_2022_hourly_eur ('!J144 -> 217.91 | AH148: ='elspot-prices_2022_hourly_eur ('!K144 -> 217.91 | AI148: 7.09491223 | AJ148: 7.09491223 | AK148: ='elspot-prices_2022_hourly_eur ('!C144 -> 251.71 | AL148: 8.195403411 | AM148: 141 | AN148: 217.91 | AO148: 251.71 | AP148: 1333 | AQ148: 141 | AR148: 217.91 | AS148: 251.71 | AT148: 30.71355824 | AU148: 141 | AV148: 7.09491223 | AW148: 7.09491223 | AX148: 8.195403411
A149: 2022-01-06T21:00:00 | B149: 21 - 22 | C149: 1754 | D149: 623 | E149: 2377 | F149: 1357 | G149: 353 | H149: 2022-01-06T21:00:00 | I149: 142 | J149: TRUE | K149: 2377 | L149: 1710 | M149: 1900-05-21 | N149: 2377 | O149: 1710 | P149: 1 | Q149: ='consumption-dk-areas_2022_hourl'!D145 -> 2858 | R149: ='consumption-dk-areas_2022_hourl'!E145 -> 1872 | S149: 4730 | T149: ='consumption-prognosis_2022_hour'!F145 -> 2962 | U149: ='consumption-prognosis_2022_hour'!G145 -> 1935 | V149: 4897 | W149: 1900-05-21 | X149: 4730 | Y149: 4897 | Z149: 142 | AA149: 0.6137158852 | AB149: 0.3327991453 | AC149: 142 | AD149: 0.3808076422 | AE149: 0.4003856041 | AF149: =LOOKUP(A149,'Gas Prices'!B:B,'Gas Prices'!C:C) -> 30.71355824 | AG149: ='elspot-prices_2022_hourly_eur ('!J145 -> 203.31 | AH149: ='elspot-prices_2022_hourly_eur ('!K145 -> 203.31 | AI149: 6.619552134 | AJ149: 6.619552134 | AK149: ='elspot-prices_2022_hourly_eur ('!C145 -> 229.96 | AL149: 7.487247104 | AM149: 142 | AN149: 203.31 | AO149: 229.96 | AP149: 1710 | AQ149: 142 | AR149: 203.31 | AS149: 229.96 | AT149: 30.71355824 | AU149: 142 | AV149: 6.619552134 | AW149: 6.619552134 | AX149: 7.487247104
A150: 2022-01-06T22:00:00 | B150: 22 - 23 | C150: 2026 | D150: 660 | E150: 2686 | F150: 1560 | G150: 419 | H150: 2022-01-06T22:00:00 | I150: 143 | J150: TRUE | K150: 2686 | L150: 1979 | M150: 1900-05-22 | N150: 2686 | O150: 1979 | P150: 1 | Q150: ='consumption-dk-areas_2022_hourl'!D146 -> 2739 | R150: ='consumption-dk-areas_2022_hourl'!E146 -> 1759 | S150: 4498 | T150: ='consumption-prognosis_2022_hour'!F146 -> 2843 | U150: ='consumption-prognosis_2022_hour'!G146 -> 1793 | V150: 4636 | W150: 1900-05-22 | X150: 4498 | Y150: 4636 | Z150: 143 | AA150: 0.7396860168 | AB150: 0.3752131893 | AC150: 143 | AD150: 0.4398610508 | AE150: 0.4241645244 | AF150: =LOOKUP(A150,'Gas Prices'!B:B,'Gas Prices'!C:C) -> 30.71355824 | AG150: ='elspot-prices_2022_hourly_eur ('!J146 -> 171.31 | AH150: ='elspot-prices_2022_hourly_eur ('!K146 -> 171.31 | AI150: 5.577666991 | AJ150: 5.577666991 | AK150: ='elspot-prices_2022_hourly_eur ('!C146 -> 216.44 | AL150: 7.047050631 | AM150: 143 | AN150: 171.31 | AO150: 216.44 | AP150: 1979 | AQ150: 143 | AR150: 171.31 | AS150: 216.44 | AT150: 30.71355824 | AU150: 143 | AV150: 5.577666991 | AW150: 5.577666991 | AX150: 7.047050631
A151: 2022-01-06T23:00:00 | B151: 23 - 00 | C151: 2249 | D151: 660 | E151: 2909 | F151: 1780 | G151: 511 | H151: 2022-01-06T23:00:00 | I151: 144 | J151: TRUE | K151: 2909 | L151: 2291 | M151: 1900-05-23 | N151: 2909 | O151: 2291 | P151: 1 | Q151: ='consumption-dk-areas_2022_hourl'!D147 -> 2603 | R151: ='consumption-dk-areas_2022_hourl'!E147 -> 1629 | S151: 4232 | T151: ='consumption-prognosis_2022_hour'!F147 -> 2737 | U151: ='consumption-prognosis_2022_hour'!G147 -> 1691 | V151: 4428 | W151: 1900-05-23 | X151: 4232 | Y151: 4428 | Z151: 144 | AA151: 0.8640030734 | AB151: 0.4051565378 | AC151: 144 | AD151: 0.4882761615 | AE151: 0.4241645244 | AF151: =LOOKUP(A151,'Gas Prices'!B:B,'Gas Prices'!C:C) -> 30.71355824 | AG151: ='elspot-prices_2022_hourly_eur ('!J147 -> 124.7 | AH151: ='elspot-prices_2022_hourly_eur ('!K147 -> 124.7 | AI151: 4.060096164 | AJ151: 4.060096164 | AK151: ='elspot-prices_2022_hourly_eur ('!C147 -> 210 | AL151: 6.837371246 | AM151: 144 | AN151: 124.7 | AO151: 210 | AP151: 2291 | AQ151: 144 | AR151: 124.7 | AS151: 210 | AT151: 30.71355824 | AU151: 144 | AV151: 4.060096164 | AW151: 4.060096164 | AX151: 6.837371246
A152: 2022-01-07 | B152: 00 - 01 | C152: 2391 | D152: 810 | E152: 3201 | F152: 2416 | G152: 973 | H152: 2022-01-07 | I152: 145 | J152: TRUE | K152: 3201 | L152: 3389 | M152: 1900-05-24 | N152: 3201 | O152: 3389 | P152: 1 | Q152: ='consumption-dk-areas_2022_hourl'!D148 -> 2465 | R152: ='consumption-dk-areas_2022_hourl'!E148 -> 1522 | S152: 3987 | T152: ='consumption-prognosis_2022_hour'!F148 -> 2463 | U152: ='consumption-prognosis_2022_hour'!G148 -> 1548 | V152: 4011 | W152: 1900-05-24 | X152: 3987 | Y152: 4011 | Z152: 145 | AA152: 0.969979716 | AB152: 0.5321944809 | AC152: 145 | AD152: 0.5191055145 | AE152: 0.5205655527 | AF152: =LOOKUP(A152,'Gas Prices'!B:B,'Gas Prices'!C:C) -> 30.71355824 | AG152: ='elspot-prices_2022_hourly_eur ('!J148 -> 128.92 | AH152: ='elspot-prices_2022_hourly_eur ('!K148 -> 128.92 | AI152: 4.197494767 | AJ152: 4.197494767 | AK152: ='elspot-prices_2022_hourly_eur ('!C148 -> 213.47 | AL152: 6.950350666 | AM152: 145 | AN152: 128.92 | AO152: 213.47 | AP152: 3389 | AQ152: 145 | AR152: 128.92 | AS152: 213.47 | AT152: 30.71355824 | AU152: 145 | AV152: 4.197494767 | AW152: 4.197494767 | AX152: 6.950350666
A153: 2022-01-07T01:00:00 | B153: 01 - 02 | C153: 2586 | D153: 978 | E153: 3564 | F153: 2559 | G153: 1034 | H153: 2022-01-07T01:00:00 | I153: 146 | J153: TRUE | K153: 3564 | L153: 3593 | M153: 1900-05-25 | N153: 3564 | O153: 3593 | P153: 1 | Q153: ='consumption-dk-areas_2022_hourl'!D149 -> 2399 | R153: ='consumption-dk-areas_2022_hourl'!E149 -> 1455 | S153: 3854 | T153: ='consumption-prognosis_2022_hour'!F149 -> 2359 | U153: ='consumption-prognosis_2022_hour'!G149 -> 1483 | V153: 3842 | W153: 1900-05-25 | X153: 3854 | Y153: 3842 | Z153: 146 | AA153: 1.077949145 | AB153: 0.6721649485 | AC153: 146 | AD153: 0.5614415979 | AE153: 0.6285347044 | AF153: =LOOKUP(A153,'Gas Prices'!B:B,'Gas Prices'!C:C) -> 28.06301719 | AG153: ='elspot-prices_2022_hourly_eur ('!J149 -> 116.65 | AH153: ='elspot-prices_2022_hourly_eur ('!K149 -> 116.65 | AI153: 4.156716266 | AJ153: 4.156716266 | AK153: ='elspot-prices_2022_hourly_eur ('!C149 -> 189 | AL153: 6.734842471 | AM153: 146 | AN153: 116.65 | AO153: 189 | AP153: 3593 | AQ153: 146 | AR153: 116.65 | AS153: 189 | AT153: 28.06301719 | AU153: 146 | AV153: 4.156716266 | AW153: 4.156716266 | AX153: 6.734842471
A154: 2022-01-07T02:00:00 | B154: 02 - 03 | C154: 2862 | D154: 994 | E154: 3856 | F154: 2814 | G154: 1112 | H154: 2022-01-07T02:00:00 | I154: 147 | J154: TRUE | K154: 3856 | L154: 3926 | M154: 1900-05-26 | N154: 3856 | O154: 3926 | P154: 1 | Q154: ='consumption-dk-areas_2022_hourl'!D150 -> 2428 | R154: ='consumption-dk-areas_2022_hourl'!E150 -> 1441 | S154: 3869 | T154: ='consumption-prognosis_2022_hour'!F150 -> 2339 | U154: ='consumption-prognosis_2022_hour'!G150 -> 1458 | V154: 3797 | W154: 1900-05-26 | X154: 3869 | Y154: 3797 | Z154: 147 | AA154: 1.178747941 | AB154: 0.6897987509 | AC154: 147 | AD154: 0.621363439 | AE154: 0.6388174807 | AF154: =LOOKUP(A154,'Gas Prices'!B:B,'Gas Prices'!C:C) -> 28.06301719 | AG154: ='elspot-prices_2022_hourly_eur ('!J150 -> 100.54 | AH154: ='elspot-prices_2022_hourly_eur ('!K150 -> 100.54 | AI154: 3.582651122 | AJ154: 3.582651122 | AK154: ='elspot-prices_2022_hourly_eur ('!C150 -> 180 | AL154: 6.414135686 | AM154: 147 | AN154: 100.54 | AO154: 180 | AP154: 3926 | AQ154: 147 | AR154: 100.54 | AS154: 180 | AT154: 28.06301719 | AU154: 147 | AV154: 3.582651122 | AW154: 3.582651122 | AX154: 6.414135686
A155: 2022-01-07T03:00:00 | B155: 03 - 04 | C155: 3268 | D155: 1123 | E155: 4391 | F155: 3021 | G155: 1155 | H155: 2022-01-07T03:00:00 | I155: 148 | J155: TRUE | K155: 4391 | L155: 4176 | M155: 1900-05-27 | N155: 4391 | O155: 4176 | P155: 1 | Q155: ='consumption-dk-areas_2022_hourl'!D151 -> 2427 | R155: ='consumption-dk-areas_2022_hourl'!E151 -> 1445 | S155: 3872 | T155: ='consumption-prognosis_2022_hour'!F151 -> 2405 | U155: ='consumption-prognosis_2022_hour'!G151 -> 1456 | V155: 3861 | W155: 1900-05-27 | X155: 3872 | Y155: 3861 | Z155: 148 | AA155: 1.346518335 | AB155: 0.7771626298 | AC155: 148 | AD155: 0.7095093356 | AE155: 0.721722365 | AF155: =LOOKUP(A155,'Gas Prices'!B:B,'Gas Prices'!C:C) -> 28.06301719 | AG155: ='elspot-prices_2022_hourly_eur ('!J151 -> 99.47 | AH155: ='elspot-prices_2022_hourly_eur ('!K151 -> 99.47 | AI155: 3.544522648 | AJ155: 3.544522648 | AK155: ='elspot-prices_2022_hourly_eur ('!C151 -> 164.9 | AL155: 5.87606097 | AM155: 148 | AN155: 99.47 | AO155: 164.9 | AP155: 4176 | AQ155: 148 | AR155: 99.47 | AS155: 164.9 | AT155: 28.06301719 | AU155: 148 | AV155: 3.544522648 | AW155: 3.544522648 | AX155: 5.87606097
A156: 2022-01-07T04:00:00 | B156: 04 - 05 | C156: 3454 | D156: 1204 | E156: 4658 | F156: 3239 | G156: 1211 | H156: 2022-01-07T04:00:00 | I156: 149 | J156: TRUE | K156: 4658 | L156: 4450 | M156: 1900-05-28 | N156: 4658 | O156: 4450 | P156: 1 | Q156: ='consumption-dk-areas_2022_hourl'!D152 -> 2416 | R156: ='consumption-dk-areas_2022_hourl'!E152 -> 1436 | S156: 3852 | T156: ='consumption-prognosis_2022_hour'!F152 -> 2486 | U156: ='consumption-prognosis_2022_hour'!G152 -> 1498 | V156: 3984 | W156: 1900-05-28 | X156: 3852 | Y156: 3984 | Z156: 149 | AA156: 1.429635762 | AB156: 0.8384401114 | AC156: 149 | AD156: 0.7498914459 | AE156: 0.7737789203 | AF156: =LOOKUP(A156,'Gas Prices'!B:B,'Gas Prices'!C:C) -> 28.06301719 | AG156: ='elspot-prices_2022_hourly_eur ('!J152 -> 101.74 | AH156: ='elspot-prices_2022_hourly_eur ('!K152 -> 101.74 | AI156: 3.625412026 | AJ156: 3.625412026 | AK156: ='elspot-prices_2022_hourly_eur ('!C152 -> 162.8 | AL156: 5.801229387 | AM156: 149 | AN156: 101.74 | AO156: 162.8 | AP156: 4450 | AQ156: 149 | AR156: 101.74 | AS156: 162.8 | AT156: 28.06301719 | AU156: 149 | AV156: 3.625412026 | AW156: 3.625412026 | AX156: 5.801229387
A157: 2022-01-07T05:00:00 | B157: 05 - 06 | C157: 3533 | D157: 1235 | E157: 4768 | F157: 3333 | G157: 1250 | H157: 2022-01-07T05:00:00 | I157: 150 | J157: TRUE | K157: 4768 | L157: 4583 | M157: 1900-05-29 | N157: 4768 | O157: 4583 | P157: 1 | Q157: ='consumption-dk-areas_2022_hourl'!D153 -> 2630 | R157: ='consumption-dk-areas_2022_hourl'!E153 -> 1541 | S157: 4171 | T157: ='consumption-prognosis_2022_hour'!F153 -> 2615 | U157: ='consumption-prognosis_2022_hour'!G153 -> 1532 | V157: 4147 | W157: 1900-05-29 | X157: 4171 | Y157: 4147 | Z157: 150 | AA157: 1.343346008 | AB157: 0.8014276444 | AC157: 150 | AD157: 0.7670429874 | AE157: 0.7937017995 | AF157: =LOOKUP(A157,'Gas Prices'!B:B,'Gas Prices'!C:C) -> 28.06301719 | AG157: ='elspot-prices_2022_hourly_eur ('!J153 -> 114.99 | AH157: ='elspot-prices_2022_hourly_eur ('!K153 -> 114.99 | AI157: 4.097563681 | AJ157: 4.097563681 | AK157: ='elspot-prices_2022_hourly_eur ('!C153 -> 165 | AL157: 5.879624379 | AM157: 150 | AN157: 114.99 | AO157: 165 | AP157: 4583 | AQ157: 150 | AR157: 114.99 | AS157: 165 | AT157: 28.06301719 | AU157: 150 | AV157: 4.097563681 | AW157: 4.097563681 | AX157: 5.879624379
A158: 2022-01-07T06:00:00 | B158: 06 - 07 | C158: 3607 | D158: 1310 | E158: 4917 | F158: 3228 | G158: 1288 | H158: 2022-01-07T06:00:00 | I158: 151 | J158: TRUE | K158: 4917 | L158: 4516 | M158: 1900-05-30 | N158: 4917 | O158: 4516 | P158: 1 | Q158: ='consumption-dk-areas_2022_hourl'!D154 -> 2955 | R158: ='consumption-dk-areas_2022_hourl'!E154 -> 1839 | S158: 4794 | T158: ='consumption-prognosis_2022_hour'!F154 -> 2891 | U158: ='consumption-prognosis_2022_hour'!G154 -> 1734 | V158: 4625 | W158: 1900-05-30 | X158: 4794 | Y158: 4625 | Z158: 151 | AA158: 1.220642978 | AB158: 0.712343665 | AC158: 151 | AD158: 0.7831089883 | AE158: 0.8419023136 | AF158: =LOOKUP(A158,'Gas Prices'!B:B,'Gas Prices'!C:C) -> 28.06301719 | AG158: ='elspot-prices_2022_hourly_eur ('!J154 -> 140.19 | AH158: ='elspot-prices_2022_hourly_eur ('!K154 -> 140.19 | AI158: 4.995542677 | AJ158: 4.995542677 | AK158: ='elspot-prices_2022_hourly_eur ('!C154 -> 165.2 | AL158: 5.886751196 | AM158: 151 | AN158: 140.19 | AO158: 165.2 | AP158: 4516 | AQ158: 151 | AR158: 140.19 | AS158: 165.2 | AT158: 28.06301719 | AU158: 151 | AV158: 4.995542677 | AW158: 4.995542677 | AX158: 5.886751196
A159: 2022-01-07T07:00:00 | B159: 07 - 08 | C159: 3520 | D159: 1276 | E159: 4796 | F159: 3086 | G159: 1318 | H159: 2022-01-07T07:00:00 | I159: 152 | J159: TRUE | K159: 4796 | L159: 4404 | M159: 1900-05-31 | N159: 4796 | O159: 4404 | P159: 1 | Q159: ='consumption-dk-areas_2022_hourl'!D155 -> 3308 | R159: ='consumption-dk-areas_2022_hourl'!E155 -> 2086 | S159: 5394 | T159: ='consumption-prognosis_2022_hour'!F155 -> 3231 | U159: ='consumption-prognosis_2022_hour'!G155 -> 2012 | V159: 5243 | W159: 1900-05-31 | X159: 5394 | Y159: 5243 | Z159: 152 | AA159: 1.064087062 | AB159: 0.6116970278 | AC159: 152 | AD159: 0.7642205818 | AE159: 0.8200514139 | AF159: =LOOKUP(A159,'Gas Prices'!B:B,'Gas Prices'!C:C) -> 28.06301719 | AG159: ='elspot-prices_2022_hourly_eur ('!J155 -> 152.64 | AH159: ='elspot-prices_2022_hourly_eur ('!K155 -> 152.64 | AI159: 5.439187062 | AJ159: 5.439187062 | AK159: ='elspot-prices_2022_hourly_eur ('!C155 -> 215.89 | AL159: 7.693043074 | AM159: 152 | AN159: 152.64 | AO159: 215.89 | AP159: 4404 | AQ159: 152 | AR159: 152.64 | AS159: 215.89 | AT159: 28.06301719 | AU159: 152 | AV159: 5.439187062 | AW159: 5.439187062 | AX159: 7.693043074
A160: 2022-01-07T08:00:00 | B160: 08 - 09 | C160: 3156 | D160: 1257 | E160: 4413 | F160: 2836 | G160: 1326 | H160: 2022-01-07T08:00:00 | I160: 153 | J160: TRUE | K160: 4413 | L160: 4162 | M160: 1900-06-01 | N160: 4413 | O160: 4162 | P160: 1 | Q160: ='consumption-dk-areas_2022_hourl'!D156 -> 3441 | R160: ='consumption-dk-areas_2022_hourl'!E156 -> 2169 | S160: 5610 | T160: ='consumption-prognosis_2022_hour'!F156 -> 3401 | U160: ='consumption-prognosis_2022_hour'!G156 -> 2123 | V160: 5524 | W160: 1900-06-01 | X160: 5610 | Y160: 5524 | Z160: 153 | AA160: 0.9171752398 | AB160: 0.5795297372 | AC160: 153 | AD160: 0.6851932262 | AE160: 0.807840617 | AF160: =LOOKUP(A160,'Gas Prices'!B:B,'Gas Prices'!C:C) -> 28.06301719 | AG160: ='elspot-prices_2022_hourly_eur ('!J156 -> 160.97 | AH160: ='elspot-prices_2022_hourly_eur ('!K156 -> 160.97 | AI160: 5.736019008 | AJ160: 5.736019008 | AK160: ='elspot-prices_2022_hourly_eur ('!C156 -> 254.19 | AL160: 9.057828612 | AM160: 153 | AN160: 160.97 | AO160: 254.19 | AP160: 4162 | AQ160: 153 | AR160: 160.97 | AS160: 254.19 | AT160: 28.06301719 | AU160: 153 | AV160: 5.736019008 | AW160: 5.736019008 | AX160: 9.057828612
A161: 2022-01-07T09:00:00 | B161: 09 - 10 | C161: 2555 | D161: 1272 | E161: 3827 | F161: 2468 | G161: 1296 | H161: 2022-01-07T09:00:00 | I161: 154 | J161: TRUE | K161: 3827 | L161: 3764 | M161: 1900-06-02 | N161: 3827 | O161: 3764 | P161: 1 | Q161: ='consumption-dk-areas_2022_hourl'!D157 -> 3427 | R161: ='consumption-dk-areas_2022_hourl'!E157 -> 2192 | S161: 5619 | T161: ='consumption-prognosis_2022_hour'!F157 -> 3374 | U161: ='consumption-prognosis_2022_hour'!G157 -> 2085 | V161: 5459 | W161: 1900-06-02 | X161: 5619 | Y161: 5459 | Z161: 154 | AA161: 0.7455500438 | AB161: 0.5802919708 | AC161: 154 | AD161: 0.5547112462 | AE161: 0.8174807198 | AF161: =LOOKUP(A161,'Gas Prices'!B:B,'Gas Prices'!C:C) -> 28.06301719 | AG161: ='elspot-prices_2022_hourly_eur ('!J157 -> 161.85 | AH161: ='elspot-prices_2022_hourly_eur ('!K157 -> 161.85 | AI161: 5.767377005 | AJ161: 5.767377005 | AK161: ='elspot-prices_2022_hourly_eur ('!C157 -> 257.24 | AL161: 9.166512577 | AM161: 154 | AN161: 161.85 | AO161: 257.24 | AP161: 3764 | AQ161: 154 | AR161: 161.85 | AS161: 257.24 | AT161: 28.06301719 | AU161: 154 | AV161: 5.767377005 | AW161: 5.767377005 | AX161: 9.166512577
A162: 2022-01-07T10:00:00 | B162: 10 - 11 | C162: 2511 | D162: 1242 | E162: 3753 | F162: 2188 | G162: 1239 | H162: 2022-01-07T10:00:00 | I162: 155 | J162: TRUE | K162: 3753 | L162: 3427 | M162: 1900-06-03 | N162: 3753 | O162: 3427 | P162: 1 | Q162: ='consumption-dk-areas_2022_hourl'!D158 -> 3394 | R162: ='consumption-dk-areas_2022_hourl'!E158 -> 2198 | S162: 5592 | T162: ='consumption-prognosis_2022_hour'!F158 -> 3435 | U162: ='consumption-prognosis_2022_hour'!G158 -> 2183 | V162: 5618 | W162: 1900-06-03 | X162: 5592 | Y162: 5618 | Z162: 155 | AA162: 0.7398350029 | AB162: 0.5650591447 | AC162: 155 | AD162: 0.5451584889 | AE162: 0.7982005141 | AF162: =LOOKUP(A162,'Gas Prices'!B:B,'Gas Prices'!C:C) -> 28.06301719 | AG162: ='elspot-prices_2022_hourly_eur ('!J158 -> 161.37 | AH162: ='elspot-prices_2022_hourly_eur ('!K158 -> 161.37 | AI162: 5.750272643 | AJ162: 5.750272643 | AK162: ='elspot-prices_2022_hourly_eur ('!C158 -> 254.18 | AL162: 9.057472271 | AM162: 155 | AN162: 161.37 | AO162: 254.18 | AP162: 3427 | AQ162: 155 | AR162: 161.37 | AS162: 254.18 | AT162: 28.06301719 | AU162: 155 | AV162: 5.750272643 | AW162: 5.750272643 | AX162: 9.057472271
A163: 2022-01-07T11:00:00 | B163: 11 - 12 | C163: 2472 | D163: 1201 | E163: 3673 | F163: 2091 | G163: 1229 | H163: 2022-01-07T11:00:00 | I163: 156 | J163: TRUE | K163: 3673 | L163: 3320 | M163: 1900-06-04 | N163: 3673 | O163: 3320 | P163: 1 | Q163: ='consumption-dk-areas_2022_hourl'!D159 -> 3400 | R163: ='consumption-dk-areas_2022_hourl'!E159 -> 2197 | S163: 5597 | T163: ='consumption-prognosis_2022_hour'!F159 -> 3379 | U163: ='consumption-prognosis_2022_hour'!G159 -> 2170 | V163: 5549 | W163: 1900-06-04 | X163: 5597 | Y163: 5549 | Z163: 156 | AA163: 0.7270588235 | AB163: 0.5466545289 | AC163: 156 | AD163: 0.5366912723 | AE163: 0.7718508997 | AF163: =LOOKUP(A163,'Gas Prices'!B:B,'Gas Prices'!C:C) -> 28.06301719 | AG163: ='elspot-prices_2022_hourly_eur ('!J159 -> 166.06 | AH163: ='elspot-prices_2022_hourly_eur ('!K159 -> 166.06 | AI163: 5.917396511 | AJ163: 5.917396511 | AK163: ='elspot-prices_2022_hourly_eur ('!C159 -> 241.22 | AL163: 8.595654501 | AM163: 156 | AN163: 166.06 | AO163: 241.22 | AP163: 3320 | AQ163: 156 | AR163: 166.06 | AS163: 241.22 | AT163: 28.06301719 | AU163: 156 | AV163: 5.917396511 | AW163: 5.917396511 | AX163: 8.595654501
A164: 2022-01-07T12:00:00 | B164: 12 - 13 | C164: 2319 | D164: 1180 | E164: 3499 | F164: 2004 | G164: 1207 | H164: 2022-01-07T12:00:00 | I164: 157 | J164: TRUE | K164: 3499 | L164: 3211 | M164: 1900-06-05 | N164: 3499 | O164: 3211 | P164: 1 | Q164: ='consumption-dk-areas_2022_hourl'!D160 -> 3331 | R164: ='consumption-dk-areas_2022_hourl'!E160 -> 2188 | S164: 5519 | T164: ='consumption-prognosis_2022_hour'!F160 -> 3273 | U164: ='consumption-prognosis_2022_hour'!G160 -> 2152 | V164: 5425 | W164: 1900-06-05 | X164: 5519 | Y164: 5425 | Z164: 157 | AA164: 0.6961873311 | AB164: 0.5393053016 | AC164: 157 | AD164: 0.5034737299 | AE164: 0.7583547558 | AF164: =LOOKUP(A164,'Gas Prices'!B:B,'Gas Prices'!C:C) -> 28.06301719 | AG164: ='elspot-prices_2022_hourly_eur ('!J160 -> 166.54 | AH164: ='elspot-prices_2022_hourly_eur ('!K160 -> 166.54 | AI164: 5.934500873 | AJ164: 5.934500873 | AK164: ='elspot-prices_2022_hourly_eur ('!C160 -> 240.2 | AL164: 8.559307732 | AM164: 157 | AN164: 166.54 | AO164: 240.2 | AP164: 3211 | AQ164: 157 | AR164: 166.54 | AS164: 240.2 | AT164: 28.06301719 | AU164: 157 | AV164: 5.934500873 | AW164: 5.934500873 | AX164: 8.559307732
A165: 2022-01-07T13:00:00 | B165: 13 - 14 | C165: 2342 | D165: 1122 | E165: 3464 | F165: 1756 | G165: 1176 | H165: 2022-01-07T13:00:00 | I165: 158 | J165: TRUE | K165: 3464 | L165: 2932 | M165: 1900-06-06 | N165: 3464 | O165: 2932 | P165: 1 | Q165: ='consumption-dk-areas_2022_hourl'!D161 -> 3233 | R165: ='consumption-dk-areas_2022_hourl'!E161 -> 2156 | S165: 5389 | T165: ='consumption-prognosis_2022_hour'!F161 -> 3241 | U165: ='consumption-prognosis_2022_hour'!G161 -> 2144 | V165: 5385 | W165: 1900-06-06 | X165: 5389 | Y165: 5385 | Z165: 158 | AA165: 0.7244045778 | AB165: 0.5204081633 | AC165: 158 | AD165: 0.5084672167 | AE165: 0.7210796915 | AF165: =LOOKUP(A165,'Gas Prices'!B:B,'Gas Prices'!C:C) -> 28.06301719 | AG165: ='elspot-prices_2022_hourly_eur ('!J161 -> 165.97 | AH165: ='elspot-prices_2022_hourly_eur ('!K161 -> 165.97 | AI165: 5.914189444 | AJ165: 5.914189444 | AK165: ='elspot-prices_2022_hourly_eur ('!C161 -> 212.69 | AL165: 7.579013995 | AM165: 158 | AN165: 165.97 | AO165: 212.69 | AP165: 2932 | AQ165: 158 | AR165: 165.97 | AS165: 212.69 | AT165: 28.06301719 | AU165: 158 | AV165: 5.914189444 | AW165: 5.914189444 | AX165: 7.579013995
A166: 2022-01-07T14:00:00 | B166: 14 - 15 | C166: 2068 | D166: 1101 | E166: 3169 | F166: 1676 | G166: 1156 | H166: 2022-01-07T14:00:00 | I166: 159 | J166: TRUE | K166: 3169 | L166: 2832 | M166: 1900-06-07 | N166: 3169 | O166: 2832 | P166: 1 | Q166: ='consumption-dk-areas_2022_hourl'!D162 -> 3065 | R166: ='consumption-dk-areas_2022_hourl'!E162 -> 2127 | S166: 5192 | T166: ='consumption-prognosis_2022_hour'!F162 -> 3148 | U166: ='consumption-prognosis_2022_hour'!G162 -> 2114 | V166: 5262 | W166: 1900-06-07 | X166: 5192 | Y166: 5262 | Z166: 159 | AA166: 0.6747145188 | AB166: 0.5176304654 | AC166: 159 | AD166: 0.4489795918 | AE166: 0.7075835476 | AF166: =LOOKUP(A166,'Gas Prices'!B:B,'Gas Prices'!C:C) -> 28.06301719 | AG166: ='elspot-prices_2022_hourly_eur ('!J162 -> 165.36 | AH166: ='elspot-prices_2022_hourly_eur ('!K162 -> 165.36 | AI166: 5.89245265 | AJ166: 5.89245265 | AK166: ='elspot-prices_2022_hourly_eur ('!C162 -> 207.05 | AL166: 7.378037744 | AM166: 159 | AN166: 165.36 | AO166: 207.05 | AP166: 2832 | AQ166: 159 | AR166: 165.36 | AS166: 207.05 | AT166: 28.06301719 | AU166: 159 | AV166: 5.89245265 | AW166: 5.89245265 | AX166: 7.378037744
A167: 2022-01-07T15:00:00 | B167: 15 - 16 | C167: 2042 | D167: 1016 | E167: 3058 | F167: 1525 | G167: 1144 | H167: 2022-01-07T15:00:00 | I167: 160 | J167: TRUE | K167: 3058 | L167: 2669 | M167: 1900-06-08 | N167: 3058 | O167: 2669 | P167: 1 | Q167: ='consumption-dk-areas_2022_hourl'!D163 -> 3031 | R167: ='consumption-dk-areas_2022_hourl'!E163 -> 2107 | S167: 5138 | T167: ='consumption-prognosis_2022_hour'!F163 -> 3026 | U167: ='consumption-prognosis_2022_hour'!G163 -> 2110 | V167: 5136 | W167: 1900-06-08 | X167: 5138 | Y167: 5136 | Z167: 160 | AA167: 0.6737050478 | AB167: 0.4822021832 | AC167: 160 | AD167: 0.4433347807 | AE167: 0.6529562982 | AF167: =LOOKUP(A167,'Gas Prices'!B:B,'Gas Prices'!C:C) -> 28.06301719 | AG167: ='elspot-prices_2022_hourly_eur ('!J163 -> 185.03 | AH167: ='elspot-prices_2022_hourly_eur ('!K163 -> 185.15 | AI167: 6.593375145 | AJ167: 6.597651235 | AK167: ='elspot-prices_2022_hourly_eur ('!C163 -> 210.11 | AL167: 7.48707805 | AM167: 160 | AN167: 185.03 | AO167: 210.11 | AP167: 2669 | AQ167: 160 | AR167: 185.03 | AS167: 210.11 | AT167: 28.06301719 | AU167: 160 | AV167: 6.593375145 | AW167: 6.597651235 | AX167: 7.48707805
A168: 2022-01-07T16:00:00 | B168: 16 - 17 | C168: 1798 | D168: 930 | E168: 2728 | F168: 1415 | G168: 1138 | H168: 2022-01-07T16:00:00 | I168: 161 | J168: TRUE | K168: 2728 | L168: 2553 | M168: 1900-06-09 | N168: 2728 | O168: 2553 | P168: 1 | Q168: ='consumption-dk-areas_2022_hourl'!D164 -> 3124 | R168: ='consumption-dk-areas_2022_hourl'!E164 -> 2160 | S168: 5284 | T168: ='consumption-prognosis_2022_hour'!F164 -> 3143 | U168: ='consumption-prognosis_2022_hour'!G164 -> 2189 | V168: 5332 | W168: 1900-06-09 | X168: 5284 | Y168: 5332 | Z168: 161 | AA168: 0.5755441741 | AB168: 0.4305555556 | AC168: 161 | AD168: 0.3903603995 | AE168: 0.5976863753 | AF168: =LOOKUP(A168,'Gas Prices'!B:B,'Gas Prices'!C:C) -> 28.06301719 | AG168: ='elspot-prices_2022_hourly_eur ('!J164 -> 201.56 | AH168: ='elspot-prices_2022_hourly_eur ('!K164 -> 201.56 | AI168: 7.182406605 | AJ168: 7.182406605 | AK168: ='elspot-prices_2022_hourly_eur ('!C164 -> 220.21 | AL168: 7.84698233 | AM168: 161 | AN168: 201.56 | AO168: 220.21 | AP168: 2553 | AQ168: 161 | AR168: 201.56 | AS168: 220.21 | AT168: 28.06301719 | AU168: 161 | AV168: 7.182406605 | AW168: 7.182406605 | AX168: 7.84698233
A169: 2022-01-07T17:00:00 | B169: 17 - 18 | C169: 1524 | D169: 895 | E169: 2419 | F169: 1372 | G169: 1153 | H169: 2022-01-07T17:00:00 | I169: 162 | J169: TRUE | K169: 2419 | L169: 2525 | M169: 1900-06-10 | N169: 2419 | O169: 2525 | P169: 1 | Q169: ='consumption-dk-areas_2022_hourl'!D165 -> 3313 | R169: ='consumption-dk-areas_2022_hourl'!E165 -> 2266 | S169: 5579 | T169: ='consumption-prognosis_2022_hour'!F165 -> 3299 | U169: ='consumption-prognosis_2022_hour'!G165 -> 2276 | V169: 5575 | W169: 1900-06-10 | X169: 5579 | Y169: 5575 | Z169: 162 | AA169: 0.4600060368 | AB169: 0.3949691086 | AC169: 162 | AD169: 0.3308727746 | AE169: 0.5751928021 | AF169: =LOOKUP(A169,'Gas Prices'!B:B,'Gas Prices'!C:C) -> 28.06301719 | AG169: ='elspot-prices_2022_hourly_eur ('!J165 -> 243.11 | AH169: ='elspot-prices_2022_hourly_eur ('!K165 -> 243.11 | AI169: 8.663002926 | AJ169: 8.663002926 | AK169: ='elspot-prices_2022_hourly_eur ('!C165 -> 243.84 | AL169: 8.68901581 | AM169: 162 | AN169: 243.11 | AO169: 243.84 | AP169: 2525 | AQ169: 162 | AR169: 243.11 | AS169: 243.84 | AT169: 28.06301719 | AU169: 162 | AV169: 8.663002926 | AW169: 8.663002926 | AX169: 8.68901581
A170: 2022-01-07T18:00:00 | B170: 18 - 19 | C170: 1676 | D170: 925 | E170: 2601 | F170: 1301 | G170: 1169 | H170: 2022-01-07T18:00:00 | I170: 163 | J170: TRUE | K170: 2601 | L170: 2470 | M170: 1900-06-11 | N170: 2601 | O170: 2470 | P170: 1 | Q170: ='consumption-dk-areas_2022_hourl'!D166 -> 3218 | R170: ='consumption-dk-areas_2022_hourl'!E166 -> 2220 | S170: 5438 | T170: ='consumption-prognosis_2022_hour'!F166 -> 3197 | U170: ='consumption-prognosis_2022_hour'!G166 -> 2228 | V170: 5425 | W170: 1900-06-11 | X170: 5438 | Y170: 5425 | Z170: 163 | AA170: 0.5208203853 | AB170: 0.4166666667 | AC170: 163 | AD170: 0.3638732089 | AE170: 0.5944730077 | AF170: =LOOKUP(A170,'Gas Prices'!B:B,'Gas Prices'!C:C) -> 28.06301719 | AG170: ='elspot-prices_2022_hourly_eur ('!J166 -> 247.72 | AH170: ='elspot-prices_2022_hourly_eur ('!K166 -> 247.72 | AI170: 8.827276068 | AJ170: 8.827276068 | AK170: ='elspot-prices_2022_hourly_eur ('!C166 -> 260 | AL170: 9.264862658 | AM170: 163 | AN170: 247.72 | AO170: 260 | AP170: 2470 | AQ170: 163 | AR170: 247.72 | AS170: 260 | AT170: 28.06301719 | AU170: 163 | AV170: 8.827276068 | AW170: 8.827276068 | AX170: 9.264862658
A171: 2022-01-07T19:00:00 | B171: 19 - 20 | C171: 1838 | D171: 1065 | E171: 2903 | F171: 1201 | G171: 1170 | H171: 2022-01-07T19:00:00 | I171: 164 | J171: TRUE | K171: 2903 | L171: 2371 | M171: 1900-06-12 | N171: 2903 | O171: 2371 | P171: 1 | Q171: ='consumption-dk-areas_2022_hourl'!D167 -> 3004 | R171: ='consumption-dk-areas_2022_hourl'!E167 -> 2062 | S171: 5066 | T171: ='consumption-prognosis_2022_hour'!F167 -> 3013 | U171: ='consumption-prognosis_2022_hour'!G167 -> 2108 | V171: 5121 | W171: 1900-06-12 | X171: 5066 | Y171: 5121 | Z171: 164 | AA171: 0.6118508655 | AB171: 0.5164888458 | AC171: 164 | AD171: 0.3990447243 | AE171: 0.6844473008 | AF171: =LOOKUP(A171,'Gas Prices'!B:B,'Gas Prices'!C:C) -> 28.06301719 | AG171: ='elspot-prices_2022_hourly_eur ('!J167 -> 187.5 | AH171: ='elspot-prices_2022_hourly_eur ('!K167 -> 187.5 | AI171: 6.68139134 | AJ171: 6.68139134 | AK171: ='elspot-prices_2022_hourly_eur ('!C167 -> 250 | AL171: 8.908521786 | AM171: 164 | AN171: 187.5 | AO171: 250 | AP171: 2371 | AQ171: 164 | AR171: 187.5 | AS171: 250 | AT171: 28.06301719 | AU171: 164 | AV171: 6.68139134 | AW171: 6.68139134 | AX171: 8.908521786
A172: 2022-01-07T20:00:00 | B172: 20 - 21 | C172: 1712 | D172: 1134 | E172: 2846 | F172: 1114 | G172: 1143 | H172: 2022-01-07T20:00:00 | I172: 165 | J172: TRUE | K172: 2846 | L172: 2257 | M172: 1900-06-13 | N172: 2846 | O172: 2257 | P172: 1 | Q172: ='consumption-dk-areas_2022_hourl'!D168 -> 2827 | R172: ='consumption-dk-areas_2022_hourl'!E168 -> 1890 | S172: 4717 | T172: ='consumption-prognosis_2022_hour'!F168 -> 2824 | U172: ='consumption-prognosis_2022_hour'!G168 -> 1965 | V172: 4789 | W172: 1900-06-13 | X172: 4717 | Y172: 4789 | Z172: 165 | AA172: 0.6055889636 | AB172: 0.6 | AC172: 165 | AD172: 0.3716891012 | AE172: 0.7287917738 | AF172: =LOOKUP(A172,'Gas Prices'!B:B,'Gas Prices'!C:C) -> 28.06301719 | AG172: ='elspot-prices_2022_hourly_eur ('!J168 -> 160.5 | AH172: ='elspot-prices_2022_hourly_eur ('!K168 -> 160.5 | AI172: 5.719270987 | AJ172: 5.719270987 | AK172: ='elspot-prices_2022_hourly_eur ('!C168 -> 239.09 | AL172: 8.519753896 | AM172: 165 | AN172: 160.5 | AO172: 239.09 | AP172: 2257 | AQ172: 165 | AR172: 160.5 | AS172: 239.09 | AT172: 28.06301719 | AU172: 165 | AV172: 5.719270987 | AW172: 5.719270987 | AX172: 8.519753896
A173: 2022-01-07T21:00:00 | B173: 21 - 22 | C173: 1603 | D173: 1045 | E173: 2648 | F173: 1032 | G173: 1119 | H173: 2022-01-07T21:00:00 | I173: 166 | J173: TRUE | K173: 2648 | L173: 2151 | M173: 1900-06-14 | N173: 2648 | O173: 2151 | P173: 1 | Q173: ='consumption-dk-areas_2022_hourl'!D169 -> 2653 | R173: ='consumption-dk-areas_2022_hourl'!E169 -> 1779 | S173: 4432 | T173: ='consumption-prognosis_2022_hour'!F169 -> 2682 | U173: ='consumption-prognosis_2022_hour'!G169 -> 1832 | V173: 4514 | W173: 1900-06-14 | X173: 4432 | Y173: 4514 | Z173: 166 | AA173: 0.6042216359 | AB173: 0.5874086565 | AC173: 166 | AD173: 0.3480243161 | AE173: 0.6715938303 | AF173: =LOOKUP(A173,'Gas Prices'!B:B,'Gas Prices'!C:C) -> 28.06301719 | AG173: ='elspot-prices_2022_hourly_eur ('!J169 -> 157.95 | AH173: ='elspot-prices_2022_hourly_eur ('!K169 -> 157.95 | AI173: 5.628404065 | AJ173: 5.628404065 | AK173: ='elspot-prices_2022_hourly_eur ('!C169 -> 213.81 | AL173: 7.618924173 | AM173: 166 | AN173: 157.95 | AO173: 213.81 | AP173: 2151 | AQ173: 166 | AR173: 157.95 | AS173: 213.81 | AT173: 28.06301719 | AU173: 166 | AV173: 5.628404065 | AW173: 5.628404065 | AX173: 7.618924173
A174: 2022-01-07T22:00:00 | B174: 22 - 23 | C174: 1595 | D174: 930 | E174: 2525 | F174: 1074 | G174: 1097 | H174: 2022-01-07T22:00:00 | I174: 167 | J174: TRUE | K174: 2525 | L174: 2171 | M174: 1900-06-15 | N174: 2525 | O174: 2171 | P174: 1 | Q174: ='consumption-dk-areas_2022_hourl'!D170 -> 2581 | R174: ='consumption-dk-areas_2022_hourl'!E170 -> 1686 | S174: 4267 | T174: ='consumption-prognosis_2022_hour'!F170 -> 2557 | U174: ='consumption-prognosis_2022_hour'!G170 -> 1690 | V174: 4247 | W174: 1900-06-15 | X174: 4267 | Y174: 4247 | Z174: 167 | AA174: 0.6179775281 | AB174: 0.5516014235 | AC174: 167 | AD174: 0.3462874512 | AE174: 0.5976863753 | AF174: =LOOKUP(A174,'Gas Prices'!B:B,'Gas Prices'!C:C) -> 28.06301719 | AG174: ='elspot-prices_2022_hourly_eur ('!J170 -> 153.9 | AH174: ='elspot-prices_2022_hourly_eur ('!K170 -> 153.9 | AI174: 5.484086012 | AJ174: 5.484086012 | AK174: ='elspot-prices_2022_hourly_eur ('!C170 -> 216.13 | AL174: 7.701595255 | AM174: 167 | AN174: 153.9 | AO174: 216.13 | AP174: 2171 | AQ174: 167 | AR174: 153.9 | AS174: 216.13 | AT174: 28.06301719 | AU174: 167 | AV174: 5.484086012 | AW174: 5.484086012 | AX174: 7.701595255
A175: 2022-01-07T23:00:00 | B175: 23 - 00 | C175: 1699 | D175: 908 | E175: 2607 | F175: 999 | G175: 1072 | H175: 2022-01-07T23:00:00 | I175: 168 | J175: TRUE | K175: 2607 | L175: 2071 | M175: 1900-06-16 | N175: 2607 | O175: 2071 | P175: 1 | Q175: ='consumption-dk-areas_2022_hourl'!D171 -> 2395 | R175: ='consumption-dk-areas_2022_hourl'!E171 -> 1596 | S175: 3991 | T175: ='consumption-prognosis_2022_hour'!F171 -> 2413 | U175: ='consumption-prognosis_2022_hour'!G171 -> 1580 | V175: 3993 | W175: 1900-06-16 | X175: 3991 | Y175: 3993 | Z175: 168 | AA175: 0.709394572 | AB175: 0.5689223058 | AC175: 168 | AD175: 0.3688666956 | AE175: 0.5835475578 | AF175: =LOOKUP(A175,'Gas Prices'!B:B,'Gas Prices'!C:C) -> 28.06301719 | AG175: ='elspot-prices_2022_hourly_eur ('!J171 -> 144.76 | AH175: ='elspot-prices_2022_hourly_eur ('!K171 -> 144.76 | AI175: 5.158390455 | AJ175: 5.158390455 | AK175: ='elspot-prices_2022_hourly_eur ('!C171 -> 205.74 | AL175: 7.331357089 | AM175: 168 | AN175: 144.76 | AO175: 205.74 | AP175: 2071 | AQ175: 168 | AR175: 144.76 | AS175: 205.74 | AT175: 28.06301719 | AU175: 168 | AV175: 5.158390455 | AW175: 5.158390455 | AX175: 7.331357089
A176: 2022-01-08 | B176: 00 - 01 | C176: 1661 | D176: 796 | E176: 2457 | F176: 1391 | G176: 572 | H176: 2022-01-08 | I176: 169 | J176: TRUE | K176: 2457 | L176: 1963 | M176: 1900-06-17 | N176: 2457 | O176: 1963 | P176: 1 | Q176: ='consumption-dk-areas_2022_hourl'!D172 -> 2316 | R176: ='consumption-dk-areas_2022_hourl'!E172 -> 1508 | S176: 3824 | T176: ='consumption-prognosis_2022_hour'!F172 -> 2257 | U176: ='consumption-prognosis_2022_hour'!G172 -> 1480 | V176: 3737 | W176: 1900-06-17 | X176: 3824 | Y176: 3737 | Z176: 169 | AA176: 0.7171848014 | AB176: 0.5278514589 | AC176: 169 | AD176: 0.3606165871 | AE176: 0.5115681234 | AF176: =LOOKUP(A176,'Gas Prices'!B:B,'Gas Prices'!C:C) -> 28.06301719 | AG176: ='elspot-prices_2022_hourly_eur ('!J172 -> 153.03 | AH176: ='elspot-prices_2022_hourly_eur ('!K172 -> 153.03 | AI176: 5.453084356 | AJ176: 5.453084356 | AK176: ='elspot-prices_2022_hourly_eur ('!C172 -> 184.96 | AL176: 6.590880759 | AM176: 169 | AN176: 153.03 | AO176: 184.96 | AP176: 1963 | AQ176: 169 | AR176: 153.03 | AS176: 184.96 | AT176: 28.06301719 | AU176: 169 | AV176: 5.453084356 | AW176: 5.453084356 | AX176: 6.590880759
A177: 2022-01-08T01:00:00 | B177: 01 - 02 | C177: 1518 | D177: 728 | E177: 2246 | F177: 1287 | G177: 508 | H177: 2022-01-08T01:00:00 | I177: 170 | J177: TRUE | K177: 2246 | L177: 1795 | M177: 1900-06-18 | N177: 2246 | O177: 1795 | P177: 1 | Q177: ='consumption-dk-areas_2022_hourl'!D173 -> 2254 | R177: ='consumption-dk-areas_2022_hourl'!E173 -> 1432 | S177: 3686 | T177: ='consumption-prognosis_2022_hour'!F173 -> 2186 | U177: ='consumption-prognosis_2022_hour'!G173 -> 1378 | V177: 3564 | W177: 1900-06-18 | X177: 3686 | Y177: 3564 | Z177: 170 | AA177: 0.6734693878 | AB177: 0.5083798883 | AC177: 170 | AD177: 0.3295701259 | AE177: 0.4678663239 | AF177: =LOOKUP(A177,'Gas Prices'!B:B,'Gas Prices'!C:C) -> 28.06301719 | AG177: ='elspot-prices_2022_hourly_eur ('!J173 -> 146.08 | AH177: ='elspot-prices_2022_hourly_eur ('!K173 -> 146.08 | AI177: 5.20542745 | AJ177: 5.20542745 | AK177: ='elspot-prices_2022_hourly_eur ('!C173 -> 162.79 | AL177: 5.800873046 | AM177: 170 | AN177: 146.08 | AO177: 162.79 | AP177: 1795 | AQ177: 170 | AR177: 146.08 | AS177: 162.79 | AT177: 28.06301719 | AU177: 170 | AV177: 5.20542745 | AW177: 5.20542745 | AX177: 5.800873046
A178: 2022-01-08T02:00:00 | B178: 02 - 03 | C178: 1601 | D178: 719 | E178: 2320 | F178: 1297 | G178: 450 | H178: 2022-01-08T02:00:00 | I178: 171 | J178: TRUE | K178: 2320 | L178: 1747 | M178: 1900-06-19 | N178: 2320 | O178: 1747 | P178: 1 | Q178: ='consumption-dk-areas_2022_hourl'!D174 -> 2200 | R178: ='consumption-dk-areas_2022_hourl'!E174 -> 1384 | S178: 3584 | T178: ='consumption-prognosis_2022_hour'!F174 -> 2133 | U178: ='consumption-prognosis_2022_hour'!G174 -> 1297 | V178: 3430 | W178: 1900-06-19 | X178: 3584 | Y178: 3430 | Z178: 171 | AA178: 0.7277272727 | AB178: 0.5195086705 | AC178: 171 | AD178: 0.3475900999 | AE178: 0.4620822622 | AF178: =LOOKUP(A178,'Gas Prices'!B:B,'Gas Prices'!C:C) -> 28.06301719 | AG178: ='elspot-prices_2022_hourly_eur ('!J174 -> 144.64 | AH178: ='elspot-prices_2022_hourly_eur ('!K174 -> 144.64 | AI178: 5.154114365 | AJ178: 5.154114365 | AK178: ='elspot-prices_2022_hourly_eur ('!C174 -> 166 | AL178: 5.915258466 | AM178: 171 | AN178: 144.64 | AO178: 166 | AP178: 1747 | AQ178: 171 | AR178: 144.64 | AS178: 166 | AT178: 28.06301719 | AU178: 171 | AV178: 5.154114365 | AW178: 5.154114365 | AX178: 5.915258466
A179: 2022-01-08T03:00:00 | B179: 03 - 04 | C179: 2041 | D179: 659 | E179: 2700 | F179: 1426 | G179: 416 | H179: 2022-01-08T03:00:00 | I179: 172 | J179: TRUE | K179: 2700 | L179: 1842 | M179: 1900-06-20 | N179: 2700 | O179: 1842 | P179: 1 | Q179: ='consumption-dk-areas_2022_hourl'!D175 -> 2164 | R179: ='consumption-dk-areas_2022_hourl'!E175 -> 1369 | S179: 3533 | T179: ='consumption-prognosis_2022_hour'!F175 -> 2144 | U179: ='consumption-prognosis_2022_hour'!G175 -> 1247 | V179: 3391 | W179: 1900-06-20 | X179: 3533 | Y179: 3391 | Z179: 172 | AA179: 0.9431608133 | AB179: 0.4813732652 | AC179: 172 | AD179: 0.4431176726 | AE179: 0.4235218509 | AF179: =LOOKUP(A179,'Gas Prices'!B:B,'Gas Prices'!C:C) -> 28.06301719 | AG179: ='elspot-prices_2022_hourly_eur ('!J175 -> 145.74 | AH179: ='elspot-prices_2022_hourly_eur ('!K175 -> 145.74 | AI179: 5.193311861 | AJ179: 5.193311861 | AK179: ='elspot-prices_2022_hourly_eur ('!C175 -> 161.63 | AL179: 5.759537505 | AM179: 172 | AN179: 145.74 | AO179: 161.63 | AP179: 1842 | AQ179: 172 | AR179: 145.74 | AS179: 161.63 | AT179: 28.06301719 | AU179: 172 | AV179: 5.193311861 | AW179: 5.193311861 | AX179: 5.759537505
A180: 2022-01-08T04:00:00 | B180: 04 - 05 | C180: 2056 | D180: 583 | E180: 2639 | F180: 1564 | G180: 420 | H180: 2022-01-08T04:00:00 | I180: 173 | J180: TRUE | K180: 2639 | L180: 1984 | M180: 1900-06-21 | N180: 2639 | O180: 1984 | P180: 1 | Q180: ='consumption-dk-areas_2022_hourl'!D176 -> 2166 | R180: ='consumption-dk-areas_2022_hourl'!E176 -> 1363 | S180: 3529 | T180: ='consumption-prognosis_2022_hour'!F176 -> 2158 | U180: ='consumption-prognosis_2022_hour'!G176 -> 1253 | V180: 3411 | W180: 1900-06-21 | X180: 3529 | Y180: 3411 | Z180: 173 | AA180: 0.9492151431 | AB180: 0.427732942 | AC180: 173 | AD180: 0.4463742944 | AE180: 0.3746786632 | AF180: =LOOKUP(A180,'Gas Prices'!B:B,'Gas Prices'!C:C) -> 28.06301719 | AG180: ='elspot-prices_2022_hourly_eur ('!J176 -> 146.97 | AH180: ='elspot-prices_2022_hourly_eur ('!K176 -> 146.97 | AI180: 5.237141788 | AJ180: 5.237141788 | AK180: ='elspot-prices_2022_hourly_eur ('!C176 -> 160 | AL180: 5.701453943 | AM180: 173 | AN180: 146.97 | AO180: 160 | AP180: 1984 | AQ180: 173 | AR180: 146.97 | AS180: 160 | AT180: 28.06301719 | AU180: 173 | AV180: 5.237141788 | AW180: 5.237141788 | AX180: 5.701453943
A181: 2022-01-08T05:00:00 | B181: 05 - 06 | C181: 2078 | D181: 718 | E181: 2796 | F181: 1745 | G181: 444 | H181: 2022-01-08T05:00:00 | I181: 174 | J181: TRUE | K181: 2796 | L181: 2189 | M181: 1900-06-22 | N181: 2796 | O181: 2189 | P181: 1 | Q181: ='consumption-dk-areas_2022_hourl'!D177 -> 2219 | R181: ='consumption-dk-areas_2022_hourl'!E177 -> 1381 | S181: 3600 | T181: ='consumption-prognosis_2022_hour'!F177 -> 2174 | U181: ='consumption-prognosis_2022_hour'!G177 -> 1285 | V181: 3459 | W181: 1900-06-22 | X181: 3600 | Y181: 3459 | Z181: 174 | AA181: 0.9364578639 | AB181: 0.5199131064 | AC181: 174 | AD181: 0.451150673 | AE181: 0.4614395887 | AF181: =LOOKUP(A181,'Gas Prices'!B:B,'Gas Prices'!C:C) -> 28.06301719 | AG181: ='elspot-prices_2022_hourly_eur ('!J177 -> 146.88 | AH181: ='elspot-prices_2022_hourly_eur ('!K177 -> 146.88 | AI181: 5.23393472 | AJ181: 5.23393472 | AK181: ='elspot-prices_2022_hourly_eur ('!C177 -> 154.3 | AL181: 5.498339647 | AM181: 174 | AN181: 146.88 | AO181: 154.3 | AP181: 2189 | AQ181: 174 | AR181: 146.88 | AS181: 154.3 | AT181: 28.06301719 | AU181: 174 | AV181: 5.23393472 | AW181: 5.23393472 | AX181: 5.498339647
A182: 2022-01-08T06:00:00 | B182: 06 - 07 | C182: 2587 | D182: 752 | E182: 3339 | F182: 1919 | G182: 548 | H182: 2022-01-08T06:00:00 | I182: 175 | J182: TRUE | K182: 3339 | L182: 2467 | M182: 1900-06-23 | N182: 3339 | O182: 2467 | P182: 1 | Q182: ='consumption-dk-areas_2022_hourl'!D178 -> 2344 | R182: ='consumption-dk-areas_2022_hourl'!E178 -> 1444 | S182: 3788 | T182: ='consumption-prognosis_2022_hour'!F178 -> 2353 | U182: ='consumption-prognosis_2022_hour'!G178 -> 1440 | V182: 3793 | W182: 1900-06-23 | X182: 3788 | Y182: 3793 | Z182: 175 | AA182: 1.103668942 | AB182: 0.5207756233 | AC182: 175 | AD182: 0.561658706 | AE182: 0.4832904884 | AF182: =LOOKUP(A182,'Gas Prices'!B:B,'Gas Prices'!C:C) -> 28.06301719 | AG182: ='elspot-prices_2022_hourly_eur ('!J178 -> 146.56 | AH182: ='elspot-prices_2022_hourly_eur ('!K178 -> 146.56 | AI182: 5.222531812 | AJ182: 5.222531812 | AK182: ='elspot-prices_2022_hourly_eur ('!C178 -> 166 | AL182: 5.915258466 | AM182: 175 | AN182: 146.56 | AO182: 166 | AP182: 2467 | AQ182: 175 | AR182: 146.56 | AS182: 166 | AT182: 28.06301719 | AU182: 175 | AV182: 5.222531812 | AW182: 5.222531812 | AX182: 5.915258466
A183: 2022-01-08T07:00:00 | B183: 07 - 08 | C183: 2759 | D183: 959 | E183: 3718 | F183: 2033 | G183: 614 | H183: 2022-01-08T07:00:00 | I183: 176 | J183: TRUE | K183: 3718 | L183: 2647 | M183: 1900-06-24 | N183: 3718 | O183: 2647 | P183: 1 | Q183: ='consumption-dk-areas_2022_hourl'!D179 -> 2475 | R183: ='consumption-dk-areas_2022_hourl'!E179 -> 1539 | S183: 4014 | T183: ='consumption-prognosis_2022_hour'!F179 -> 2502 | U183: ='consumption-prognosis_2022_hour'!G179 -> 1541 | V183: 4043 | W183: 1900-06-24 | X183: 4014 | Y183: 4043 | Z183: 176 | AA183: 1.114747475 | AB183: 0.6231319038 | AC183: 176 | AD183: 0.5990013026 | AE183: 0.6163239075 | AF183: =LOOKUP(A183,'Gas Prices'!B:B,'Gas Prices'!C:C) -> 28.06301719 | AG183: ='elspot-prices_2022_hourly_eur ('!J179 -> 147.18 | AH183: ='elspot-prices_2022_hourly_eur ('!K179 -> 147.18 | AI183: 5.244624946 | AJ183: 5.244624946 | AK183: ='elspot-prices_2022_hourly_eur ('!C179 -> 182.91 | AL183: 6.51783088 | AM183: 176 | AN183: 147.18 | AO183: 182.91 | AP183: 2647 | AQ183: 176 | AR183: 147.18 | AS183: 182.91 | AT183: 28.06301719 | AU183: 176 | AV183: 5.244624946 | AW183: 5.244624946 | AX183: 6.51783088
A184: 2022-01-08T08:00:00 | B184: 08 - 09 | C184: 2751 | D184: 1041 | E184: 3792 | F184: 2112 | G184: 673 | H184: 2022-01-08T08:00:00 | I184: 177 | J184: TRUE | K184: 3792 | L184: 2785 | M184: 1900-06-25 | N184: 3792 | O184: 2785 | P184: 1 | Q184: ='consumption-dk-areas_2022_hourl'!D180 -> 2660 | R184: ='consumption-dk-areas_2022_hourl'!E180 -> 1668 | S184: 4328 | T184: ='consumption-prognosis_2022_hour'!F180 -> 2655 | U184: ='consumption-prognosis_2022_hour'!G180 -> 1656 | V184: 4311 | W184: 1900-06-25 | X184: 4328 | Y184: 4311 | Z184: 177 | AA184: 1.034210526 | AB184: 0.6241007194 | AC184: 177 | AD184: 0.5972644377 | AE184: 0.6690231362 | AF184: =LOOKUP(A184,'Gas Prices'!B:B,'Gas Prices'!C:C) -> 28.06301719 | AG184: ='elspot-prices_2022_hourly_eur ('!J180 -> 153.66 | AH184: ='elspot-prices_2022_hourly_eur ('!K180 -> 153.66 | AI184: 5.475533831 | AJ184: 5.475533831 | AK184: ='elspot-prices_2022_hourly_eur ('!C180 -> 215.89 | AL184: 7.693043074 | AM184: 177 | AN184: 153.66 | AO184: 215.89 | AP184: 2785 | AQ184: 177 | AR184: 153.66 | AS184: 215.89 | AT184: 28.06301719 | AU184: 177 | AV184: 5.475533831 | AW184: 5.475533831 | AX184: 7.693043074
A185: 2022-01-08T09:00:00 | B185: 09 - 10 | C185: 2464 | D185: 1234 | E185: 3698 | F185: 2045 | G185: 792 | H185: 2022-01-08T09:00:00 | I185: 178 | J185: TRUE | K185: 3698 | L185: 2837 | M185: 1900-06-26 | N185: 3698 | O185: 2837 | P185: 1 | Q185: ='consumption-dk-areas_2022_hourl'!D181 -> 2784 | R185: ='consumption-dk-areas_2022_hourl'!E181 -> 1797 | S185: 4581 | T185: ='consumption-prognosis_2022_hour'!F181 -> 2785 | U185: ='consumption-prognosis_2022_hour'!G181 -> 1778 | V185: 4563 | W185: 1900-06-26 | X185: 4581 | Y185: 4563 | Z185: 178 | AA185: 0.8850574713 | AB185: 0.6867000556 | AC185: 178 | AD185: 0.5349544073 | AE185: 0.793059126 | AF185: =LOOKUP(A185,'Gas Prices'!B:B,'Gas Prices'!C:C) -> 28.06301719 | AG185: ='elspot-prices_2022_hourly_eur ('!J181 -> 156.07 | AH185: ='elspot-prices_2022_hourly_eur ('!K181 -> 156.07 | AI185: 5.561411981 | AJ185: 5.561411981 | AK185: ='elspot-prices_2022_hourly_eur ('!C181 -> 231 | AL185: 8.231474131 | AM185: 178 | AN185: 156.07 | AO185: 231 | AP185: 2837 | AQ185: 178 | AR185: 156.07 | AS185: 231 | AT185: 28.06301719 | AU185: 178 | AV185: 5.561411981 | AW185: 5.561411981 | AX185: 8.231474131
A186: 2022-01-08T10:00:00 | B186: 10 - 11 | C186: 2293 | D186: 1350 | E186: 3643 | F186: 1788 | G186: 894 | H186: 2022-01-08T10:00:00 | I186: 179 | J186: TRUE | K186: 3643 | L186: 2682 | M186: 1900-06-27 | N186: 3643 | O186: 2682 | P186: 1 | Q186: ='consumption-dk-areas_2022_hourl'!D182 -> 2858 | R186: ='consumption-dk-areas_2022_hourl'!E182 -> 1925 | S186: 4783 | T186: ='consumption-prognosis_2022_hour'!F182 -> 2846 | U186: ='consumption-prognosis_2022_hour'!G182 -> 1900 | V186: 4746 | W186: 1900-06-27 | X186: 4783 | Y186: 4746 | Z186: 179 | AA186: 0.8023093072 | AB186: 0.7012987013 | AC186: 179 | AD186: 0.4978289188 | AE186: 0.8676092545 | AF186: =LOOKUP(A186,'Gas Prices'!B:B,'Gas Prices'!C:C) -> 28.06301719 | AG186: ='elspot-prices_2022_hourly_eur ('!J182 -> 159.08 | AH186: ='elspot-prices_2022_hourly_eur ('!K182 -> 159.08 | AI186: 5.668670583 | AJ186: 5.668670583 | AK186: ='elspot-prices_2022_hourly_eur ('!C182 -> 228.95 | AL186: 8.158424252 | AM186: 179 | AN186: 159.08 | AO186: 228.95 | AP186: 2682 | AQ186: 179 | AR186: 159.08 | AS186: 228.95 | AT186: 28.06301719 | AU186: 179 | AV186: 5.668670583 | AW186: 5.668670583 | AX186: 8.158424252
A187: 2022-01-08T11:00:00 | B187: 11 - 12 | C187: 1767 | D187: 1371 | E187: 3138 | F187: 1557 | G187: 985 | H187: 2022-01-08T11:00:00 | I187: 180 | J187: TRUE | K187: 3138 | L187: 2542 | M187: 1900-06-28 | N187: 3138 | O187: 2542 | P187: 1 | Q187: ='consumption-dk-areas_2022_hourl'!D183 -> 2808 | R187: ='consumption-dk-areas_2022_hourl'!E183 -> 1960 | S187: 4768 | T187: ='consumption-prognosis_2022_hour'!F183 -> 2857 | U187: ='consumption-prognosis_2022_hour'!G183 -> 1960 | V187: 4817 | W187: 1900-06-28 | X187: 4768 | Y187: 4817 | Z187: 180 | AA187: 0.6292735043 | AB187: 0.6994897959 | AC187: 180 | AD187: 0.3836300478 | AE187: 0.8811053985 | AF187: =LOOKUP(A187,'Gas Prices'!B:B,'Gas Prices'!C:C) -> 28.06301719 | AG187: ='elspot-prices_2022_hourly_eur ('!J183 -> 158.5 | AH187: ='elspot-prices_2022_hourly_eur ('!K183 -> 158.5 | AI187: 5.648002813 | AJ187: 5.648002813 | AK187: ='elspot-prices_2022_hourly_eur ('!C183 -> 215.39 | AL187: 7.67522603 | AM187: 180 | AN187: 158.5 | AO187: 215.39 | AP187: 2542 | AQ187: 180 | AR187: 158.5 | AS187: 215.39 | AT187: 28.06301719 | AU187: 180 | AV187: 5.648002813 | AW187: 5.648002813 | AX187: 7.67522603
A188: 2022-01-08T12:00:00 | B188: 12 - 13 | C188: 1494 | D188: 1365 | E188: 2859 | F188: 1419 | G188: 1027 | H188: 2022-01-08T12:00:00 | I188: 181 | J188: TRUE | K188: 2859 | L188: 2446 | M188: 1900-06-29 | N188: 2859 | O188: 2446 | P188: 1 | Q188: ='consumption-dk-areas_2022_hourl'!D184 -> 2697 | R188: ='consumption-dk-areas_2022_hourl'!E184 -> 1948 | S188: 4645 | T188: ='consumption-prognosis_2022_hour'!F184 -> 2716 | U188: ='consumption-prognosis_2022_hour'!G184 -> 1936 | V188: 4652 | W188: 1900-06-29 | X188: 4645 | Y188: 4652 | Z188: 181 | AA188: 0.553948832 | AB188: 0.7007186858 | AC188: 181 | AD188: 0.324359531 | AE188: 0.8772493573 | AF188: =LOOKUP(A188,'Gas Prices'!B:B,'Gas Prices'!C:C) -> 28.06301719 | AG188: ='elspot-prices_2022_hourly_eur ('!J184 -> 158.79 | AH188: ='elspot-prices_2022_hourly_eur ('!K184 -> 158.79 | AI188: 5.658336698 | AJ188: 5.658336698 | AK188: ='elspot-prices_2022_hourly_eur ('!C184 -> 206.68 | AL188: 7.364853131 | AM188: 181 | AN188: 158.79 | AO188: 206.68 | AP188: 2446 | AQ188: 181 | AR188: 158.79 | AS188: 206.68 | AT188: 28.06301719 | AU188: 181 | AV188: 5.658336698 | AW188: 5.658336698 | AX188: 7.364853131
A189: 2022-01-08T13:00:00 | B189: 13 - 14 | C189: 1466 | D189: 1302 | E189: 2768 | F189: 1345 | G189: 1035 | H189: 2022-01-08T13:00:00 | I189: 182 | J189: TRUE | K189: 2768 | L189: 2380 | M189: 1900-06-30 | N189: 2768 | O189: 2380 | P189: 1 | Q189: ='consumption-dk-areas_2022_hourl'!D185 -> 2680 | R189: ='consumption-dk-areas_2022_hourl'!E185 -> 1898 | S189: 4578 | T189: ='consumption-prognosis_2022_hour'!F185 -> 2682 | U189: ='consumption-prognosis_2022_hour'!G185 -> 1912 | V189: 4594 | W189: 1900-06-30 | X189: 4578 | Y189: 4594 | Z189: 182 | AA189: 0.5470149254 | AB189: 0.6859852476 | AC189: 182 | AD189: 0.3182805037 | AE189: 0.8367609254 | AF189: =LOOKUP(A189,'Gas Prices'!B:B,'Gas Prices'!C:C) -> 28.06301719 | AG189: ='elspot-prices_2022_hourly_eur ('!J185 -> 156.07 | AH189: ='elspot-prices_2022_hourly_eur ('!K185 -> 156.07 | AI189: 5.561411981 | AJ189: 5.561411981 | AK189: ='elspot-prices_2022_hourly_eur ('!C185 -> 185 | AL189: 6.592306122 | AM189: 182 | AN189: 156.07 | AO189: 185 | AP189: 2380 | AQ189: 182 | AR189: 156.07 | AS189: 185 | AT189: 28.06301719 | AU189: 182 | AV189: 5.561411981 | AW189: 5.561411981 | AX189: 6.592306122
A190: 2022-01-08T14:00:00 | B190: 14 - 15 | C190: 1359 | D190: 1238 | E190: 2597 | F190: 1194 | G190: 1049 | H190: 2022-01-08T14:00:00 | I190: 183 | J190: TRUE | K190: 2597 | L190: 2243 | M190: 1900-07-01 | N190: 2597 | O190: 2243 | P190: 1 | Q190: ='consumption-dk-areas_2022_hourl'!D186 -> 2707 | R190: ='consumption-dk-areas_2022_hourl'!E186 -> 1828 | S190: 4535 | T190: ='consumption-prognosis_2022_hour'!F186 -> 2683 | U190: ='consumption-prognosis_2022_hour'!G186 -> 1855 | V190: 4538 | W190: 1900-07-01 | X190: 4535 | Y190: 4538 | Z190: 183 | AA190: 0.5020317695 | AB190: 0.6772428884 | AC190: 183 | AD190: 0.2950499349 | AE190: 0.7956298201 | AF190: =LOOKUP(A190,'Gas Prices'!B:B,'Gas Prices'!C:C) -> 28.06301719 | AG190: ='elspot-prices_2022_hourly_eur ('!J186 -> 156.18 | AH190: ='elspot-prices_2022_hourly_eur ('!K186 -> 156.18 | AI190: 5.56533173 | AJ190: 5.56533173 | AK190: ='elspot-prices_2022_hourly_eur ('!C186 -> 169.52 | AL190: 6.040690453 | AM190: 183 | AN190: 156.18 | AO190: 169.52 | AP190: 2243 | AQ190: 183 | AR190: 156.18 | AS190: 169.52 | AT190: 28.06301719 | AU190: 183 | AV190: 5.56533173 | AW190: 5.56533173 | AX190: 6.040690453
A191: 2022-01-08T15:00:00 | B191: 15 - 16 | C191: 1352 | D191: 1269 | E191: 2621 | F191: 1208 | G191: 1059 | H191: 2022-01-08T15:00:00 | I191: 184 | J191: TRUE | K191: 2621 | L191: 2267 | M191: 1900-07-02 | N191: 2621 | O191: 2267 | P191: 1 | Q191: ='consumption-dk-areas_2022_hourl'!D187 -> 2736 | R191: ='consumption-dk-areas_2022_hourl'!E187 -> 1844 | S191: 4580 | T191: ='consumption-prognosis_2022_hour'!F187 -> 2724 | U191: ='consumption-prognosis_2022_hour'!G187 -> 1843 | V191: 4567 | W191: 1900-07-02 | X191: 4580 | Y191: 4567 | Z191: 184 | AA191: 0.4941520468 | AB191: 0.6881778742 | AC191: 184 | AD191: 0.293530178 | AE191: 0.8155526992 | AF191: =LOOKUP(A191,'Gas Prices'!B:B,'Gas Prices'!C:C) -> 28.06301719 | AG191: ='elspot-prices_2022_hourly_eur ('!J187 -> 158.89 | AH191: ='elspot-prices_2022_hourly_eur ('!K187 -> 158.89 | AI191: 5.661900107 | AJ191: 5.661900107 | AK191: ='elspot-prices_2022_hourly_eur ('!C187 -> 162.8 | AL191: 5.801229387 | AM191: 184 | AN191: 158.89 | AO191: 162.8 | AP191: 2267 | AQ191: 184 | AR191: 158.89 | AS191: 162.8 | AT191: 28.06301719 | AU191: 184 | AV191: 5.661900107 | AW191: 5.661900107 | AX191: 5.801229387
A192: 2022-01-08T16:00:00 | B192: 16 - 17 | C192: 1417 | D192: 1246 | E192: 2663 | F192: 1280 | G192: 1045 | H192: 2022-01-08T16:00:00 | I192: 185 | J192: TRUE | K192: 2663 | L192: 2325 | M192: 1900-07-03 | N192: 2663 | O192: 2325 | P192: 1 | Q192: ='consumption-dk-areas_2022_hourl'!D188 -> 2881 | R192: ='consumption-dk-areas_2022_hourl'!E188 -> 1953 | S192: 4834 | T192: ='consumption-prognosis_2022_hour'!F188 -> 2874 | U192: ='consumption-prognosis_2022_hour'!G188 -> 1948 | V192: 4822 | W192: 1900-07-03 | X192: 4834 | Y192: 4822 | Z192: 185 | AA192: 0.49184311 | AB192: 0.6379928315 | AC192: 185 | AD192: 0.3076422058 | AE192: 0.8007712082 | AF192: =LOOKUP(A192,'Gas Prices'!B:B,'Gas Prices'!C:C) -> 28.06301719 | AG192: ='elspot-prices_2022_hourly_eur ('!J188 -> 161 | AH192: ='elspot-prices_2022_hourly_eur ('!K188 -> 161 | AI192: 5.73708803 | AJ192: 5.73708803 | AK192: ='elspot-prices_2022_hourly_eur ('!C188 -> 161.73 | AL192: 5.763100914 | AM192: 185 | AN192: 161 | AO192: 161.73 | AP192: 2325 | AQ192: 185 | AR192: 161 | AS192: 161.73 | AT192: 28.06301719 | AU192: 185 | AV192: 5.73708803 | AW192: 5.73708803 | AX192: 5.763100914
A193: 2022-01-08T17:00:00 | B193: 17 - 18 | C193: 1453 | D193: 1218 | E193: 2671 | F193: 1355 | G193: 1024 | H193: 2022-01-08T17:00:00 | I193: 186 | J193: TRUE | K193: 2671 | L193: 2379 | M193: 1900-07-04 | N193: 2671 | O193: 2379 | P193: 1 | Q193: ='consumption-dk-areas_2022_hourl'!D189 -> 3133 | R193: ='consumption-dk-areas_2022_hourl'!E189 -> 2106 | S193: 5239 | T193: ='consumption-prognosis_2022_hour'!F189 -> 3130 | U193: ='consumption-prognosis_2022_hour'!G189 -> 2086 | V193: 5216 | W193: 1900-07-04 | X193: 5239 | Y193: 5216 | Z193: 186 | AA193: 0.4637727418 | AB193: 0.5783475783 | AC193: 186 | AD193: 0.3154580981 | AE193: 0.7827763496 | AF193: =LOOKUP(A193,'Gas Prices'!B:B,'Gas Prices'!C:C) -> 28.06301719 | AG193: ='elspot-prices_2022_hourly_eur ('!J189 -> 189.9 | AH193: ='elspot-prices_2022_hourly_eur ('!K189 -> 189.9 | AI193: 6.766913149 | AJ193: 6.766913149 | AK193: ='elspot-prices_2022_hourly_eur ('!C189 -> 189.9 | AL193: 6.766913149 | AM193: 186 | AN193: 189.9 | AO193: 189.9 | AP193: 2379 | AQ193: 186 | AR193: 189.9 | AS193: 189.9 | AT193: 28.06301719 | AU193: 186 | AV193: 6.766913149 | AW193: 6.766913149 | AX193: 6.766913149
A194: 2022-01-08T18:00:00 | B194: 18 - 19 | C194: 1639 | D194: 1221 | E194: 2860 | F194: 1471 | G194: 1025 | H194: 2022-01-08T18:00:00 | I194: 187 | J194: TRUE | K194: 2860 | L194: 2496 | M194: 1900-07-05 | N194: 2860 | O194: 2496 | P194: 1 | Q194: ='consumption-dk-areas_2022_hourl'!D190 -> 3054 | R194: ='consumption-dk-areas_2022_hourl'!E190 -> 2092 | S194: 5146 | T194: ='consumption-prognosis_2022_hour'!F190 -> 3053 | U194: ='consumption-prognosis_2022_hour'!G190 -> 2096 | V194: 5149 | W194: 1900-07-05 | X194: 5146 | Y194: 5149 | Z194: 187 | AA194: 0.5366732155 | AB194: 0.5836520076 | AC194: 187 | AD194: 0.3558402084 | AE194: 0.7847043702 | AF194: =LOOKUP(A194,'Gas Prices'!B:B,'Gas Prices'!C:C) -> 28.06301719 | AG194: ='elspot-prices_2022_hourly_eur ('!J190 -> 170.71 | AH194: ='elspot-prices_2022_hourly_eur ('!K190 -> 170.71 | AI194: 6.083095017 | AJ194: 6.083095017 | AK194: ='elspot-prices_2022_hourly_eur ('!C190 -> 189.16 | AL194: 6.740543925 | AM194: 187 | AN194: 170.71 | AO194: 189.16 | AP194: 2496 | AQ194: 187 | AR194: 170.71 | AS194: 189.16 | AT194: 28.06301719 | AU194: 187 | AV194: 6.083095017 | AW194: 6.083095017 | AX194: 6.740543925
A195: 2022-01-08T19:00:00 | B195: 19 - 20 | C195: 1935 | D195: 1191 | E195: 3126 | F195: 1626 | G195: 1027 | H195: 2022-01-08T19:00:00 | I195: 188 | J195: TRUE | K195: 3126 | L195: 2653 | M195: 1900-07-06 | N195: 3126 | O195: 2653 | P195: 1 | Q195: ='consumption-dk-areas_2022_hourl'!D191 -> 2839 | R195: ='consumption-dk-areas_2022_hourl'!E191 -> 1949 | S195: 4788 | T195: ='consumption-prognosis_2022_hour'!F191 -> 2823 | U195: ='consumption-prognosis_2022_hour'!G191 -> 1960 | V195: 4783 | W195: 1900-07-06 | X195: 4788 | Y195: 4783 | Z195: 188 | AA195: 0.6815780204 | AB195: 0.6110826065 | AC195: 188 | AD195: 0.4201042119 | AE195: 0.7654241645 | AF195: =LOOKUP(A195,'Gas Prices'!B:B,'Gas Prices'!C:C) -> 28.06301719 | AG195: ='elspot-prices_2022_hourly_eur ('!J191 -> 140.23 | AH195: ='elspot-prices_2022_hourly_eur ('!K191 -> 140.08 | AI195: 4.99696804 | AJ195: 4.991622927 | AK195: ='elspot-prices_2022_hourly_eur ('!C191 -> 185.53 | AL195: 6.611192188 | AM195: 188 | AN195: 140.23 | AO195: 185.53 | AP195: 2653 | AQ195: 188 | AR195: 140.23 | AS195: 185.53 | AT195: 28.06301719 | AU195: 188 | AV195: 4.99696804 | AW195: 4.991622927 | AX195: 6.611192188
A196: 2022-01-08T20:00:00 | B196: 20 - 21 | C196: 2142 | D196: 1111 | E196: 3253 | F196: 1847 | G196: 992 | H196: 2022-01-08T20:00:00 | I196: 189 | J196: TRUE | K196: 3253 | L196: 2839 | M196: 1900-07-07 | N196: 3253 | O196: 2839 | P196: 1 | Q196: ='consumption-dk-areas_2022_hourl'!D192 -> 2686 | R196: ='consumption-dk-areas_2022_hourl'!E192 -> 1836 | S196: 4522 | T196: ='consumption-prognosis_2022_hour'!F192 -> 2678 | U196: ='consumption-prognosis_2022_hour'!G192 -> 1833 | V196: 4511 | W196: 1900-07-07 | X196: 4522 | Y196: 4511 | Z196: 189 | AA196: 0.7974683544 | AB196: 0.6051198257 | AC196: 189 | AD196: 0.4650455927 | AE196: 0.7140102828 | AF196: =LOOKUP(A196,'Gas Prices'!B:B,'Gas Prices'!C:C) -> 28.06301719 | AG196: ='elspot-prices_2022_hourly_eur ('!J192 -> 102.54 | AH196: ='elspot-prices_2022_hourly_eur ('!K192 -> 105.07 | AI196: 3.653919296 | AJ196: 3.744073536 | AK196: ='elspot-prices_2022_hourly_eur ('!C192 -> 159.47 | AL196: 5.682567877 | AM196: 189 | AN196: 102.54 | AO196: 159.47 | AP196: 2839 | AQ196: 189 | AR196: 102.54 | AS196: 159.47 | AT196: 28.06301719 | AU196: 189 | AV196: 3.653919296 | AW196: 3.744073536 | AX196: 5.682567877
A197: 2022-01-08T21:00:00 | B197: 21 - 22 | C197: 2302 | D197: 1104 | E197: 3406 | F197: 2036 | G197: 948 | H197: 2022-01-08T21:00:00 | I197: 190 | J197: TRUE | K197: 3406 | L197: 2984 | M197: 1900-07-08 | N197: 3406 | O197: 2984 | P197: 1 | Q197: ='consumption-dk-areas_2022_hourl'!D193 -> 2601 | R197: ='consumption-dk-areas_2022_hourl'!E193 -> 1729 | S197: 4330 | T197: ='consumption-prognosis_2022_hour'!F193 -> 2541 | U197: ='consumption-prognosis_2022_hour'!G193 -> 1730 | V197: 4271 | W197: 1900-07-08 | X197: 4330 | Y197: 4271 | Z197: 190 | AA197: 0.8850442138 | AB197: 0.6385193754 | AC197: 190 | AD197: 0.4997828919 | AE197: 0.7095115681 | AF197: =LOOKUP(A197,'Gas Prices'!B:B,'Gas Prices'!C:C) -> 28.06301719 | AG197: ='elspot-prices_2022_hourly_eur ('!J193 -> 104.85 | AH197: ='elspot-prices_2022_hourly_eur ('!K193 -> 104.85 | AI197: 3.736234037 | AJ197: 3.736234037 | AK197: ='elspot-prices_2022_hourly_eur ('!C193 -> 126.09 | AL197: 4.493102048 | AM197: 190 | AN197: 104.85 | AO197: 126.09 | AP197: 2984 | AQ197: 190 | AR197: 104.85 | AS197: 126.09 | AT197: 28.06301719 | AU197: 190 | AV197: 3.736234037 | AW197: 3.736234037 | AX197: 4.493102048
A198: 2022-01-08T22:00:00 | B198: 22 - 23 | C198: 2406 | D198: 1127 | E198: 3533 | F198: 2173 | G198: 953 | H198: 2022-01-08T22:00:00 | I198: 191 | J198: TRUE | K198: 3533 | L198: 3126 | M198: 1900-07-09 | N198: 3533 | O198: 3126 | P198: 1 | Q198: ='consumption-dk-areas_2022_hourl'!D194 -> 2504 | R198: ='consumption-dk-areas_2022_hourl'!E194 -> 1654 | S198: 4158 | T198: ='consumption-prognosis_2022_hour'!F194 -> 2410 | U198: ='consumption-prognosis_2022_hour'!G194 -> 1633 | V198: 4043 | W198: 1900-07-09 | X198: 4158 | Y198: 4043 | Z198: 191 | AA198: 0.9608626198 | AB198: 0.6813784764 | AC198: 191 | AD198: 0.5223621363 | AE198: 0.7242930591 | AF198: =LOOKUP(A198,'Gas Prices'!B:B,'Gas Prices'!C:C) -> 28.06301719 | AG198: ='elspot-prices_2022_hourly_eur ('!J194 -> 104.8 | AH198: ='elspot-prices_2022_hourly_eur ('!K194 -> 104.8 | AI198: 3.734452333 | AJ198: 3.734452333 | AK198: ='elspot-prices_2022_hourly_eur ('!C194 -> 123.73 | AL198: 4.409005603 | AM198: 191 | AN198: 104.8 | AO198: 123.73 | AP198: 3126 | AQ198: 191 | AR198: 104.8 | AS198: 123.73 | AT198: 28.06301719 | AU198: 191 | AV198: 3.734452333 | AW198: 3.734452333 | AX198: 4.409005603
A199: 2022-01-08T23:00:00 | B199: 23 - 00 | C199: 2589 | D199: 1192 | E199: 3781 | F199: 2297 | G199: 1004 | H199: 2022-01-08T23:00:00 | I199: 192 | J199: TRUE | K199: 3781 | L199: 3301 | M199: 1900-07-10 | N199: 3781 | O199: 3301 | P199: 1 | Q199: ='consumption-dk-areas_2022_hourl'!D195 -> 2396 | R199: ='consumption-dk-areas_2022_hourl'!E195 -> 1585 | S199: 3981 | T199: ='consumption-prognosis_2022_hour'!F195 -> 2289 | U199: ='consumption-prognosis_2022_hour'!G195 -> 1545 | V199: 3834 | W199: 1900-07-10 | X199: 3981 | Y199: 3834 | Z199: 192 | AA199: 1.080550918 | AB199: 0.7520504732 | AC199: 192 | AD199: 0.5620929223 | AE199: 0.766066838 | AF199: =LOOKUP(A199,'Gas Prices'!B:B,'Gas Prices'!C:C) -> 28.06301719 | AG199: ='elspot-prices_2022_hourly_eur ('!J195 -> 90.05 | AH199: ='elspot-prices_2022_hourly_eur ('!K195 -> 90.05 | AI199: 3.208849547 | AJ199: 3.208849547 | AK199: ='elspot-prices_2022_hourly_eur ('!C195 -> 147.94 | AL199: 5.271706852 | AM199: 192 | AN199: 90.05 | AO199: 147.94 | AP199: 3301 | AQ199: 192 | AR199: 90.05 | AS199: 147.94 | AT199: 28.06301719 | AU199: 192 | AV199: 3.208849547 | AW199: 3.208849547 | AX199: 5.271706852
A200: 2022-01-09 | B200: 00 - 01 | C200: 2738 | D200: 1258 | E200: 3996 | F200: 2579 | G200: 1127 | H200: 2022-01-09 | I200: 193 | J200: TRUE | K200: 3996 | L200: 3706 | M200: 1900-07-11 | N200: 3996 | O200: 3706 | P200: 1 | Q200: ='consumption-dk-areas_2022_hourl'!D196 -> 2359 | R200: ='consumption-dk-areas_2022_hourl'!E196 -> 1557 | S200: 3916 | T200: ='consumption-prognosis_2022_hour'!F196 -> 2275 | U200: ='consumption-prognosis_2022_hour'!G196 -> 1499 | V200: 3774 | W200: 1900-07-11 | X200: 3916 | Y200: 3774 | Z200: 193 | AA200: 1.160661297 | AB200: 0.8079640334 | AC200: 193 | AD200: 0.5944420321 | AE200: 0.8084832905 | AF200: =LOOKUP(A200,'Gas Prices'!B:B,'Gas Prices'!C:C) -> 28.06301719 | AG200: ='elspot-prices_2022_hourly_eur ('!J196 -> 85.03 | AH200: ='elspot-prices_2022_hourly_eur ('!K196 -> 85.03 | AI200: 3.02996643 | AJ200: 3.02996643 | AK200: ='elspot-prices_2022_hourly_eur ('!C196 -> 109.18 | AL200: 3.890529635 | AM200: 193 | AN200: 85.03 | AO200: 109.18 | AP200: 3706 | AQ200: 193 | AR200: 85.03 | AS200: 109.18 | AT200: 28.06301719 | AU200: 193 | AV200: 3.02996643 | AW200: 3.02996643 | AX200: 3.890529635
A201: 2022-01-09T01:00:00 | B201: 01 - 02 | C201: 2849 | D201: 1319 | E201: =C201+D201 -> 4168 | F201: 2653 | G201: 1175 | H201: 2022-01-09T01:00:00 | I201: 194 | J201: =AND(H201>=$J$2,H201<$J$3) -> TRUE | K201: =E201 -> 4168 | L201: =SUM(F201:G201) -> 3828 | M201: =IF(J201,I201,NA()) -> 1900-07-12 | N201: =IF(J201,K201,NA()) -> 4168 | O201: =IF(J201,L201,NA()) -> 3828 | P201: 1 | Q201: ='consumption-dk-areas_2022_hourl'!D197 -> 2295 | R201: ='consumption-dk-areas_2022_hourl'!E197 -> 1518 | S201: =Q201+R201 -> 3813 | T201: ='consumption-prognosis_2022_hour'!F197 -> 2237 | U201: ='consumption-prognosis_2022_hour'!G197 -> 1472 | V201: =T201+U201 -> 3709 | W201: =M201 -> 1900-07-12 | X201: =S201 -> 3813 | Y201: =V201 -> 3709 | Z201: =M201 -> 194 | AA201: =C201/Q201 -> 1.241394336 | AB201: =D201/R201 -> 0.8689064559 | AC201: =Z201 -> 194 | AD201: =C201/AD$4 -> 0.6185410334 | AE201: =D201/AE$4 -> 0.8476863753 | AF201: =LOOKUP(A201,'Gas Prices'!B:B,'Gas Prices'!C:C) -> 28.06301719 | AG201: ='elspot-prices_2022_hourly_eur ('!J197 -> 84.4 | AH201: ='elspot-prices_2022_hourly_eur ('!K197 -> 84.4 | AI201: =AG201/AF201 -> 3.007516955 | AJ201: =AH201/AF201 -> 3.007516955 | AK201: ='elspot-prices_2022_hourly_eur ('!C197 -> 89.61 | AL201: =AK201/AF201 -> 3.193170549 | AM201: =AC201 -> 194 | AN201: =IF(J201,AG201,NA()) -> 84.4 | AO201: =IF(J201,AK201,NA()) -> 89.61 | AP201: =IF(J201,L201,NA()) -> 3828 | AQ201: =AM201 -> 194 | AR201: =AN201 -> 84.4 | AS201: =AO201 -> 89.61 | AT201: =IF(J201,AF201,NA()) -> 28.06301719 | AU201: =AQ201 -> 194 | AV201: =IF(J201,AI201,NA()) -> 3.007516955 | AW201: =IF(J201,AJ201,NA()) -> 3.007516955 | AX201: =IF(J201,AL201,NA()) -> 3.193170549
... 924 more rows

Sheet wind-power-dk-prognosis_2022_ho
A1: Wind power DK prognosis in MWh
A2: Data was last updated 31-12-2022
B3: Hours | C3: DK1 | D3: DK2 | E3: Total
A4: 2022-01-01 | B4: 00 - 01 | C4: 1697 | D4: 869 | E4: =SUM(C4:D4) -> 2566
A5: 2022-01-01 | B5: 01 - 02 | C5: 1726 | D5: 885 | E5: =SUM(C5:D5) -> 2611
A6: 2022-01-01 | B6: 02 - 03 | C6: 1639 | D6: 888 | E6: 2527
A7: 2022-01-01 | B7: 03 - 04 | C7: 1340 | D7: 823 | E7: 2163
A8: 2022-01-01 | B8: 04 - 05 | C8: 1146 | D8: 804 | E8: 1950
A9: 2022-01-01 | B9: 05 - 06 | C9: 857 | D9: 770 | E9: 1627
A10: 2022-01-01 | B10: 06 - 07 | C10: 632 | D10: 763 | E10: 1395
A11: 2022-01-01 | B11: 07 - 08 | C11: 487 | D11: 733 | E11: 1220
A12: 2022-01-01 | B12: 08 - 09 | C12: 374 | D12: 637 | E12: 1011
A13: 2022-01-01 | B13: 09 - 10 | C13: 272 | D13: 514 | E13: 786
A14: 2022-01-01 | B14: 10 - 11 | C14: 222 | D14: 412 | E14: 634
A15: 2022-01-01 | B15: 11 - 12 | C15: 242 | D15: 336 | E15: 578
A16: 2022-01-01 | B16: 12 - 13 | C16: 353 | D16: 233 | E16: 586
A17: 2022-01-01 | B17: 13 - 14 | C17: 580 | D17: 150 | E17: 730
A18: 2022-01-01 | B18: 14 - 15 | C18: 857 | D18: 92 | E18: 949
A19: 2022-01-01 | B19: 15 - 16 | C19: 1179 | D19: 73 | E19: 1252
A20: 2022-01-01 | B20: 16 - 17 | C20: 1531 | D20: 88 | E20: 1619
A21: 2022-01-01 | B21: 17 - 18 | C21: 2046 | D21: 180 | E21: 2226
A22: 2022-01-01 | B22: 18 - 19 | C22: 2539 | D22: 341 | E22: 2880
A23: 2022-01-01 | B23: 19 - 20 | C23: 2872 | D23: 525 | E23: 3397
A24: 2022-01-01 | B24: 20 - 21 | C24: 3056 | D24: 734 | E24: 3790
A25: 2022-01-01 | B25: 21 - 22 | C25: 3022 | D25: 875 | E25: 3897
A26: 2022-01-01 | B26: 22 - 23 | C26: 2953 | D26: 1010 | E26: 3963
A27: 2022-01-01 | B27: 23 - 00 | C27: 2865 | D27: 1116 | E27: 3981
A28: 2022-02-01 | B28: 00 - 01 | C28: 2505 | D28: 1158 | E28: 3663
A29: 2022-02-01 | B29: 01 - 02 | C29: 2302 | D29: 1150 | E29: 3452
A30: 2022-02-01 | B30: 02 - 03 | C30: 2167 | D30: 1119 | E30: 3286
A31: 2022-02-01 | B31: 03 - 04 | C31: 1959 | D31: 1042 | E31: 3001
A32: 2022-02-01 | B32: 04 - 05 | C32: 1971 | D32: 1010 | E32: 2981
A33: 2022-02-01 | B33: 05 - 06 | C33: 1946 | D33: 955 | E33: 2901
A34: 2022-02-01 | B34: 06 - 07 | C34: 1930 | D34: 955 | E34: 2885
A35: 2022-02-01 | B35: 07 - 08 | C35: 1949 | D35: 952 | E35: 2901
A36: 2022-02-01 | B36: 08 - 09 | C36: 1756 | D36: 929 | E36: 2685
A37: 2022-02-01 | B37: 09 - 10 | C37: 1575 | D37: 899 | E37: 2474
A38: 2022-02-01 | B38: 10 - 11 | C38: 1410 | D38: 842 | E38: 2252
A39: 2022-02-01 | B39: 11 - 12 | C39: 1298 | D39: 762 | E39: 2060
A40: 2022-02-01 | B40: 12 - 13 | C40: 1145 | D40: 714 | E40: 1859
A41: 2022-02-01 | B41: 13 - 14 | C41: 1094 | D41: 760 | E41: 1854
A42: 2022-02-01 | B42: 14 - 15 | C42: 930 | D42: 812 | E42: 1742
A43: 2022-02-01 | B43: 15 - 16 | C43: 1030 | D43: 850 | E43: 1880
A44: 2022-02-01 | B44: 16 - 17 | C44: 1181 | D44: 901 | E44: 2082
A45: 2022-02-01 | B45: 17 - 18 | C45: 1483 | D45: 980 | E45: 2463
A46: 2022-02-01 | B46: 18 - 19 | C46: 1823 | D46: 1102 | E46: 2925
A47: 2022-02-01 | B47: 19 - 20 | C47: 2209 | D47: 1246 | E47: 3455
A48: 2022-02-01 | B48: 20 - 21 | C48: 2407 | D48: 1344 | E48: 3751
A49: 2022-02-01 | B49: 21 - 22 | C49: 2391 | D49: 1351 | E49: 3742
A50: 2022-02-01 | B50: 22 - 23 | C50: 2248 | D50: 1305 | E50: 3553
A51: 2022-02-01 | B51: 23 - 00 | C51: 2076 | D51: 1245 | E51: 3321
A52: 2022-03-01 | B52: 00 - 01 | C52: 1928 | D52: 1054 | E52: 2982
A53: 2022-03-01 | B53: 01 - 02 | C53: 1855 | D53: 886 | E53: 2741
A54: 2022-03-01 | B54: 02 - 03 | C54: 2005 | D54: 876 | E54: 2881
A55: 2022-03-01 | B55: 03 - 04 | C55: 2126 | D55: 878 | E55: 3004
A56: 2022-03-01 | B56: 04 - 05 | C56: 2385 | D56: 912 | E56: 3297
A57: 2022-03-01 | B57: 05 - 06 | C57: 2599 | D57: 1046 | E57: 3645
A58: 2022-03-01 | B58: 06 - 07 | C58: 2923 | D58: 1211 | E58: 4134
A59: 2022-03-01 | B59: 07 - 08 | C59: 3281 | D59: 1294 | E59: 4575
A60: 2022-03-01 | B60: 08 - 09 | C60: 3490 | D60: 1316 | E60: 4806
A61: 2022-03-01 | B61: 09 - 10 | C61: 3497 | D61: 1322 | E61: 4819
A62: 2022-03-01 | B62: 10 - 11 | C62: 3462 | D62: 1340 | E62: 4802
A63: 2022-03-01 | B63: 11 - 12 | C63: 3616 | D63: 1379 | E63: 4995
A64: 2022-03-01 | B64: 12 - 13 | C64: 3758 | D64: 1392 | E64: 5150
A65: 2022-03-01 | B65: 13 - 14 | C65: 3638 | D65: 1363 | E65: 5001
A66: 2022-03-01 | B66: 14 - 15 | C66: 3596 | D66: 1350 | E66: 4946
A67: 2022-03-01 | B67: 15 - 16 | C67: 3760 | D67: 1372 | E67: 5132
A68: 2022-03-01 | B68: 16 - 17 | C68: 3650 | D68: 1382 | E68: 5032
A69: 2022-03-01 | B69: 17 - 18 | C69: 3299 | D69: 1398 | E69: =SUM(C69:D69) -> 4697
A70: 2022-03-01 | B70: 18 - 19 | C70: 2708 | D70: 1425 | E70: 4133
A71: 2022-03-01 | B71: 19 - 20 | C71: 2252 | D71: 1419 | E71: 3671
A72: 2022-03-01 | B72: 20 - 21 | C72: 1902 | D72: 1399 | E72: 3301
A73: 2022-03-01 | B73: 21 - 22 | C73: 1642 | D73: 1350 | E73: 2992
A74: 2022-03-01 | B74: 22 - 23 | C74: 1509 | D74: 1268 | E74: 2777
A75: 2022-03-01 | B75: 23 - 00 | C75: 1435 | D75: 1151 | E75: 2586
A76: 2022-04-01 | B76: 00 - 01 | C76: 1138 | D76: 1291 | E76: 2429
A77: 2022-04-01 | B77: 01 - 02 | C77: 1119 | D77: 1228 | E77: 2347
A78: 2022-04-01 | B78: 02 - 03 | C78: 1178 | D78: 1133 | E78: 2311
A79: 2022-04-01 | B79: 03 - 04 | C79: 1294 | D79: 1001 | E79: 2295
A80: 2022-04-01 | B80: 04 - 05 | C80: 1426 | D80: 872 | E80: 2298
A81: 2022-04-01 | B81: 05 - 06 | C81: 1607 | D81: 675 | E81: 2282
A82: 2022-04-01 | B82: 06 - 07 | C82: 1833 | D82: 486 | E82: 2319
A83: 2022-04-01 | B83: 07 - 08 | C83: 2110 | D83: 356 | E83: 2466
A84: 2022-04-01 | B84: 08 - 09 | C84: 2367 | D84: 201 | E84: 2568
A85: 2022-04-01 | B85: 09 - 10 | C85: 2428 | D85: 135 | E85: 2563
A86: 2022-04-01 | B86: 10 - 11 | C86: 2424 | D86: 147 | E86: 2571
A87: 2022-04-01 | B87: 11 - 12 | C87: 2520 | D87: 240 | E87: 2760
A88: 2022-04-01 | B88: 12 - 13 | C88: 2598 | D88: 287 | E88: 2885
A89: 2022-04-01 | B89: 13 - 14 | C89: 2533 | D89: 299 | E89: 2832
A90: 2022-04-01 | B90: 14 - 15 | C90: 2551 | D90: 303 | E90: 2854
A91: 2022-04-01 | B91: 15 - 16 | C91: 2559 | D91: 322 | E91: 2881
A92: 2022-04-01 | B92: 16 - 17 | C92: 2651 | D92: 394 | E92: 3045
A93: 2022-04-01 | B93: 17 - 18 | C93: 2771 | D93: 479 | E93: 3250
A94: 2022-04-01 | B94: 18 - 19 | C94: 2844 | D94: 644 | E94: 3488
A95: 2022-04-01 | B95: 19 - 20 | C95: 2845 | D95: 794 | E95: 3639
A96: 2022-04-01 | B96: 20 - 21 | C96: 2891 | D96: 950 | E96: 3841
A97: 2022-04-01 | B97: 21 - 22 | C97: 2832 | D97: 1063 | E97: 3895
A98: 2022-04-01 | B98: 22 - 23 | C98: 2908 | D98: 1166 | E98: 4074
A99: 2022-04-01 | B99: 23 - 00 | C99: 3074 | D99: 1256 | E99: 4330
A100: 2022-05-01 | B100: 00 - 01 | C100: 3257 | D100: 1274 | E100: 4531
A101: 2022-05-01 | B101: 01 - 02 | C101: 3166 | D101: 1312 | E101: 4478
A102: 2022-05-01 | B102: 02 - 03 | C102: 3101 | D102: 1369 | E102: 4470
A103: 2022-05-01 | B103: 03 - 04 | C103: 2886 | D103: 1402 | E103: 4288
A104: 2022-05-01 | B104: 04 - 05 | C104: 2732 | D104: 1449 | E104: 4181
A105: 2022-05-01 | B105: 05 - 06 | C105: 2635 | D105: 1450 | E105: 4085
A106: 2022-05-01 | B106: 06 - 07 | C106: 2551 | D106: 1421 | E106: 3972
A107: 2022-05-01 | B107: 07 - 08 | C107: 2498 | D107: 1357 | E107: 3855
A108: 2022-05-01 | B108: 08 - 09 | C108: 2381 | D108: 1328 | E108: 3709
A109: 2022-05-01 | B109: 09 - 10 | C109: 2292 | D109: 1315 | E109: 3607
A110: 2022-05-01 | B110: 10 - 11 | C110: 2269 | D110: 1287 | E110: 3556
A111: 2022-05-01 | B111: 11 - 12 | C111: 2417 | D111: 1272 | E111: 3689
A112: 2022-05-01 | B112: 12 - 13 | C112: 2516 | D112: 1246 | E112: 3762
A113: 2022-05-01 | B113: 13 - 14 | C113: 2452 | D113: 1189 | E113: 3641
A114: 2022-05-01 | B114: 14 - 15 | C114: 2192 | D114: 1164 | E114: 3356
A115: 2022-05-01 | B115: 15 - 16 | C115: 2079 | D115: 1209 | E115: 3288
A116: 2022-05-01 | B116: 16 - 17 | C116: 2170 | D116: 1210 | E116: 3380
A117: 2022-05-01 | B117: 17 - 18 | C117: 2251 | D117: 1223 | E117: 3474
A118: 2022-05-01 | B118: 18 - 19 | C118: 2194 | D118: 1255 | E118: 3449
A119: 2022-05-01 | B119: 19 - 20 | C119: 2044 | D119: 1258 | E119: 3302
A120: 2022-05-01 | B120: 20 - 21 | C120: 1928 | D120: 1270 | E120: 3198
A121: 2022-05-01 | B121: 21 - 22 | C121: 1826 | D121: 1310 | E121: 3136
A122: 2022-05-01 | B122: 22 - 23 | C122: 1823 | D122: 1295 | E122: 3118
A123: 2022-05-01 | B123: 23 - 00 | C123: 1842 | D123: 1257 | E123: 3099
A124: 2022-06-01 | B124: 00 - 01 | C124: 2075 | D124: 1144 | E124: 3219
A125: 2022-06-01 | B125: 01 - 02 | C125: 1886 | D125: 1100 | E125: 2986
A126: 2022-06-01 | B126: 02 - 03 | C126: 1736 | D126: 1080 | E126: 2816
A127: 2022-06-01 | B127: 03 - 04 | C127: 1495 | D127: 1046 | E127: 2541
A128: 2022-06-01 | B128: 04 - 05 | C128: 1231 | D128: 1065 | E128: 2296
A129: 2022-06-01 | B129: 05 - 06 | C129: 907 | D129: 1047 | E129: 1954
A130: 2022-06-01 | B130: 06 - 07 | C130: 625 | D130: 1016 | E130: 1641
A131: 2022-06-01 | B131: 07 - 08 | C131: 390 | D131: 930 | E131: 1320
A132: 2022-06-01 | B132: 08 - 09 | C132: 302 | D132: 860 | E132: 1162
A133: 2022-06-01 | B133: 09 - 10 | C133: 247 | D133: 762 | E133: =SUM(C133:D133) -> 1009
A134: 2022-06-01 | B134: 10 - 11 | C134: 226 | D134: 650 | E134: 876
A135: 2022-06-01 | B135: 11 - 12 | C135: 205 | D135: 507 | E135: 712
A136: 2022-06-01 | B136: 12 - 13 | C136: 218 | D136: 369 | E136: 587
A137: 2022-06-01 | B137: 13 - 14 | C137: 217 | D137: 293 | E137: 510
A138: 2022-06-01 | B138: 14 - 15 | C138: 213 | D138: 254 | E138: 467
A139: 2022-06-01 | B139: 15 - 16 | C139: 277 | D139: 241 | E139: 518
A140: 2022-06-01 | B140: 16 - 17 | C140: 336 | D140: 251 | E140: 587
A141: 2022-06-01 | B141: 17 - 18 | C141: 461 | D141: 231 | E141: 692
A142: 2022-06-01 | B142: 18 - 19 | C142: 640 | D142: 217 | E142: 857
A143: 2022-06-01 | B143: 19 - 20 | C143: 847 | D143: 234 | E143: 1081
A144: 2022-06-01 | B144: 20 - 21 | C144: 1052 | D144: 281 | E144: 1333
A145: 2022-06-01 | B145: 21 - 22 | C145: 1357 | D145: 353 | E145: 1710
A146: 2022-06-01 | B146: 22 - 23 | C146: 1560 | D146: 419 | E146: 1979
A147: 2022-06-01 | B147: 23 - 00 | C147: 1780 | D147: 511 | E147: 2291
A148: 2022-07-01 | B148: 00 - 01 | C148: 2416 | D148: 973 | E148: 3389
A149: 2022-07-01 | B149: 01 - 02 | C149: 2559 | D149: 1034 | E149: 3593
A150: 2022-07-01 | B150: 02 - 03 | C150: 2814 | D150: 1112 | E150: 3926
A151: 2022-07-01 | B151: 03 - 04 | C151: 3021 | D151: 1155 | E151: 4176
A152: 2022-07-01 | B152: 04 - 05 | C152: 3239 | D152: 1211 | E152: 4450
A153: 2022-07-01 | B153: 05 - 06 | C153: 3333 | D153: 1250 | E153: 4583
A154: 2022-07-01 | B154: 06 - 07 | C154: 3228 | D154: 1288 | E154: 4516
A155: 2022-07-01 | B155: 07 - 08 | C155: 3086 | D155: 1318 | E155: 4404
A156: 2022-07-01 | B156: 08 - 09 | C156: 2836 | D156: 1326 | E156: 4162
A157: 2022-07-01 | B157: 09 - 10 | C157: 2468 | D157: 1296 | E157: 3764
A158: 2022-07-01 | B158: 10 - 11 | C158: 2188 | D158: 1239 | E158: 3427
A159: 2022-07-01 | B159: 11 - 12 | C159: 2091 | D159: 1229 | E159: 3320
A160: 2022-07-01 | B160: 12 - 13 | C160: 2004 | D160: 1207 | E160: 3211
A161: 2022-07-01 | B161: 13 - 14 | C161: 1756 | D161: 1176 | E161: 2932
A162: 2022-07-01 | B162: 14 - 15 | C162: 1676 | D162: 1156 | E162: 2832
A163: 2022-07-01 | B163: 15 - 16 | C163: 1525 | D163: 1144 | E163: 2669
A164: 2022-07-01 | B164: 16 - 17 | C164: 1415 | D164: 1138 | E164: 2553
A165: 2022-07-01 | B165: 17 - 18 | C165: 1372 | D165: 1153 | E165: 2525
A166: 2022-07-01 | B166: 18 - 19 | C166: 1301 | D166: 1169 | E166: 2470
A167: 2022-07-01 | B167: 19 - 20 | C167: 1201 | D167: 1170 | E167: 2371
A168: 2022-07-01 | B168: 20 - 21 | C168: 1114 | D168: 1143 | E168: 2257
A169: 2022-07-01 | B169: 21 - 22 | C169: 1032 | D169: 1119 | E169: 2151
A170: 2022-07-01 | B170: 22 - 23 | C170: 1074 | D170: 1097 | E170: 2171
A171: 2022-07-01 | B171: 23 - 00 | C171: 999 | D171: 1072 | E171: 2071
A172: 2022-08-01 | B172: 00 - 01 | C172: 1391 | D172: 572 | E172: 1963
A173: 2022-08-01 | B173: 01 - 02 | C173: 1287 | D173: 508 | E173: 1795
A174: 2022-08-01 | B174: 02 - 03 | C174: 1297 | D174: 450 | E174: 1747
A175: 2022-08-01 | B175: 03 - 04 | C175: 1426 | D175: 416 | E175: 1842
A176: 2022-08-01 | B176: 04 - 05 | C176: 1564 | D176: 420 | E176: 1984
A177: 2022-08-01 | B177: 05 - 06 | C177: 1745 | D177: 444 | E177: 2189
A178: 2022-08-01 | B178: 06 - 07 | C178: 1919 | D178: 548 | E178: 2467
A179: 2022-08-01 | B179: 07 - 08 | C179: 2033 | D179: 614 | E179: 2647
A180: 2022-08-01 | B180: 08 - 09 | C180: 2112 | D180: 673 | E180: 2785
A181: 2022-08-01 | B181: 09 - 10 | C181: 2045 | D181: 792 | E181: 2837
A182: 2022-08-01 | B182: 10 - 11 | C182: 1788 | D182: 894 | E182: 2682
A183: 2022-08-01 | B183: 11 - 12 | C183: 1557 | D183: 985 | E183: 2542
A184: 2022-08-01 | B184: 12 - 13 | C184: 1419 | D184: 1027 | E184: 2446
A185: 2022-08-01 | B185: 13 - 14 | C185: 1345 | D185: 1035 | E185: 2380
A186: 2022-08-01 | B186: 14 - 15 | C186: 1194 | D186: 1049 | E186: 2243
A187: 2022-08-01 | B187: 15 - 16 | C187: 1208 | D187: 1059 | E187: 2267
A188: 2022-08-01 | B188: 16 - 17 | C188: 1280 | D188: 1045 | E188: 2325
A189: 2022-08-01 | B189: 17 - 18 | C189: 1355 | D189: 1024 | E189: 2379
A190: 2022-08-01 | B190: 18 - 19 | C190: 1471 | D190: 1025 | E190: 2496
A191: 2022-08-01 | B191: 19 - 20 | C191: 1626 | D191: 1027 | E191: 2653
A192: 2022-08-01 | B192: 20 - 21 | C192: 1847 | D192: 992 | E192: 2839
A193: 2022-08-01 | B193: 21 - 22 | C193: 2036 | D193: 948 | E193: 2984
A194: 2022-08-01 | B194: 22 - 23 | C194: 2173 | D194: 953 | E194: 3126
A195: 2022-08-01 | B195: 23 - 00 | C195: 2297 | D195: 1004 | E195: 3301
A196: 2022-09-01 | B196: 00 - 01 | C196: 2579 | D196: 1127 | E196: 3706
A197: 2022-09-01 | B197: 01 - 02 | C197: 2653 | D197: 1175 | E197: =SUM(C197:D197) -> 3828
A198: 2022-09-01 | B198: 02 - 03 | C198: 2724 | D198: 1232 | E198: 3956
A199: 2022-09-01 | B199: 03 - 04 | C199: 2722 | D199: 1246 | E199: 3968
A200: 2022-09-01 | B200: 04 - 05 | C200: 2718 | D200: 1257 | E200: 3975
... 8564 more rows

Sheet regulating-power-dk2_2021_hourl
A1: Regulating Power DK2 in DKK/MWh, MWh
A2: Data was last updated 01-01-2023
B3: Hours | C3: Price up | D3: Price down | E3: Dominating direction | F3: Imbalance price | G3: Imbalance price consumption | H3: Imbalance price production purchase | I3: Imbalance price production sale | J3: Volume up | K3: Volume down
A4: 2021-01-01 | B4: 00 - 01 | C4: 378.51 | D4: 137.65 | E4: D | G4: 137.65 | H4: 378.51 | I4: 137.65 | J4: 0 | K4: -12
A5: 2021-01-01 | B5: 01 - 02 | C5: 358.57 | D5: 358.57 | G5: 358.57 | H5: 358.57 | I5: 358.57 | J5: 0 | K5: 0
A6: 2021-01-01 | B6: 02 - 03 | C6: 332.45 | D6: 332.45 | G6: 332.45 | H6: 332.45 | I6: 332.45 | J6: 0 | K6: 0
A7: 2021-01-01 | B7: 03 - 04 | C7: 319.35 | D7: 319.35 | G7: 319.35 | H7: 319.35 | I7: 319.35 | J7: 0 | K7: 0
A8: 2021-01-01 | B8: 04 - 05 | C8: 300.53 | D8: 300.53 | G8: 300.53 | H8: 300.53 | I8: 300.53 | J8: 0 | K8: 0
A9: 2021-01-01 | B9: 05 - 06 | C9: 299.12 | D9: 299.12 | G9: 299.12 | H9: 299.12 | I9: 299.12 | J9: 0 | K9: 0
A10: 2021-01-01 | B10: 06 - 07 | C10: 294.87 | D10: 294.87 | G10: 294.87 | H10: 294.87 | I10: 294.87 | J10: 0 | K10: 0
A11: 2021-01-01 | B11: 07 - 08 | C11: 298.3 | D11: 298.3 | G11: 298.3 | H11: 298.3 | I11: 298.3 | J11: 0 | K11: 0
A12: 2021-01-01 | B12: 08 - 09 | C12: 307.08 | D12: 307.08 | G12: 307.08 | H12: 307.08 | I12: 307.08 | J12: 0 | K12: 0
A13: 2021-01-01 | B13: 09 - 10 | C13: 333.94 | D13: 156.25 | E13: D | G13: 156.25 | H13: 333.94 | I13: 156.25 | J13: 0 | K13: -61
A14: 2021-01-01 | B14: 10 - 11 | C14: 334.83 | D14: 178.58 | E14: D | G14: 178.58 | H14: 334.83 | I14: 178.58 | J14: 0 | K14: -60
A15: 2021-01-01 | B15: 11 - 12 | C15: 351.2 | D15: 171.14 | E15: D | G15: 171.14 | H15: 351.2 | I15: 171.14 | J15: 0 | K15: -91
A16: 2021-01-01 | B16: 12 - 13 | C16: 377.84 | D16: 218.51 | E16: D | G16: 218.51 | H16: 377.84 | I16: 218.51 | J16: 0 | K16: -76
A17: 2021-01-01 | B17: 13 - 14 | C17: 338.48 | D17: 226.15 | E17: D | G17: 226.15 | H17: 338.48 | I17: 226.15 | J17: 0 | K17: -55
A18: 2021-01-01 | B18: 14 - 15 | C18: 332.82 | D18: 228.92 | E18: D | G18: 228.92 | H18: 332.82 | I18: 228.92 | J18: 0 | K18: -51
A19: 2021-01-01 | B19: 15 - 16 | C19: 346.66 | D19: 346.66 | G19: 346.66 | H19: 346.66 | I19: 346.66 | J19: 0 | K19: 0
A20: 2021-01-01 | B20: 16 - 17 | C20: 581.27 | D20: 394.28 | E20: U | G20: 581.27 | H20: 581.27 | I20: 394.28 | J20: 24 | K20: 0
A21: 2021-01-01 | B21: 17 - 18 | C21: 500 | D21: 448.38 | E21: U | G21: 500 | H21: 500 | I21: 448.38 | J21: 19 | K21: 0
A22: 2021-01-01 | B22: 18 - 19 | C22: 450.98 | D22: 450.98 | G22: 450.98 | H22: 450.98 | I22: 450.98 | J22: 0 | K22: 0
A23: 2021-01-01 | B23: 19 - 20 | C23: 449.12 | D23: 449.12 | G23: 449.12 | H23: 449.12 | I23: 449.12 | J23: 0 | K23: 0
A24: 2021-01-01 | B24: 20 - 21 | C24: 499 | D24: 427.1 | E24: U | G24: 499 | H24: 499 | I24: 427.1 | J24: 63 | K24: 0
A25: 2021-01-01 | B25: 21 - 22 | C25: 589.16 | D25: 400.76 | E25: U | G25: 589.16 | H25: 589.16 | I25: 400.76 | J25: 78 | K25: 0
A26: 2021-01-01 | B26: 22 - 23 | C26: 737.62 | D26: 397.71 | E26: U | G26: 737.62 | H26: 737.62 | I26: 397.71 | J26: 112 | K26: 0
A27: 2021-01-01 | B27: 23 - 00 | C27: 800 | D27: 369.95 | E27: U | G27: 800 | H27: 800 | I27: 369.95 | J27: 139 | K27: 0
A28: 2021-02-01 | B28: 00 - 01 | C28: 450 | D28: 347.41 | E28: U | G28: 450 | H28: 450 | I28: 347.41 | J28: 16 | K28: 0
A29: 2021-02-01 | B29: 01 - 02 | C29: 500 | D29: 315.71 | E29: U | G29: 500 | H29: 500 | I29: 315.71 | J29: 24 | K29: 0
A30: 2021-02-01 | B30: 02 - 03 | C30: 440 | D30: 305.74 | E30: U | G30: 440 | H30: 440 | I30: 305.74 | J30: 0 | K30: 0
A31: 2021-02-01 | B31: 03 - 04 | C31: 416.64 | D31: 297.63 | E31: U | G31: 416.64 | H31: 416.64 | I31: 297.63 | J31: 0 | K31: 0
A32: 2021-02-01 | B32: 04 - 05 | C32: 410.9 | D32: 279.4 | E32: U | G32: 410.9 | H32: 410.9 | I32: 279.4 | J32: 0 | K32: 0
A33: 2021-02-01 | B33: 05 - 06 | C33: 290.19 | D33: 290.19 | G33: 290.19 | H33: 290.19 | I33: 290.19 | J33: 0 | K33: 0
A34: 2021-02-01 | B34: 06 - 07 | C34: 313.18 | D34: 148.81 | E34: D | G34: 148.81 | H34: 313.18 | I34: 148.81 | J34: 0 | K34: 0
A35: 2021-02-01 | B35: 07 - 08 | C35: 334.53 | D35: 152.79 | E35: D | G35: 152.79 | H35: 334.53 | I35: 152.79 | J35: 0 | K35: -57
A36: 2021-02-01 | B36: 08 - 09 | C36: 360.5 | D36: 163.7 | E36: D | G36: 163.7 | H36: 360.5 | I36: 163.7 | J36: 0 | K36: -94
A37: 2021-02-01 | B37: 09 - 10 | C37: 386.92 | D37: 163.7 | E37: D | G37: 163.7 | H37: 386.92 | I37: 163.7 | J37: 0 | K37: -144
A38: 2021-02-01 | B38: 10 - 11 | C38: 386.92 | D38: 163.7 | E38: D | G38: 163.7 | H38: 386.92 | I38: 163.7 | J38: 0 | K38: -74
A39: 2021-02-01 | B39: 11 - 12 | C39: 388.03 | D39: 388.03 | G39: 388.03 | H39: 388.03 | I39: 388.03 | J39: 0 | K39: 0
A40: 2021-02-01 | B40: 12 - 13 | C40: 416.31 | D40: 220.31 | E40: D | G40: 220.31 | H40: 416.31 | I40: 220.31 | J40: 0 | K40: -47
A41: 2021-02-01 | B41: 13 - 14 | C41: 386.92 | D41: 386.92 | G41: 386.92 | H41: 386.92 | I41: 386.92 | J41: 0 | K41: 0
A42: 2021-02-01 | B42: 14 - 15 | C42: 377.17 | D42: 377.17 | G42: 377.17 | H42: 377.17 | I42: 377.17 | J42: 0 | K42: 0
A43: 2021-02-01 | B43: 15 - 16 | C43: 600 | D43: 397.71 | E43: U | G43: 600 | H43: 600 | I43: 397.71 | J43: 66 | K43: 0
A44: 2021-02-01 | B44: 16 - 17 | C44: 446.37 | D44: 446.37 | G44: 446.37 | H44: 446.37 | I44: 446.37 | J44: 0 | K44: 0
A45: 2021-02-01 | B45: 17 - 18 | C45: 461.32 | D45: 461.32 | G45: 461.32 | H45: 461.32 | I45: 461.32 | J45: 0 | K45: 0
A46: 2021-02-01 | B46: 18 - 19 | C46: 469.36 | D46: 469.36 | G46: 469.36 | H46: 469.36 | I46: 469.36 | J46: 0 | K46: 0
A47: 2021-02-01 | B47: 19 - 20 | C47: 462.59 | D47: 462.59 | G47: 462.59 | H47: 462.59 | I47: 462.59 | J47: 0 | K47: 0
A48: 2021-02-01 | B48: 20 - 21 | C48: 446.67 | D48: 446.67 | G48: 446.67 | H48: 446.67 | I48: 446.67 | J48: 0 | K48: 0
A49: 2021-02-01 | B49: 21 - 22 | C49: 409.46 | D49: 409.46 | G49: 409.46 | H49: 409.46 | I49: 409.46 | J49: 0 | K49: 0
A50: 2021-02-01 | B50: 22 - 23 | C50: 388.78 | D50: 388.78 | G50: 388.78 | H50: 388.78 | I50: 388.78 | J50: 0 | K50: 0
A51: 2021-02-01 | B51: 23 - 00 | C51: 360.5 | D51: 360.5 | G51: 360.5 | H51: 360.5 | I51: 360.5 | J51: 0 | K51: 0
A52: 2021-03-01 | B52: 00 - 01 | C52: 343.09 | D52: 343.09 | G52: 343.09 | H52: 343.09 | I52: 343.09 | J52: 0 | K52: 0
A53: 2021-03-01 | B53: 01 - 02 | C53: 309.46 | D53: 309.46 | G53: 309.46 | H53: 309.46 | I53: 309.46 | J53: 0 | K53: 0
A54: 2021-03-01 | B54: 02 - 03 | C54: 276.87 | D54: 276.87 | G54: 276.87 | H54: 276.87 | I54: 276.87 | J54: 0 | K54: 0
A55: 2021-03-01 | B55: 03 - 04 | C55: 261.76 | D55: 261.76 | G55: 261.76 | H55: 261.76 | I55: 261.76 | J55: 0 | K55: 0
A56: 2021-03-01 | B56: 04 - 05 | C56: 183.41 | D56: 183.41 | G56: 183.41 | H56: 183.41 | I56: 183.41 | J56: 0 | K56: 0
A57: 2021-03-01 | B57: 05 - 06 | C57: 177.46 | D57: 177.46 | G57: 177.46 | H57: 177.46 | I57: 177.46 | J57: 0 | K57: 0
A58: 2021-03-01 | B58: 06 - 07 | C58: 178.95 | D58: 178.95 | G58: 178.95 | H58: 178.95 | I58: 178.95 | J58: 0 | K58: 0
A59: 2021-03-01 | B59: 07 - 08 | C59: 184.53 | D59: 171.14 | E59: D | G59: 171.14 | H59: 184.53 | I59: 171.14 | J59: 0 | K59: 0
A60: 2021-03-01 | B60: 08 - 09 | C60: 185.79 | D60: 163.7 | E60: D | G60: 163.7 | H60: 185.79 | I60: 163.7 | J60: 0 | K60: 0
A61: 2021-03-01 | B61: 09 - 10 | C61: 190.85 | D61: 163.7 | E61: D | G61: 163.7 | H61: 190.85 | I61: 163.7 | J61: 0 | K61: 0
A62: 2021-03-01 | B62: 10 - 11 | C62: 193.46 | D62: 163.7 | E62: D | G62: 163.7 | H62: 193.46 | I62: 163.7 | J62: 0 | K62: 0
A63: 2021-03-01 | B63: 11 - 12 | C63: 200.08 | D63: 163.7 | E63: D | G63: 163.7 | H63: 200.08 | I63: 163.7 | J63: 0 | K63: 0
A64: 2021-03-01 | B64: 12 - 13 | C64: 192.49 | D64: 152.39 | E64: D | G64: 152.39 | H64: 192.49 | I64: 152.39 | J64: 0 | K64: 0
A65: 2021-03-01 | B65: 13 - 14 | C65: 192.19 | D65: 149.24 | E65: D | G65: 149.24 | H65: 192.19 | I65: 149.24 | J65: 0 | K65: 0
A66: 2021-03-01 | B66: 14 - 15 | C66: 193.61 | D66: 149.24 | E66: D | G66: 149.24 | H66: 193.61 | I66: 149.24 | J66: 0 | K66: -16
A67: 2021-03-01 | B67: 15 - 16 | C67: 197.18 | D67: 152.79 | E67: D | G67: 152.79 | H67: 197.18 | I67: 152.79 | J67: 0 | K67: 0
A68: 2021-03-01 | B68: 16 - 17 | C68: 247.55 | D68: 171.14 | E68: D | G68: 171.14 | H68: 247.55 | I68: 171.14 | J68: 0 | K68: 0
A69: 2021-03-01 | B69: 17 - 18 | C69: 327.09 | D69: 327.09 | G69: 327.09 | H69: 327.09 | I69: 327.09 | J69: 0 | K69: 0
A70: 2021-03-01 | B70: 18 - 19 | C70: 322.55 | D70: 322.55 | G70: 322.55 | H70: 322.55 | I70: 322.55 | J70: 0 | K70: 0
A71: 2021-03-01 | B71: 19 - 20 | C71: 207.74 | D71: 207.74 | G71: 207.74 | H71: 207.74 | I71: 207.74 | J71: 0 | K71: 0
A72: 2021-03-01 | B72: 20 - 21 | C72: 205.07 | D72: 182.3 | E72: D | G72: 182.3 | H72: 205.07 | I72: 182.3 | J72: 0 | K72: 0
A73: 2021-03-01 | B73: 21 - 22 | C73: 201.2 | D73: 178.58 | E73: D | G73: 178.58 | H73: 201.2 | I73: 178.58 | J73: 0 | K73: 0
A74: 2021-03-01 | B74: 22 - 23 | C74: 194.8 | D74: 178.58 | E74: D | G74: 178.58 | H74: 194.8 | I74: 178.58 | J74: 0 | K74: 0
A75: 2021-03-01 | B75: 23 - 00 | C75: 185.42 | D75: 185.42 | G75: 185.42 | H75: 185.42 | I75: 185.42 | J75: 0 | K75: 0
A76: 2021-04-01 | B76: 00 - 01 | C76: 183.49 | D76: 148.81 | E76: D | G76: 148.81 | H76: 183.49 | I76: 148.81 | J76: 0 | K76: 0
A77: 2021-04-01 | B77: 01 - 02 | C77: 178.95 | D77: 148.81 | E77: D | G77: 148.81 | H77: 178.95 | I77: 148.81 | J77: 0 | K77: 0
A78: 2021-04-01 | B78: 02 - 03 | C78: 177.68 | D78: 142.13 | E78: D | G78: 142.13 | H78: 177.68 | I78: 142.13 | J78: 0 | K78: 0
A79: 2021-04-01 | B79: 03 - 04 | C79: 178.8 | D79: 142.13 | E79: D | G79: 142.13 | H79: 178.8 | I79: 142.13 | J79: 0 | K79: 0
A80: 2021-04-01 | B80: 04 - 05 | C80: 182.89 | D80: 149.24 | E80: D | G80: 149.24 | H80: 182.89 | I80: 149.24 | J80: 0 | K80: 0
A81: 2021-04-01 | B81: 05 - 06 | C81: 192.27 | D81: 171.14 | E81: D | G81: 171.14 | H81: 192.27 | I81: 171.14 | J81: 0 | K81: 0
A82: 2021-04-01 | B82: 06 - 07 | C82: 209.9 | D82: 178.58 | E82: D | G82: 178.58 | H82: 209.9 | I82: 178.58 | J82: 0 | K82: 0
A83: 2021-04-01 | B83: 07 - 08 | C83: 520.23 | D83: 193.46 | E83: U | G83: 520.23 | H83: 520.23 | I83: 370.25 | J83: 38 | K83: 0
A84: 2021-04-01 | B84: 08 - 09 | C84: 1573.82 | D84: 404.92 | E84: U | G84: 1573.82 | H84: 1573.82 | I84: 404.92 | J84: 277 | K84: 0
A85: 2021-04-01 | B85: 09 - 10 | C85: 1573.82 | D85: 414.37 | E85: U | G85: 1573.82 | H85: 1573.82 | I85: 414.37 | J85: 178 | K85: 0
A86: 2021-04-01 | B86: 10 - 11 | C86: 500 | D86: 415.19 | E86: U | G86: 500 | H86: 500 | I86: 415.19 | J86: 14 | K86: 0
A87: 2021-04-01 | B87: 11 - 12 | C87: 433.57 | D87: 433.57 | G87: 433.57 | H87: 433.57 | I87: 433.57 | J87: 0 | K87: 0
A88: 2021-04-01 | B88: 12 - 13 | C88: 427.99 | D88: 427.99 | G88: 427.99 | H88: 427.99 | I88: 427.99 | J88: 0 | K88: 0
A89: 2021-04-01 | B89: 13 - 14 | C89: 446.44 | D89: 420.62 | E89: U | G89: 446.44 | H89: 446.44 | I89: 420.62 | J89: 0 | K89: 0
A90: 2021-04-01 | B90: 14 - 15 | C90: 447.11 | D90: 431.49 | E90: U | G90: 447.11 | H90: 447.11 | I90: 431.49 | J90: 0 | K90: 0
A91: 2021-04-01 | B91: 15 - 16 | C91: 450 | D91: 431.78 | E91: U | G91: 450 | H91: 450 | I91: 431.78 | J91: 11 | K91: 0
A92: 2021-04-01 | B92: 16 - 17 | C92: 453.88 | D92: 450.16 | E92: U | G92: 453.88 | H92: 453.88 | I92: 450.16 | J92: 11 | K92: 0
A93: 2021-04-01 | B93: 17 - 18 | C93: 491.09 | D93: 485.28 | E93: U | G93: 491.09 | H93: 491.09 | I93: 485.28 | J93: 11 | K93: 0
A94: 2021-04-01 | B94: 18 - 19 | C94: 491.09 | D94: 446.81 | E94: U | G94: 491.09 | H94: 491.09 | I94: 446.81 | J94: 11 | K94: 0
A95: 2021-04-01 | B95: 19 - 20 | C95: 470 | D95: 399.79 | E95: U | G95: 470 | H95: 470 | I95: 399.79 | J95: 11 | K95: 0
A96: 2021-04-01 | B96: 20 - 21 | C96: 372.04 | D96: 280.37 | E96: U | G96: 372.04 | H96: 372.04 | I96: 280.37 | J96: 0 | K96: 0
A97: 2021-04-01 | B97: 21 - 22 | C97: 319.79 | D97: 286.39 | E97: U | G97: 319.79 | H97: 319.79 | I97: 286.39 | J97: 0 | K97: 0
A98: 2021-04-01 | B98: 22 - 23 | C98: 260.42 | D98: 230.29 | E98: U | G98: 260.42 | H98: 260.42 | I98: 230.29 | J98: 0 | K98: 0
A99: 2021-04-01 | B99: 23 - 00 | C99: 222.33 | D99: 203.5 | E99: U | G99: 222.33 | H99: 222.33 | I99: 203.5 | J99: 0 | K99: 0
A100: 2021-05-01 | B100: 00 - 01 | C100: 206.85 | D100: 206.85 | G100: 206.85 | H100: 206.85 | I100: 206.85 | J100: 0 | K100: 0
A101: 2021-05-01 | B101: 01 - 02 | C101: 204.17 | D101: 204.17 | G101: 204.17 | H101: 204.17 | I101: 204.17 | J101: 0 | K101: 0
A102: 2021-05-01 | B102: 02 - 03 | C102: 201.42 | D102: 201.42 | G102: 201.42 | H102: 201.42 | I102: 201.42 | J102: 0 | K102: 0
A103: 2021-05-01 | B103: 03 - 04 | C103: 208.26 | D103: 201.87 | E103: U | G103: 208.26 | H103: 208.26 | I103: 201.87 | J103: 0 | K103: 0
A104: 2021-05-01 | B104: 04 - 05 | C104: 208.26 | D104: 206.7 | E104: U | G104: 208.26 | H104: 208.26 | I104: 206.7 | J104: 0 | K104: 0
A105: 2021-05-01 | B105: 05 - 06 | C105: 234.3 | D105: 221.73 | E105: U | G105: 234.3 | H105: 234.3 | I105: 221.73 | J105: 0 | K105: 0
A106: 2021-05-01 | B106: 06 - 07 | C106: 275.21 | D106: 266.13 | E106: U | G106: 275.21 | H106: 275.21 | I106: 266.13 | J106: 0 | K106: 0
A107: 2021-05-01 | B107: 07 - 08 | C107: 402.69 | D107: 398.97 | E107: U | G107: 402.69 | H107: 402.69 | I107: 398.97 | J107: 0 | K107: 0
A108: 2021-05-01 | B108: 08 - 09 | C108: 497.27 | D108: 446.28 | E108: U | G108: 497.27 | H108: 497.27 | I108: 446.28 | J108: 11 | K108: 0
A109: 2021-05-01 | B109: 09 - 10 | C109: 497.27 | D109: 447.17 | E109: U | G109: 497.27 | H109: 497.27 | I109: 447.17 | J109: 11 | K109: 0
A110: 2021-05-01 | B110: 10 - 11 | C110: 520.66 | D110: 455.06 | E110: U | G110: 520.66 | H110: 520.66 | I110: 455.06 | J110: 57 | K110: 0
A111: 2021-05-01 | B111: 11 - 12 | C111: 600 | D111: 464.58 | E111: U | G111: 600 | H111: 600 | I111: 464.58 | J111: 89 | K111: 0
A112: 2021-05-01 | B112: 12 - 13 | C112: 600 | D112: 457.29 | E112: U | G112: 600 | H112: 600 | I112: 457.29 | J112: 91 | K112: 0
A113: 2021-05-01 | B113: 13 - 14 | C113: 647.11 | D113: 463.31 | E113: U | G113: 647.11 | H113: 647.11 | I113: 463.31 | J113: 91 | K113: 0
A114: 2021-05-01 | B114: 14 - 15 | C114: 647.11 | D114: 461.45 | E114: U | G114: 647.11 | H114: 647.11 | I114: 461.45 | J114: 89 | K114: 0
A115: 2021-05-01 | B115: 15 - 16 | C115: 562.31 | D115: 464.95 | E115: U | G115: 562.31 | H115: 562.31 | I115: 464.95 | J115: 59 | K115: 0
A116: 2021-05-01 | B116: 16 - 17 | C116: 557.85 | D116: 477.97 | E116: U | G116: 557.85 | H116: 557.85 | I116: 477.97 | J116: 60 | K116: 0
A117: 2021-05-01 | B117: 17 - 18 | C117: 557.85 | D117: 487.93 | E117: U | G117: 557.85 | H117: 557.85 | I117: 487.93 | J117: 59 | K117: 0
A118: 2021-05-01 | B118: 18 - 19 | C118: 647.11 | D118: 447.25 | E118: U | G118: 647.11 | H118: 647.11 | I118: 447.25 | J118: 68 | K118: 0
A119: 2021-05-01 | B119: 19 - 20 | C119: 647.11 | D119: 406.56 | E119: U | G119: 647.11 | H119: 647.11 | I119: 406.56 | J119: 35 | K119: 0
A120: 2021-05-01 | B120: 20 - 21 | C120: 647.11 | D120: 303.32 | E120: U | G120: 647.11 | H120: 647.11 | I120: 303.32 | J120: 77 | K120: 0
A121: 2021-05-01 | B121: 21 - 22 | C121: 647.11 | D121: 294.54 | E121: U | G121: 647.11 | H121: 647.11 | I121: 294.54 | J121: 39 | K121: 0
A122: 2021-05-01 | B122: 22 - 23 | C122: 479.51 | D122: 238.46 | E122: U | G122: 479.51 | H122: 479.51 | I122: 238.46 | J122: 15 | K122: 0
A123: 2021-05-01 | B123: 23 - 00 | C123: 290.08 | D123: 217.26 | E123: U | G123: 290.08 | H123: 290.08 | I123: 217.26 | J123: 0 | K123: 0
A124: 2021-06-01 | B124: 00 - 01 | C124: 260.33 | D124: 221.88 | E124: U | G124: 260.33 | H124: 260.33 | I124: 221.88 | J124: 10 | K124: 0
A125: 2021-06-01 | B125: 01 - 02 | C125: 260.33 | D125: 213.62 | E125: U | G125: 260.33 | H125: 260.33 | I125: 213.62 | J125: 10 | K125: 0
A126: 2021-06-01 | B126: 02 - 03 | C126: 260.33 | D126: 209.08 | E126: U | G126: 260.33 | H126: 260.33 | I126: 209.08 | J126: 10 | K126: 0
A127: 2021-06-01 | B127: 03 - 04 | C127: 252.89 | D127: 208.12 | E127: U | G127: 252.89 | H127: 252.89 | I127: 208.12 | J127: 10 | K127: 0
A128: 2021-06-01 | B128: 04 - 05 | C128: 275.21 | D128: 209.45 | E128: U | G128: 275.21 | H128: 275.21 | I128: 209.45 | J128: 10 | K128: 0
A129: 2021-06-01 | B129: 05 - 06 | C129: 275.21 | D129: 215.7 | E129: U | G129: 275.21 | H129: 275.21 | I129: 215.7 | J129: 0 | K129: 0
A130: 2021-06-01 | B130: 06 - 07 | C130: 297.52 | D130: 228.5 | E130: U | G130: 297.52 | H130: 297.52 | I130: 228.5 | J130: 0 | K130: 0
A131: 2021-06-01 | B131: 07 - 08 | C131: 297.52 | D131: 264.35 | E131: U | G131: 297.52 | H131: 297.52 | I131: 264.35 | J131: 0 | K131: 0
A132: 2021-06-01 | B132: 08 - 09 | C132: 520.66 | D132: 291.42 | E132: U | G132: 520.66 | H132: 520.66 | I132: 291.42 | J132: 45 | K132: 0
A133: 2021-06-01 | B133: 09 - 10 | C133: 520.66 | D133: 311.5 | E133: U | G133: 520.66 | H133: 520.66 | I133: 311.5 | J133: 27 | K133: 0
A134: 2021-06-01 | B134: 10 - 11 | C134: 491.43 | D134: 342.67 | E134: U | G134: 491.43 | H134: 491.43 | I134: 342.67 | J134: 30 | K134: 0
A135: 2021-06-01 | B135: 11 - 12 | C135: 542.97 | D135: 336.72 | E135: U | G135: 542.97 | H135: 542.97 | I135: 336.72 | J135: 44 | K135: 0
A136: 2021-06-01 | B136: 12 - 13 | C136: 570.31 | D136: 343.71 | E136: U | G136: 570.31 | H136: 570.31 | I136: 343.71 | J136: 45 | K136: 0
A137: 2021-06-01 | B137: 13 - 14 | C137: 570.51 | D137: 352.19 | E137: U | G137: 570.51 | H137: 570.51 | I137: 352.19 | J137: 45 | K137: 0
A138: 2021-06-01 | B138: 14 - 15 | C138: 571.94 | D138: 381.64 | E138: U | G138: 571.94 | H138: 571.94 | I138: 381.64 | J138: 79 | K138: 0
A139: 2021-06-01 | B139: 15 - 16 | C139: 571.78 | D139: 408.35 | E139: U | G139: 571.78 | H139: 571.78 | I139: 408.35 | J139: 86 | K139: 0
A140: 2021-06-01 | B140: 16 - 17 | C140: 595.04 | D140: 434.38 | E140: U | G140: 595.04 | H140: 595.04 | I140: 434.38 | J140: 93 | K140: 0
A141: 2021-06-01 | B141: 17 - 18 | C141: 906.86 | D141: 445.76 | E141: U | G141: 906.86 | H141: 906.86 | I141: 445.76 | J141: 183 | K141: 0
A142: 2021-06-01 | B142: 18 - 19 | C142: 788.43 | D142: 414.07 | E142: U | G142: 788.43 | H142: 788.43 | I142: 414.07 | J142: 149 | K142: 0
A143: 2021-06-01 | B143: 19 - 20 | C143: 624.79 | D143: 373.76 | E143: U | G143: 624.79 | H143: 624.79 | I143: 373.76 | J143: 96 | K143: 0
A144: 2021-06-01 | B144: 20 - 21 | C144: 624.79 | D144: 296.33 | E144: U | G144: 624.79 | H144: 624.79 | I144: 296.33 | J144: 72 | K144: 0
A145: 2021-06-01 | B145: 21 - 22 | C145: 624.79 | D145: 297 | E145: U | G145: 624.79 | H145: 624.79 | I145: 297 | J145: 75 | K145: 0
A146: 2021-06-01 | B146: 22 - 23 | C146: 483.47 | D146: 287.85 | E146: U | G146: 483.47 | H146: 483.47 | I146: 287.85 | J146: 49 | K146: 0
A147: 2021-06-01 | B147: 23 - 00 | C147: 483.47 | D147: 241.74 | E147: U | G147: 483.47 | H147: 483.47 | I147: 241.74 | J147: 56 | K147: 0
A148: 2021-07-01 | B148: 00 - 01 | C148: 639.32 | D148: 320.44 | E148: U | G148: 639.32 | H148: 639.32 | I148: 320.44 | J148: 126 | K148: 0
A149: 2021-07-01 | B149: 01 - 02 | C149: 438.86 | D149: 304.23 | E149: U | G149: 438.86 | H149: 438.86 | I149: 304.23 | J149: 75 | K149: 0
A150: 2021-07-01 | B150: 02 - 03 | C150: 320.61 | D150: 291.51 | E150: U | G150: 320.61 | H150: 320.61 | I150: 291.51 | J150: 0 | K150: 0
A151: 2021-07-01 | B151: 03 - 04 | C151: 295.9 | D151: 295.9 | G151: 295.9 | H151: 295.9 | I151: 295.9 | J151: 0 | K151: 0
A152: 2021-07-01 | B152: 04 - 05 | C152: 307.05 | D152: 271.5 | E152: D | G152: 271.5 | H152: 307.05 | I152: 271.5 | J152: 0 | K152: 0
A153: 2021-07-01 | B153: 05 - 06 | C153: 338.74 | D153: 304.97 | E153: D | G153: 304.97 | H153: 338.74 | I153: 304.97 | J153: 0 | K153: -14
A154: 2021-07-01 | B154: 06 - 07 | C154: 416.32 | D154: 416.32 | G154: 416.32 | H154: 416.32 | I154: 416.32 | J154: 0 | K154: 0
A155: 2021-07-01 | B155: 07 - 08 | C155: 504.32 | D155: 504.32 | G155: 504.32 | H155: 504.32 | I155: 504.32 | J155: 0 | K155: 0
A156: 2021-07-01 | B156: 08 - 09 | C156: 643.49 | D156: 643.49 | G156: 643.49 | H156: 643.49 | I156: 643.49 | J156: 0 | K156: 0
A157: 2021-07-01 | B157: 09 - 10 | C157: 632.26 | D157: 623.78 | E157: U | G157: 632.26 | H157: 632.26 | I157: 623.78 | J157: 89 | K157: 0
A158: 2021-07-01 | B158: 10 - 11 | C158: 632.26 | D158: 613.21 | E158: U | G158: 632.26 | H158: 632.26 | I158: 613.21 | J158: 92 | K158: 0
A159: 2021-07-01 | B159: 11 - 12 | C159: 642.87 | D159: 639.62 | E159: U | G159: 642.87 | H159: 642.87 | I159: 639.62 | J159: 72 | K159: 0
A160: 2021-07-01 | B160: 12 - 13 | C160: 632.26 | D160: 630.1 | E160: U | G160: 632.26 | H160: 632.26 | I160: 630.1 | J160: 60 | K160: 0
A161: 2021-07-01 | B161: 13 - 14 | C161: 632.26 | D161: 612.1 | E161: U | G161: 632.26 | H161: 632.26 | I161: 612.1 | J161: 76 | K161: 0
A162: 2021-07-01 | B162: 14 - 15 | C162: 632.26 | D162: 584.8 | E162: U | G162: 632.26 | H162: 632.26 | I162: 584.8 | J162: 68 | K162: 0
A163: 2021-07-01 | B163: 15 - 16 | C163: 606.74 | D163: 606.74 | G163: 606.74 | H163: 606.74 | I163: 606.74 | J163: 0 | K163: 0
A164: 2021-07-01 | B164: 16 - 17 | C164: 667.07 | D164: 667.07 | G164: 667.07 | H164: 667.07 | I164: 667.07 | J164: 0 | K164: 0
A165: 2021-07-01 | B165: 17 - 18 | C165: 743.83 | D165: 357.04 | E165: D | G165: 357.04 | H165: 743.83 | I165: 357.04 | J165: 0 | K165: 0
A166: 2021-07-01 | B166: 18 - 19 | C166: 672.65 | D166: 357.04 | E166: D | G166: 357.04 | H166: 672.65 | I166: 357.04 | J166: 0 | K166: -38
A167: 2021-07-01 | B167: 19 - 20 | C167: 597.15 | D167: 357.04 | E167: D | G167: 357.04 | H167: 597.15 | I167: 357.04 | J167: 0 | K167: -41
A168: 2021-07-01 | B168: 20 - 21 | C168: 496.88 | D168: 357.04 | E168: D | G168: 357.04 | H168: 496.88 | I168: 357.04 | J168: 0 | K168: -32
A169: 2021-07-01 | B169: 21 - 22 | C169: 441.31 | D169: 352.05 | E169: D | G169: 352.05 | H169: 441.31 | I169: 352.05 | J169: 0 | K169: -14
A170: 2021-07-01 | B170: 22 - 23 | C170: 433.36 | D170: 433.36 | G170: 433.36 | H170: 433.36 | I170: 433.36 | J170: 0 | K170: 0
A171: 2021-07-01 | B171: 23 - 00 | C171: 388.65 | D171: 388.65 | G171: 388.65 | H171: 388.65 | I171: 388.65 | J171: 0 | K171: 0
A172: 2021-08-01 | B172: 00 - 01 | C172: 366.84 | D172: 297.58 | E172: D | G172: 297.58 | H172: 366.84 | I172: 297.58 | J172: 0 | K172: -1
A173: 2021-08-01 | B173: 01 - 02 | C173: 352.48 | D173: 274.15 | E173: D | G173: 274.15 | H173: 352.48 | I173: 274.15 | J173: 0 | K173: -5
A174: 2021-08-01 | B174: 02 - 03 | C174: 340.58 | D174: 260.38 | E174: D | G174: 260.38 | H174: 340.58 | I174: 260.38 | J174: 0 | K174: -5
A175: 2021-08-01 | B175: 03 - 04 | C175: 331.13 | D175: 260.38 | E175: D | G175: 260.38 | H175: 331.13 | I175: 260.38 | J175: 0 | K175: -5
A176: 2021-08-01 | B176: 04 - 05 | C176: 339.91 | D176: 267.82 | E176: D | G176: 267.82 | H176: 339.91 | I176: 267.82 | J176: 0 | K176: -5
A177: 2021-08-01 | B177: 05 - 06 | C177: 374.43 | D177: 334.78 | E177: D | G177: 334.78 | H177: 374.43 | I177: 334.78 | J177: 0 | K177: 0
A178: 2021-08-01 | B178: 06 - 07 | C178: 444.21 | D178: 401.73 | E178: D | G178: 401.73 | H178: 444.21 | I178: 401.73 | J178: 0 | K178: 0
A179: 2021-08-01 | B179: 07 - 08 | C179: 591.89 | D179: 401.73 | E179: D | G179: 401.73 | H179: 591.89 | I179: 401.73 | J179: 0 | K179: 0
A180: 2021-08-01 | B180: 08 - 09 | C180: 770.29 | D180: 398.31 | E180: D | G180: 398.31 | H180: 770.29 | I180: 398.31 | J180: 0 | K180: 0
A181: 2021-08-01 | B181: 09 - 10 | C181: 801.98 | D181: 371.98 | E181: D | G181: 371.98 | H181: 801.98 | I181: 371.98 | J181: 0 | K181: 0
A182: 2021-08-01 | B182: 10 - 11 | C182: 798.41 | D182: 357.1 | E182: D | G182: 357.1 | H182: 798.41 | I182: 357.1 | J182: 0 | K182: 0
A183: 2021-08-01 | B183: 11 - 12 | C183: 776.64 | D183: 387.02 | E183: U | G183: 776.64 | H183: 776.64 | I183: 775.64 | J183: 19 | K183: 0
A184: 2021-08-01 | B184: 12 - 13 | C184: 744.28 | D184: 743.28 | E184: U | G184: 744.28 | H184: 744.28 | I184: 743.28 | J184: 47 | K184: 0
A185: 2021-08-01 | B185: 13 - 14 | C185: 709.48 | D185: 357.1 | E185: U | G185: 709.48 | H185: 709.48 | I185: 708.76 | J185: 21 | K185: 0
A186: 2021-08-01 | B186: 14 - 15 | C186: 689.79 | D186: 357.1 | E186: D | G186: 357.1 | H186: 689.79 | I186: 357.1 | J186: 0 | K186: 0
A187: 2021-08-01 | B187: 15 - 16 | C187: 709.88 | D187: 322.49 | E187: D | G187: 322.49 | H187: 709.88 | I187: 322.49 | J187: 0 | K187: 0
A188: 2021-08-01 | B188: 16 - 17 | C188: 706.75 | D188: 322.49 | E188: D | G188: 322.49 | H188: 706.75 | I188: 322.49 | J188: 0 | K188: -7
A189: 2021-08-01 | B189: 17 - 18 | C189: 818.35 | D189: 327.34 | E189: D | G189: 327.34 | H189: 818.35 | I189: 327.34 | J189: 0 | K189: -68
A190: 2021-08-01 | B190: 18 - 19 | C190: 743.58 | D190: 300.99 | E190: D | G190: 300.99 | H190: 743.58 | I190: 300.99 | J190: 0 | K190: -11
A191: 2021-08-01 | B191: 19 - 20 | C191: 596.05 | D191: 300.99 | E191: D | G191: 300.99 | H191: 596.05 | I191: 300.99 | J191: 0 | K191: -73
A192: 2021-08-01 | B192: 20 - 21 | C192: 477.91 | D192: 302.37 | E192: D | G192: 302.37 | H192: 477.91 | I192: 302.37 | J192: 0 | K192: -10
A193: 2021-08-01 | B193: 21 - 22 | C193: 442.13 | D193: 327.34 | E193: D | G193: 327.34 | H193: 442.13 | I193: 327.34 | J193: 0 | K193: -5
A194: 2021-08-01 | B194: 22 - 23 | C194: 418.25 | D194: 260.38 | E194: D | G194: 260.38 | H194: 418.25 | I194: 260.38 | J194: 0 | K194: 0
A195: 2021-08-01 | B195: 23 - 00 | C195: 384.99 | D195: 260.38 | E195: D | G195: 260.38 | H195: 384.99 | I195: 260.38 | J195: 0 | K195: 0
A196: 2021-09-01 | B196: 00 - 01 | C196: 376.94 | D196: 376.94 | G196: 376.94 | H196: 376.94 | I196: 376.94 | J196: 0 | K196: 0
A197: 2021-09-01 | B197: 01 - 02 | C197: 361.55 | D197: 361.55 | G197: 361.55 | H197: 361.55 | I197: 361.55 | J197: 0 | K197: 0
A198: 2021-09-01 | B198: 02 - 03 | C198: 357.23 | D198: 357.23 | G198: 357.23 | H198: 357.23 | I198: 357.23 | J198: 0 | K198: 0
A199: 2021-09-01 | B199: 03 - 04 | C199: 366.38 | D199: 366.38 | G199: 366.38 | H199: 366.38 | I199: 366.38 | J199: 0 | K199: 0
A200: 2021-09-01 | B200: 04 - 05 | C200: 369.21 | D200: 369.21 | G200: 369.21 | H200: 369.21 | I200: 369.21 | J200: 0 | K200: 0
... 8564 more rows

Sheet consumption-dk-areas_2022_hourl
A1: Consumption DK areas in MWh
A2: Data was last updated 01-01-2023
B3: Hours | D3: DK1 | E3: DK2 | F3: DK
A4: 2022-01-01 | B4: 00 - 01 | C4: 1 | D4: 2029 | E4: 1387 | F4: 3415
A5: 2022-01-01 | B5: 01 - 02 | C5: 2 | D5: 1974 | E5: 1340 | F5: 3314
A6: 2022-01-01 | B6: 02 - 03 | C6: 3 | D6: 1934 | E6: 1284 | F6: 3218
A7: 2022-01-01 | B7: 03 - 04 | C7: 4 | D7: 1882 | E7: 1244 | F7: 3126
A8: 2022-01-01 | B8: 04 - 05 | C8: 5 | D8: 1850 | E8: 1230 | F8: 3080
A9: 2022-01-01 | B9: 05 - 06 | C9: 6 | D9: 1844 | E9: 1200 | F9: 3044
A10: 2022-01-01 | B10: 06 - 07 | C10: 7 | D10: 1891 | E10: 1239 | F10: 3130
A11: 2022-01-01 | B11: 07 - 08 | C11: 8 | D11: 1965 | E11: 1273 | F11: 3238
A12: 2022-01-01 | B12: 08 - 09 | C12: 9 | D12: 2074 | E12: 1303 | F12: 3378
A13: 2022-01-01 | B13: 09 - 10 | C13: 10 | D13: 2169 | E13: 1368 | F13: 3537
A14: 2022-01-01 | B14: 10 - 11 | C14: 11 | D14: 2260 | E14: 1454 | F14: 3714
A15: 2022-01-01 | B15: 11 - 12 | C15: 12 | D15: 2319 | E15: 1499 | F15: 3818
A16: 2022-01-01 | B16: 12 - 13 | C16: 13 | D16: 2352 | E16: 1541 | F16: 3893
A17: 2022-01-01 | B17: 13 - 14 | C17: 14 | D17: 2375 | E17: 1568 | F17: 3943
A18: 2022-01-01 | B18: 14 - 15 | C18: 15 | D18: 2350 | E18: 1565 | F18: 3915
A19: 2022-01-01 | B19: 15 - 16 | C19: 16 | D19: 2378 | E19: 1610 | F19: 3988
A20: 2022-01-01 | B20: 16 - 17 | C20: 17 | D20: 2505 | E20: 1708 | F20: 4213
A21: 2022-01-01 | B21: 17 - 18 | C21: 18 | D21: 2668 | E21: 1805 | F21: 4473
A22: 2022-01-01 | B22: 18 - 19 | C22: 19 | D22: 2619 | E22: 1788 | F22: 4407
A23: 2022-01-01 | B23: 19 - 20 | C23: 20 | D23: 2436 | E23: 1696 | F23: 4133
A24: 2022-01-01 | B24: 20 - 21 | C24: 21 | D24: 2359 | E24: 1611 | F24: 3970
A25: 2022-01-01 | B25: 21 - 22 | C25: 22 | D25: 2286 | E25: 1536 | F25: 3821
A26: 2022-01-01 | B26: 22 - 23 | C26: 23 | D26: 2171 | E26: 1448 | F26: 3619
A27: 2022-01-01 | B27: 23 - 00 | C27: 24 | D27: 2093 | E27: 1369 | F27: 3462
A28: 2022-02-01 | B28: 00 - 01 | C28: 25 | D28: 2048 | E28: 1302 | F28: 3351
A29: 2022-02-01 | B29: 01 - 02 | C29: 26 | D29: 1933 | E29: 1240 | F29: 3173
A30: 2022-02-01 | B30: 02 - 03 | C30: 27 | D30: 1899 | E30: 1229 | F30: 3128
A31: 2022-02-01 | B31: 03 - 04 | C31: 28 | D31: 1907 | E31: 1186 | F31: 3093
A32: 2022-02-01 | B32: 04 - 05 | C32: 29 | D32: 1876 | E32: 1186 | F32: 3063
A33: 2022-02-01 | B33: 05 - 06 | C33: 30 | D33: 1943 | E33: 1206 | F33: 3149
A34: 2022-02-01 | B34: 06 - 07 | C34: 31 | D34: 1989 | E34: 1271 | F34: 3260
A35: 2022-02-01 | B35: 07 - 08 | C35: 32 | D35: 2117 | E35: 1338 | F35: 3455
A36: 2022-02-01 | B36: 08 - 09 | C36: 33 | D36: 2286 | E36: 1436 | F36: 3722
A37: 2022-02-01 | B37: 09 - 10 | C37: 34 | D37: 2373 | E37: 1532 | F37: 3905
A38: 2022-02-01 | B38: 10 - 11 | C38: 35 | D38: 2462 | E38: 1635 | F38: 4097
A39: 2022-02-01 | B39: 11 - 12 | C39: 36 | D39: 2496 | E39: 1672 | F39: 4167
A40: 2022-02-01 | B40: 12 - 13 | C40: 37 | D40: 2500 | E40: 1698 | F40: 4198
A41: 2022-02-01 | B41: 13 - 14 | C41: 38 | D41: 2510 | E41: 1701 | F41: 4212
A42: 2022-02-01 | B42: 14 - 15 | C42: 39 | D42: 2490 | E42: 1701 | F42: 4191
A43: 2022-02-01 | B43: 15 - 16 | C43: 40 | D43: 2572 | E43: 1728 | F43: 4301
A44: 2022-02-01 | B44: 16 - 17 | C44: 41 | D44: 2694 | E44: 1827 | F44: 4521
A45: 2022-02-01 | B45: 17 - 18 | C45: 42 | D45: 2895 | E45: 1978 | F45: 4873
A46: 2022-02-01 | B46: 18 - 19 | C46: 43 | D46: 2782 | E46: 1954 | F46: 4735
A47: 2022-02-01 | B47: 19 - 20 | C47: 44 | D47: 2616 | E47: 1817 | F47: 4433
A48: 2022-02-01 | B48: 20 - 21 | C48: 45 | D48: 2471 | E48: 1712 | F48: 4183
A49: 2022-02-01 | B49: 21 - 22 | C49: 46 | D49: 2371 | E49: 1603 | F49: 3974
A50: 2022-02-01 | B50: 22 - 23 | C50: 47 | D50: 2266 | E50: 1503 | F50: 3769
A51: 2022-02-01 | B51: 23 - 00 | C51: 48 | D51: 2141 | E51: 1418 | F51: 3559
A52: 2022-03-01 | B52: 00 - 01 | C52: 49 | D52: 2049 | E52: 1345 | F52: 3394
A53: 2022-03-01 | B53: 01 - 02 | C53: 50 | D53: 2070 | E53: 1275 | F53: 3345
A54: 2022-03-01 | B54: 02 - 03 | C54: 51 | D54: 2075 | E54: 1233 | F54: 3308
A55: 2022-03-01 | B55: 03 - 04 | C55: 52 | D55: 2065 | E55: 1221 | F55: 3285
A56: 2022-03-01 | B56: 04 - 05 | C56: 53 | D56: 2105 | E56: 1256 | F56: 3361
A57: 2022-03-01 | B57: 05 - 06 | C57: 54 | D57: 2218 | E57: 1366 | F57: 3584
A58: 2022-03-01 | B58: 06 - 07 | C58: 55 | D58: 2645 | E58: 1556 | F58: 4201
A59: 2022-03-01 | B59: 07 - 08 | C59: 56 | D59: 3028 | E59: 1744 | F59: 4772
A60: 2022-03-01 | B60: 08 - 09 | C60: 57 | D60: 3202 | E60: 1877 | F60: 5079
A61: 2022-03-01 | B61: 09 - 10 | C61: 58 | D61: 3138 | E61: 1934 | F61: 5072
A62: 2022-03-01 | B62: 10 - 11 | C62: 59 | D62: 3202 | E62: 1988 | F62: 5190
A63: 2022-03-01 | B63: 11 - 12 | C63: 60 | D63: 3246 | E63: 2000 | F63: 5246
A64: 2022-03-01 | B64: 12 - 13 | C64: 61 | D64: 3176 | E64: 1958 | F64: 5134
A65: 2022-03-01 | B65: 13 - 14 | C65: 62 | D65: 3130 | E65: 1948 | F65: 5078
A66: 2022-03-01 | B66: 14 - 15 | C66: 63 | D66: 3118 | E66: 1925 | F66: 5043
A67: 2022-03-01 | B67: 15 - 16 | C67: 64 | D67: 3101 | E67: 1919 | F67: 5021
A68: 2022-03-01 | B68: 16 - 17 | C68: 65 | D68: 3184 | E68: 2016 | F68: 5200
A69: 2022-03-01 | B69: 17 - 18 | C69: 66 | D69: 3366 | E69: 2168 | F69: 5535
A70: 2022-03-01 | B70: 18 - 19 | C70: 67 | D70: 3215 | E70: 2112 | F70: 5326
A71: 2022-03-01 | B71: 19 - 20 | C71: 68 | D71: 3021 | E71: 1951 | F71: 4973
A72: 2022-03-01 | B72: 20 - 21 | C72: 69 | D72: 2780 | E72: 1806 | F72: 4586
A73: 2022-03-01 | B73: 21 - 22 | C73: 70 | D73: 2641 | E73: 1676 | F73: 4316
A74: 2022-03-01 | B74: 22 - 23 | C74: 71 | D74: 2488 | E74: 1552 | F74: 4040
A75: 2022-03-01 | B75: 23 - 00 | C75: 72 | D75: 2321 | E75: 1438 | F75: 3758
A76: 2022-04-01 | B76: 00 - 01 | C76: 73 | D76: 2223 | E76: 1354 | F76: 3577
A77: 2022-04-01 | B77: 01 - 02 | C77: 74 | D77: 2191 | E77: 1298 | F77: 3488
A78: 2022-04-01 | B78: 02 - 03 | C78: 75 | D78: 2154 | E78: 1274 | F78: 3429
A79: 2022-04-01 | B79: 03 - 04 | C79: 76 | D79: 2170 | E79: 1285 | F79: 3454
A80: 2022-04-01 | B80: 04 - 05 | C80: 77 | D80: 2220 | E80: 1308 | F80: 3528
A81: 2022-04-01 | B81: 05 - 06 | C81: 78 | D81: 2318 | E81: 1398 | F81: 3716
A82: 2022-04-01 | B82: 06 - 07 | C82: 79 | D82: 2659 | E82: 1597 | F82: 4255
A83: 2022-04-01 | B83: 07 - 08 | C83: 80 | D83: 3044 | E83: 1834 | F83: 4878
A84: 2022-04-01 | B84: 08 - 09 | C84: 81 | D84: 3226 | E84: 1979 | F84: 5205
A85: 2022-04-01 | B85: 09 - 10 | C85: 82 | D85: 3227 | E85: 2011 | F85: 5238
A86: 2022-04-01 | B86: 10 - 11 | C86: 83 | D86: 3288 | E86: 2026 | F86: 5314
A87: 2022-04-01 | B87: 11 - 12 | C87: 84 | D87: 3285 | E87: 2048 | F87: 5333
A88: 2022-04-01 | B88: 12 - 13 | C88: 85 | D88: 3207 | E88: 2054 | F88: 5260
A89: 2022-04-01 | B89: 13 - 14 | C89: 86 | D89: 3188 | E89: 2039 | F89: 5227
A90: 2022-04-01 | B90: 14 - 15 | C90: 87 | D90: 3146 | E90: 2042 | F90: 5188
A91: 2022-04-01 | B91: 15 - 16 | C91: 88 | D91: 3083 | E91: 2009 | F91: 5091
A92: 2022-04-01 | B92: 16 - 17 | C92: 89 | D92: 3198 | E92: 2101 | F92: 5299
A93: 2022-04-01 | B93: 17 - 18 | C93: 90 | D93: 3398 | E93: 2243 | F93: 5641
A94: 2022-04-01 | B94: 18 - 19 | C94: 91 | D94: 3255 | E94: 2175 | F94: 5430
A95: 2022-04-01 | B95: 19 - 20 | C95: 92 | D95: 3099 | E95: 2048 | F95: 5147
A96: 2022-04-01 | B96: 20 - 21 | C96: 93 | D96: 2931 | E96: 1924 | F96: 4855
A97: 2022-04-01 | B97: 21 - 22 | C97: 94 | D97: 2806 | E97: 1788 | F97: 4594
A98: 2022-04-01 | B98: 22 - 23 | C98: 95 | D98: 2649 | E98: 1673 | F98: 4322
A99: 2022-04-01 | B99: 23 - 00 | C99: 96 | D99: 2489 | E99: 1548 | F99: 4036
A100: 2022-05-01 | B100: 00 - 01 | C100: 97 | D100: 2409 | E100: 1496 | F100: 3905
A101: 2022-05-01 | B101: 01 - 02 | C101: 98 | D101: 2321 | E101: 1459 | F101: 3780
A102: 2022-05-01 | B102: 02 - 03 | C102: 99 | D102: 2427 | E102: 1452 | F102: 3879
A103: 2022-05-01 | B103: 03 - 04 | C103: 100 | D103: 2415 | E103: 1448 | F103: 3864
A104: 2022-05-01 | B104: 04 - 05 | C104: 101 | D104: 2405 | E104: 1466 | F104: 3871
A105: 2022-05-01 | B105: 05 - 06 | C105: 102 | D105: 2447 | E105: 1512 | F105: 3959
A106: 2022-05-01 | B106: 06 - 07 | C106: 103 | D106: 2820 | E106: 1692 | F106: 4512
A107: 2022-05-01 | B107: 07 - 08 | C107: 104 | D107: 3195 | E107: 1950 | F107: 5145
A108: 2022-05-01 | B108: 08 - 09 | C108: 105 | D108: 3340 | E108: 2049 | F108: 5389
A109: 2022-05-01 | B109: 09 - 10 | C109: 106 | D109: 3351 | E109: 2078 | F109: 5428
A110: 2022-05-01 | B110: 10 - 11 | C110: 107 | D110: 3394 | E110: 2075 | F110: 5469
A111: 2022-05-01 | B111: 11 - 12 | C111: 108 | D111: 3411 | E111: 2061 | F111: 5472
A112: 2022-05-01 | B112: 12 - 13 | C112: 109 | D112: 3355 | E112: 2078 | F112: 5433
A113: 2022-05-01 | B113: 13 - 14 | C113: 110 | D113: 3307 | E113: 2107 | F113: 5414
A114: 2022-05-01 | B114: 14 - 15 | C114: 111 | D114: 3247 | E114: 2115 | F114: 5362
A115: 2022-05-01 | B115: 15 - 16 | C115: 112 | D115: 3190 | E115: 2094 | F115: 5284
A116: 2022-05-01 | B116: 16 - 17 | C116: 113 | D116: 3290 | E116: 2168 | F116: 5458
A117: 2022-05-01 | B117: 17 - 18 | C117: 114 | D117: 3519 | E117: 2298 | F117: 5818
A118: 2022-05-01 | B118: 18 - 19 | C118: 115 | D118: 3368 | E118: 2229 | F118: 5596
A119: 2022-05-01 | B119: 19 - 20 | C119: 116 | D119: 3188 | E119: 2100 | F119: 5287
A120: 2022-05-01 | B120: 20 - 21 | C120: 117 | D120: 3069 | E120: 1962 | F120: 5031
A121: 2022-05-01 | B121: 21 - 22 | C121: 118 | D121: 2966 | E121: 1877 | F121: 4844
A122: 2022-05-01 | B122: 22 - 23 | C122: 119 | D122: 2810 | E122: 1762 | F122: 4572
A123: 2022-05-01 | B123: 23 - 00 | C123: 120 | D123: 2676 | E123: 1639 | F123: 4315
A124: 2022-06-01 | B124: 00 - 01 | C124: 121 | D124: 2524 | E124: 1527 | F124: 4051
A125: 2022-06-01 | B125: 01 - 02 | C125: 122 | D125: 2495 | E125: 1472 | F125: 3967
A126: 2022-06-01 | B126: 02 - 03 | C126: 123 | D126: 2462 | E126: 1433 | F126: 3895
A127: 2022-06-01 | B127: 03 - 04 | C127: 124 | D127: 2429 | E127: 1435 | F127: 3864
A128: 2022-06-01 | B128: 04 - 05 | C128: 125 | D128: 2481 | E128: 1460 | F128: 3941
A129: 2022-06-01 | B129: 05 - 06 | C129: 126 | D129: 2603 | E129: 1561 | F129: 4163
A130: 2022-06-01 | B130: 06 - 07 | C130: 127 | D130: 2969 | E130: 1796 | F130: 4765
A131: 2022-06-01 | B131: 07 - 08 | C131: 128 | D131: 3312 | E131: 2059 | F131: 5371
A132: 2022-06-01 | B132: 08 - 09 | C132: 129 | D132: 3464 | E132: 2169 | F132: 5633
A133: 2022-06-01 | B133: 09 - 10 | C133: 130 | D133: 3423 | E133: 2186 | F133: 5608
A134: 2022-06-01 | B134: 10 - 11 | C134: 131 | D134: 3418 | E134: 2174 | F134: 5592
A135: 2022-06-01 | B135: 11 - 12 | C135: 132 | D135: 3321 | E135: 2126 | F135: 5447
A136: 2022-06-01 | B136: 12 - 13 | C136: 133 | D136: 3234 | E136: 2092 | F136: 5326
A137: 2022-06-01 | B137: 13 - 14 | C137: 134 | D137: 3213 | E137: 2080 | F137: 5293
A138: 2022-06-01 | B138: 14 - 15 | C138: 135 | D138: 3156 | E138: 2049 | F138: 5205
A139: 2022-06-01 | B139: 15 - 16 | C139: 136 | D139: 3113 | E139: 2049 | F139: 5163
A140: 2022-06-01 | B140: 16 - 17 | C140: 137 | D140: 3237 | E140: 2173 | F140: 5410
A141: 2022-06-01 | B141: 17 - 18 | C141: 138 | D141: 3488 | E141: 2329 | F141: 5817
A142: 2022-06-01 | B142: 18 - 19 | C142: 139 | D142: 3372 | E142: 2283 | F142: 5655
A143: 2022-06-01 | B143: 19 - 20 | C143: 140 | D143: 3167 | E143: 2142 | F143: 5309
A144: 2022-06-01 | B144: 20 - 21 | C144: 141 | D144: 3010 | E144: 2000 | F144: 5009
A145: 2022-06-01 | B145: 21 - 22 | C145: 142 | D145: 2858 | E145: 1872 | F145: 4730
A146: 2022-06-01 | B146: 22 - 23 | C146: 143 | D146: 2739 | E146: 1759 | F146: 4498
A147: 2022-06-01 | B147: 23 - 00 | C147: 144 | D147: 2603 | E147: 1629 | F147: 4232
A148: 2022-07-01 | B148: 00 - 01 | C148: 145 | D148: 2465 | E148: 1522 | F148: 3987
A149: 2022-07-01 | B149: 01 - 02 | C149: 146 | D149: 2399 | E149: 1455 | F149: 3853
A150: 2022-07-01 | B150: 02 - 03 | C150: 147 | D150: 2428 | E150: 1441 | F150: 3869
A151: 2022-07-01 | B151: 03 - 04 | C151: 148 | D151: 2427 | E151: 1445 | F151: 3872
A152: 2022-07-01 | B152: 04 - 05 | C152: 149 | D152: 2416 | E152: 1436 | F152: 3852
A153: 2022-07-01 | B153: 05 - 06 | C153: 150 | D153: 2630 | E153: 1541 | F153: 4171
A154: 2022-07-01 | B154: 06 - 07 | C154: 151 | D154: 2955 | E154: 1839 | F154: 4794
A155: 2022-07-01 | B155: 07 - 08 | C155: 152 | D155: 3308 | E155: 2086 | F155: 5394
A156: 2022-07-01 | B156: 08 - 09 | C156: 153 | D156: 3441 | E156: 2169 | F156: 5609
A157: 2022-07-01 | B157: 09 - 10 | C157: 154 | D157: 3427 | E157: 2192 | F157: 5619
A158: 2022-07-01 | B158: 10 - 11 | C158: 155 | D158: 3394 | E158: 2198 | F158: 5591
A159: 2022-07-01 | B159: 11 - 12 | C159: 156 | D159: 3400 | E159: 2197 | F159: 5597
A160: 2022-07-01 | B160: 12 - 13 | C160: 157 | D160: 3331 | E160: 2188 | F160: 5519
A161: 2022-07-01 | B161: 13 - 14 | C161: 158 | D161: 3233 | E161: 2156 | F161: 5388
A162: 2022-07-01 | B162: 14 - 15 | C162: 159 | D162: 3065 | E162: 2127 | F162: 5191
A163: 2022-07-01 | B163: 15 - 16 | C163: 160 | D163: 3031 | E163: 2107 | F163: 5138
A164: 2022-07-01 | B164: 16 - 17 | C164: 161 | D164: 3124 | E164: 2160 | F164: 5283
A165: 2022-07-01 | B165: 17 - 18 | C165: 162 | D165: 3313 | E165: 2266 | F165: 5579
A166: 2022-07-01 | B166: 18 - 19 | C166: 163 | D166: 3218 | E166: 2220 | F166: 5438
A167: 2022-07-01 | B167: 19 - 20 | C167: 164 | D167: 3004 | E167: 2062 | F167: 5066
A168: 2022-07-01 | B168: 20 - 21 | C168: 165 | D168: 2827 | E168: 1890 | F168: 4717
A169: 2022-07-01 | B169: 21 - 22 | C169: 166 | D169: 2653 | E169: 1779 | F169: 4432
A170: 2022-07-01 | B170: 22 - 23 | C170: 167 | D170: 2581 | E170: 1686 | F170: 4267
A171: 2022-07-01 | B171: 23 - 00 | C171: 168 | D171: 2395 | E171: 1596 | F171: 3991
A172: 2022-08-01 | B172: 00 - 01 | C172: 169 | D172: 2316 | E172: 1508 | F172: 3824
A173: 2022-08-01 | B173: 01 - 02 | C173: 170 | D173: 2254 | E173: 1432 | F173: 3685
A174: 2022-08-01 | B174: 02 - 03 | C174: 171 | D174: 2200 | E174: 1384 | F174: 3584
A175: 2022-08-01 | B175: 03 - 04 | C175: 172 | D175: 2164 | E175: 1369 | F175: 3533
A176: 2022-08-01 | B176: 04 - 05 | C176: 173 | D176: 2166 | E176: 1363 | F176: 3529
A177: 2022-08-01 | B177: 05 - 06 | C177: 174 | D177: 2219 | E177: 1381 | F177: 3600
A178: 2022-08-01 | B178: 06 - 07 | C178: 175 | D178: 2344 | E178: 1444 | F178: 3788
A179: 2022-08-01 | B179: 07 - 08 | C179: 176 | D179: 2475 | E179: 1539 | F179: 4014
A180: 2022-08-01 | B180: 08 - 09 | C180: 177 | D180: 2660 | E180: 1668 | F180: 4328
A181: 2022-08-01 | B181: 09 - 10 | C181: 178 | D181: 2784 | E181: 1797 | F181: 4580
A182: 2022-08-01 | B182: 10 - 11 | C182: 179 | D182: 2858 | E182: 1925 | F182: 4783
A183: 2022-08-01 | B183: 11 - 12 | C183: 180 | D183: 2808 | E183: 1960 | F183: 4768
A184: 2022-08-01 | B184: 12 - 13 | C184: 181 | D184: 2697 | E184: 1948 | F184: 4645
A185: 2022-08-01 | B185: 13 - 14 | C185: 182 | D185: 2680 | E185: 1898 | F185: 4578
A186: 2022-08-01 | B186: 14 - 15 | C186: 183 | D186: 2707 | E186: 1828 | F186: 4535
A187: 2022-08-01 | B187: 15 - 16 | C187: 184 | D187: 2736 | E187: 1844 | F187: 4581
A188: 2022-08-01 | B188: 16 - 17 | C188: 185 | D188: 2881 | E188: 1953 | F188: 4834
A189: 2022-08-01 | B189: 17 - 18 | C189: 186 | D189: 3133 | E189: 2106 | F189: 5239
A190: 2022-08-01 | B190: 18 - 19 | C190: 187 | D190: 3054 | E190: 2092 | F190: 5146
A191: 2022-08-01 | B191: 19 - 20 | C191: 188 | D191: 2839 | E191: 1949 | F191: 4788
A192: 2022-08-01 | B192: 20 - 21 | C192: 189 | D192: 2686 | E192: 1836 | F192: 4523
A193: 2022-08-01 | B193: 21 - 22 | C193: 190 | D193: 2601 | E193: 1729 | F193: 4330
A194: 2022-08-01 | B194: 22 - 23 | C194: 191 | D194: 2504 | E194: 1654 | F194: 4159
A195: 2022-08-01 | B195: 23 - 00 | C195: 192 | D195: 2396 | E195: 1585 | F195: 3981
A196: 2022-09-01 | B196: 00 - 01 | C196: 193 | D196: 2359 | E196: 1557 | F196: 3915
A197: 2022-09-01 | B197: 01 - 02 | C197: 194 | D197: 2295 | E197: 1518 | F197: 3813
A198: 2022-09-01 | B198: 02 - 03 | C198: 195 | D198: 2239 | E198: 1484 | F198: 3723
A199: 2022-09-01 | B199: 03 - 04 | C199: 196 | D199: 2295 | E199: 1464 | F199: 3759
A200: 2022-09-01 | B200: 04 - 05 | C200: 197 | D200: 2314 | E200: 1441 | F200: 3755
... 8564 more rows

Sheet consumption-prognosis_2022_hour
A1: Consumption prognosis in MWh
A2: Data was last updated 01-01-2023
B3: Hours | C3: NO | D3: SE | E3: FI | F3: DK1 | G3: DK2 | H3: EE | I3: LV | J3: LT
A4: 2022-01-01 | B4: 00 - 01 | C4: 14325 | E4: 10498 | F4: 2027 | G4: 1383 | H4: 989 | I4: 709 | J4: 1230
A5: 2022-01-01 | B5: 01 - 02 | C5: 15565 | E5: 10268 | F5: 1962 | G5: 1340 | H5: 956 | I5: 690 | J5: 1177
A6: 2022-01-01 | B6: 02 - 03 | C6: 14946 | E6: 10176 | F6: 1889 | G6: 1280 | H6: 949 | I6: 676 | J6: 1137
A7: 2022-01-01 | B7: 03 - 04 | C7: 14292 | E7: 10189 | F7: 1857 | G7: 1238 | H7: 949 | I7: 667 | J7: 1112
A8: 2022-01-01 | B8: 04 - 05 | C8: 14260 | E8: 10294 | F8: 1824 | G8: 1212 | H8: 956 | I8: 676 | J8: 1118
A9: 2022-01-01 | B9: 05 - 06 | C9: 14302 | E9: 10506 | F9: 1831 | G9: 1205 | H9: 991 | I9: 697 | J9: 1159
A10: 2022-01-01 | B10: 06 - 07 | C10: 14456 | E10: 10543 | F10: 1887 | G10: 1239 | H10: 1029 | I10: 716 | J10: 1197
A11: 2022-01-01 | B11: 07 - 08 | C11: 16594 | E11: 10757 | F11: 1966 | G11: 1277 | H11: 1074 | I11: 732 | J11: 1248
A12: 2022-01-01 | B12: 08 - 09 | C12: 17109 | E12: 10832 | F12: 2045 | G12: 1316 | H12: 1095 | I12: 753 | J12: 1266
A13: 2022-01-01 | B13: 09 - 10 | C13: 17561 | E13: 10976 | F13: 2161 | G13: 1373 | H13: 1130 | I13: 789 | J13: 1346
A14: 2022-01-01 | B14: 10 - 11 | C14: 17897 | E14: 11154 | F14: 2273 | G14: 1463 | H14: 1151 | I14: 814 | J14: 1415
A15: 2022-01-01 | B15: 11 - 12 | C15: 18022 | E15: 11313 | F15: 2356 | G15: 1539 | H15: 1156 | I15: 828 | J15: 1457
A16: 2022-01-01 | B16: 12 - 13 | C16: 17880 | E16: 11360 | F16: 2343 | G16: 1537 | H16: 1155 | I16: 824 | J16: 1467
A17: 2022-01-01 | B17: 13 - 14 | C17: 17842 | E17: 11440 | F17: 2344 | G17: 1554 | H17: 1155 | I17: 825 | J17: 1468
A18: 2022-01-01 | B18: 14 - 15 | C18: 17954 | E18: 11740 | F18: 2366 | G18: 1565 | H18: 1186 | I18: 854 | J18: 1451
A19: 2022-01-01 | B19: 15 - 16 | C19: 18025 | E19: 12020 | F19: 2359 | G19: 1606 | H19: 1215 | I19: 912 | J19: 1507
A20: 2022-01-01 | B20: 16 - 17 | C20: 18357 | E20: 12086 | F20: 2524 | G20: 1717 | H20: 1196 | I20: 922 | J20: 1554
A21: 2022-01-01 | B21: 17 - 18 | C21: 18456 | E21: 12137 | F21: 2675 | G21: 1805 | H21: 1185 | I21: 907 | J21: 1538
A22: 2022-01-01 | B22: 18 - 19 | C22: 18481 | E22: 12124 | F22: 2605 | G22: 1768 | H22: 1167 | I22: 884 | J22: 1517
A23: 2022-01-01 | B23: 19 - 20 | C23: 18419 | E23: 11958 | F23: 2459 | G23: 1692 | H23: 1150 | I23: 838 | J23: 1487
A24: 2022-01-01 | B24: 20 - 21 | C24: 18209 | E24: 11640 | F24: 2323 | G24: 1597 | H24: 1119 | I24: 797 | J24: 1434
A25: 2022-01-01 | B25: 21 - 22 | C25: 17989 | E25: 11861 | F25: 2262 | G25: 1519 | H25: 1069 | I25: 754 | J25: 1345
A26: 2022-01-01 | B26: 22 - 23 | C26: 17964 | E26: 11726 | F26: 2226 | G26: 1455 | H26: 1030 | I26: 705 | J26: 1266
A27: 2022-01-01 | B27: 23 - 00 | C27: 17721 | E27: 10896 | F27: 2144 | G27: 1378 | H27: 1025 | I27: 707 | J27: 1221
A28: 2022-02-01 | B28: 00 - 01 | C28: 16522 | D28: 15987 | E28: 10643 | F28: 2050 | G28: 1301 | H28: 1003 | I28: 625 | J28: 1184
A29: 2022-02-01 | B29: 01 - 02 | C29: 15878 | D29: 15601 | E29: 10499 | F29: 1992 | G29: 1242 | H29: 986 | I29: 601 | J29: 1150
A30: 2022-02-01 | B30: 02 - 03 | C30: 15926 | D30: 15328 | E30: 10421 | F30: 1983 | G30: 1215 | H30: 986 | I30: 592 | J30: 1136
A31: 2022-02-01 | B31: 03 - 04 | C31: 15891 | D31: 15183 | E31: 10461 | F31: 1948 | G31: 1224 | H31: 990 | I31: 596 | J31: 1129
A32: 2022-02-01 | B32: 04 - 05 | C32: 15959 | D32: 15193 | E32: 10559 | F32: 1927 | G32: 1210 | H32: 1001 | I32: 614 | J32: 1147
A33: 2022-02-01 | B33: 05 - 06 | C33: 15970 | D33: 15319 | E33: 10775 | F33: 1943 | G33: 1216 | H33: 1036 | I33: 647 | J33: 1208
A34: 2022-02-01 | B34: 06 - 07 | C34: 16159 | D34: 15641 | E34: 10850 | F34: 2023 | G34: 1264 | H34: 1085 | I34: 687 | J34: 1259
A35: 2022-02-01 | B35: 07 - 08 | C35: 16384 | D35: 16083 | E35: 11134 | F35: 2212 | G35: 1344 | H35: 1136 | I35: 721 | J35: 1324
A36: 2022-02-01 | B36: 08 - 09 | C36: 16590 | D36: 16669 | E36: 11244 | F36: 2331 | G36: 1438 | H36: 1165 | I36: 750 | J36: 1404
A37: 2022-02-01 | B37: 09 - 10 | C37: 17036 | D37: 17198 | E37: 11397 | F37: 2428 | G37: 1534 | H37: 1209 | I37: 796 | J37: 1493
A38: 2022-02-01 | B38: 10 - 11 | C38: 17452 | D38: 17644 | E38: 11538 | F38: 2468 | G38: 1617 | H38: 1234 | I38: 818 | J38: 1546
A39: 2022-02-01 | B39: 11 - 12 | C39: 17617 | D39: 17888 | E39: 11574 | F39: 2506 | G39: 1675 | H39: 1239 | I39: 824 | J39: 1576
A40: 2022-02-01 | B40: 12 - 13 | C40: 17835 | D40: 17946 | E40: 11562 | F40: 2509 | G40: 1687 | H40: 1234 | I40: 820 | J40: 1601
A41: 2022-02-01 | B41: 13 - 14 | C41: 18099 | D41: 17902 | E41: 11598 | F41: 2489 | G41: 1697 | H41: 1238 | I41: 817 | J41: 1618
A42: 2022-02-01 | B42: 14 - 15 | C42: 18157 | D42: 17960 | E42: 11801 | F42: 2486 | G42: 1696 | H42: 1262 | I42: 822 | J42: 1608
A43: 2022-02-01 | B43: 15 - 16 | C43: 18403 | D43: 18352 | E43: 12033 | F43: 2546 | G43: 1737 | H43: 1302 | I43: 883 | J43: 1675
A44: 2022-02-01 | B44: 16 - 17 | C44: 18604 | D44: 18853 | E44: 12144 | F44: 2734 | G44: 1836 | H44: 1294 | I44: 907 | J44: 1720
A45: 2022-02-01 | B45: 17 - 18 | C45: 18664 | D45: 18996 | E45: 12191 | F45: 2906 | G45: 1971 | H45: 1278 | I45: 906 | J45: 1693
A46: 2022-02-01 | B46: 18 - 19 | C46: 18435 | D46: 18802 | E46: 12191 | F46: 2805 | G46: 1951 | H46: 1261 | I46: 889 | J46: 1657
A47: 2022-02-01 | B47: 19 - 20 | C47: 18150 | D47: 18437 | E47: 11975 | F47: 2617 | G47: 1825 | H47: 1238 | I47: 865 | J47: 1620
A48: 2022-02-01 | B48: 20 - 21 | C48: 17575 | D48: 17911 | E48: 11593 | F48: 2455 | G48: 1706 | H48: 1203 | I48: 829 | J48: 1536
A49: 2022-02-01 | B49: 21 - 22 | C49: 17133 | D49: 17297 | E49: 11851 | F49: 2347 | G49: 1591 | H49: 1169 | I49: 768 | J49: 1436
A50: 2022-02-01 | B50: 22 - 23 | C50: 17057 | D50: 16588 | E50: 11719 | F50: 2304 | G50: 1479 | H50: 1125 | I50: 699 | J50: 1324
A51: 2022-02-01 | B51: 23 - 00 | C51: 16766 | D51: 15912 | E51: 10603 | F51: 2227 | G51: 1380 | H51: 1153 | I51: 655 | J51: 1247
A52: 2022-03-01 | B52: 00 - 01 | C52: 16374 | D52: 15217 | E52: 10379 | F52: 2042 | G52: 1331 | H52: 1011 | I52: 646 | J52: 1213
A53: 2022-03-01 | B53: 01 - 02 | C53: 15989 | D53: 14905 | E53: 10329 | F53: 2000 | G53: 1270 | H53: 981 | I53: 628 | J53: 1186
A54: 2022-03-01 | B54: 02 - 03 | C54: 15579 | D54: 14787 | E54: 10273 | F54: 1972 | G54: 1239 | H54: 974 | I54: 626 | J54: 1175
A55: 2022-03-01 | B55: 03 - 04 | C55: 15518 | D55: 14784 | E55: 10391 | F55: 1980 | G55: 1223 | H55: 973 | I55: 636 | J55: 1184
A56: 2022-03-01 | B56: 04 - 05 | C56: 15661 | D56: 14999 | E56: 10735 | F56: 2123 | G56: 1239 | H56: 991 | I56: 673 | J56: 1253
A57: 2022-03-01 | B57: 05 - 06 | C57: 16187 | D57: 15562 | E57: 11407 | F57: 2250 | G57: 1337 | H57: 1059 | I57: 775 | J57: 1446
A58: 2022-03-01 | B58: 06 - 07 | C58: 17004 | D58: 16794 | E58: 11811 | F58: 2594 | G58: 1531 | H58: 1120 | I58: 898 | J58: 1635
A59: 2022-03-01 | B59: 07 - 08 | C59: 18219 | D59: 17948 | E59: 12101 | F59: 3009 | G59: 1762 | H59: 1187 | I59: 1013 | J59: 1799
A60: 2022-03-01 | B60: 08 - 09 | C60: 18995 | D60: 18579 | E60: 12104 | F60: 3191 | G60: 1897 | H60: 1199 | I60: 1056 | J60: 1858
A61: 2022-03-01 | B61: 09 - 10 | C61: 19276 | D61: 18743 | E61: 12118 | F61: 3153 | G61: 1926 | H61: 1203 | I61: 1075 | J61: 1886
A62: 2022-03-01 | B62: 10 - 11 | C62: 19495 | D62: 19034 | E62: 12161 | F62: 3185 | G62: 1932 | H62: 1194 | I62: 1070 | J62: 1896
A63: 2022-03-01 | B63: 11 - 12 | C63: 19296 | D63: 19100 | E63: 12192 | F63: 3245 | G63: 1986 | H63: 1184 | I63: 1039 | J63: 1890
A64: 2022-03-01 | B64: 12 - 13 | C64: 19350 | D64: 19037 | E64: 12153 | F64: 3189 | G64: 1983 | H64: 1177 | I64: 1066 | J64: 1896
A65: 2022-03-01 | B65: 13 - 14 | C65: 19683 | D65: 18966 | E65: 12202 | F65: 3183 | G65: 1962 | H65: 1165 | I65: 1054 | J65: 1876
A66: 2022-03-01 | B66: 14 - 15 | C66: 19649 | D66: 18974 | E66: 12346 | F66: 3134 | G66: 1916 | H66: 1181 | I66: 1047 | J66: 1872
A67: 2022-03-01 | B67: 15 - 16 | C67: 19748 | D67: 19330 | E67: 12557 | F67: 3068 | G67: 1925 | H67: 1234 | I67: 1090 | J67: 1907
A68: 2022-03-01 | B68: 16 - 17 | C68: 19720 | D68: 19559 | E68: 12545 | F68: 3191 | G68: 2033 | H68: 1226 | I68: 1075 | J68: 1910
A69: 2022-03-01 | B69: 17 - 18 | C69: 19805 | D69: 19536 | E69: 12504 | F69: 3384 | G69: 2166 | H69: 1194 | I69: 1049 | J69: 1873
A70: 2022-03-01 | B70: 18 - 19 | C70: 19619 | D70: 19127 | E70: 12503 | F70: 3193 | G70: 2092 | H70: 1148 | I70: 1008 | J70: 1813
A71: 2022-03-01 | B71: 19 - 20 | C71: 19268 | D71: 18633 | E71: 12270 | F71: 3063 | G71: 1965 | H71: 1081 | I71: 988 | J71: 1746
A72: 2022-03-01 | B72: 20 - 21 | C72: 18777 | D72: 18006 | E72: 11863 | F72: 2877 | G72: 1832 | H72: 1041 | I72: 914 | J72: 1648
A73: 2022-03-01 | B73: 21 - 22 | C73: 18722 | D73: 17351 | E73: 11964 | F73: 2735 | G73: 1714 | H73: 1002 | I73: 852 | J73: 1522
A74: 2022-03-01 | B74: 22 - 23 | C74: 18192 | D74: 16696 | E74: 11719 | F74: 2618 | G74: 1606 | H74: 996 | I74: 788 | J74: 1388
A75: 2022-03-01 | B75: 23 - 00 | C75: 17892 | D75: 16061 | E75: 10426 | F75: 2462 | G75: 1506 | H75: 915 | I75: 729 | J75: 1308
A76: 2022-04-01 | B76: 00 - 01 | C76: 17323 | E76: 10196 | F76: 2182 | G76: 1360 | H76: 967 | I76: 689 | J76: 1285
A77: 2022-04-01 | B77: 01 - 02 | C77: 17366 | E77: 10133 | F77: 2159 | G77: 1290 | H77: 951 | I77: 671 | J77: 1265
A78: 2022-04-01 | B78: 02 - 03 | C78: 17258 | E78: 10074 | F78: 2157 | G78: 1268 | H78: 947 | I78: 662 | J78: 1254
A79: 2022-04-01 | B79: 03 - 04 | C79: 16904 | E79: 10187 | F79: 2174 | G79: 1289 | H79: 948 | I79: 662 | J79: 1266
A80: 2022-04-01 | B80: 04 - 05 | C80: 17074 | E80: 10508 | F80: 2238 | G80: 1312 | H80: 972 | I80: 695 | J80: 1325
A81: 2022-04-01 | B81: 05 - 06 | C81: 17337 | E81: 11127 | F81: 2363 | G81: 1399 | H81: 1049 | I81: 776 | J81: 1506
A82: 2022-04-01 | B82: 06 - 07 | C82: 18713 | E82: 11504 | F82: 2643 | G82: 1578 | H82: 1157 | I82: 880 | J82: 1690
A83: 2022-04-01 | B83: 07 - 08 | C83: 20148 | E83: 11773 | F83: 3032 | G83: 1794 | H83: 1255 | I83: 994 | J83: 1859
A84: 2022-04-01 | B84: 08 - 09 | C84: 20676 | E84: 11769 | F84: 3240 | G84: 1952 | H84: 1290 | I84: 1035 | J84: 1916
A85: 2022-04-01 | B85: 09 - 10 | C85: 20619 | E85: 11767 | F85: 3256 | G85: 2005 | H85: 1302 | I85: 1064 | J85: 1936
A86: 2022-04-01 | B86: 10 - 11 | C86: 20559 | E86: 11791 | F86: 3259 | G86: 2031 | H86: 1303 | I86: 1076 | J86: 1939
A87: 2022-04-01 | B87: 11 - 12 | C87: 20590 | E87: 11796 | F87: 3228 | G87: 2033 | H87: 1293 | I87: 1045 | J87: 1930
A88: 2022-04-01 | B88: 12 - 13 | C88: 20454 | E88: 11742 | F88: 3216 | G88: 2042 | H88: 1307 | I88: 1067 | J88: 1941
A89: 2022-04-01 | B89: 13 - 14 | C89: 20217 | E89: 11765 | F89: 3200 | G89: 2030 | H89: 1302 | I89: 1061 | J89: 1924
A90: 2022-04-01 | B90: 14 - 15 | C90: 20458 | E90: 11892 | F90: 3158 | G90: 2000 | H90: 1297 | I90: 1053 | J90: 1931
A91: 2022-04-01 | B91: 15 - 16 | C91: 20580 | E91: 12084 | F91: 3104 | G91: 1987 | H91: 1322 | I91: 1100 | J91: 1955
A92: 2022-04-01 | B92: 16 - 17 | C92: 20862 | E92: 12083 | F92: 3238 | G92: 2093 | H92: 1311 | I92: 1081 | J92: 1952
A93: 2022-04-01 | B93: 17 - 18 | C93: 20549 | E93: 12055 | F93: 3444 | G93: 2224 | H93: 1286 | I93: 1049 | J93: 1906
A94: 2022-04-01 | B94: 18 - 19 | C94: 20242 | E94: 12047 | F94: 3262 | G94: 2179 | H94: 1239 | I94: 1021 | J94: 1855
A95: 2022-04-01 | B95: 19 - 20 | C95: 19975 | E95: 11832 | F95: 3043 | G95: 2025 | H95: 1205 | I95: 994 | J95: 1788
A96: 2022-04-01 | B96: 20 - 21 | C96: 19832 | E96: 11456 | F96: 2936 | G96: 1904 | H96: 1146 | I96: 923 | J96: 1692
A97: 2022-04-01 | B97: 21 - 22 | C97: 19693 | E97: 11562 | F97: 2793 | G97: 1794 | H97: 1074 | I97: 847 | J97: 1551
A98: 2022-04-01 | B98: 22 - 23 | C98: 18845 | E98: 11360 | F98: 2625 | G98: 1667 | H98: 1027 | I98: 784 | J98: 1426
A99: 2022-04-01 | B99: 23 - 00 | C99: 18270 | E99: 10275 | F99: 2450 | G99: 1558 | H99: 998 | I99: 744 | J99: 1353
A100: 2022-05-01 | B100: 00 - 01 | C100: 17993 | E100: 10084 | F100: 2356 | G100: 1473 | H100: 947 | I100: 671 | J100: 1266
A101: 2022-05-01 | B101: 01 - 02 | C101: 17906 | E101: 10027 | F101: 2295 | G101: 1436 | H101: 931 | I101: 650 | J101: 1238
A102: 2022-05-01 | B102: 02 - 03 | C102: 17507 | E102: 9989 | F102: 2294 | G102: 1424 | H102: 935 | I102: 638 | J102: 1225
A103: 2022-05-01 | B103: 03 - 04 | C103: 17275 | E103: 10067 | F103: 2406 | G103: 1431 | H103: 937 | I103: 638 | J103: 1238
A104: 2022-05-01 | B104: 04 - 05 | C104: 17645 | E104: 10362 | F104: 2442 | G104: 1464 | H104: 968 | I104: 673 | J104: 1305
A105: 2022-05-01 | B105: 05 - 06 | C105: 18040 | E105: 10888 | F105: 2498 | G105: 1524 | H105: 1084 | I105: 753 | J105: 1492
A106: 2022-05-01 | B106: 06 - 07 | C106: 19072 | E106: 11225 | F106: 2779 | G106: 1713 | H106: 1210 | I106: 865 | J106: 1679
A107: 2022-05-01 | B107: 07 - 08 | C107: 20404 | E107: 11469 | F107: 3177 | G107: 1932 | H107: 1306 | I107: 981 | J107: 1850
A108: 2022-05-01 | B108: 08 - 09 | C108: 21093 | E108: 11459 | F108: 3361 | G108: 2041 | H108: 1338 | I108: 1023 | J108: 1906
A109: 2022-05-01 | B109: 09 - 10 | C109: 20906 | E109: 11484 | F109: 3334 | G109: 2065 | H109: 1355 | I109: 1046 | J109: 1927
A110: 2022-05-01 | B110: 10 - 11 | C110: 21010 | E110: 11588 | F110: 3374 | G110: 2088 | H110: 1344 | I110: 1053 | J110: 1932
A111: 2022-05-01 | B111: 11 - 12 | C111: 20900 | E111: 11627 | F111: 3376 | G111: 2080 | H111: 1321 | I111: 1036 | J111: 1916
A112: 2022-05-01 | B112: 12 - 13 | C112: 20823 | E112: 11544 | F112: 3346 | G112: 2049 | H112: 1328 | I112: 1051 | J112: 1929
A113: 2022-05-01 | B113: 13 - 14 | C113: 20768 | E113: 11628 | F113: 3345 | G113: 2070 | H113: 1320 | I113: 1043 | J113: 1914
A114: 2022-05-01 | B114: 14 - 15 | C114: 20996 | E114: 11715 | F114: 3255 | G114: 2065 | H114: 1328 | I114: 1042 | J114: 1909
A115: 2022-05-01 | B115: 15 - 16 | C115: 21149 | E115: 11818 | F115: 3211 | G115: 2085 | H115: 1353 | I115: 1071 | J115: 1944
A116: 2022-05-01 | B116: 16 - 17 | C116: 21367 | E116: 11790 | F116: 3264 | G116: 2187 | H116: 1327 | I116: 1051 | J116: 1941
A117: 2022-05-01 | B117: 17 - 18 | C117: 21394 | E117: 11793 | F117: 3543 | G117: 2296 | H117: 1288 | I117: 1032 | J117: 1902
A118: 2022-05-01 | B118: 18 - 19 | C118: 20442 | E118: 11752 | F118: 3360 | G118: 2233 | H118: 1242 | I118: 1003 | J118: 1847
A119: 2022-05-01 | B119: 19 - 20 | C119: 20193 | E119: 11525 | F119: 3224 | G119: 2116 | H119: 1197 | I119: 979 | J119: 1780
A120: 2022-05-01 | B120: 20 - 21 | C120: 20059 | E120: 11201 | F120: 3132 | G120: 2054 | H120: 1156 | I120: 911 | J120: 1678
A121: 2022-05-01 | B121: 21 - 22 | C121: 19818 | E121: 11247 | F121: 3055 | G121: 1989 | H121: 1091 | I121: 836 | J121: 1531
A122: 2022-05-01 | B122: 22 - 23 | C122: 19331 | E122: 11059 | F122: 2931 | G122: 1887 | H122: 1016 | I122: 764 | J122: 1425
A123: 2022-05-01 | B123: 23 - 00 | C123: 18907 | E123: 10245 | F123: 2774 | G123: 1784 | H123: 1039 | I123: 707 | J123: 1324
A124: 2022-06-01 | B124: 00 - 01 | C124: 18244 | E124: 10022 | F124: 2604 | G124: 1686 | H124: 945 | I124: 659 | J124: 1256
A125: 2022-06-01 | B125: 01 - 02 | C125: 18250 | E125: 9925 | F125: 2531 | G125: 1611 | H125: 937 | I125: 644 | J125: 1227
A126: 2022-06-01 | B126: 02 - 03 | C126: 18081 | E126: 9887 | F126: 2422 | G126: 1576 | H126: 929 | I126: 640 | J126: 1219
A127: 2022-06-01 | B127: 03 - 04 | C127: 18040 | E127: 9971 | F127: 2400 | G127: 1590 | H127: 929 | I127: 647 | J127: 1225
A128: 2022-06-01 | B128: 04 - 05 | C128: 18203 | E128: 10100 | F128: 2454 | G128: 1613 | H128: 954 | I128: 684 | J128: 1281
A129: 2022-06-01 | B129: 05 - 06 | C129: 18469 | E129: 10370 | F129: 2562 | G129: 1639 | H129: 1062 | I129: 784 | J129: 1460
A130: 2022-06-01 | B130: 06 - 07 | C130: 19826 | E130: 10481 | F130: 2795 | G130: 1771 | H130: 1199 | I130: 920 | J130: 1661
A131: 2022-06-01 | B131: 07 - 08 | C131: 21023 | E131: 10799 | F131: 3158 | G131: 1974 | H131: 1276 | I131: 1031 | J131: 1831
A132: 2022-06-01 | B132: 08 - 09 | C132: 21659 | E132: 10875 | F132: 3333 | G132: 2076 | H132: 1307 | I132: 1057 | J132: 1890
A133: 2022-06-01 | B133: 09 - 10 | C133: 19423 | E133: 11059 | F133: 3312 | G133: 2107 | H133: 1310 | I133: 1052 | J133: 1903
A134: 2022-06-01 | B134: 10 - 11 | C134: 19490 | E134: 11204 | F134: 3437 | G134: 2128 | H134: 1307 | I134: 1060 | J134: 1911
A135: 2022-06-01 | B135: 11 - 12 | C135: 19314 | E135: 11293 | F135: 3409 | G135: 2173 | H135: 1286 | I135: 1045 | J135: 1896
A136: 2022-06-01 | B136: 12 - 13 | C136: 19210 | E136: 11267 | F136: 3277 | G136: 2114 | H136: 1300 | I136: 1061 | J136: 1904
A137: 2022-06-01 | B137: 13 - 14 | C137: 21008 | E137: 11315 | F137: 3249 | G137: 2086 | H137: 1287 | I137: 1045 | J137: 1887
A138: 2022-06-01 | B138: 14 - 15 | C138: 20679 | E138: 11562 | F138: 3196 | G138: 2057 | H138: 1306 | I138: 1045 | J138: 1878
A139: 2022-06-01 | B139: 15 - 16 | C139: 20971 | E139: 11917 | F139: 3140 | G139: 2038 | H139: 1314 | I139: 1068 | J139: 1887
A140: 2022-06-01 | B140: 16 - 17 | C140: 21361 | E140: 12008 | F140: 3172 | G140: 2141 | H140: 1300 | I140: 1061 | J140: 1887
A141: 2022-06-01 | B141: 17 - 18 | C141: 21327 | E141: 12010 | F141: 3457 | G141: 2296 | H141: 1262 | I141: 1030 | J141: 1822
A142: 2022-06-01 | B142: 18 - 19 | C142: 21002 | E142: 12037 | F142: 3348 | G142: 2281 | H142: 1234 | I142: 1001 | J142: 1767
A143: 2022-06-01 | B143: 19 - 20 | C143: 20765 | E143: 11807 | F143: 3271 | G143: 2194 | H143: 1213 | I143: 977 | J143: 1716
A144: 2022-06-01 | B144: 20 - 21 | C144: 20492 | E144: 11360 | F144: 3084 | G144: 2068 | H144: 1156 | I144: 919 | J144: 1643
A145: 2022-06-01 | B145: 21 - 22 | C145: 20216 | E145: 11540 | F145: 2962 | G145: 1935 | H145: 1097 | I145: 850 | J145: 1511
A146: 2022-06-01 | B146: 22 - 23 | C146: 20067 | E146: 11413 | F146: 2843 | G146: 1793 | H146: 1022 | I146: 780 | J146: 1390
A147: 2022-06-01 | B147: 23 - 00 | C147: 19637 | E147: 11152 | F147: 2737 | G147: 1691 | H147: 1023 | I147: 723 | J147: 1302
A148: 2022-07-01 | B148: 00 - 01 | C148: 19159 | E148: 10948 | F148: 2463 | G148: 1548 | H148: 992 | I148: 694 | J148: 1283
A149: 2022-07-01 | B149: 01 - 02 | C149: 19273 | E149: 10847 | F149: 2359 | G149: 1483 | H149: 983 | I149: 681 | J149: 1242
A150: 2022-07-01 | B150: 02 - 03 | C150: 19066 | E150: 10801 | F150: 2339 | G150: 1458 | H150: 985 | I150: 670 | J150: 1231
A151: 2022-07-01 | B151: 03 - 04 | C151: 18767 | E151: 10884 | F151: 2405 | G151: 1456 | H151: 991 | I151: 679 | J151: 1243
A152: 2022-07-01 | B152: 04 - 05 | C152: 18784 | E152: 11218 | F152: 2486 | G152: 1498 | H152: 1024 | I152: 720 | J152: 1300
A153: 2022-07-01 | B153: 05 - 06 | C153: 19244 | E153: 11912 | F153: 2615 | G153: 1532 | H153: 1142 | I153: 809 | J153: 1476
A154: 2022-07-01 | B154: 06 - 07 | C154: 20055 | E154: 12302 | F154: 2891 | G154: 1734 | H154: 1272 | I154: 953 | J154: 1679
A155: 2022-07-01 | B155: 07 - 08 | C155: 21327 | E155: 12556 | F155: 3231 | G155: 2012 | H155: 1347 | I155: 1063 | J155: 1849
A156: 2022-07-01 | B156: 08 - 09 | C156: 22019 | E156: 12517 | F156: 3401 | G156: 2123 | H156: 1372 | I156: 1089 | J156: 1905
A157: 2022-07-01 | B157: 09 - 10 | C157: 22247 | E157: 12484 | F157: 3374 | G157: 2085 | H157: 1381 | I157: 1100 | J157: 1906
A158: 2022-07-01 | B158: 10 - 11 | C158: 22170 | E158: 12486 | F158: 3435 | G158: 2183 | H158: 1374 | I158: 1090 | J158: 1904
A159: 2022-07-01 | B159: 11 - 12 | C159: 21898 | E159: 12469 | F159: 3379 | G159: 2170 | H159: 1363 | I159: 1071 | J159: 1891
A160: 2022-07-01 | B160: 12 - 13 | C160: 21790 | E160: 12410 | F160: 3273 | G160: 2152 | H160: 1370 | I160: 1081 | J160: 1908
A161: 2022-07-01 | B161: 13 - 14 | C161: 21820 | E161: 12425 | F161: 3241 | G161: 2144 | H161: 1353 | I161: 1060 | J161: 1869
A162: 2022-07-01 | B162: 14 - 15 | C162: 21744 | E162: 12574 | F162: 3148 | G162: 2114 | H162: 1367 | I162: 1060 | J162: 1856
A163: 2022-07-01 | B163: 15 - 16 | C163: 21612 | E163: 12764 | F163: 3026 | G163: 2110 | H163: 1394 | I163: 1094 | J163: 1883
A164: 2022-07-01 | B164: 16 - 17 | C164: 21446 | E164: 12839 | F164: 3143 | G164: 2189 | H164: 1379 | I164: 1075 | J164: 1910
A165: 2022-07-01 | B165: 17 - 18 | C165: 21011 | E165: 12837 | F165: 3299 | G165: 2276 | H165: 1352 | I165: 1050 | J165: 1852
A166: 2022-07-01 | B166: 18 - 19 | C166: 20558 | E166: 12734 | F166: 3197 | G166: 2228 | H166: 1319 | I166: 1009 | J166: 1798
A167: 2022-07-01 | B167: 19 - 20 | C167: 20354 | E167: 12588 | F167: 3013 | G167: 2108 | H167: 1289 | I167: 985 | J167: 1751
